{"text_format":"1","workbook":"xlsx","n_sheets":2,"sheets":["PRODUCTOS","FACTURA"],"not_rendered":{"charts":0,"images":0,"macros":1,"external_links":0,"defined_names":0,"comments":0,"pivot_tables":1},"unopened":[],"bounds":{"document_bytes":16777216,"sheet_cells":100000,"rows_first":2000,"rows_last":500,"rows_between":2000,"halvings":0,"cell_chars":16384,"cell_head_chars":4096},"cells_cut":0,"cells_raw":0,"read":"whole","date_system":"1900"}

{"sheet":"PRODUCTOS","index":0,"n_rows":2080,"n_cols":9,"rows_kept":2080,"cut":false,"hidden":false,"merged":[[1,0,2,8]]}
[]
["ACCESORIOS DE PROTECCION PARA MOTOCICLETAS (RADIATOR GUARD)"]
[]
[]
[]
["Marca ","Referencia","Accesorio","$ Distribuidor","$ Sugerido","Cantidad","Total","Observaciones (Color)","Columna1"]
["BAJAJ","PULSAR NS 160","SLIDER DE ALTO IMPACTO MOTOR 2 PUNTOS PREMIUM",90000,115000,null,{"$f":"PRODUCTOS[[#This Row],[Cantidad]]*PRODUCTOS[[#This Row],[$ Distribuidor]]","v":0}]
["BAJAJ","PULSAR NS 160","SLIDER EJES X 4 SIN TAPA",36000,60000,null,{"$f":"PRODUCTOS[[#This Row],[Cantidad]]*PRODUCTOS[[#This Row],[$ Distribuidor]]","v":0}]
["BAJAJ","PULSAR NS 160","SLIDER EJES X 4 CON TAPA CENTRO EN ALUMINIO ",50000,70000,null,{"$f":"PRODUCTOS[[#This Row],[Cantidad]]*PRODUCTOS[[#This Row],[$ Distribuidor]]","v":0}]
["BAJAJ","PULSAR NS 160","PROTECTOR DE RADIADOR 2D",42000,60000,null,{"$f":"PRODUCTOS[[#This Row],[Cantidad]]*PRODUCTOS[[#This Row],[$ Distribuidor]]","v":0}]
["BAJAJ","PULSAR NS 160","PROTECTOR DE RADIADOR 3D",45000,65000,null,{"$f":"PRODUCTOS[[#This Row],[Cantidad]]*PRODUCTOS[[#This Row],[$ Distribuidor]]","v":0}]
["BAJAJ","PULSAR NS 160","PROTECTOR CALIPER MORDAZA 2D",12000,20000,null,{"$f":"PRODUCTOS[[#This Row],[Cantidad]]*PRODUCTOS[[#This Row],[$ Distribuidor]]","v":0}]
["BAJAJ","PULSAR NS 160","PROTECTOR CALIPER MORDAZA 3D",15000,25000,null,{"$f":"PRODUCTOS[[#This Row],[Cantidad]]*PRODUCTOS[[#This Row],[$ Distribuidor]]","v":0}]
["BAJAJ","PULSAR NS 160","PROTECTOR DEPOSITO LIQUIDO FRENO DELANTERO 2D",8000,20000,null,{"$f":"PRODUCTOS[[#This Row],[Cantidad]]*PRODUCTOS[[#This Row],[$ Distribuidor]]","v":0}]
["BAJAJ","PULSAR NS 160","PROTECTOR DEPOSITO LIQUIDO FRENO DELANTERO 3D",10000,25000,null,{"$f":"PRODUCTOS[[#This Row],[Cantidad]]*PRODUCTOS[[#This Row],[$ Distribuidor]]","v":0}]
["BAJAJ","PULSAR NS 160","PROTECTOR DEPOSITO LIQUIDO FRENO TRASERO 2D",13000,25000,null,{"$f":"PRODUCTOS[[#This Row],[Cantidad]]*PRODUCTOS[[#This Row],[$ Distribuidor]]","v":0}]
["BAJAJ","PULSAR NS 160","PROTECTOR DEPOSITO LIQUIDO FRENO TRASERO 3D",15000,28000,null,{"$f":"PRODUCTOS[[#This Row],[Cantidad]]*PRODUCTOS[[#This Row],[$ Distribuidor]]","v":0}]
["BAJAJ","PULSAR NS 160","PROTECTOR ARO GASOLINA",11000,20000,null,{"$f":"PRODUCTOS[[#This Row],[Cantidad]]*PRODUCTOS[[#This Row],[$ Distribuidor]]","v":0}]
["BAJAJ","PULSAR NS 160","PROTECTOR PLACA 2D",11000,20000,null,{"$f":"PRODUCTOS[[#This Row],[Cantidad]]*PRODUCTOS[[#This Row],[$ Distribuidor]]","v":0}]
["BAJAJ","PULSAR NS 160","PROTECTOR PLACA 3D",14000,25000,null,{"$f":"PRODUCTOS[[#This Row],[Cantidad]]*PRODUCTOS[[#This Row],[$ Distribuidor]]","v":0}]
["BAJAJ","PULSAR NS 160","PROTECTOR FAROLA 3D",48000,85000,null,{"$f":"PRODUCTOS[[#This Row],[Cantidad]]*PRODUCTOS[[#This Row],[$ Distribuidor]]","v":0}]
["BAJAJ","PULSAR NS 160","CUPULA DE LUJO ACERO INOXIDABLE",45000,90000,null,{"$f":"PRODUCTOS[[#This Row],[Cantidad]]*PRODUCTOS[[#This Row],[$ Distribuidor]]","v":0}]
["BAJAJ","PULSAR NS 160","CUBRE PIÑON SALIDA  3D",20000,28000,null,{"$f":"PRODUCTOS[[#This Row],[Cantidad]]*PRODUCTOS[[#This Row],[$ Distribuidor]]","v":0}]
["BAJAJ","PULSAR NS 160","CUBRE CADENA 2D",27000,45000,null,{"$f":"PRODUCTOS[[#This Row],[Cantidad]]*PRODUCTOS[[#This Row],[$ Distribuidor]]","v":0}]
["BAJAJ","PULSAR NS 160","CUBRE CADENA 3D",32000,48000,null,{"$f":"PRODUCTOS[[#This Row],[Cantidad]]*PRODUCTOS[[#This Row],[$ Distribuidor]]","v":0}]
["BAJAJ","PULSAR NS 160","PROTECTORES LATERALES DE RADIADOR X2  2D",18000,28000,null,{"$f":"PRODUCTOS[[#This Row],[Cantidad]]*PRODUCTOS[[#This Row],[$ Distribuidor]]","v":0}]
["BAJAJ","PULSAR NS 160","PROTECTORES LATERALES DE RADIADOR X2  3D",23000,30000,null,{"$f":"PRODUCTOS[[#This Row],[Cantidad]]*PRODUCTOS[[#This Row],[$ Distribuidor]]","v":0}]
["BAJAJ","PULSAR NS 160","CABALLETE O GATO DE SERVICIO ",125000,160000,null,{"$f":"PRODUCTOS[[#This Row],[Cantidad]]*PRODUCTOS[[#This Row],[$ Distribuidor]]","v":0}]
["BAJAJ","PULSAR NS 160","LUJO ACUTRAX MANUBRIO CENTRAL 2D",17000,25000,null,{"$f":"PRODUCTOS[[#This Row],[Cantidad]]*PRODUCTOS[[#This Row],[$ Distribuidor]]","v":0}]
["BAJAJ","PULSAR NS 160","LUJO ACUTRAX MANUBRIO CENTRAL 3D",19000,28000,null,{"$f":"PRODUCTOS[[#This Row],[Cantidad]]*PRODUCTOS[[#This Row],[$ Distribuidor]]","v":0}]
["BAJAJ","PULSAR NS 160","LUJO TANQUE FRONTAL",5500,10000,null,{"$f":"PRODUCTOS[[#This Row],[Cantidad]]*PRODUCTOS[[#This Row],[$ Distribuidor]]","v":0}]
["BAJAJ","PULSAR NS 160","LUJO TIJERA NS160",6000,13000,null,{"$f":"PRODUCTOS[[#This Row],[Cantidad]]*PRODUCTOS[[#This Row],[$ Distribuidor]]","v":0}]
["BAJAJ","PULSAR NS 160","LUJOS MALLAS LATERALES X 2",17000,28000,null,{"$f":"PRODUCTOS[[#This Row],[Cantidad]]*PRODUCTOS[[#This Row],[$ Distribuidor]]","v":0}]
["BAJAJ","PULSAR NS 160","BASE PORTA CELULAR GPS",16000,25000,null,{"$f":"PRODUCTOS[[#This Row],[Cantidad]]*PRODUCTOS[[#This Row],[$ Distribuidor]]","v":0}]
["BAJAJ","PULSAR NS 160","ESTABILIZADOR DE BARRAS 2D",55000,90000,null,{"$f":"PRODUCTOS[[#This Row],[Cantidad]]*PRODUCTOS[[#This Row],[$ Distribuidor]]","v":0}]
["BAJAJ","PULSAR NS 160","ESTABILIZADOR DE BARRAS 3D",58000,95000,null,{"$f":"PRODUCTOS[[#This Row],[Cantidad]]*PRODUCTOS[[#This Row],[$ Distribuidor]]","v":0}]
["BAJAJ","PULSAR NS 160","FENDER ELIMINATOR ABATIBLE 3 MILIMETROS PARA DIRECCIONALES ORIGINALES 2D",40000,70000,null,{"$f":"PRODUCTOS[[#This Row],[Cantidad]]*PRODUCTOS[[#This Row],[$ Distribuidor]]","v":0}]
["BAJAJ","PULSAR NS 160","FENDER ELIMINATOR ABATIBLE 3 MILIMETROS PARA DIRECCIONALES ORIGINALES 3D",45000,75000,null,{"$f":"PRODUCTOS[[#This Row],[Cantidad]]*PRODUCTOS[[#This Row],[$ Distribuidor]]","v":0}]
["BAJAJ","PULSAR NS 160","PROTECTOR TACOMETRO ACRILICO",11000,17000,null,{"$f":"PRODUCTOS[[#This Row],[Cantidad]]*PRODUCTOS[[#This Row],[$ Distribuidor]]","v":0}]
["BAJAJ","PULSAR NS 160","BASE TANK BAG",43000,80000,null,{"$f":"PRODUCTOS[[#This Row],[Cantidad]]*PRODUCTOS[[#This Row],[$ Distribuidor]]","v":0}]
["BAJAJ","PULSAR NS 160","EXTENSOR PATA LATERAL",29000,40000,null,{"$f":"PRODUCTOS[[#This Row],[Cantidad]]*PRODUCTOS[[#This Row],[$ Distribuidor]]","v":0}]
["BAJAJ","PULSAR NS 160","ESTABILIZADOR DE BARRAS O DIRECCIONES ",55000,90000,null,{"$f":"PRODUCTOS[[#This Row],[Cantidad]]*PRODUCTOS[[#This Row],[$ Distribuidor]]","v":0}]
["BAJAJ","PULSAR NS 200","SLIDER DE ALTO IMPACTO MOTOR 2 PUNTOS ECONO",85000,100000,null,{"$f":"PRODUCTOS[[#This Row],[Cantidad]]*PRODUCTOS[[#This Row],[$ Distribuidor]]","v":0}]
["BAJAJ","PULSAR NS 200","SLIDER DE ALTO IMPACTO MOTOR 2 PUNTOS PREMIUM",90000,115000,null,{"$f":"PRODUCTOS[[#This Row],[Cantidad]]*PRODUCTOS[[#This Row],[$ Distribuidor]]","v":0}]
["BAJAJ","PULSAR NS 200","SLIDER DE ALTO IMPACTO MOTOR 3 PUNTOS ECONO",95000,130000,null,{"$f":"PRODUCTOS[[#This Row],[Cantidad]]*PRODUCTOS[[#This Row],[$ Distribuidor]]","v":0}]
["BAJAJ","PULSAR NS 200","SLIDER DE ALTO IMPACTO MOTOR 3 PUNTOS PREMIUM",100000,145000,null,{"$f":"PRODUCTOS[[#This Row],[Cantidad]]*PRODUCTOS[[#This Row],[$ Distribuidor]]","v":0}]
["BAJAJ","PULSAR NS 200","SLIDER EJES X 4 SIN TAPA",36000,60000,null,{"$f":"PRODUCTOS[[#This Row],[Cantidad]]*PRODUCTOS[[#This Row],[$ Distribuidor]]","v":0}]
["BAJAJ","PULSAR NS 200","SLIDER EJES X 4 CON TAPA CENTRO EN ALUMINIO ",50000,70000,null,{"$f":"PRODUCTOS[[#This Row],[Cantidad]]*PRODUCTOS[[#This Row],[$ Distribuidor]]","v":0}]
["BAJAJ","PULSAR NS 200","PROTECTOR DE RADIADOR 2D",42000,60000,null,{"$f":"PRODUCTOS[[#This Row],[Cantidad]]*PRODUCTOS[[#This Row],[$ Distribuidor]]","v":0}]
["BAJAJ","PULSAR NS 200","PROTECTOR DE RADIADOR 3D",45000,65000,null,{"$f":"PRODUCTOS[[#This Row],[Cantidad]]*PRODUCTOS[[#This Row],[$ Distribuidor]]","v":0}]
["BAJAJ","PULSAR NS 200","PROTECTOR CALIPER MORDAZA 2D",12000,20000,null,{"$f":"PRODUCTOS[[#This Row],[Cantidad]]*PRODUCTOS[[#This Row],[$ Distribuidor]]","v":0}]
["BAJAJ","PULSAR NS 200","PROTECTOR CALIPER MORDAZA 3D",15000,25000,null,{"$f":"PRODUCTOS[[#This Row],[Cantidad]]*PRODUCTOS[[#This Row],[$ Distribuidor]]","v":0}]
["BAJAJ","PULSAR NS 200","PROTECTOR DEPOSITO LIQUIDO FRENO DELANTERO 2D",8000,20000,null,{"$f":"PRODUCTOS[[#This Row],[Cantidad]]*PRODUCTOS[[#This Row],[$ Distribuidor]]","v":0}]
["BAJAJ","PULSAR NS 200","PROTECTOR DEPOSITO LIQUIDO FRENO DELANTERO 3D",10000,25000,null,{"$f":"PRODUCTOS[[#This Row],[Cantidad]]*PRODUCTOS[[#This Row],[$ Distribuidor]]","v":0}]
["BAJAJ","PULSAR NS 200","PROTECTOR DEPOSITO LIQUIDO FRENO TRASERO 2D",13000,25000,null,{"$f":"PRODUCTOS[[#This Row],[Cantidad]]*PRODUCTOS[[#This Row],[$ Distribuidor]]","v":0}]
["BAJAJ","PULSAR NS 200","PROTECTOR DEPOSITO LIQUIDO FRENO TRASERO 3D",15000,28000,null,{"$f":"PRODUCTOS[[#This Row],[Cantidad]]*PRODUCTOS[[#This Row],[$ Distribuidor]]","v":0}]
["BAJAJ","PULSAR NS 200","PROTECTOR ARO GASOLINA",11000,20000,null,{"$f":"PRODUCTOS[[#This Row],[Cantidad]]*PRODUCTOS[[#This Row],[$ Distribuidor]]","v":0}]
["BAJAJ","PULSAR NS 200","PROTECTOR PLACA 2D",11000,20000,null,{"$f":"PRODUCTOS[[#This Row],[Cantidad]]*PRODUCTOS[[#This Row],[$ Distribuidor]]","v":0}]
["BAJAJ","PULSAR NS 200","PROTECTOR PLACA 3D",14000,25000,null,{"$f":"PRODUCTOS[[#This Row],[Cantidad]]*PRODUCTOS[[#This Row],[$ Distribuidor]]","v":0}]
["BAJAJ","PULSAR NS 200","PROTECTOR FAROLA 3D",48000,85000,null,{"$f":"PRODUCTOS[[#This Row],[Cantidad]]*PRODUCTOS[[#This Row],[$ Distribuidor]]","v":0}]
["BAJAJ","PULSAR NS 200","CUPULA DE LUJO ACERO INOXIDABLE",45000,90000,null,{"$f":"PRODUCTOS[[#This Row],[Cantidad]]*PRODUCTOS[[#This Row],[$ Distribuidor]]","v":0}]
["BAJAJ","PULSAR NS 200","CUBRE PIÑON SALIDA  2D",17000,25000,null,{"$f":"PRODUCTOS[[#This Row],[Cantidad]]*PRODUCTOS[[#This Row],[$ Distribuidor]]","v":0}]
["BAJAJ","PULSAR NS 200","CUBRE PIÑON SALIDA  3D",20000,28000,null,{"$f":"PRODUCTOS[[#This Row],[Cantidad]]*PRODUCTOS[[#This Row],[$ Distribuidor]]","v":0}]
["BAJAJ","PULSAR NS 200","CUBRE CADENA 2D",27000,45000,null,{"$f":"PRODUCTOS[[#This Row],[Cantidad]]*PRODUCTOS[[#This Row],[$ Distribuidor]]","v":0}]
["BAJAJ","PULSAR NS 200","CUBRE CADENA 3D",32000,48000,null,{"$f":"PRODUCTOS[[#This Row],[Cantidad]]*PRODUCTOS[[#This Row],[$ Distribuidor]]","v":0}]
["BAJAJ","PULSAR NS 200","LOGO NS LATERAL TIJERA ",5500,10000,null,{"$f":"PRODUCTOS[[#This Row],[Cantidad]]*PRODUCTOS[[#This Row],[$ Distribuidor]]","v":0}]
["BAJAJ","PULSAR NS 200","PROTECTORES LATERALES DE RADIADOR X2  2D",18000,28000,null,{"$f":"PRODUCTOS[[#This Row],[Cantidad]]*PRODUCTOS[[#This Row],[$ Distribuidor]]","v":0}]
["BAJAJ","PULSAR NS 200","PROTECTORES LATERALES DE RADIADOR X2  3D",23000,30000,null,{"$f":"PRODUCTOS[[#This Row],[Cantidad]]*PRODUCTOS[[#This Row],[$ Distribuidor]]","v":0}]
["BAJAJ","PULSAR NS 200","CABALLETE O GATO DE SERVICIO ",125000,160000,null,{"$f":"PRODUCTOS[[#This Row],[Cantidad]]*PRODUCTOS[[#This Row],[$ Distribuidor]]","v":0}]
["BAJAJ","PULSAR NS 200","LUJO ACUTRAX MANUBRIO CENTRAL 2D",17000,25000,null,{"$f":"PRODUCTOS[[#This Row],[Cantidad]]*PRODUCTOS[[#This Row],[$ Distribuidor]]","v":0}]
["BAJAJ","PULSAR NS 200","LUJO ACUTRAX MANUBRIO CENTRAL 3D",19000,28000,null,{"$f":"PRODUCTOS[[#This Row],[Cantidad]]*PRODUCTOS[[#This Row],[$ Distribuidor]]","v":0}]
["BAJAJ","PULSAR NS 200","LUJO TANQUE FRONTAL",5500,10000,null,{"$f":"PRODUCTOS[[#This Row],[Cantidad]]*PRODUCTOS[[#This Row],[$ Distribuidor]]","v":0}]
["BAJAJ","PULSAR NS 200","LUJO GUARDABARRO TRASERO LATERAL 2D ",6000,13000,null,{"$f":"PRODUCTOS[[#This Row],[Cantidad]]*PRODUCTOS[[#This Row],[$ Distribuidor]]","v":0}]
["BAJAJ","PULSAR NS 200","LUJO GUARDABARRO TRASERO LATERAL 3D",9000,15000,null,{"$f":"PRODUCTOS[[#This Row],[Cantidad]]*PRODUCTOS[[#This Row],[$ Distribuidor]]","v":0}]
["BAJAJ","PULSAR NS 200","LUJO GUARDABARRO TRASERO CENTRAL 2D",6000,13000,null,{"$f":"PRODUCTOS[[#This Row],[Cantidad]]*PRODUCTOS[[#This Row],[$ Distribuidor]]","v":0}]
["BAJAJ","PULSAR NS 200","LUJO GUARDABARRO TRASERO CENTRAL 3D",9000,15000,null,{"$f":"PRODUCTOS[[#This Row],[Cantidad]]*PRODUCTOS[[#This Row],[$ Distribuidor]]","v":0}]
["BAJAJ","PULSAR NS 200","LUJOS MALLAS LATERALES X 2",17000,28000,null,{"$f":"PRODUCTOS[[#This Row],[Cantidad]]*PRODUCTOS[[#This Row],[$ Distribuidor]]","v":0}]
["BAJAJ","PULSAR NS 200","BASE PORTA CELULAR GPS",16000,25000,null,{"$f":"PRODUCTOS[[#This Row],[Cantidad]]*PRODUCTOS[[#This Row],[$ Distribuidor]]","v":0}]
["BAJAJ","PULSAR NS 200","LUJO FILTRO ACEITE 2D",5000,10000,null,{"$f":"PRODUCTOS[[#This Row],[Cantidad]]*PRODUCTOS[[#This Row],[$ Distribuidor]]","v":0}]
["BAJAJ","PULSAR NS 200","LUJO FILTRO ACEITE 3D",6000,12000,null,{"$f":"PRODUCTOS[[#This Row],[Cantidad]]*PRODUCTOS[[#This Row],[$ Distribuidor]]","v":0}]
["BAJAJ","PULSAR NS 200","ESTABILIZADOR DE BARRAS 2D",55000,90000,null,{"$f":"PRODUCTOS[[#This Row],[Cantidad]]*PRODUCTOS[[#This Row],[$ Distribuidor]]","v":0}]
["BAJAJ","PULSAR NS 200","ESTABILIZADOR DE BARRAS 3D",58000,95000,null,{"$f":"PRODUCTOS[[#This Row],[Cantidad]]*PRODUCTOS[[#This Row],[$ Distribuidor]]","v":0}]
["BAJAJ","PULSAR NS 200","FENDER ELIMINATOR ABATIBLE 3 MILIMETROS PARA DIRECCIONALES ORIGINALES 2D",40000,70000,null,{"$f":"PRODUCTOS[[#This Row],[Cantidad]]*PRODUCTOS[[#This Row],[$ Distribuidor]]","v":0}]
["BAJAJ","PULSAR NS 200","FENDER ELIMINATOR ABATIBLE 3 MILIMETROS PARA DIRECCIONALES ORIGINALES 3D",45000,75000,null,{"$f":"PRODUCTOS[[#This Row],[Cantidad]]*PRODUCTOS[[#This Row],[$ Distribuidor]]","v":0}]
["BAJAJ","PULSAR NS 200","PROTECTOR TACOMETRO ACRILICO",11000,17000,null,{"$f":"PRODUCTOS[[#This Row],[Cantidad]]*PRODUCTOS[[#This Row],[$ Distribuidor]]","v":0}]
["BAJAJ","PULSAR NS 200","PROTECTORES CARCAZAS DE MOTOR",100000,140000,null,{"$f":"PRODUCTOS[[#This Row],[Cantidad]]*PRODUCTOS[[#This Row],[$ Distribuidor]]","v":0},null,"X"]
["BAJAJ","PULSAR NS 200","BASE TANK BAG",43000,80000,null,{"$f":"PRODUCTOS[[#This Row],[Cantidad]]*PRODUCTOS[[#This Row],[$ Distribuidor]]","v":0},null,"X"]
["BAJAJ","PULSAR NS 200","EXTENSOR PATA LATERAL",29000,40000,null,{"$f":"PRODUCTOS[[#This Row],[Cantidad]]*PRODUCTOS[[#This Row],[$ Distribuidor]]","v":0},null,"X"]
["BAJAJ","PULSAR NS 200","ESTABILIZADOR DE BARRAS O DIRECCIONES ",55000,90000,null,{"$f":"PRODUCTOS[[#This Row],[Cantidad]]*PRODUCTOS[[#This Row],[$ Distribuidor]]","v":0}]
["BAJAJ","PULSAR AS200","SLIDER DE ALTO IMPACTO MOTOR 2 PUNTOS ECONO",85000,100000,null,{"$f":"PRODUCTOS[[#This Row],[Cantidad]]*PRODUCTOS[[#This Row],[$ Distribuidor]]","v":0}]
["BAJAJ","PULSAR AS200","SLIDER DE ALTO IMPACTO MOTOR 2 PUNTOS PREMIUM",90000,115000,null,{"$f":"PRODUCTOS[[#This Row],[Cantidad]]*PRODUCTOS[[#This Row],[$ Distribuidor]]","v":0}]
["BAJAJ","PULSAR AS200","SLIDER DE ALTO IMPACTO MOTOR 3 PUNTOS ECONO",95000,130000,null,{"$f":"PRODUCTOS[[#This Row],[Cantidad]]*PRODUCTOS[[#This Row],[$ Distribuidor]]","v":0}]
["BAJAJ","PULSAR AS200","SLIDER DE ALTO IMPACTO MOTOR 3 PUNTOS PREMIUM",100000,145000,null,{"$f":"PRODUCTOS[[#This Row],[Cantidad]]*PRODUCTOS[[#This Row],[$ Distribuidor]]","v":0}]
["BAJAJ","PULSAR AS200","SLIDER EJES X 4 SIN TAPA",36000,60000,null,{"$f":"PRODUCTOS[[#This Row],[Cantidad]]*PRODUCTOS[[#This Row],[$ Distribuidor]]","v":0}]
["BAJAJ","PULSAR AS200","SLIDER EJES X 4 CON TAPA CENTRO EN ALUMINIO ",50000,70000,null,{"$f":"PRODUCTOS[[#This Row],[Cantidad]]*PRODUCTOS[[#This Row],[$ Distribuidor]]","v":0}]
["BAJAJ","PULSAR AS200","PROTECTOR DE RADIADOR 2D",42000,60000,null,{"$f":"PRODUCTOS[[#This Row],[Cantidad]]*PRODUCTOS[[#This Row],[$ Distribuidor]]","v":0}]
["BAJAJ","PULSAR AS200","PROTECTOR DE RADIADOR 3D",45000,65000,null,{"$f":"PRODUCTOS[[#This Row],[Cantidad]]*PRODUCTOS[[#This Row],[$ Distribuidor]]","v":0}]
["BAJAJ","PULSAR AS200","PROTECTOR CALIPER MORDAZA 2D",12000,20000,null,{"$f":"PRODUCTOS[[#This Row],[Cantidad]]*PRODUCTOS[[#This Row],[$ Distribuidor]]","v":0}]
["BAJAJ","PULSAR AS200","PROTECTOR CALIPER MORDAZA 3D",15000,25000,null,{"$f":"PRODUCTOS[[#This Row],[Cantidad]]*PRODUCTOS[[#This Row],[$ Distribuidor]]","v":0}]
["BAJAJ","PULSAR AS200","PROTECTOR DEPOSITO LIQUIDO FRENO DELANTERO 2D",8000,20000,null,{"$f":"PRODUCTOS[[#This Row],[Cantidad]]*PRODUCTOS[[#This Row],[$ Distribuidor]]","v":0}]
["BAJAJ","PULSAR AS200","PROTECTOR DEPOSITO LIQUIDO FRENO DELANTERO 3D",10000,25000,null,{"$f":"PRODUCTOS[[#This Row],[Cantidad]]*PRODUCTOS[[#This Row],[$ Distribuidor]]","v":0}]
["BAJAJ","PULSAR AS200","PROTECTOR DEPOSITO LIQUIDO FRENO TRASERO 2D",13000,25000,null,{"$f":"PRODUCTOS[[#This Row],[Cantidad]]*PRODUCTOS[[#This Row],[$ Distribuidor]]","v":0}]
["BAJAJ","PULSAR AS200","PROTECTOR DEPOSITO LIQUIDO FRENO TRASERO 3D",15000,28000,null,{"$f":"PRODUCTOS[[#This Row],[Cantidad]]*PRODUCTOS[[#This Row],[$ Distribuidor]]","v":0}]
["BAJAJ","PULSAR AS200","PROTECTOR ARO GASOLINA",11000,20000,null,{"$f":"PRODUCTOS[[#This Row],[Cantidad]]*PRODUCTOS[[#This Row],[$ Distribuidor]]","v":0}]
["BAJAJ","PULSAR AS200","PROTECTOR PLACA 2D",11000,20000,null,{"$f":"PRODUCTOS[[#This Row],[Cantidad]]*PRODUCTOS[[#This Row],[$ Distribuidor]]","v":0}]
["BAJAJ","PULSAR AS200","PROTECTOR PLACA 3D",14000,25000,null,{"$f":"PRODUCTOS[[#This Row],[Cantidad]]*PRODUCTOS[[#This Row],[$ Distribuidor]]","v":0}]
["BAJAJ","PULSAR AS200","PROTECTOR FAROLA 3D",48000,85000,null,{"$f":"PRODUCTOS[[#This Row],[Cantidad]]*PRODUCTOS[[#This Row],[$ Distribuidor]]","v":0}]
["BAJAJ","PULSAR AS200","CUBRE PIÑON SALIDA  2D",17000,25000,null,{"$f":"PRODUCTOS[[#This Row],[Cantidad]]*PRODUCTOS[[#This Row],[$ Distribuidor]]","v":0}]
["BAJAJ","PULSAR AS200","CUBRE PIÑON SALIDA  3D",20000,28000,null,{"$f":"PRODUCTOS[[#This Row],[Cantidad]]*PRODUCTOS[[#This Row],[$ Distribuidor]]","v":0}]
["BAJAJ","PULSAR AS200","CUBRE CADENA 2D",27000,45000,null,{"$f":"PRODUCTOS[[#This Row],[Cantidad]]*PRODUCTOS[[#This Row],[$ Distribuidor]]","v":0}]
["BAJAJ","PULSAR AS200","CUBRE CADENA 3D",32000,48000,null,{"$f":"PRODUCTOS[[#This Row],[Cantidad]]*PRODUCTOS[[#This Row],[$ Distribuidor]]","v":0}]
["BAJAJ","PULSAR AS200","LOGO NS LATERAL TIJERA ",5500,10000,null,{"$f":"PRODUCTOS[[#This Row],[Cantidad]]*PRODUCTOS[[#This Row],[$ Distribuidor]]","v":0}]
["BAJAJ","PULSAR AS200","PROTECTORES LATERALES DE RADIADOR X2  2D",18000,28000,null,{"$f":"PRODUCTOS[[#This Row],[Cantidad]]*PRODUCTOS[[#This Row],[$ Distribuidor]]","v":0}]
["BAJAJ","PULSAR AS200","PROTECTORES LATERALES DE RADIADOR X2  3D",23000,30000,null,{"$f":"PRODUCTOS[[#This Row],[Cantidad]]*PRODUCTOS[[#This Row],[$ Distribuidor]]","v":0}]
["BAJAJ","PULSAR AS200","CABALLETE O GATO DE SERVICIO ",125000,160000,null,{"$f":"PRODUCTOS[[#This Row],[Cantidad]]*PRODUCTOS[[#This Row],[$ Distribuidor]]","v":0}]
["BAJAJ","PULSAR AS200","LUJO ACUTRAX MANUBRIO CENTRAL 2D",17000,25000,null,{"$f":"PRODUCTOS[[#This Row],[Cantidad]]*PRODUCTOS[[#This Row],[$ Distribuidor]]","v":0}]
["BAJAJ","PULSAR AS200","LUJO ACUTRAX MANUBRIO CENTRAL 3D",19000,28000,null,{"$f":"PRODUCTOS[[#This Row],[Cantidad]]*PRODUCTOS[[#This Row],[$ Distribuidor]]","v":0}]
["BAJAJ","PULSAR AS200","LUJO TANQUE FRONTAL",5500,10000,null,{"$f":"PRODUCTOS[[#This Row],[Cantidad]]*PRODUCTOS[[#This Row],[$ Distribuidor]]","v":0}]
["BAJAJ","PULSAR AS200","LUJO GUARDABARRO TRASERO LATERAL 2D ",6000,13000,null,{"$f":"PRODUCTOS[[#This Row],[Cantidad]]*PRODUCTOS[[#This Row],[$ Distribuidor]]","v":0}]
["BAJAJ","PULSAR AS200","LUJO GUARDABARRO TRASERO LATERAL 3D",9000,15000,null,{"$f":"PRODUCTOS[[#This Row],[Cantidad]]*PRODUCTOS[[#This Row],[$ Distribuidor]]","v":0}]
["BAJAJ","PULSAR AS200","LUJO GUARDABARRO TRASERO CENTRAL 2D",6000,13000,null,{"$f":"PRODUCTOS[[#This Row],[Cantidad]]*PRODUCTOS[[#This Row],[$ Distribuidor]]","v":0}]
["BAJAJ","PULSAR AS200","LUJO GUARDABARRO TRASERO CENTRAL 3D",9000,15000,null,{"$f":"PRODUCTOS[[#This Row],[Cantidad]]*PRODUCTOS[[#This Row],[$ Distribuidor]]","v":0}]
["BAJAJ","PULSAR AS200","LUJOS MALLAS LATERALES X 2",17000,28000,null,{"$f":"PRODUCTOS[[#This Row],[Cantidad]]*PRODUCTOS[[#This Row],[$ Distribuidor]]","v":0}]
["BAJAJ","PULSAR AS200","BASE PORTA CELULAR GPS",16000,25000,null,{"$f":"PRODUCTOS[[#This Row],[Cantidad]]*PRODUCTOS[[#This Row],[$ Distribuidor]]","v":0}]
["BAJAJ","PULSAR AS200","LUJO FILTRO ACEITE 2D",5000,10000,null,{"$f":"PRODUCTOS[[#This Row],[Cantidad]]*PRODUCTOS[[#This Row],[$ Distribuidor]]","v":0}]
["BAJAJ","PULSAR AS200","LUJO FILTRO ACEITE 3D",6000,12000,null,{"$f":"PRODUCTOS[[#This Row],[Cantidad]]*PRODUCTOS[[#This Row],[$ Distribuidor]]","v":0}]
["BAJAJ","PULSAR AS200","ESTABILIZADOR DE BARRAS 2D",55000,90000,null,{"$f":"PRODUCTOS[[#This Row],[Cantidad]]*PRODUCTOS[[#This Row],[$ Distribuidor]]","v":0}]
["BAJAJ","PULSAR AS200","ESTABILIZADOR DE BARRAS 3D",58000,95000,null,{"$f":"PRODUCTOS[[#This Row],[Cantidad]]*PRODUCTOS[[#This Row],[$ Distribuidor]]","v":0}]
["BAJAJ","PULSAR AS200","FENDER ELIMINATOR ABATIBLE 3 MILIMETROS PARA DIRECCIONALES ORIGINALES 2D",40000,70000,null,{"$f":"PRODUCTOS[[#This Row],[Cantidad]]*PRODUCTOS[[#This Row],[$ Distribuidor]]","v":0}]
["BAJAJ","PULSAR AS200","FENDER ELIMINATOR ABATIBLE 3 MILIMETROS PARA DIRECCIONALES ORIGINALES 3D",45000,75000,null,{"$f":"PRODUCTOS[[#This Row],[Cantidad]]*PRODUCTOS[[#This Row],[$ Distribuidor]]","v":0}]
["BAJAJ","PULSAR AS200","PROTECTOR TACOMETRO ACRILICO",11000,17000,null,{"$f":"PRODUCTOS[[#This Row],[Cantidad]]*PRODUCTOS[[#This Row],[$ Distribuidor]]","v":0}]
["BAJAJ","PULSAR AS200","PROTECTORES CARCAZAS DE MOTOR",100000,140000,null,{"$f":"PRODUCTOS[[#This Row],[Cantidad]]*PRODUCTOS[[#This Row],[$ Distribuidor]]","v":0},null,"X"]
["BAJAJ","PULSAR AS200","BASE TANK BAG",43000,80000,null,{"$f":"PRODUCTOS[[#This Row],[Cantidad]]*PRODUCTOS[[#This Row],[$ Distribuidor]]","v":0},null,"X"]
["BAJAJ","PULSAR AS200","EXTENSOR PATA LATERAL",29000,40000,null,{"$f":"PRODUCTOS[[#This Row],[Cantidad]]*PRODUCTOS[[#This Row],[$ Distribuidor]]","v":0},null,"X"]
["BAJAJ","PULSAR RS200","SLIDER DE ALTO IMPACTO MOTOR 2 PUNTOS PREMIUM",115000,150000,null,{"$f":"PRODUCTOS[[#This Row],[Cantidad]]*PRODUCTOS[[#This Row],[$ Distribuidor]]","v":0}]
["BAJAJ","PULSAR RS200","SLIDER EJES X 4 SIN TAPA",36000,60000,null,{"$f":"PRODUCTOS[[#This Row],[Cantidad]]*PRODUCTOS[[#This Row],[$ Distribuidor]]","v":0}]
["BAJAJ","PULSAR RS200","SLIDER EJES X 4 CON TAPA CENTRO EN ALUMINIO ",50000,70000,null,{"$f":"PRODUCTOS[[#This Row],[Cantidad]]*PRODUCTOS[[#This Row],[$ Distribuidor]]","v":0}]
["BAJAJ","PULSAR RS200","PROTECTOR DE RADIADOR 2D",40000,55000,null,{"$f":"PRODUCTOS[[#This Row],[Cantidad]]*PRODUCTOS[[#This Row],[$ Distribuidor]]","v":0}]
["BAJAJ","PULSAR RS200","PROTECTOR DE RADIADOR 3D",43000,60000,null,{"$f":"PRODUCTOS[[#This Row],[Cantidad]]*PRODUCTOS[[#This Row],[$ Distribuidor]]","v":0}]
["BAJAJ","PULSAR RS200","PROTECTOR CALIPER MORDAZA 2D",12000,20000,null,{"$f":"PRODUCTOS[[#This Row],[Cantidad]]*PRODUCTOS[[#This Row],[$ Distribuidor]]","v":0}]
["BAJAJ","PULSAR RS200","PROTECTOR CALIPER MORDAZA 3D",15000,25000,null,{"$f":"PRODUCTOS[[#This Row],[Cantidad]]*PRODUCTOS[[#This Row],[$ Distribuidor]]","v":0}]
["BAJAJ","PULSAR RS200","PROTECTOR DEPOSITO LIQUIDO FRENO DELANTERO 2D",8000,20000,null,{"$f":"PRODUCTOS[[#This Row],[Cantidad]]*PRODUCTOS[[#This Row],[$ Distribuidor]]","v":0}]
["BAJAJ","PULSAR RS200","PROTECTOR DEPOSITO LIQUIDO FRENO DELANTERO 3D",10000,25000,null,{"$f":"PRODUCTOS[[#This Row],[Cantidad]]*PRODUCTOS[[#This Row],[$ Distribuidor]]","v":0}]
["BAJAJ","PULSAR RS200","PROTECTOR DEPOSITO LIQUIDO FRENO TRASERO 2D",13000,25000,null,{"$f":"PRODUCTOS[[#This Row],[Cantidad]]*PRODUCTOS[[#This Row],[$ Distribuidor]]","v":0}]
["BAJAJ","PULSAR RS200","PROTECTOR DEPOSITO LIQUIDO FRENO TRASERO 3D",15000,28000,null,{"$f":"PRODUCTOS[[#This Row],[Cantidad]]*PRODUCTOS[[#This Row],[$ Distribuidor]]","v":0}]
["BAJAJ","PULSAR RS200","PROTECTOR ARO GASOLINA",11000,20000,null,{"$f":"PRODUCTOS[[#This Row],[Cantidad]]*PRODUCTOS[[#This Row],[$ Distribuidor]]","v":0}]
["BAJAJ","PULSAR RS200","PROTECTOR PLACA 2D",11000,20000,null,{"$f":"PRODUCTOS[[#This Row],[Cantidad]]*PRODUCTOS[[#This Row],[$ Distribuidor]]","v":0}]
["BAJAJ","PULSAR RS200","PROTECTOR PLACA 3D",14000,25000,null,{"$f":"PRODUCTOS[[#This Row],[Cantidad]]*PRODUCTOS[[#This Row],[$ Distribuidor]]","v":0}]
["BAJAJ","PULSAR RS200","CUBRE PIÑON SALIDA  2D",17000,25000,null,{"$f":"PRODUCTOS[[#This Row],[Cantidad]]*PRODUCTOS[[#This Row],[$ Distribuidor]]","v":0}]
["BAJAJ","PULSAR RS200","CUBRE PIÑON SALIDA  3D",20000,28000,null,{"$f":"PRODUCTOS[[#This Row],[Cantidad]]*PRODUCTOS[[#This Row],[$ Distribuidor]]","v":0}]
["BAJAJ","PULSAR RS200","LOGO RS LATERAL TIJERA ",5500,10000,null,{"$f":"PRODUCTOS[[#This Row],[Cantidad]]*PRODUCTOS[[#This Row],[$ Distribuidor]]","v":0}]
["BAJAJ","PULSAR RS200","CABALLETE O GATO DE SERVICIO ",125000,160000,null,{"$f":"PRODUCTOS[[#This Row],[Cantidad]]*PRODUCTOS[[#This Row],[$ Distribuidor]]","v":0}]
["BAJAJ","PULSAR RS200","LUJO FILTRO ACEITE 2D",5000,10000,null,{"$f":"PRODUCTOS[[#This Row],[Cantidad]]*PRODUCTOS[[#This Row],[$ Distribuidor]]","v":0}]
["BAJAJ","PULSAR RS200","LUJO FILTRO ACEITE 3D",6000,12000,null,{"$f":"PRODUCTOS[[#This Row],[Cantidad]]*PRODUCTOS[[#This Row],[$ Distribuidor]]","v":0}]
["BAJAJ","PULSAR RS200","PROTECTOR TACOMETRO ACRILICO",11000,17000,null,{"$f":"PRODUCTOS[[#This Row],[Cantidad]]*PRODUCTOS[[#This Row],[$ Distribuidor]]","v":0}]
["BAJAJ","PULSAR RS200","EXTENSOR PATA LATERAL",29000,40000,null,{"$f":"PRODUCTOS[[#This Row],[Cantidad]]*PRODUCTOS[[#This Row],[$ Distribuidor]]","v":0},null,"X"]
["BAJAJ","PULSAR N160","SLIDER DE ALTO IMPACTO MOTOR 2 PUNTOS PREMIUM",115000,150000,null,{"$f":"PRODUCTOS[[#This Row],[Cantidad]]*PRODUCTOS[[#This Row],[$ Distribuidor]]","v":0}]
["BAJAJ","PULSAR N160","SLIDER EXOSTO O MOFLE",30000,50000,null,{"$f":"PRODUCTOS[[#This Row],[Cantidad]]*PRODUCTOS[[#This Row],[$ Distribuidor]]","v":0}]
["BAJAJ","PULSAR N160","SLIDER EJES X 4 SIN TAPA",36000,60000,null,{"$f":"PRODUCTOS[[#This Row],[Cantidad]]*PRODUCTOS[[#This Row],[$ Distribuidor]]","v":0}]
["BAJAJ","PULSAR N160","SLIDER EJES X 4 CON TAPA CENTRO EN ALUMINIO",50000,70000,null,{"$f":"PRODUCTOS[[#This Row],[Cantidad]]*PRODUCTOS[[#This Row],[$ Distribuidor]]","v":0}]
["BAJAJ","PULSAR N160","PROTECTOR DE RADIADOR 2D",26000,35000,null,{"$f":"PRODUCTOS[[#This Row],[Cantidad]]*PRODUCTOS[[#This Row],[$ Distribuidor]]","v":0}]
["BAJAJ","PULSAR N160","PROTECTOR DE RADIADOR 3D",28000,38000,null,{"$f":"PRODUCTOS[[#This Row],[Cantidad]]*PRODUCTOS[[#This Row],[$ Distribuidor]]","v":0}]
["BAJAJ","PULSAR N160","PROTECTOR CALIPER MORDAZA 2D",12000,20000,null,{"$f":"PRODUCTOS[[#This Row],[Cantidad]]*PRODUCTOS[[#This Row],[$ Distribuidor]]","v":0}]
["BAJAJ","PULSAR N160","PROTECTOR CALIPER MORDAZA 3D",15000,25000,null,{"$f":"PRODUCTOS[[#This Row],[Cantidad]]*PRODUCTOS[[#This Row],[$ Distribuidor]]","v":0}]
["BAJAJ","PULSAR N160","PROTECTOR DEPOSITO LIQUIDO FRENO DELANTERO 2D",8000,20000,null,{"$f":"PRODUCTOS[[#This Row],[Cantidad]]*PRODUCTOS[[#This Row],[$ Distribuidor]]","v":0}]
["BAJAJ","PULSAR N160","PROTECTOR DEPOSITO LIQUIDO FRENO DELANTERO 3D",10000,25000,null,{"$f":"PRODUCTOS[[#This Row],[Cantidad]]*PRODUCTOS[[#This Row],[$ Distribuidor]]","v":0}]
["BAJAJ","PULSAR N160","PROTECTOR DEPOSITO LIQUIDO FRENO TRASERO 2D",13000,25000,null,{"$f":"PRODUCTOS[[#This Row],[Cantidad]]*PRODUCTOS[[#This Row],[$ Distribuidor]]","v":0}]
["BAJAJ","PULSAR N160","PROTECTOR DEPOSITO LIQUIDO FRENO TRASERO 3D",15000,28000,null,{"$f":"PRODUCTOS[[#This Row],[Cantidad]]*PRODUCTOS[[#This Row],[$ Distribuidor]]","v":0}]
["BAJAJ","PULSAR N160","PROTECTOR ARO GASOLINA",11000,20000,null,{"$f":"PRODUCTOS[[#This Row],[Cantidad]]*PRODUCTOS[[#This Row],[$ Distribuidor]]","v":0}]
["BAJAJ","PULSAR N160","PROTECTOR PLACA 2D",11000,20000,null,{"$f":"PRODUCTOS[[#This Row],[Cantidad]]*PRODUCTOS[[#This Row],[$ Distribuidor]]","v":0}]
["BAJAJ","PULSAR N160","PROTECTOR PLACA 3D",14000,25000,null,{"$f":"PRODUCTOS[[#This Row],[Cantidad]]*PRODUCTOS[[#This Row],[$ Distribuidor]]","v":0}]
["BAJAJ","PULSAR N160","CABALLETE O GATO DE SERVICIO ",125000,160000,null,{"$f":"PRODUCTOS[[#This Row],[Cantidad]]*PRODUCTOS[[#This Row],[$ Distribuidor]]","v":0}]
["BAJAJ","PULSAR N160","LUJO ACUTRAX MANUBRIO CENTRAL 2D",16000,23000,null,{"$f":"PRODUCTOS[[#This Row],[Cantidad]]*PRODUCTOS[[#This Row],[$ Distribuidor]]","v":0}]
["BAJAJ","PULSAR N160","LUJO ACUTRAX MANUBRIO CENTRAL 3D",18000,25000,null,{"$f":"PRODUCTOS[[#This Row],[Cantidad]]*PRODUCTOS[[#This Row],[$ Distribuidor]]","v":0}]
["BAJAJ","PULSAR N160","PROTECTOR TACOMETRO ACRILICO",11000,17000,null,{"$f":"PRODUCTOS[[#This Row],[Cantidad]]*PRODUCTOS[[#This Row],[$ Distribuidor]]","v":0}]
["BAJAJ","PULSAR N250","SLIDER DE ALTO IMPACTO MOTOR 2 PUNTOS PREMIUM",115000,150000,null,{"$f":"PRODUCTOS[[#This Row],[Cantidad]]*PRODUCTOS[[#This Row],[$ Distribuidor]]","v":0}]
["BAJAJ","PULSAR N250","SLIDER EXOSTO O MOFLE",30000,50000,null,{"$f":"PRODUCTOS[[#This Row],[Cantidad]]*PRODUCTOS[[#This Row],[$ Distribuidor]]","v":0}]
["BAJAJ","PULSAR N250","SLIDER EJES X 4 SIN TAPA",36000,60000,null,{"$f":"PRODUCTOS[[#This Row],[Cantidad]]*PRODUCTOS[[#This Row],[$ Distribuidor]]","v":0}]
["BAJAJ","PULSAR N250","SLIDER EJES X 4 CON TAPA CENTRO EN ALUMINIO",50000,70000,null,{"$f":"PRODUCTOS[[#This Row],[Cantidad]]*PRODUCTOS[[#This Row],[$ Distribuidor]]","v":0}]
["BAJAJ","PULSAR N250","PROTECTOR DE RADIADOR 2D",35000,50000,null,{"$f":"PRODUCTOS[[#This Row],[Cantidad]]*PRODUCTOS[[#This Row],[$ Distribuidor]]","v":0}]
["BAJAJ","PULSAR N250","PROTECTOR DE RADIADOR 3D",38000,55000,null,{"$f":"PRODUCTOS[[#This Row],[Cantidad]]*PRODUCTOS[[#This Row],[$ Distribuidor]]","v":0}]
["BAJAJ","PULSAR N250","PROTECTOR CALIPER MORDAZA 2D",12000,20000,null,{"$f":"PRODUCTOS[[#This Row],[Cantidad]]*PRODUCTOS[[#This Row],[$ Distribuidor]]","v":0}]
["BAJAJ","PULSAR N250","PROTECTOR CALIPER MORDAZA 3D",15000,25000,null,{"$f":"PRODUCTOS[[#This Row],[Cantidad]]*PRODUCTOS[[#This Row],[$ Distribuidor]]","v":0}]
["BAJAJ","PULSAR N250","PROTECTOR DEPOSITO LIQUIDO FRENO DELANTERO 2D",8000,20000,null,{"$f":"PRODUCTOS[[#This Row],[Cantidad]]*PRODUCTOS[[#This Row],[$ Distribuidor]]","v":0}]
["BAJAJ","PULSAR N250","PROTECTOR DEPOSITO LIQUIDO FRENO DELANTERO 3D",10000,25000,null,{"$f":"PRODUCTOS[[#This Row],[Cantidad]]*PRODUCTOS[[#This Row],[$ Distribuidor]]","v":0}]
["BAJAJ","PULSAR N250","PROTECTOR DEPOSITO LIQUIDO FRENO TRASERO 2D",13000,25000,null,{"$f":"PRODUCTOS[[#This Row],[Cantidad]]*PRODUCTOS[[#This Row],[$ Distribuidor]]","v":0}]
["BAJAJ","PULSAR N250","PROTECTOR DEPOSITO LIQUIDO FRENO TRASERO 3D",15000,28000,null,{"$f":"PRODUCTOS[[#This Row],[Cantidad]]*PRODUCTOS[[#This Row],[$ Distribuidor]]","v":0}]
["BAJAJ","PULSAR N250","PROTECTOR ARO GASOLINA",11000,20000,null,{"$f":"PRODUCTOS[[#This Row],[Cantidad]]*PRODUCTOS[[#This Row],[$ Distribuidor]]","v":0}]
["BAJAJ","PULSAR N250","PROTECTOR PLACA 2D",11000,20000,null,{"$f":"PRODUCTOS[[#This Row],[Cantidad]]*PRODUCTOS[[#This Row],[$ Distribuidor]]","v":0}]
["BAJAJ","PULSAR N250","PROTECTOR PLACA 3D",14000,25000,null,{"$f":"PRODUCTOS[[#This Row],[Cantidad]]*PRODUCTOS[[#This Row],[$ Distribuidor]]","v":0}]
["BAJAJ","PULSAR N250","CABALLETE O GATO DE SERVICIO ",125000,160000,null,{"$f":"PRODUCTOS[[#This Row],[Cantidad]]*PRODUCTOS[[#This Row],[$ Distribuidor]]","v":0}]
["BAJAJ","PULSAR N250","LUJO ACUTRAX MANUBRIO CENTRAL 2D",16000,23000,null,{"$f":"PRODUCTOS[[#This Row],[Cantidad]]*PRODUCTOS[[#This Row],[$ Distribuidor]]","v":0}]
["BAJAJ","PULSAR N250","LUJO ACUTRAX MANUBRIO CENTRAL 3D",18000,25000,null,{"$f":"PRODUCTOS[[#This Row],[Cantidad]]*PRODUCTOS[[#This Row],[$ Distribuidor]]","v":0}]
["BAJAJ","PULSAR N250","PROTECTOR TACOMETRO ACRILICO",11000,17000,null,{"$f":"PRODUCTOS[[#This Row],[Cantidad]]*PRODUCTOS[[#This Row],[$ Distribuidor]]","v":0}]
["BAJAJ","DOMINAR 250","SLIDER DE ALTO IMPACTO MOTOR 2 PUNTOS ECONO",85000,100000,null,{"$f":"PRODUCTOS[[#This Row],[Cantidad]]*PRODUCTOS[[#This Row],[$ Distribuidor]]","v":0}]
["BAJAJ","DOMINAR 250","SLIDER DE ALTO IMPACTO MOTOR 2 PUNTOS PREMIUM",90000,115000,null,{"$f":"PRODUCTOS[[#This Row],[Cantidad]]*PRODUCTOS[[#This Row],[$ Distribuidor]]","v":0}]
["BAJAJ","DOMINAR 250","SLIDER DE ALTO IMPACTO MOTOR 3 PUNTOS ECONO",95000,130000,null,{"$f":"PRODUCTOS[[#This Row],[Cantidad]]*PRODUCTOS[[#This Row],[$ Distribuidor]]","v":0}]
["BAJAJ","DOMINAR 250","SLIDER DE ALTO IMPACTO MOTOR 3 PUNTOS PREMIUM",100000,145000,null,{"$f":"PRODUCTOS[[#This Row],[Cantidad]]*PRODUCTOS[[#This Row],[$ Distribuidor]]","v":0}]
["BAJAJ","DOMINAR 250","SLIDER EJES X 4 CON TAPA",50000,70000,null,{"$f":"PRODUCTOS[[#This Row],[Cantidad]]*PRODUCTOS[[#This Row],[$ Distribuidor]]","v":0}]
["BAJAJ","DOMINAR 250","PROTECTOR DE RADIADOR 2D",45000,65000,null,{"$f":"PRODUCTOS[[#This Row],[Cantidad]]*PRODUCTOS[[#This Row],[$ Distribuidor]]","v":0}]
["BAJAJ","DOMINAR 250","PROTECTOR DE RADIADOR 3D",47000,70000,null,{"$f":"PRODUCTOS[[#This Row],[Cantidad]]*PRODUCTOS[[#This Row],[$ Distribuidor]]","v":0}]
["BAJAJ","DOMINAR 250","PROTECTOR CALIPER MORDAZA 2D",12000,20000,null,{"$f":"PRODUCTOS[[#This Row],[Cantidad]]*PRODUCTOS[[#This Row],[$ Distribuidor]]","v":0}]
["BAJAJ","DOMINAR 250","PROTECTOR CALIPER MORDAZA 3D",15000,25000,null,{"$f":"PRODUCTOS[[#This Row],[Cantidad]]*PRODUCTOS[[#This Row],[$ Distribuidor]]","v":0}]
["BAJAJ","DOMINAR 250","PROTECTOR DEPOSITO LIQUIDO FRENO DELANTERO 2D",8000,20000,null,{"$f":"PRODUCTOS[[#This Row],[Cantidad]]*PRODUCTOS[[#This Row],[$ Distribuidor]]","v":0}]
["BAJAJ","DOMINAR 250","PROTECTOR DEPOSITO LIQUIDO FRENO DELANTERO 3D",10000,25000,null,{"$f":"PRODUCTOS[[#This Row],[Cantidad]]*PRODUCTOS[[#This Row],[$ Distribuidor]]","v":0}]
["BAJAJ","DOMINAR 250","PROTECTOR DEPOSITO LIQUIDO FRENO TRASERO 2D",13000,25000,null,{"$f":"PRODUCTOS[[#This Row],[Cantidad]]*PRODUCTOS[[#This Row],[$ Distribuidor]]","v":0}]
["BAJAJ","DOMINAR 250","PROTECTOR DEPOSITO LIQUIDO FRENO TRASERO 3D",15000,28000,null,{"$f":"PRODUCTOS[[#This Row],[Cantidad]]*PRODUCTOS[[#This Row],[$ Distribuidor]]","v":0}]
["BAJAJ","DOMINAR 250","PROTECTOR ARO GASOLINA",11000,20000,null,{"$f":"PRODUCTOS[[#This Row],[Cantidad]]*PRODUCTOS[[#This Row],[$ Distribuidor]]","v":0}]
["BAJAJ","DOMINAR 250","PROTECTOR PLACA 2D",11000,20000,null,{"$f":"PRODUCTOS[[#This Row],[Cantidad]]*PRODUCTOS[[#This Row],[$ Distribuidor]]","v":0}]
["BAJAJ","DOMINAR 250","PROTECTOR PLACA 3D",14000,25000,null,{"$f":"PRODUCTOS[[#This Row],[Cantidad]]*PRODUCTOS[[#This Row],[$ Distribuidor]]","v":0}]
["BAJAJ","DOMINAR 250","PROTECTORES LATERALES DE RADIADOR X2  2D",18000,28000,null,{"$f":"PRODUCTOS[[#This Row],[Cantidad]]*PRODUCTOS[[#This Row],[$ Distribuidor]]","v":0}]
["BAJAJ","DOMINAR 250","PROTECTORES LATERALES DE RADIADOR X2  3D",23000,30000,null,{"$f":"PRODUCTOS[[#This Row],[Cantidad]]*PRODUCTOS[[#This Row],[$ Distribuidor]]","v":0}]
["BAJAJ","DOMINAR 250","CABALLETE O GATO DE SERVICIO ",125000,160000,null,{"$f":"PRODUCTOS[[#This Row],[Cantidad]]*PRODUCTOS[[#This Row],[$ Distribuidor]]","v":0}]
["BAJAJ","DOMINAR 250","LUJO ACUTRAX MANUBRIO CENTRAL 2D",15000,23000,null,{"$f":"PRODUCTOS[[#This Row],[Cantidad]]*PRODUCTOS[[#This Row],[$ Distribuidor]]","v":0}]
["BAJAJ","DOMINAR 250","LUJO ACUTRAX MANUBRIO CENTRAL 3D",18000,25000,null,{"$f":"PRODUCTOS[[#This Row],[Cantidad]]*PRODUCTOS[[#This Row],[$ Distribuidor]]","v":0}]
["BAJAJ","DOMINAR 250","LUJO FILTRO ACEITE 2D",5000,10000,null,{"$f":"PRODUCTOS[[#This Row],[Cantidad]]*PRODUCTOS[[#This Row],[$ Distribuidor]]","v":0}]
["BAJAJ","DOMINAR 250","LUJO FILTRO ACEITE 3D",6000,12000,null,{"$f":"PRODUCTOS[[#This Row],[Cantidad]]*PRODUCTOS[[#This Row],[$ Distribuidor]]","v":0}]
["BAJAJ","DOMINAR 250","PROTECTOR TACOMETRO ACRILICO",11000,17000,null,{"$f":"PRODUCTOS[[#This Row],[Cantidad]]*PRODUCTOS[[#This Row],[$ Distribuidor]]","v":0}]
["BAJAJ","DOMINAR 400 UG","SLIDER DE ALTO IMPACTO MOTOR 2 PUNTOS ECONO",85000,100000,null,{"$f":"PRODUCTOS[[#This Row],[Cantidad]]*PRODUCTOS[[#This Row],[$ Distribuidor]]","v":0}]
["BAJAJ","DOMINAR 400 UG","SLIDER DE ALTO IMPACTO MOTOR 2 PUNTOS PREMIUM",90000,115000,null,{"$f":"PRODUCTOS[[#This Row],[Cantidad]]*PRODUCTOS[[#This Row],[$ Distribuidor]]","v":0}]
["BAJAJ","DOMINAR 400 UG","SLIDER DE ALTO IMPACTO MOTOR 3 PUNTOS ECONO",95000,130000,null,{"$f":"PRODUCTOS[[#This Row],[Cantidad]]*PRODUCTOS[[#This Row],[$ Distribuidor]]","v":0}]
["BAJAJ","DOMINAR 400 UG","SLIDER DE ALTO IMPACTO MOTOR 3 PUNTOS PREMIUM",100000,145000,null,{"$f":"PRODUCTOS[[#This Row],[Cantidad]]*PRODUCTOS[[#This Row],[$ Distribuidor]]","v":0}]
["BAJAJ","DOMINAR 400 UG","SLIDER EJES X 4 CON TAPA",50000,70000,null,{"$f":"PRODUCTOS[[#This Row],[Cantidad]]*PRODUCTOS[[#This Row],[$ Distribuidor]]","v":0}]
["BAJAJ","DOMINAR 400 UG","PROTECTOR DE RADIADOR 2D",45000,65000,null,{"$f":"PRODUCTOS[[#This Row],[Cantidad]]*PRODUCTOS[[#This Row],[$ Distribuidor]]","v":0}]
["BAJAJ","DOMINAR 400 UG","PROTECTOR DE RADIADOR 3D",47000,70000,null,{"$f":"PRODUCTOS[[#This Row],[Cantidad]]*PRODUCTOS[[#This Row],[$ Distribuidor]]","v":0}]
["BAJAJ","DOMINAR 400 UG","PROTECTOR CALIPER MORDAZA 2D",12000,20000,null,{"$f":"PRODUCTOS[[#This Row],[Cantidad]]*PRODUCTOS[[#This Row],[$ Distribuidor]]","v":0}]
["BAJAJ","DOMINAR 400 UG","PROTECTOR CALIPER MORDAZA 3D",15000,25000,null,{"$f":"PRODUCTOS[[#This Row],[Cantidad]]*PRODUCTOS[[#This Row],[$ Distribuidor]]","v":0}]
["BAJAJ","DOMINAR 400 UG","PROTECTOR DEPOSITO LIQUIDO FRENO DELANTERO 2D",8000,20000,null,{"$f":"PRODUCTOS[[#This Row],[Cantidad]]*PRODUCTOS[[#This Row],[$ Distribuidor]]","v":0}]
["BAJAJ","DOMINAR 400 UG","PROTECTOR DEPOSITO LIQUIDO FRENO DELANTERO 3D",10000,25000,null,{"$f":"PRODUCTOS[[#This Row],[Cantidad]]*PRODUCTOS[[#This Row],[$ Distribuidor]]","v":0}]
["BAJAJ","DOMINAR 400 UG","PROTECTOR DEPOSITO LIQUIDO FRENO TRASERO 2D",13000,25000,null,{"$f":"PRODUCTOS[[#This Row],[Cantidad]]*PRODUCTOS[[#This Row],[$ Distribuidor]]","v":0}]
["BAJAJ","DOMINAR 400 UG","PROTECTOR DEPOSITO LIQUIDO FRENO TRASERO 3D",15000,28000,null,{"$f":"PRODUCTOS[[#This Row],[Cantidad]]*PRODUCTOS[[#This Row],[$ Distribuidor]]","v":0}]
["BAJAJ","DOMINAR 400 UG","PROTECTOR ARO GASOLINA",11000,20000,null,{"$f":"PRODUCTOS[[#This Row],[Cantidad]]*PRODUCTOS[[#This Row],[$ Distribuidor]]","v":0}]
["BAJAJ","DOMINAR 400 UG","PROTECTOR PLACA 2D",11000,20000,null,{"$f":"PRODUCTOS[[#This Row],[Cantidad]]*PRODUCTOS[[#This Row],[$ Distribuidor]]","v":0}]
["BAJAJ","DOMINAR 400 UG","PROTECTOR PLACA 3D",14000,25000,null,{"$f":"PRODUCTOS[[#This Row],[Cantidad]]*PRODUCTOS[[#This Row],[$ Distribuidor]]","v":0}]
["BAJAJ","DOMINAR 400 UG","PROTECTORES LATERALES DE RADIADOR X2  2D",18000,28000,null,{"$f":"PRODUCTOS[[#This Row],[Cantidad]]*PRODUCTOS[[#This Row],[$ Distribuidor]]","v":0}]
["BAJAJ","DOMINAR 400 UG","PROTECTORES LATERALES DE RADIADOR X2  3D",23000,30000,null,{"$f":"PRODUCTOS[[#This Row],[Cantidad]]*PRODUCTOS[[#This Row],[$ Distribuidor]]","v":0}]
["BAJAJ","DOMINAR 400 UG","CABALLETE O GATO DE SERVICIO ",125000,160000,null,{"$f":"PRODUCTOS[[#This Row],[Cantidad]]*PRODUCTOS[[#This Row],[$ Distribuidor]]","v":0}]
["BAJAJ","DOMINAR 400 UG","LUJO ACUTRAX MANUBRIO CENTRAL 2D",15000,23000,null,{"$f":"PRODUCTOS[[#This Row],[Cantidad]]*PRODUCTOS[[#This Row],[$ Distribuidor]]","v":0}]
["BAJAJ","DOMINAR 400 UG","LUJO ACUTRAX MANUBRIO CENTRAL 3D",18000,25000,null,{"$f":"PRODUCTOS[[#This Row],[Cantidad]]*PRODUCTOS[[#This Row],[$ Distribuidor]]","v":0}]
["BAJAJ","DOMINAR 400 UG","LUJO FILTRO ACEITE 2D",5000,10000,null,{"$f":"PRODUCTOS[[#This Row],[Cantidad]]*PRODUCTOS[[#This Row],[$ Distribuidor]]","v":0}]
["BAJAJ","DOMINAR 400 UG","LUJO FILTRO ACEITE 3D",6000,12000,null,{"$f":"PRODUCTOS[[#This Row],[Cantidad]]*PRODUCTOS[[#This Row],[$ Distribuidor]]","v":0}]
["BAJAJ","DOMINAR 400 UG","PROTECTOR TACOMETRO ACRILICO",11000,17000,null,{"$f":"PRODUCTOS[[#This Row],[Cantidad]]*PRODUCTOS[[#This Row],[$ Distribuidor]]","v":0}]
["KTM","DUKE 200 CLASICA ","SLIDER DE ALTO IMPACTO MOTOR 2 PUNTOS ECONO",85000,100000,null,{"$f":"PRODUCTOS[[#This Row],[Cantidad]]*PRODUCTOS[[#This Row],[$ Distribuidor]]","v":0}]
["KTM","DUKE 200 CLASICA ","SLIDER DE ALTO IMPACTO MOTOR 2 PUNTOS PREMIUM",90000,115000,null,{"$f":"PRODUCTOS[[#This Row],[Cantidad]]*PRODUCTOS[[#This Row],[$ Distribuidor]]","v":0}]
["KTM","DUKE 200 CLASICA ","SLIDER DE ALTO IMPACTO MOTOR 3 PUNTOS ECONO",95000,130000,null,{"$f":"PRODUCTOS[[#This Row],[Cantidad]]*PRODUCTOS[[#This Row],[$ Distribuidor]]","v":0}]
["KTM","DUKE 200 CLASICA ","SLIDER DE ALTO IMPACTO MOTOR 3 PUNTOS PREMIUM",100000,145000,null,{"$f":"PRODUCTOS[[#This Row],[Cantidad]]*PRODUCTOS[[#This Row],[$ Distribuidor]]","v":0}]
["KTM","DUKE 200 CLASICA ","SLIDER EJES X 4 CON TAPA",50000,80000,null,{"$f":"PRODUCTOS[[#This Row],[Cantidad]]*PRODUCTOS[[#This Row],[$ Distribuidor]]","v":0}]
["KTM","DUKE 200 CLASICA ","SLIDER EJES CENTRO EN ALUMINIO PREMIUM",70000,100000,null,{"$f":"PRODUCTOS[[#This Row],[Cantidad]]*PRODUCTOS[[#This Row],[$ Distribuidor]]","v":0}]
["KTM","DUKE 200 CLASICA ","PROTECTOR DE RADIADOR 2D",42000,65000,null,{"$f":"PRODUCTOS[[#This Row],[Cantidad]]*PRODUCTOS[[#This Row],[$ Distribuidor]]","v":0}]
["KTM","DUKE 200 CLASICA ","PROTECTOR DE RADIADOR 3D",45000,70000,null,{"$f":"PRODUCTOS[[#This Row],[Cantidad]]*PRODUCTOS[[#This Row],[$ Distribuidor]]","v":0}]
["KTM","DUKE 200 CLASICA ","PROTECTOR CALIPER MORDAZA 2D",12000,20000,null,{"$f":"PRODUCTOS[[#This Row],[Cantidad]]*PRODUCTOS[[#This Row],[$ Distribuidor]]","v":0}]
["KTM","DUKE 200 CLASICA ","PROTECTOR CALIPER MORDAZA 3D",15000,25000,null,{"$f":"PRODUCTOS[[#This Row],[Cantidad]]*PRODUCTOS[[#This Row],[$ Distribuidor]]","v":0}]
["KTM","DUKE 200 CLASICA ","PROTECTOR DEPOSITO LIQUIDO FRENO DELANTERO 2D",8000,20000,null,{"$f":"PRODUCTOS[[#This Row],[Cantidad]]*PRODUCTOS[[#This Row],[$ Distribuidor]]","v":0}]
["KTM","DUKE 200 CLASICA ","PROTECTOR DEPOSITO LIQUIDO FRENO DELANTERO 3D",10000,25000,null,{"$f":"PRODUCTOS[[#This Row],[Cantidad]]*PRODUCTOS[[#This Row],[$ Distribuidor]]","v":0}]
["KTM","DUKE 200 CLASICA ","PROTECTOR DEPOSITO LIQUIDO FRENO TRASERO 2D",13000,25000,null,{"$f":"PRODUCTOS[[#This Row],[Cantidad]]*PRODUCTOS[[#This Row],[$ Distribuidor]]","v":0}]
["KTM","DUKE 200 CLASICA ","PROTECTOR DEPOSITO LIQUIDO FRENO TRASERO 3D",15000,28000,null,{"$f":"PRODUCTOS[[#This Row],[Cantidad]]*PRODUCTOS[[#This Row],[$ Distribuidor]]","v":0}]
["KTM","DUKE 200 CLASICA ","PROTECTOR ARO GASOLINA",11000,20000,null,{"$f":"PRODUCTOS[[#This Row],[Cantidad]]*PRODUCTOS[[#This Row],[$ Distribuidor]]","v":0}]
["KTM","DUKE 200 CLASICA ","PROTECTOR PLACA 2D",11000,20000,null,{"$f":"PRODUCTOS[[#This Row],[Cantidad]]*PRODUCTOS[[#This Row],[$ Distribuidor]]","v":0}]
["KTM","DUKE 200 CLASICA ","PROTECTOR PLACA 3D",14000,25000,null,{"$f":"PRODUCTOS[[#This Row],[Cantidad]]*PRODUCTOS[[#This Row],[$ Distribuidor]]","v":0}]
["KTM","DUKE 200 CLASICA ","CUPULA DE LUJO ACERO INOXIDABLE 2D",19000,30000,null,{"$f":"PRODUCTOS[[#This Row],[Cantidad]]*PRODUCTOS[[#This Row],[$ Distribuidor]]","v":0}]
["KTM","DUKE 200 CLASICA ","CUPULA DE LUJO ACERO INOXIDABLE 3D ALERONES",28000,40000,null,{"$f":"PRODUCTOS[[#This Row],[Cantidad]]*PRODUCTOS[[#This Row],[$ Distribuidor]]","v":0}]
["KTM","DUKE 200 CLASICA ","CUBRE PIÑON SALIDA  2D",19000,25000,null,{"$f":"PRODUCTOS[[#This Row],[Cantidad]]*PRODUCTOS[[#This Row],[$ Distribuidor]]","v":0}]
["KTM","DUKE 200 CLASICA ","CUBRE PIÑON SALIDA  3D",22000,30000,null,{"$f":"PRODUCTOS[[#This Row],[Cantidad]]*PRODUCTOS[[#This Row],[$ Distribuidor]]","v":0}]
["KTM","DUKE 200 CLASICA ","CUBRE CADENA 2D",30000,45000,null,{"$f":"PRODUCTOS[[#This Row],[Cantidad]]*PRODUCTOS[[#This Row],[$ Distribuidor]]","v":0}]
["KTM","DUKE 200 CLASICA ","CUBRE CADENA 3D",33000,48000,null,{"$f":"PRODUCTOS[[#This Row],[Cantidad]]*PRODUCTOS[[#This Row],[$ Distribuidor]]","v":0}]
["KTM","DUKE 200 CLASICA ","SPOOLS PARA CABALLETE",20000,40000,null,{"$f":"PRODUCTOS[[#This Row],[Cantidad]]*PRODUCTOS[[#This Row],[$ Distribuidor]]","v":0}]
["KTM","DUKE 200 CLASICA ","CABALLETE O GATO DE SERVICIO ",125000,160000,null,{"$f":"PRODUCTOS[[#This Row],[Cantidad]]*PRODUCTOS[[#This Row],[$ Distribuidor]]","v":0}]
["KTM","DUKE 200 CLASICA ","LUJO ACUTRAX MANUBRIO CENTRAL 2D",15000,23000,null,{"$f":"PRODUCTOS[[#This Row],[Cantidad]]*PRODUCTOS[[#This Row],[$ Distribuidor]]","v":0}]
["KTM","DUKE 200 CLASICA ","LUJO ACUTRAX MANUBRIO CENTRAL 3D",18000,25000,null,{"$f":"PRODUCTOS[[#This Row],[Cantidad]]*PRODUCTOS[[#This Row],[$ Distribuidor]]","v":0}]
["KTM","DUKE 200 CLASICA ","LUJO FILTRO ACEITE 2D",5000,10000,null,{"$f":"PRODUCTOS[[#This Row],[Cantidad]]*PRODUCTOS[[#This Row],[$ Distribuidor]]","v":0}]
["KTM","DUKE 200 CLASICA ","LUJO FILTRO ACEITE 3D",6000,12000,null,{"$f":"PRODUCTOS[[#This Row],[Cantidad]]*PRODUCTOS[[#This Row],[$ Distribuidor]]","v":0}]
["KTM","DUKE 200 CLASICA ","PROTECTOR TACOMETRO ACRILICO",11000,17000,null,{"$f":"PRODUCTOS[[#This Row],[Cantidad]]*PRODUCTOS[[#This Row],[$ Distribuidor]]","v":0}]
["KTM","DUKE 200 CLASICA ","PROTECTOR MONOSHOCK 2D",20000,30000,null,{"$f":"PRODUCTOS[[#This Row],[Cantidad]]*PRODUCTOS[[#This Row],[$ Distribuidor]]","v":0}]
["KTM","DUKE 200 CLASICA ","PROTECTOR MONOSHOCK 3D",22000,35000,null,{"$f":"PRODUCTOS[[#This Row],[Cantidad]]*PRODUCTOS[[#This Row],[$ Distribuidor]]","v":0}]
["KTM","DUKE 200 NG","SLIDER DE ALTO IMPACTO MOTOR 2 PUNTOS ECONO",85000,100000,null,{"$f":"PRODUCTOS[[#This Row],[Cantidad]]*PRODUCTOS[[#This Row],[$ Distribuidor]]","v":0}]
["KTM","DUKE 200 NG","SLIDER DE ALTO IMPACTO MOTOR 2 PUNTOS PREMIUM",90000,115000,null,{"$f":"PRODUCTOS[[#This Row],[Cantidad]]*PRODUCTOS[[#This Row],[$ Distribuidor]]","v":0}]
["KTM","DUKE 200 NG","SLIDER DE ALTO IMPACTO MOTOR 3 PUNTOS ECONO",95000,130000,null,{"$f":"PRODUCTOS[[#This Row],[Cantidad]]*PRODUCTOS[[#This Row],[$ Distribuidor]]","v":0}]
["KTM","DUKE 200 NG","SLIDER DE ALTO IMPACTO MOTOR 3 PUNTOS PREMIUM",100000,145000,null,{"$f":"PRODUCTOS[[#This Row],[Cantidad]]*PRODUCTOS[[#This Row],[$ Distribuidor]]","v":0}]
["KTM","DUKE 200 NG","SLIDER EJES X 4 CON TAPA",50000,80000,null,{"$f":"PRODUCTOS[[#This Row],[Cantidad]]*PRODUCTOS[[#This Row],[$ Distribuidor]]","v":0}]
["KTM","DUKE 200 NG","SLIDER EJES CENTRO EN ALUMINIO PREMIUM",70000,100000,null,{"$f":"PRODUCTOS[[#This Row],[Cantidad]]*PRODUCTOS[[#This Row],[$ Distribuidor]]","v":0}]
["KTM","DUKE 200 NG","PROTECTOR DE RADIADOR 2D",42000,65000,null,{"$f":"PRODUCTOS[[#This Row],[Cantidad]]*PRODUCTOS[[#This Row],[$ Distribuidor]]","v":0}]
["KTM","DUKE 200 NG","PROTECTOR DE RADIADOR 3D",45000,70000,null,{"$f":"PRODUCTOS[[#This Row],[Cantidad]]*PRODUCTOS[[#This Row],[$ Distribuidor]]","v":0}]
["KTM","DUKE 200 NG","PROTECTOR CALIPER MORDAZA 2D",12000,20000,null,{"$f":"PRODUCTOS[[#This Row],[Cantidad]]*PRODUCTOS[[#This Row],[$ Distribuidor]]","v":0}]
["KTM","DUKE 200 NG","PROTECTOR CALIPER MORDAZA 3D",15000,25000,null,{"$f":"PRODUCTOS[[#This Row],[Cantidad]]*PRODUCTOS[[#This Row],[$ Distribuidor]]","v":0}]
["KTM","DUKE 200 NG","PROTECTOR DEPOSITO LIQUIDO FRENO DELANTERO 2D",8000,20000,null,{"$f":"PRODUCTOS[[#This Row],[Cantidad]]*PRODUCTOS[[#This Row],[$ Distribuidor]]","v":0}]
["KTM","DUKE 200 NG","PROTECTOR DEPOSITO LIQUIDO FRENO DELANTERO 3D",10000,25000,null,{"$f":"PRODUCTOS[[#This Row],[Cantidad]]*PRODUCTOS[[#This Row],[$ Distribuidor]]","v":0}]
["KTM","DUKE 200 NG","PROTECTOR DEPOSITO LIQUIDO FRENO TRASERO 2D",13000,25000,null,{"$f":"PRODUCTOS[[#This Row],[Cantidad]]*PRODUCTOS[[#This Row],[$ Distribuidor]]","v":0}]
["KTM","DUKE 200 NG","PROTECTOR DEPOSITO LIQUIDO FRENO TRASERO 3D",15000,28000,null,{"$f":"PRODUCTOS[[#This Row],[Cantidad]]*PRODUCTOS[[#This Row],[$ Distribuidor]]","v":0}]
["KTM","DUKE 200 NG","PROTECTOR ARO GASOLINA",11000,20000,null,{"$f":"PRODUCTOS[[#This Row],[Cantidad]]*PRODUCTOS[[#This Row],[$ Distribuidor]]","v":0}]
["KTM","DUKE 200 NG","PROTECTOR PLACA 2D",11000,20000,null,{"$f":"PRODUCTOS[[#This Row],[Cantidad]]*PRODUCTOS[[#This Row],[$ Distribuidor]]","v":0}]
["KTM","DUKE 200 NG","PROTECTOR PLACA 3D",14000,25000,null,{"$f":"PRODUCTOS[[#This Row],[Cantidad]]*PRODUCTOS[[#This Row],[$ Distribuidor]]","v":0}]
["KTM","DUKE 200 NG","CUBRE PIÑON SALIDA  2D",19000,25000,null,{"$f":"PRODUCTOS[[#This Row],[Cantidad]]*PRODUCTOS[[#This Row],[$ Distribuidor]]","v":0}]
["KTM","DUKE 200 NG","CUBRE PIÑON SALIDA  3D",22000,30000,null,{"$f":"PRODUCTOS[[#This Row],[Cantidad]]*PRODUCTOS[[#This Row],[$ Distribuidor]]","v":0}]
["KTM","DUKE 200 NG","CUBRE CADENA 2D",30000,45000,null,{"$f":"PRODUCTOS[[#This Row],[Cantidad]]*PRODUCTOS[[#This Row],[$ Distribuidor]]","v":0}]
["KTM","DUKE 200 NG","CUBRE CADENA 3D",33000,48000,null,{"$f":"PRODUCTOS[[#This Row],[Cantidad]]*PRODUCTOS[[#This Row],[$ Distribuidor]]","v":0}]
["KTM","DUKE 200 NG","PROTECTORES LATERALES DE RADIADOR X2  2D",24000,40000,null,{"$f":"PRODUCTOS[[#This Row],[Cantidad]]*PRODUCTOS[[#This Row],[$ Distribuidor]]","v":0}]
["KTM","DUKE 200 NG","PROTECTORES LATERALES DE RADIADOR X2  3D",28000,45000,null,{"$f":"PRODUCTOS[[#This Row],[Cantidad]]*PRODUCTOS[[#This Row],[$ Distribuidor]]","v":0}]
["KTM","DUKE 200 NG","SPOOLS PARA CABALLETE",20000,40000,null,{"$f":"PRODUCTOS[[#This Row],[Cantidad]]*PRODUCTOS[[#This Row],[$ Distribuidor]]","v":0}]
["KTM","DUKE 200 NG","CABALLETE O GATO DE SERVICIO ",125000,160000,null,{"$f":"PRODUCTOS[[#This Row],[Cantidad]]*PRODUCTOS[[#This Row],[$ Distribuidor]]","v":0}]
["KTM","DUKE 200 NG","LUJO ACUTRAX MANUBRIO CENTRAL 2D",15000,23000,null,{"$f":"PRODUCTOS[[#This Row],[Cantidad]]*PRODUCTOS[[#This Row],[$ Distribuidor]]","v":0}]
["KTM","DUKE 200 NG","LUJO ACUTRAX MANUBRIO CENTRAL 3D",18000,25000,null,{"$f":"PRODUCTOS[[#This Row],[Cantidad]]*PRODUCTOS[[#This Row],[$ Distribuidor]]","v":0}]
["KTM","DUKE 200 NG","LUJO FILTRO ACEITE 2D",5000,10000,null,{"$f":"PRODUCTOS[[#This Row],[Cantidad]]*PRODUCTOS[[#This Row],[$ Distribuidor]]","v":0}]
["KTM","DUKE 200 NG","LUJO FILTRO ACEITE 3D",6000,12000,null,{"$f":"PRODUCTOS[[#This Row],[Cantidad]]*PRODUCTOS[[#This Row],[$ Distribuidor]]","v":0}]
["KTM","DUKE 200 NG","FENDER ELIMINATOR ABATIBLE 3 MILIMETROS PARA DIRECCIONALES ORIGINALES 2D",40000,70000,null,{"$f":"PRODUCTOS[[#This Row],[Cantidad]]*PRODUCTOS[[#This Row],[$ Distribuidor]]","v":0}]
["KTM","DUKE 200 NG","FENDER ELIMINATOR ABATIBLE 3 MILIMETROS PARA DIRECCIONALES ORIGINALES 3D",45000,75000,null,{"$f":"PRODUCTOS[[#This Row],[Cantidad]]*PRODUCTOS[[#This Row],[$ Distribuidor]]","v":0}]
["KTM","DUKE 200 NG","PROTECTOR TACOMETRO ACRILICO",11000,17000,null,{"$f":"PRODUCTOS[[#This Row],[Cantidad]]*PRODUCTOS[[#This Row],[$ Distribuidor]]","v":0}]
["KTM","DUKE 200 NG","PROTECTOR MONOSHOCK 2D",26000,35000,null,{"$f":"PRODUCTOS[[#This Row],[Cantidad]]*PRODUCTOS[[#This Row],[$ Distribuidor]]","v":0}]
["KTM","DUKE 200 NG","PROTECTOR MONOSHOCK 3D",28000,40000,null,{"$f":"PRODUCTOS[[#This Row],[Cantidad]]*PRODUCTOS[[#This Row],[$ Distribuidor]]","v":0}]
["KTM","DUKE 250 V1","SLIDER DE ALTO IMPACTO MOTOR 2 PUNTOS ECONO",85000,100000,null,{"$f":"PRODUCTOS[[#This Row],[Cantidad]]*PRODUCTOS[[#This Row],[$ Distribuidor]]","v":0}]
["KTM","DUKE 250 V1","SLIDER DE ALTO IMPACTO MOTOR 2 PUNTOS PREMIUM",90000,115000,null,{"$f":"PRODUCTOS[[#This Row],[Cantidad]]*PRODUCTOS[[#This Row],[$ Distribuidor]]","v":0}]
["KTM","DUKE 250 V1","SLIDER DE ALTO IMPACTO MOTOR 3 PUNTOS ECONO",95000,130000,null,{"$f":"PRODUCTOS[[#This Row],[Cantidad]]*PRODUCTOS[[#This Row],[$ Distribuidor]]","v":0}]
["KTM","DUKE 250 V1","SLIDER DE ALTO IMPACTO MOTOR 3 PUNTOS PREMIUM",100000,145000,null,{"$f":"PRODUCTOS[[#This Row],[Cantidad]]*PRODUCTOS[[#This Row],[$ Distribuidor]]","v":0}]
["KTM","DUKE 250 V1","SLIDER EXOSTO O MOFLE",30000,50000,null,{"$f":"PRODUCTOS[[#This Row],[Cantidad]]*PRODUCTOS[[#This Row],[$ Distribuidor]]","v":0}]
["KTM","DUKE 250 V1","SLIDER EJES X 4 CON TAPA",50000,80000,null,{"$f":"PRODUCTOS[[#This Row],[Cantidad]]*PRODUCTOS[[#This Row],[$ Distribuidor]]","v":0}]
["KTM","DUKE 250 V1","SLIDER EJES CENTRO EN ALUMINIO PREMIUM",70000,100000,null,{"$f":"PRODUCTOS[[#This Row],[Cantidad]]*PRODUCTOS[[#This Row],[$ Distribuidor]]","v":0}]
["KTM","DUKE 250 V1","PROTECTOR DE RADIADOR 2D",42000,65000,null,{"$f":"PRODUCTOS[[#This Row],[Cantidad]]*PRODUCTOS[[#This Row],[$ Distribuidor]]","v":0}]
["KTM","DUKE 250 V1","PROTECTOR DE RADIADOR 3D",45000,70000,null,{"$f":"PRODUCTOS[[#This Row],[Cantidad]]*PRODUCTOS[[#This Row],[$ Distribuidor]]","v":0}]
["KTM","DUKE 250 V1","PROTECTOR CALIPER MORDAZA 2D",12000,20000,null,{"$f":"PRODUCTOS[[#This Row],[Cantidad]]*PRODUCTOS[[#This Row],[$ Distribuidor]]","v":0}]
["KTM","DUKE 250 V1","PROTECTOR CALIPER MORDAZA 3D",15000,25000,null,{"$f":"PRODUCTOS[[#This Row],[Cantidad]]*PRODUCTOS[[#This Row],[$ Distribuidor]]","v":0}]
["KTM","DUKE 250 V1","PROTECTOR DEPOSITO LIQUIDO FRENO DELANTERO 2D",8000,20000,null,{"$f":"PRODUCTOS[[#This Row],[Cantidad]]*PRODUCTOS[[#This Row],[$ Distribuidor]]","v":0}]
["KTM","DUKE 250 V1","PROTECTOR DEPOSITO LIQUIDO FRENO DELANTERO 3D",10000,25000,null,{"$f":"PRODUCTOS[[#This Row],[Cantidad]]*PRODUCTOS[[#This Row],[$ Distribuidor]]","v":0}]
["KTM","DUKE 250 V1","PROTECTOR DEPOSITO LIQUIDO FRENO TRASERO 2D",13000,25000,null,{"$f":"PRODUCTOS[[#This Row],[Cantidad]]*PRODUCTOS[[#This Row],[$ Distribuidor]]","v":0}]
["KTM","DUKE 250 V1","PROTECTOR DEPOSITO LIQUIDO FRENO TRASERO 3D",15000,28000,null,{"$f":"PRODUCTOS[[#This Row],[Cantidad]]*PRODUCTOS[[#This Row],[$ Distribuidor]]","v":0}]
["KTM","DUKE 250 V1","PROTECTOR ARO GASOLINA",11000,20000,null,{"$f":"PRODUCTOS[[#This Row],[Cantidad]]*PRODUCTOS[[#This Row],[$ Distribuidor]]","v":0}]
["KTM","DUKE 250 V1","PROTECTOR PLACA 2D",11000,20000,null,{"$f":"PRODUCTOS[[#This Row],[Cantidad]]*PRODUCTOS[[#This Row],[$ Distribuidor]]","v":0}]
["KTM","DUKE 250 V1","PROTECTOR PLACA 3D",14000,25000,null,{"$f":"PRODUCTOS[[#This Row],[Cantidad]]*PRODUCTOS[[#This Row],[$ Distribuidor]]","v":0}]
["KTM","DUKE 250 V1","CUBRE PIÑON SALIDA  2D",19000,25000,null,{"$f":"PRODUCTOS[[#This Row],[Cantidad]]*PRODUCTOS[[#This Row],[$ Distribuidor]]","v":0}]
["KTM","DUKE 250 V1","CUBRE PIÑON SALIDA  3D",22000,30000,null,{"$f":"PRODUCTOS[[#This Row],[Cantidad]]*PRODUCTOS[[#This Row],[$ Distribuidor]]","v":0}]
["KTM","DUKE 250 V1","CUBRE CADENA 2D",30000,45000,null,{"$f":"PRODUCTOS[[#This Row],[Cantidad]]*PRODUCTOS[[#This Row],[$ Distribuidor]]","v":0}]
["KTM","DUKE 250 V1","CUBRE CADENA 3D",33000,48000,null,{"$f":"PRODUCTOS[[#This Row],[Cantidad]]*PRODUCTOS[[#This Row],[$ Distribuidor]]","v":0}]
["KTM","DUKE 250 V1","PROTECTORES LATERALES DE RADIADOR X2  2D",24000,40000,null,{"$f":"PRODUCTOS[[#This Row],[Cantidad]]*PRODUCTOS[[#This Row],[$ Distribuidor]]","v":0}]
["KTM","DUKE 250 V1","PROTECTORES LATERALES DE RADIADOR X2  3D",28000,45000,null,{"$f":"PRODUCTOS[[#This Row],[Cantidad]]*PRODUCTOS[[#This Row],[$ Distribuidor]]","v":0}]
["KTM","DUKE 250 V1","SPOOLS PARA CABALLETE",20000,40000,null,{"$f":"PRODUCTOS[[#This Row],[Cantidad]]*PRODUCTOS[[#This Row],[$ Distribuidor]]","v":0}]
["KTM","DUKE 250 V1","CABALLETE O GATO DE SERVICIO ",125000,160000,null,{"$f":"PRODUCTOS[[#This Row],[Cantidad]]*PRODUCTOS[[#This Row],[$ Distribuidor]]","v":0}]
["KTM","DUKE 250 V1","LUJO ACUTRAX MANUBRIO CENTRAL 2D",15000,23000,null,{"$f":"PRODUCTOS[[#This Row],[Cantidad]]*PRODUCTOS[[#This Row],[$ Distribuidor]]","v":0}]
["KTM","DUKE 250 V1","LUJO ACUTRAX MANUBRIO CENTRAL 3D",18000,25000,null,{"$f":"PRODUCTOS[[#This Row],[Cantidad]]*PRODUCTOS[[#This Row],[$ Distribuidor]]","v":0}]
["KTM","DUKE 250 V1","LUJO FILTRO ACEITE 2D",5000,10000,null,{"$f":"PRODUCTOS[[#This Row],[Cantidad]]*PRODUCTOS[[#This Row],[$ Distribuidor]]","v":0}]
["KTM","DUKE 250 V1","LUJO FILTRO ACEITE 3D",6000,12000,null,{"$f":"PRODUCTOS[[#This Row],[Cantidad]]*PRODUCTOS[[#This Row],[$ Distribuidor]]","v":0}]
["KTM","DUKE 250 V1","FENDER ELIMINATOR ABATIBLE 3 MILIMETROS PARA DIRECCIONALES ORIGINALES 2D",40000,70000,null,{"$f":"PRODUCTOS[[#This Row],[Cantidad]]*PRODUCTOS[[#This Row],[$ Distribuidor]]","v":0}]
["KTM","DUKE 250 V1","FENDER ELIMINATOR ABATIBLE 3 MILIMETROS PARA DIRECCIONALES ORIGINALES 3D",45000,75000,null,{"$f":"PRODUCTOS[[#This Row],[Cantidad]]*PRODUCTOS[[#This Row],[$ Distribuidor]]","v":0}]
["KTM","DUKE 250 V1","PROTECTOR TACOMETRO ACRILICO",11000,17000,null,{"$f":"PRODUCTOS[[#This Row],[Cantidad]]*PRODUCTOS[[#This Row],[$ Distribuidor]]","v":0}]
["KTM","DUKE 250 V1","PROTECTORES POSAPIES X4 3D",40000,60000,null,{"$f":"PRODUCTOS[[#This Row],[Cantidad]]*PRODUCTOS[[#This Row],[$ Distribuidor]]","v":0}]
["KTM","DUKE 250 V1","ACCESORIO LATERAL IZQUIERDO TRIANGULO 3D",13000,20000,null,{"$f":"PRODUCTOS[[#This Row],[Cantidad]]*PRODUCTOS[[#This Row],[$ Distribuidor]]","v":0}]
["KTM","DUKE 250 V1","PROTECTOR MONOSHOCK 2D",26000,35000,null,{"$f":"PRODUCTOS[[#This Row],[Cantidad]]*PRODUCTOS[[#This Row],[$ Distribuidor]]","v":0}]
["KTM","DUKE 250 V1","PROTECTOR MONOSHOCK 3D",28000,40000,null,{"$f":"PRODUCTOS[[#This Row],[Cantidad]]*PRODUCTOS[[#This Row],[$ Distribuidor]]","v":0}]
["KTM","DUKE 250 V2 GEN 3","SLIDER DE ALTO IMPACTO MOTOR 2 PUNTOS ECONO",85000,100000,null,{"$f":"PRODUCTOS[[#This Row],[Cantidad]]*PRODUCTOS[[#This Row],[$ Distribuidor]]","v":0}]
["KTM","DUKE 250 V2 GEN 3","SLIDER DE ALTO IMPACTO MOTOR 2 PUNTOS PREMIUM",115000,160000,null,{"$f":"PRODUCTOS[[#This Row],[Cantidad]]*PRODUCTOS[[#This Row],[$ Distribuidor]]","v":0}]
["KTM","DUKE 250 V2 GEN 3","SLIDER EJE DELANTERO CON VARILLA",35000,70000,null,{"$f":"PRODUCTOS[[#This Row],[Cantidad]]*PRODUCTOS[[#This Row],[$ Distribuidor]]","v":0}]
["KTM","DUKE 250 V2 GEN 3","SLIDER TIJERA ",25000,40000,null,{"$f":"PRODUCTOS[[#This Row],[Cantidad]]*PRODUCTOS[[#This Row],[$ Distribuidor]]","v":0}]
["KTM","DUKE 250 V2 GEN 3","PROTECTOR DE RADIADOR 2D",45000,70000,null,{"$f":"PRODUCTOS[[#This Row],[Cantidad]]*PRODUCTOS[[#This Row],[$ Distribuidor]]","v":0}]
["KTM","DUKE 250 V2 GEN 3","PROTECTOR DE RADIADOR 3D",47000,75000,null,{"$f":"PRODUCTOS[[#This Row],[Cantidad]]*PRODUCTOS[[#This Row],[$ Distribuidor]]","v":0}]
["KTM","DUKE 250 V2 GEN 3","PROTECTOR CALIPER MORDAZA 2D",12000,20000,null,{"$f":"PRODUCTOS[[#This Row],[Cantidad]]*PRODUCTOS[[#This Row],[$ Distribuidor]]","v":0}]
["KTM","DUKE 250 V2 GEN 3","PROTECTOR CALIPER MORDAZA 3D",15000,25000,null,{"$f":"PRODUCTOS[[#This Row],[Cantidad]]*PRODUCTOS[[#This Row],[$ Distribuidor]]","v":0}]
["KTM","DUKE 250 V2 GEN 3","PROTECTOR DEPOSITO LIQUIDO FRENO DELANTERO 2D",10000,20000,null,{"$f":"PRODUCTOS[[#This Row],[Cantidad]]*PRODUCTOS[[#This Row],[$ Distribuidor]]","v":0}]
["KTM","DUKE 250 V2 GEN 3","PROTECTOR DEPOSITO LIQUIDO FRENO DELANTERO 3D",12000,25000,null,{"$f":"PRODUCTOS[[#This Row],[Cantidad]]*PRODUCTOS[[#This Row],[$ Distribuidor]]","v":0}]
["KTM","DUKE 250 V2 GEN 3","PROTECTOR DEPOSITO LIQUIDO FRENO TRASERO 2D",13000,25000,null,{"$f":"PRODUCTOS[[#This Row],[Cantidad]]*PRODUCTOS[[#This Row],[$ Distribuidor]]","v":0}]
["KTM","DUKE 250 V2 GEN 3","PROTECTOR DEPOSITO LIQUIDO FRENO TRASERO 3D",15000,28000,null,{"$f":"PRODUCTOS[[#This Row],[Cantidad]]*PRODUCTOS[[#This Row],[$ Distribuidor]]","v":0}]
["KTM","DUKE 250 V2 GEN 3","PROTECTOR PLACA 2D",11000,20000,null,{"$f":"PRODUCTOS[[#This Row],[Cantidad]]*PRODUCTOS[[#This Row],[$ Distribuidor]]","v":0}]
["KTM","DUKE 250 V2 GEN 3","PROTECTOR PLACA 3D",14000,25000,null,{"$f":"PRODUCTOS[[#This Row],[Cantidad]]*PRODUCTOS[[#This Row],[$ Distribuidor]]","v":0}]
["KTM","DUKE 250 V2 GEN 3","CUBRE PIÑON SALIDA  2D",19000,25000,null,{"$f":"PRODUCTOS[[#This Row],[Cantidad]]*PRODUCTOS[[#This Row],[$ Distribuidor]]","v":0}]
["KTM","DUKE 250 V2 GEN 3","CUBRE PIÑON SALIDA  3D",22000,30000,null,{"$f":"PRODUCTOS[[#This Row],[Cantidad]]*PRODUCTOS[[#This Row],[$ Distribuidor]]","v":0}]
["KTM","DUKE 250 V2 GEN 3","SPOOLS PARA CABALLETE",20000,40000,null,{"$f":"PRODUCTOS[[#This Row],[Cantidad]]*PRODUCTOS[[#This Row],[$ Distribuidor]]","v":0}]
["KTM","DUKE 250 V2 GEN 3","CABALLETE O GATO DE SERVICIO ",125000,160000,null,{"$f":"PRODUCTOS[[#This Row],[Cantidad]]*PRODUCTOS[[#This Row],[$ Distribuidor]]","v":0}]
["KTM","DUKE 250 V2 GEN 3","FENDER ELIMINATOR ABATIBLE 3 MILIMETROS PARA DIRECCIONALES ORIGINALES 2D",40000,70000,null,{"$f":"PRODUCTOS[[#This Row],[Cantidad]]*PRODUCTOS[[#This Row],[$ Distribuidor]]","v":0}]
["KTM","DUKE 250 V2 GEN 3","FENDER ELIMINATOR ABATIBLE 3 MILIMETROS PARA DIRECCIONALES ORIGINALES 3D",45000,75000,null,{"$f":"PRODUCTOS[[#This Row],[Cantidad]]*PRODUCTOS[[#This Row],[$ Distribuidor]]","v":0}]
["KTM","DUKE 390 CLASICA","SLIDER DE ALTO IMPACTO MOTOR 2 PUNTOS ECONO",85000,100000,null,{"$f":"PRODUCTOS[[#This Row],[Cantidad]]*PRODUCTOS[[#This Row],[$ Distribuidor]]","v":0}]
["KTM","DUKE 390 CLASICA","SLIDER DE ALTO IMPACTO MOTOR 2 PUNTOS PREMIUM",90000,115000,null,{"$f":"PRODUCTOS[[#This Row],[Cantidad]]*PRODUCTOS[[#This Row],[$ Distribuidor]]","v":0}]
["KTM","DUKE 390 CLASICA","SLIDER DE ALTO IMPACTO MOTOR 3 PUNTOS ECONO",95000,130000,null,{"$f":"PRODUCTOS[[#This Row],[Cantidad]]*PRODUCTOS[[#This Row],[$ Distribuidor]]","v":0}]
["KTM","DUKE 390 CLASICA","SLIDER DE ALTO IMPACTO MOTOR 3 PUNTOS PREMIUM",100000,145000,null,{"$f":"PRODUCTOS[[#This Row],[Cantidad]]*PRODUCTOS[[#This Row],[$ Distribuidor]]","v":0}]
["KTM","DUKE 390 CLASICA","SLIDER EJES X 4 CON TAPA",50000,80000,null,{"$f":"PRODUCTOS[[#This Row],[Cantidad]]*PRODUCTOS[[#This Row],[$ Distribuidor]]","v":0}]
["KTM","DUKE 390 CLASICA","SLIDER EJES CENTRO EN ALUMINIO PREMIUM",70000,100000,null,{"$f":"PRODUCTOS[[#This Row],[Cantidad]]*PRODUCTOS[[#This Row],[$ Distribuidor]]","v":0}]
["KTM","DUKE 390 CLASICA","PROTECTOR DE RADIADOR 2D",42000,65000,null,{"$f":"PRODUCTOS[[#This Row],[Cantidad]]*PRODUCTOS[[#This Row],[$ Distribuidor]]","v":0}]
["KTM","DUKE 390 CLASICA","PROTECTOR DE RADIADOR 3D",45000,70000,null,{"$f":"PRODUCTOS[[#This Row],[Cantidad]]*PRODUCTOS[[#This Row],[$ Distribuidor]]","v":0}]
["KTM","DUKE 390 CLASICA","PROTECTOR CALIPER MORDAZA 2D",12000,20000,null,{"$f":"PRODUCTOS[[#This Row],[Cantidad]]*PRODUCTOS[[#This Row],[$ Distribuidor]]","v":0}]
["KTM","DUKE 390 CLASICA","PROTECTOR CALIPER MORDAZA 3D",15000,25000,null,{"$f":"PRODUCTOS[[#This Row],[Cantidad]]*PRODUCTOS[[#This Row],[$ Distribuidor]]","v":0}]
["KTM","DUKE 390 CLASICA","PROTECTOR DEPOSITO LIQUIDO FRENO DELANTERO 2D",8000,20000,null,{"$f":"PRODUCTOS[[#This Row],[Cantidad]]*PRODUCTOS[[#This Row],[$ Distribuidor]]","v":0}]
["KTM","DUKE 390 CLASICA","PROTECTOR DEPOSITO LIQUIDO FRENO DELANTERO 3D",10000,25000,null,{"$f":"PRODUCTOS[[#This Row],[Cantidad]]*PRODUCTOS[[#This Row],[$ Distribuidor]]","v":0}]
["KTM","DUKE 390 CLASICA","PROTECTOR DEPOSITO LIQUIDO FRENO TRASERO 2D",13000,25000,null,{"$f":"PRODUCTOS[[#This Row],[Cantidad]]*PRODUCTOS[[#This Row],[$ Distribuidor]]","v":0}]
["KTM","DUKE 390 CLASICA","PROTECTOR DEPOSITO LIQUIDO FRENO TRASERO 3D",15000,28000,null,{"$f":"PRODUCTOS[[#This Row],[Cantidad]]*PRODUCTOS[[#This Row],[$ Distribuidor]]","v":0}]
["KTM","DUKE 390 CLASICA","PROTECTOR ARO GASOLINA",11000,20000,null,{"$f":"PRODUCTOS[[#This Row],[Cantidad]]*PRODUCTOS[[#This Row],[$ Distribuidor]]","v":0}]
["KTM","DUKE 390 CLASICA","PROTECTOR PLACA 2D",11000,20000,null,{"$f":"PRODUCTOS[[#This Row],[Cantidad]]*PRODUCTOS[[#This Row],[$ Distribuidor]]","v":0}]
["KTM","DUKE 390 CLASICA","PROTECTOR PLACA 3D",14000,25000,null,{"$f":"PRODUCTOS[[#This Row],[Cantidad]]*PRODUCTOS[[#This Row],[$ Distribuidor]]","v":0}]
["KTM","DUKE 390 CLASICA","CUPULA DE LUJO ACERO INOXIDABLE 2D",19000,30000,null,{"$f":"PRODUCTOS[[#This Row],[Cantidad]]*PRODUCTOS[[#This Row],[$ Distribuidor]]","v":0}]
["KTM","DUKE 390 CLASICA","CUPULA DE LUJO ACERO INOXIDABLE 3D ALERONES",28000,40000,null,{"$f":"PRODUCTOS[[#This Row],[Cantidad]]*PRODUCTOS[[#This Row],[$ Distribuidor]]","v":0}]
["KTM","DUKE 390 CLASICA","CUBRE PIÑON SALIDA  2D",19000,25000,null,{"$f":"PRODUCTOS[[#This Row],[Cantidad]]*PRODUCTOS[[#This Row],[$ Distribuidor]]","v":0}]
["KTM","DUKE 390 CLASICA","CUBRE PIÑON SALIDA  3D",22000,30000,null,{"$f":"PRODUCTOS[[#This Row],[Cantidad]]*PRODUCTOS[[#This Row],[$ Distribuidor]]","v":0}]
["KTM","DUKE 390 CLASICA","CUBRE CADENA 2D",30000,45000,null,{"$f":"PRODUCTOS[[#This Row],[Cantidad]]*PRODUCTOS[[#This Row],[$ Distribuidor]]","v":0}]
["KTM","DUKE 390 CLASICA","CUBRE CADENA 3D",33000,48000,null,{"$f":"PRODUCTOS[[#This Row],[Cantidad]]*PRODUCTOS[[#This Row],[$ Distribuidor]]","v":0}]
["KTM","DUKE 390 CLASICA","SPOOLS PARA CABALLETE",20000,40000,null,{"$f":"PRODUCTOS[[#This Row],[Cantidad]]*PRODUCTOS[[#This Row],[$ Distribuidor]]","v":0}]
["KTM","DUKE 390 CLASICA","CABALLETE O GATO DE SERVICIO ",125000,160000,null,{"$f":"PRODUCTOS[[#This Row],[Cantidad]]*PRODUCTOS[[#This Row],[$ Distribuidor]]","v":0}]
["KTM","DUKE 390 CLASICA","LUJO ACUTRAX MANUBRIO CENTRAL 2D",15000,23000,null,{"$f":"PRODUCTOS[[#This Row],[Cantidad]]*PRODUCTOS[[#This Row],[$ Distribuidor]]","v":0}]
["KTM","DUKE 390 CLASICA","LUJO ACUTRAX MANUBRIO CENTRAL 3D",18000,25000,null,{"$f":"PRODUCTOS[[#This Row],[Cantidad]]*PRODUCTOS[[#This Row],[$ Distribuidor]]","v":0}]
["KTM","DUKE 390 CLASICA","LUJO FILTRO ACEITE 2D",5000,10000,null,{"$f":"PRODUCTOS[[#This Row],[Cantidad]]*PRODUCTOS[[#This Row],[$ Distribuidor]]","v":0}]
["KTM","DUKE 390 CLASICA","LUJO FILTRO ACEITE 3D",6000,12000,null,{"$f":"PRODUCTOS[[#This Row],[Cantidad]]*PRODUCTOS[[#This Row],[$ Distribuidor]]","v":0}]
["KTM","DUKE 390 CLASICA","PROTECTOR TACOMETRO ACRILICO",11000,17000,null,{"$f":"PRODUCTOS[[#This Row],[Cantidad]]*PRODUCTOS[[#This Row],[$ Distribuidor]]","v":0}]
["KTM","DUKE 390 CLASICA","PROTECTOR MONOSHOCK 2D",20000,30000,null,{"$f":"PRODUCTOS[[#This Row],[Cantidad]]*PRODUCTOS[[#This Row],[$ Distribuidor]]","v":0}]
["KTM","DUKE 390 CLASICA","PROTECTOR MONOSHOCK 3D",22000,35000,null,{"$f":"PRODUCTOS[[#This Row],[Cantidad]]*PRODUCTOS[[#This Row],[$ Distribuidor]]","v":0}]
["KTM","DUKE 390 NG V2","SLIDER DE ALTO IMPACTO MOTOR 2 PUNTOS ECONO",85000,100000,null,{"$f":"PRODUCTOS[[#This Row],[Cantidad]]*PRODUCTOS[[#This Row],[$ Distribuidor]]","v":0}]
["KTM","DUKE 390 NG V2","SLIDER DE ALTO IMPACTO MOTOR 2 PUNTOS PREMIUM",90000,115000,null,{"$f":"PRODUCTOS[[#This Row],[Cantidad]]*PRODUCTOS[[#This Row],[$ Distribuidor]]","v":0}]
["KTM","DUKE 390 NG V2","SLIDER DE ALTO IMPACTO MOTOR 3 PUNTOS ECONO",95000,130000,null,{"$f":"PRODUCTOS[[#This Row],[Cantidad]]*PRODUCTOS[[#This Row],[$ Distribuidor]]","v":0}]
["KTM","DUKE 390 NG V2","SLIDER DE ALTO IMPACTO MOTOR 3 PUNTOS PREMIUM",100000,145000,null,{"$f":"PRODUCTOS[[#This Row],[Cantidad]]*PRODUCTOS[[#This Row],[$ Distribuidor]]","v":0}]
["KTM","DUKE 390 NG V2","SLIDER EXOSTO O MOFLE",30000,50000,null,{"$f":"PRODUCTOS[[#This Row],[Cantidad]]*PRODUCTOS[[#This Row],[$ Distribuidor]]","v":0}]
["KTM","DUKE 390 NG V2","SLIDER EJES X 4 CON TAPA",50000,80000,null,{"$f":"PRODUCTOS[[#This Row],[Cantidad]]*PRODUCTOS[[#This Row],[$ Distribuidor]]","v":0}]
["KTM","DUKE 390 NG V2","SLIDER EJES CENTRO EN ALUMINIO PREMIUM",70000,100000,null,{"$f":"PRODUCTOS[[#This Row],[Cantidad]]*PRODUCTOS[[#This Row],[$ Distribuidor]]","v":0}]
["KTM","DUKE 390 NG V2","PROTECTOR DE RADIADOR 2D",42000,65000,null,{"$f":"PRODUCTOS[[#This Row],[Cantidad]]*PRODUCTOS[[#This Row],[$ Distribuidor]]","v":0}]
["KTM","DUKE 390 NG V2","PROTECTOR DE RADIADOR 3D",45000,70000,null,{"$f":"PRODUCTOS[[#This Row],[Cantidad]]*PRODUCTOS[[#This Row],[$ Distribuidor]]","v":0}]
["KTM","DUKE 390 NG V2","PROTECTOR CALIPER MORDAZA 2D",12000,20000,null,{"$f":"PRODUCTOS[[#This Row],[Cantidad]]*PRODUCTOS[[#This Row],[$ Distribuidor]]","v":0}]
["KTM","DUKE 390 NG V2","PROTECTOR CALIPER MORDAZA 3D",15000,25000,null,{"$f":"PRODUCTOS[[#This Row],[Cantidad]]*PRODUCTOS[[#This Row],[$ Distribuidor]]","v":0}]
["KTM","DUKE 390 NG V2","PROTECTOR DEPOSITO LIQUIDO FRENO DELANTERO 2D",8000,20000,null,{"$f":"PRODUCTOS[[#This Row],[Cantidad]]*PRODUCTOS[[#This Row],[$ Distribuidor]]","v":0}]
["KTM","DUKE 390 NG V2","PROTECTOR DEPOSITO LIQUIDO FRENO DELANTERO 3D",10000,25000,null,{"$f":"PRODUCTOS[[#This Row],[Cantidad]]*PRODUCTOS[[#This Row],[$ Distribuidor]]","v":0}]
["KTM","DUKE 390 NG V2","PROTECTOR DEPOSITO LIQUIDO FRENO TRASERO 2D",13000,25000,null,{"$f":"PRODUCTOS[[#This Row],[Cantidad]]*PRODUCTOS[[#This Row],[$ Distribuidor]]","v":0}]
["KTM","DUKE 390 NG V2","PROTECTOR DEPOSITO LIQUIDO FRENO TRASERO 3D",15000,28000,null,{"$f":"PRODUCTOS[[#This Row],[Cantidad]]*PRODUCTOS[[#This Row],[$ Distribuidor]]","v":0}]
["KTM","DUKE 390 NG V2","PROTECTOR ARO GASOLINA",11000,20000,null,{"$f":"PRODUCTOS[[#This Row],[Cantidad]]*PRODUCTOS[[#This Row],[$ Distribuidor]]","v":0}]
["KTM","DUKE 390 NG V2","PROTECTOR PLACA 2D",11000,20000,null,{"$f":"PRODUCTOS[[#This Row],[Cantidad]]*PRODUCTOS[[#This Row],[$ Distribuidor]]","v":0}]
["KTM","DUKE 390 NG V2","PROTECTOR PLACA 3D",14000,25000,null,{"$f":"PRODUCTOS[[#This Row],[Cantidad]]*PRODUCTOS[[#This Row],[$ Distribuidor]]","v":0}]
["KTM","DUKE 390 NG V2","CUBRE PIÑON SALIDA  2D",19000,25000,null,{"$f":"PRODUCTOS[[#This Row],[Cantidad]]*PRODUCTOS[[#This Row],[$ Distribuidor]]","v":0}]
["KTM","DUKE 390 NG V2","CUBRE PIÑON SALIDA  3D",22000,30000,null,{"$f":"PRODUCTOS[[#This Row],[Cantidad]]*PRODUCTOS[[#This Row],[$ Distribuidor]]","v":0}]
["KTM","DUKE 390 NG V2","CUBRE CADENA 2D",30000,45000,null,{"$f":"PRODUCTOS[[#This Row],[Cantidad]]*PRODUCTOS[[#This Row],[$ Distribuidor]]","v":0}]
["KTM","DUKE 390 NG V2","CUBRE CADENA 3D",33000,48000,null,{"$f":"PRODUCTOS[[#This Row],[Cantidad]]*PRODUCTOS[[#This Row],[$ Distribuidor]]","v":0}]
["KTM","DUKE 390 NG V2","PROTECTORES LATERALES DE RADIADOR X2  2D",24000,40000,null,{"$f":"PRODUCTOS[[#This Row],[Cantidad]]*PRODUCTOS[[#This Row],[$ Distribuidor]]","v":0}]
["KTM","DUKE 390 NG V2","PROTECTORES LATERALES DE RADIADOR X2  3D",28000,45000,null,{"$f":"PRODUCTOS[[#This Row],[Cantidad]]*PRODUCTOS[[#This Row],[$ Distribuidor]]","v":0}]
["KTM","DUKE 390 NG V2","SPOOLS PARA CABALLETE",20000,40000,null,{"$f":"PRODUCTOS[[#This Row],[Cantidad]]*PRODUCTOS[[#This Row],[$ Distribuidor]]","v":0}]
["KTM","DUKE 390 NG V2","CABALLETE O GATO DE SERVICIO ",125000,160000,null,{"$f":"PRODUCTOS[[#This Row],[Cantidad]]*PRODUCTOS[[#This Row],[$ Distribuidor]]","v":0}]
["KTM","DUKE 390 NG V2","LUJO ACUTRAX MANUBRIO CENTRAL 2D",15000,23000,null,{"$f":"PRODUCTOS[[#This Row],[Cantidad]]*PRODUCTOS[[#This Row],[$ Distribuidor]]","v":0}]
["KTM","DUKE 390 NG V2","LUJO ACUTRAX MANUBRIO CENTRAL 3D",18000,25000,null,{"$f":"PRODUCTOS[[#This Row],[Cantidad]]*PRODUCTOS[[#This Row],[$ Distribuidor]]","v":0}]
["KTM","DUKE 390 NG V2","LUJO FILTRO ACEITE 2D",5000,10000,null,{"$f":"PRODUCTOS[[#This Row],[Cantidad]]*PRODUCTOS[[#This Row],[$ Distribuidor]]","v":0}]
["KTM","DUKE 390 NG V2","LUJO FILTRO ACEITE 3D",6000,12000,null,{"$f":"PRODUCTOS[[#This Row],[Cantidad]]*PRODUCTOS[[#This Row],[$ Distribuidor]]","v":0}]
["KTM","DUKE 390 NG V2","FENDER ELIMINATOR ABATIBLE 3 MILIMETROS PARA DIRECCIONALES ORIGINALES 2D",40000,70000,null,{"$f":"PRODUCTOS[[#This Row],[Cantidad]]*PRODUCTOS[[#This Row],[$ Distribuidor]]","v":0}]
["KTM","DUKE 390 NG V2","FENDER ELIMINATOR ABATIBLE 3 MILIMETROS PARA DIRECCIONALES ORIGINALES 3D",45000,75000,null,{"$f":"PRODUCTOS[[#This Row],[Cantidad]]*PRODUCTOS[[#This Row],[$ Distribuidor]]","v":0}]
["KTM","DUKE 390 NG V2","PROTECTOR TACOMETRO ACRILICO",11000,17000,null,{"$f":"PRODUCTOS[[#This Row],[Cantidad]]*PRODUCTOS[[#This Row],[$ Distribuidor]]","v":0}]
["KTM","DUKE 390 NG V2","PROTECTORES POSAPIES X4 3D",40000,60000,null,{"$f":"PRODUCTOS[[#This Row],[Cantidad]]*PRODUCTOS[[#This Row],[$ Distribuidor]]","v":0}]
["KTM","DUKE 390 NG V2","ACCESORIO LATERAL IZQUIERDO TRIANGULO 3D",13000,20000,null,{"$f":"PRODUCTOS[[#This Row],[Cantidad]]*PRODUCTOS[[#This Row],[$ Distribuidor]]","v":0}]
["KTM","DUKE 390 NG V2","PROTECTOR MONOSHOCK 2D",26000,35000,null,{"$f":"PRODUCTOS[[#This Row],[Cantidad]]*PRODUCTOS[[#This Row],[$ Distribuidor]]","v":0}]
["KTM","DUKE 390 NG V2","PROTECTOR MONOSHOCK 3D",28000,40000,null,{"$f":"PRODUCTOS[[#This Row],[Cantidad]]*PRODUCTOS[[#This Row],[$ Distribuidor]]","v":0}]
["KTM","DUKE 390 GEN3","SLIDER DE ALTO IMPACTO MOTOR 2 PUNTOS PREMIUM",115000,160000,null,{"$f":"PRODUCTOS[[#This Row],[Cantidad]]*PRODUCTOS[[#This Row],[$ Distribuidor]]","v":0}]
["KTM","DUKE 390 GEN3","SLIDER EJE DELANTERO CON VARILLA",35000,70000,null,{"$f":"PRODUCTOS[[#This Row],[Cantidad]]*PRODUCTOS[[#This Row],[$ Distribuidor]]","v":0}]
["KTM","DUKE 390 GEN3","SLIDER TIJERA ",25000,40000,null,{"$f":"PRODUCTOS[[#This Row],[Cantidad]]*PRODUCTOS[[#This Row],[$ Distribuidor]]","v":0}]
["KTM","DUKE 390 GEN3","PROTECTOR DE RADIADOR 2D",45000,70000,null,{"$f":"PRODUCTOS[[#This Row],[Cantidad]]*PRODUCTOS[[#This Row],[$ Distribuidor]]","v":0}]
["KTM","DUKE 390 GEN3","PROTECTOR DE RADIADOR 3D",47000,75000,null,{"$f":"PRODUCTOS[[#This Row],[Cantidad]]*PRODUCTOS[[#This Row],[$ Distribuidor]]","v":0}]
["KTM","DUKE 390 GEN3","PROTECTOR CALIPER MORDAZA 2D",12000,20000,null,{"$f":"PRODUCTOS[[#This Row],[Cantidad]]*PRODUCTOS[[#This Row],[$ Distribuidor]]","v":0}]
["KTM","DUKE 390 GEN3","PROTECTOR CALIPER MORDAZA 3D",15000,25000,null,{"$f":"PRODUCTOS[[#This Row],[Cantidad]]*PRODUCTOS[[#This Row],[$ Distribuidor]]","v":0}]
["KTM","DUKE 390 GEN3","PROTECTOR DEPOSITO LIQUIDO FRENO DELANTERO 2D",10000,20000,null,{"$f":"PRODUCTOS[[#This Row],[Cantidad]]*PRODUCTOS[[#This Row],[$ Distribuidor]]","v":0}]
["KTM","DUKE 390 GEN3","PROTECTOR DEPOSITO LIQUIDO FRENO DELANTERO 3D",12000,25000,null,{"$f":"PRODUCTOS[[#This Row],[Cantidad]]*PRODUCTOS[[#This Row],[$ Distribuidor]]","v":0}]
["KTM","DUKE 390 GEN3","PROTECTOR DEPOSITO LIQUIDO FRENO TRASERO 2D",13000,25000,null,{"$f":"PRODUCTOS[[#This Row],[Cantidad]]*PRODUCTOS[[#This Row],[$ Distribuidor]]","v":0}]
["KTM","DUKE 390 GEN3","PROTECTOR DEPOSITO LIQUIDO FRENO TRASERO 3D",15000,28000,null,{"$f":"PRODUCTOS[[#This Row],[Cantidad]]*PRODUCTOS[[#This Row],[$ Distribuidor]]","v":0}]
["KTM","DUKE 390 GEN3","PROTECTOR PLACA 2D",11000,20000,null,{"$f":"PRODUCTOS[[#This Row],[Cantidad]]*PRODUCTOS[[#This Row],[$ Distribuidor]]","v":0}]
["KTM","DUKE 390 GEN3","PROTECTOR PLACA 3D",14000,25000,null,{"$f":"PRODUCTOS[[#This Row],[Cantidad]]*PRODUCTOS[[#This Row],[$ Distribuidor]]","v":0}]
["KTM","DUKE 390 GEN3","CUBRE PIÑON SALIDA  2D",19000,25000,null,{"$f":"PRODUCTOS[[#This Row],[Cantidad]]*PRODUCTOS[[#This Row],[$ Distribuidor]]","v":0}]
["KTM","DUKE 390 GEN3","CUBRE PIÑON SALIDA  3D",22000,30000,null,{"$f":"PRODUCTOS[[#This Row],[Cantidad]]*PRODUCTOS[[#This Row],[$ Distribuidor]]","v":0}]
["KTM","DUKE 390 GEN3","SPOOLS PARA CABALLETE",20000,40000,null,{"$f":"PRODUCTOS[[#This Row],[Cantidad]]*PRODUCTOS[[#This Row],[$ Distribuidor]]","v":0}]
["KTM","DUKE 390 GEN3","CABALLETE O GATO DE SERVICIO ",125000,160000,null,{"$f":"PRODUCTOS[[#This Row],[Cantidad]]*PRODUCTOS[[#This Row],[$ Distribuidor]]","v":0}]
["KTM","DUKE 390 GEN3","FENDER ELIMINATOR ABATIBLE 3 MILIMETROS PARA DIRECCIONALES ORIGINALES 2D",40000,70000,null,{"$f":"PRODUCTOS[[#This Row],[Cantidad]]*PRODUCTOS[[#This Row],[$ Distribuidor]]","v":0}]
["KTM","DUKE 390 GEN3","FENDER ELIMINATOR ABATIBLE 3 MILIMETROS PARA DIRECCIONALES ORIGINALES 3D",45000,75000,null,{"$f":"PRODUCTOS[[#This Row],[Cantidad]]*PRODUCTOS[[#This Row],[$ Distribuidor]]","v":0}]
["KTM","RC 200 V1","SLIDER DE ALTO IMPACTO MOTOR 2 PUNTOS PREMIUM",115000,160000,null,{"$f":"PRODUCTOS[[#This Row],[Cantidad]]*PRODUCTOS[[#This Row],[$ Distribuidor]]","v":0}]
["KTM","RC 200 V1","SLIDER EJES X 4 CON TAPA",45000,80000,null,{"$f":"PRODUCTOS[[#This Row],[Cantidad]]*PRODUCTOS[[#This Row],[$ Distribuidor]]","v":0}]
["KTM","RC 200 V1","SLIDER EJES CENTRO EN ALUMINIO PREMIUM",70000,100000,null,{"$f":"PRODUCTOS[[#This Row],[Cantidad]]*PRODUCTOS[[#This Row],[$ Distribuidor]]","v":0}]
["KTM","RC 200 V1","PROTECTOR DE RADIADOR 3D",44000,70000,null,{"$f":"PRODUCTOS[[#This Row],[Cantidad]]*PRODUCTOS[[#This Row],[$ Distribuidor]]","v":0}]
["KTM","RC 200 V1","PROTECTOR CALIPER MORDAZA 2D",12000,20000,null,{"$f":"PRODUCTOS[[#This Row],[Cantidad]]*PRODUCTOS[[#This Row],[$ Distribuidor]]","v":0}]
["KTM","RC 200 V1","PROTECTOR CALIPER MORDAZA 3D",15000,25000,null,{"$f":"PRODUCTOS[[#This Row],[Cantidad]]*PRODUCTOS[[#This Row],[$ Distribuidor]]","v":0}]
["KTM","RC 200 V1","PROTECTOR DEPOSITO LIQUIDO FRENO DELANTERO 2D",8000,20000,null,{"$f":"PRODUCTOS[[#This Row],[Cantidad]]*PRODUCTOS[[#This Row],[$ Distribuidor]]","v":0}]
["KTM","RC 200 V1","PROTECTOR DEPOSITO LIQUIDO FRENO DELANTERO 3D",10000,25000,null,{"$f":"PRODUCTOS[[#This Row],[Cantidad]]*PRODUCTOS[[#This Row],[$ Distribuidor]]","v":0}]
["KTM","RC 200 V1","PROTECTOR DEPOSITO LIQUIDO FRENO TRASERO 2D",13000,25000,null,{"$f":"PRODUCTOS[[#This Row],[Cantidad]]*PRODUCTOS[[#This Row],[$ Distribuidor]]","v":0}]
["KTM","RC 200 V1","PROTECTOR DEPOSITO LIQUIDO FRENO TRASERO 3D",15000,28000,null,{"$f":"PRODUCTOS[[#This Row],[Cantidad]]*PRODUCTOS[[#This Row],[$ Distribuidor]]","v":0}]
["KTM","RC 200 V1","PROTECTOR ARO GASOLINA",11000,20000,null,{"$f":"PRODUCTOS[[#This Row],[Cantidad]]*PRODUCTOS[[#This Row],[$ Distribuidor]]","v":0}]
["KTM","RC 200 V1","PROTECTOR PLACA 2D",11000,20000,null,{"$f":"PRODUCTOS[[#This Row],[Cantidad]]*PRODUCTOS[[#This Row],[$ Distribuidor]]","v":0}]
["KTM","RC 200 V1","PROTECTOR PLACA 3D",14000,25000,null,{"$f":"PRODUCTOS[[#This Row],[Cantidad]]*PRODUCTOS[[#This Row],[$ Distribuidor]]","v":0}]
["KTM","RC 200 V1","SPOOLS PARA CABALLETE",20000,40000,null,{"$f":"PRODUCTOS[[#This Row],[Cantidad]]*PRODUCTOS[[#This Row],[$ Distribuidor]]","v":0}]
["KTM","RC 200 V1","CABALLETE O GATO DE SERVICIO ",125000,160000,null,{"$f":"PRODUCTOS[[#This Row],[Cantidad]]*PRODUCTOS[[#This Row],[$ Distribuidor]]","v":0}]
["KTM","RC 200 V1","LUJO FILTRO ACEITE 2D",5000,10000,null,{"$f":"PRODUCTOS[[#This Row],[Cantidad]]*PRODUCTOS[[#This Row],[$ Distribuidor]]","v":0}]
["KTM","RC 200 V1","LUJO FILTRO ACEITE 3D",6000,12000,null,{"$f":"PRODUCTOS[[#This Row],[Cantidad]]*PRODUCTOS[[#This Row],[$ Distribuidor]]","v":0}]
["KTM","RC 200 V1","FENDER ELIMINATOR ABATIBLE 3 MILIMETROS PARA DIRECCIONALES ORIGINALES 2D",40000,70000,null,{"$f":"PRODUCTOS[[#This Row],[Cantidad]]*PRODUCTOS[[#This Row],[$ Distribuidor]]","v":0}]
["KTM","RC 200 V1","FENDER ELIMINATOR ABATIBLE 3 MILIMETROS PARA DIRECCIONALES ORIGINALES 3D",45000,75000,null,{"$f":"PRODUCTOS[[#This Row],[Cantidad]]*PRODUCTOS[[#This Row],[$ Distribuidor]]","v":0}]
["KTM","RC 200 V1","PROTECTOR TACOMETRO ACRILICO",11000,17000,null,{"$f":"PRODUCTOS[[#This Row],[Cantidad]]*PRODUCTOS[[#This Row],[$ Distribuidor]]","v":0}]
["KTM","RC 200 V2","SLIDER DE ALTO IMPACTO MOTOR 2 PUNTOS PREMIUM",115000,160000,null,{"$f":"PRODUCTOS[[#This Row],[Cantidad]]*PRODUCTOS[[#This Row],[$ Distribuidor]]","v":0}]
["KTM","RC 200 V2","SLIDER EJE DELANTERO CON VARILLA",35000,70000,null,{"$f":"PRODUCTOS[[#This Row],[Cantidad]]*PRODUCTOS[[#This Row],[$ Distribuidor]]","v":0}]
["KTM","RC 200 V2","SLIDER TIJERA ",25000,40000,null,{"$f":"PRODUCTOS[[#This Row],[Cantidad]]*PRODUCTOS[[#This Row],[$ Distribuidor]]","v":0}]
["KTM","RC 200 V2","PROTECTOR DEPOSITO LIQUIDO FRENO DELANTERO 2D",8000,20000,null,{"$f":"PRODUCTOS[[#This Row],[Cantidad]]*PRODUCTOS[[#This Row],[$ Distribuidor]]","v":0}]
["KTM","RC 200 V2","PROTECTOR DEPOSITO LIQUIDO FRENO DELANTERO 3D",10000,25000,null,{"$f":"PRODUCTOS[[#This Row],[Cantidad]]*PRODUCTOS[[#This Row],[$ Distribuidor]]","v":0}]
["KTM","RC 200 V2","PROTECTOR DEPOSITO LIQUIDO FRENO TRASERO 2D",13000,25000,null,{"$f":"PRODUCTOS[[#This Row],[Cantidad]]*PRODUCTOS[[#This Row],[$ Distribuidor]]","v":0}]
["KTM","RC 200 V2","PROTECTOR DEPOSITO LIQUIDO FRENO TRASERO 3D",15000,28000,null,{"$f":"PRODUCTOS[[#This Row],[Cantidad]]*PRODUCTOS[[#This Row],[$ Distribuidor]]","v":0}]
["KTM","RC 200 V2","PROTECTOR PLACA 2D",11000,20000,null,{"$f":"PRODUCTOS[[#This Row],[Cantidad]]*PRODUCTOS[[#This Row],[$ Distribuidor]]","v":0}]
["KTM","RC 200 V2","PROTECTOR PLACA 3D",14000,25000,null,{"$f":"PRODUCTOS[[#This Row],[Cantidad]]*PRODUCTOS[[#This Row],[$ Distribuidor]]","v":0}]
["KTM","RC 200 V2","SPOOLS PARA CABALLETE",20000,40000,null,{"$f":"PRODUCTOS[[#This Row],[Cantidad]]*PRODUCTOS[[#This Row],[$ Distribuidor]]","v":0}]
["KTM","RC 200 V2","CABALLETE O GATO DE SERVICIO ",125000,160000,null,{"$f":"PRODUCTOS[[#This Row],[Cantidad]]*PRODUCTOS[[#This Row],[$ Distribuidor]]","v":0}]
["KTM","RC 200 V2","LUJO FILTRO ACEITE 2D",5000,10000,null,{"$f":"PRODUCTOS[[#This Row],[Cantidad]]*PRODUCTOS[[#This Row],[$ Distribuidor]]","v":0}]
["KTM","RC 200 V2","LUJO FILTRO ACEITE 3D",6000,12000,null,{"$f":"PRODUCTOS[[#This Row],[Cantidad]]*PRODUCTOS[[#This Row],[$ Distribuidor]]","v":0}]
["KTM","RC 200 V2","FENDER ELIMINATOR ABATIBLE 3 MILIMETROS PARA DIRECCIONALES ORIGINALES 2D",40000,70000,null,{"$f":"PRODUCTOS[[#This Row],[Cantidad]]*PRODUCTOS[[#This Row],[$ Distribuidor]]","v":0}]
["KTM","RC 200 V2","FENDER ELIMINATOR ABATIBLE 3 MILIMETROS PARA DIRECCIONALES ORIGINALES 3D",45000,75000,null,{"$f":"PRODUCTOS[[#This Row],[Cantidad]]*PRODUCTOS[[#This Row],[$ Distribuidor]]","v":0}]
["KTM","RC 390 V2","SLIDER DE ALTO IMPACTO MOTOR 2 PUNTOS PREMIUM",115000,160000,null,{"$f":"PRODUCTOS[[#This Row],[Cantidad]]*PRODUCTOS[[#This Row],[$ Distribuidor]]","v":0}]
["KTM","RC 390 V2","SLIDER EXOSTO O MOFLE",30000,50000,null,{"$f":"PRODUCTOS[[#This Row],[Cantidad]]*PRODUCTOS[[#This Row],[$ Distribuidor]]","v":0}]
["KTM","RC 390 V2","SLIDER EJE DELANTERO CON VARILLA",35000,70000,null,{"$f":"PRODUCTOS[[#This Row],[Cantidad]]*PRODUCTOS[[#This Row],[$ Distribuidor]]","v":0}]
["KTM","RC 390 V2","SLIDER TIJERA ",25000,40000,null,{"$f":"PRODUCTOS[[#This Row],[Cantidad]]*PRODUCTOS[[#This Row],[$ Distribuidor]]","v":0}]
["KTM","RC 390 V2","PROTECTOR DEPOSITO LIQUIDO FRENO DELANTERO 2D",8000,20000,null,{"$f":"PRODUCTOS[[#This Row],[Cantidad]]*PRODUCTOS[[#This Row],[$ Distribuidor]]","v":0}]
["KTM","RC 390 V2","PROTECTOR DEPOSITO LIQUIDO FRENO DELANTERO 3D",10000,25000,null,{"$f":"PRODUCTOS[[#This Row],[Cantidad]]*PRODUCTOS[[#This Row],[$ Distribuidor]]","v":0}]
["KTM","RC 390 V2","PROTECTOR DEPOSITO LIQUIDO FRENO TRASERO 2D",13000,25000,null,{"$f":"PRODUCTOS[[#This Row],[Cantidad]]*PRODUCTOS[[#This Row],[$ Distribuidor]]","v":0}]
["KTM","RC 390 V2","PROTECTOR DEPOSITO LIQUIDO FRENO TRASERO 3D",15000,28000,null,{"$f":"PRODUCTOS[[#This Row],[Cantidad]]*PRODUCTOS[[#This Row],[$ Distribuidor]]","v":0}]
["KTM","RC 390 V2","PROTECTOR PLACA 2D",11000,20000,null,{"$f":"PRODUCTOS[[#This Row],[Cantidad]]*PRODUCTOS[[#This Row],[$ Distribuidor]]","v":0}]
["KTM","RC 390 V2","PROTECTOR PLACA 3D",14000,25000,null,{"$f":"PRODUCTOS[[#This Row],[Cantidad]]*PRODUCTOS[[#This Row],[$ Distribuidor]]","v":0}]
["KTM","RC 390 V2","SPOOLS PARA CABALLETE",20000,40000,null,{"$f":"PRODUCTOS[[#This Row],[Cantidad]]*PRODUCTOS[[#This Row],[$ Distribuidor]]","v":0}]
["KTM","RC 390 V2","CABALLETE O GATO DE SERVICIO ",125000,160000,null,{"$f":"PRODUCTOS[[#This Row],[Cantidad]]*PRODUCTOS[[#This Row],[$ Distribuidor]]","v":0}]
["KTM","RC 390 V2","LUJO FILTRO ACEITE 2D",5000,10000,null,{"$f":"PRODUCTOS[[#This Row],[Cantidad]]*PRODUCTOS[[#This Row],[$ Distribuidor]]","v":0}]
["KTM","RC 390 V2","LUJO FILTRO ACEITE 3D",6000,12000,null,{"$f":"PRODUCTOS[[#This Row],[Cantidad]]*PRODUCTOS[[#This Row],[$ Distribuidor]]","v":0}]
["KTM","RC 390 V2","FENDER ELIMINATOR ABATIBLE 3 MILIMETROS PARA DIRECCIONALES ORIGINALES 2D",40000,70000,null,{"$f":"PRODUCTOS[[#This Row],[Cantidad]]*PRODUCTOS[[#This Row],[$ Distribuidor]]","v":0}]
["KTM","RC 390 V2","FENDER ELIMINATOR ABATIBLE 3 MILIMETROS PARA DIRECCIONALES ORIGINALES 3D",45000,75000,null,{"$f":"PRODUCTOS[[#This Row],[Cantidad]]*PRODUCTOS[[#This Row],[$ Distribuidor]]","v":0}]
["KTM","DUKE ADVENTURE 250","SLIDER DE ALTO IMPACTO MOTOR 2 PUNTOS PREMIUM",115000,160000,null,{"$f":"PRODUCTOS[[#This Row],[Cantidad]]*PRODUCTOS[[#This Row],[$ Distribuidor]]","v":0}]
["KTM","DUKE ADVENTURE 250","SLIDER EXOSTO O MOFLE",30000,50000,null,{"$f":"PRODUCTOS[[#This Row],[Cantidad]]*PRODUCTOS[[#This Row],[$ Distribuidor]]","v":0}]
["KTM","DUKE ADVENTURE 250","SLIDER EJES X 4 CON TAPA",50000,80000,null,{"$f":"PRODUCTOS[[#This Row],[Cantidad]]*PRODUCTOS[[#This Row],[$ Distribuidor]]","v":0}]
["KTM","DUKE ADVENTURE 250","PROTECTOR DE RADIADOR 2D",55000,75000,null,{"$f":"PRODUCTOS[[#This Row],[Cantidad]]*PRODUCTOS[[#This Row],[$ Distribuidor]]","v":0}]
["KTM","DUKE ADVENTURE 250","PROTECTOR DE RADIADOR 3D",57000,78000,null,{"$f":"PRODUCTOS[[#This Row],[Cantidad]]*PRODUCTOS[[#This Row],[$ Distribuidor]]","v":0}]
["KTM","DUKE ADVENTURE 250","PROTECTOR CALIPER MORDAZA 2D",12000,20000,null,{"$f":"PRODUCTOS[[#This Row],[Cantidad]]*PRODUCTOS[[#This Row],[$ Distribuidor]]","v":0}]
["KTM","DUKE ADVENTURE 250","PROTECTOR CALIPER MORDAZA 3D",15000,25000,null,{"$f":"PRODUCTOS[[#This Row],[Cantidad]]*PRODUCTOS[[#This Row],[$ Distribuidor]]","v":0}]
["KTM","DUKE ADVENTURE 250","PROTECTOR DEPOSITO LIQUIDO FRENO DELANTERO 2D",8000,20000,null,{"$f":"PRODUCTOS[[#This Row],[Cantidad]]*PRODUCTOS[[#This Row],[$ Distribuidor]]","v":0}]
["KTM","DUKE ADVENTURE 250","PROTECTOR DEPOSITO LIQUIDO FRENO DELANTERO 3D",10000,25000,null,{"$f":"PRODUCTOS[[#This Row],[Cantidad]]*PRODUCTOS[[#This Row],[$ Distribuidor]]","v":0}]
["KTM","DUKE ADVENTURE 250","PROTECTOR DEPOSITO LIQUIDO FRENO TRASERO 2D",13000,25000,null,{"$f":"PRODUCTOS[[#This Row],[Cantidad]]*PRODUCTOS[[#This Row],[$ Distribuidor]]","v":0}]
["KTM","DUKE ADVENTURE 250","PROTECTOR DEPOSITO LIQUIDO FRENO TRASERO 3D",15000,28000,null,{"$f":"PRODUCTOS[[#This Row],[Cantidad]]*PRODUCTOS[[#This Row],[$ Distribuidor]]","v":0}]
["KTM","DUKE ADVENTURE 250","PROTECTOR ARO GASOLINA",11000,20000,null,{"$f":"PRODUCTOS[[#This Row],[Cantidad]]*PRODUCTOS[[#This Row],[$ Distribuidor]]","v":0}]
["KTM","DUKE ADVENTURE 250","PROTECTOR PLACA 2D",11000,20000,null,{"$f":"PRODUCTOS[[#This Row],[Cantidad]]*PRODUCTOS[[#This Row],[$ Distribuidor]]","v":0}]
["KTM","DUKE ADVENTURE 250","PROTECTOR PLACA 3D",14000,25000,null,{"$f":"PRODUCTOS[[#This Row],[Cantidad]]*PRODUCTOS[[#This Row],[$ Distribuidor]]","v":0}]
["KTM","DUKE ADVENTURE 250","SPOOLS PARA CABALLETE",20000,40000,null,{"$f":"PRODUCTOS[[#This Row],[Cantidad]]*PRODUCTOS[[#This Row],[$ Distribuidor]]","v":0}]
["KTM","DUKE ADVENTURE 250","CABALLETE O GATO DE SERVICIO ",125000,160000,null,{"$f":"PRODUCTOS[[#This Row],[Cantidad]]*PRODUCTOS[[#This Row],[$ Distribuidor]]","v":0}]
["KTM","DUKE ADVENTURE 250","LUJO FILTRO ACEITE 2D",5000,10000,null,{"$f":"PRODUCTOS[[#This Row],[Cantidad]]*PRODUCTOS[[#This Row],[$ Distribuidor]]","v":0}]
["KTM","DUKE ADVENTURE 250","LUJO FILTRO ACEITE 3D",6000,12000,null,{"$f":"PRODUCTOS[[#This Row],[Cantidad]]*PRODUCTOS[[#This Row],[$ Distribuidor]]","v":0}]
["KTM","DUKE ADVENTURE 250","PROTECTOR TACOMETRO ACRILICO",11000,17000,null,{"$f":"PRODUCTOS[[#This Row],[Cantidad]]*PRODUCTOS[[#This Row],[$ Distribuidor]]","v":0}]
["KTM","DUKE ADVENTURE 390","SLIDER DE ALTO IMPACTO MOTOR 2 PUNTOS PREMIUM",115000,160000,null,{"$f":"PRODUCTOS[[#This Row],[Cantidad]]*PRODUCTOS[[#This Row],[$ Distribuidor]]","v":0}]
["KTM","DUKE ADVENTURE 390","SLIDER EXOSTO O MOFLE",30000,50000,null,{"$f":"PRODUCTOS[[#This Row],[Cantidad]]*PRODUCTOS[[#This Row],[$ Distribuidor]]","v":0}]
["KTM","DUKE ADVENTURE 390","SLIDER EJES X 4 CON TAPA",50000,80000,null,{"$f":"PRODUCTOS[[#This Row],[Cantidad]]*PRODUCTOS[[#This Row],[$ Distribuidor]]","v":0}]
["KTM","DUKE ADVENTURE 390","PROTECTOR DE RADIADOR 2D",55000,75000,null,{"$f":"PRODUCTOS[[#This Row],[Cantidad]]*PRODUCTOS[[#This Row],[$ Distribuidor]]","v":0}]
["KTM","DUKE ADVENTURE 390","PROTECTOR DE RADIADOR 3D",57000,78000,null,{"$f":"PRODUCTOS[[#This Row],[Cantidad]]*PRODUCTOS[[#This Row],[$ Distribuidor]]","v":0}]
["KTM","DUKE ADVENTURE 390","PROTECTOR CALIPER MORDAZA 2D",12000,20000,null,{"$f":"PRODUCTOS[[#This Row],[Cantidad]]*PRODUCTOS[[#This Row],[$ Distribuidor]]","v":0}]
["KTM","DUKE ADVENTURE 390","PROTECTOR CALIPER MORDAZA 3D",15000,25000,null,{"$f":"PRODUCTOS[[#This Row],[Cantidad]]*PRODUCTOS[[#This Row],[$ Distribuidor]]","v":0}]
["KTM","DUKE ADVENTURE 390","PROTECTOR DEPOSITO LIQUIDO FRENO DELANTERO 2D",8000,20000,null,{"$f":"PRODUCTOS[[#This Row],[Cantidad]]*PRODUCTOS[[#This Row],[$ Distribuidor]]","v":0}]
["KTM","DUKE ADVENTURE 390","PROTECTOR DEPOSITO LIQUIDO FRENO DELANTERO 3D",10000,25000,null,{"$f":"PRODUCTOS[[#This Row],[Cantidad]]*PRODUCTOS[[#This Row],[$ Distribuidor]]","v":0}]
["KTM","DUKE ADVENTURE 390","PROTECTOR DEPOSITO LIQUIDO FRENO TRASERO 2D",13000,25000,null,{"$f":"PRODUCTOS[[#This Row],[Cantidad]]*PRODUCTOS[[#This Row],[$ Distribuidor]]","v":0}]
["KTM","DUKE ADVENTURE 390","PROTECTOR DEPOSITO LIQUIDO FRENO TRASERO 3D",15000,28000,null,{"$f":"PRODUCTOS[[#This Row],[Cantidad]]*PRODUCTOS[[#This Row],[$ Distribuidor]]","v":0}]
["KTM","DUKE ADVENTURE 390","PROTECTOR ARO GASOLINA",11000,20000,null,{"$f":"PRODUCTOS[[#This Row],[Cantidad]]*PRODUCTOS[[#This Row],[$ Distribuidor]]","v":0}]
["KTM","DUKE ADVENTURE 390","PROTECTOR PLACA 2D",11000,20000,null,{"$f":"PRODUCTOS[[#This Row],[Cantidad]]*PRODUCTOS[[#This Row],[$ Distribuidor]]","v":0}]
["KTM","DUKE ADVENTURE 390","PROTECTOR PLACA 3D",14000,25000,null,{"$f":"PRODUCTOS[[#This Row],[Cantidad]]*PRODUCTOS[[#This Row],[$ Distribuidor]]","v":0}]
["KTM","DUKE ADVENTURE 390","SPOOLS PARA CABALLETE",20000,40000,null,{"$f":"PRODUCTOS[[#This Row],[Cantidad]]*PRODUCTOS[[#This Row],[$ Distribuidor]]","v":0}]
["KTM","DUKE ADVENTURE 390","CABALLETE O GATO DE SERVICIO ",125000,160000,null,{"$f":"PRODUCTOS[[#This Row],[Cantidad]]*PRODUCTOS[[#This Row],[$ Distribuidor]]","v":0}]
["KTM","DUKE ADVENTURE 390","LUJO FILTRO ACEITE 2D",5000,10000,null,{"$f":"PRODUCTOS[[#This Row],[Cantidad]]*PRODUCTOS[[#This Row],[$ Distribuidor]]","v":0}]
["KTM","DUKE ADVENTURE 390","LUJO FILTRO ACEITE 3D",6000,12000,null,{"$f":"PRODUCTOS[[#This Row],[Cantidad]]*PRODUCTOS[[#This Row],[$ Distribuidor]]","v":0}]
["KTM","DUKE ADVENTURE 390","PROTECTOR TACOMETRO ACRILICO",11000,17000,null,{"$f":"PRODUCTOS[[#This Row],[Cantidad]]*PRODUCTOS[[#This Row],[$ Distribuidor]]","v":0}]
["KTM","DUKE 690","PROTECTOR DE RADIADOR 2D",null,null,null,{"$f":"PRODUCTOS[[#This Row],[Cantidad]]*PRODUCTOS[[#This Row],[$ Distribuidor]]","v":0}]
["KTM","DUKE 690","PROTECTOR DE RADIADOR 3D",null,null,null,{"$f":"PRODUCTOS[[#This Row],[Cantidad]]*PRODUCTOS[[#This Row],[$ Distribuidor]]","v":0}]
["KTM","DUKE 690","PROTECTOR PLACA 2D",11000,20000,null,{"$f":"PRODUCTOS[[#This Row],[Cantidad]]*PRODUCTOS[[#This Row],[$ Distribuidor]]","v":0}]
["KTM","DUKE 690","PROTECTOR PLACA 3D",14000,25000,null,{"$f":"PRODUCTOS[[#This Row],[Cantidad]]*PRODUCTOS[[#This Row],[$ Distribuidor]]","v":0}]
["KTM","DUKE 690","PROTECTOR FAROLA 3D",null,null,null,{"$f":"PRODUCTOS[[#This Row],[Cantidad]]*PRODUCTOS[[#This Row],[$ Distribuidor]]","v":0}]
["KTM","DUKE 690","SPOOLS PARA CABALLETE",20000,40000,null,{"$f":"PRODUCTOS[[#This Row],[Cantidad]]*PRODUCTOS[[#This Row],[$ Distribuidor]]","v":0}]
["KTM","DUKE 690","CABALLETE O GATO DE SERVICIO ",125000,160000,null,{"$f":"PRODUCTOS[[#This Row],[Cantidad]]*PRODUCTOS[[#This Row],[$ Distribuidor]]","v":0}]
["KTM","DUKE 790","SLIDER DE ALTO IMPACTO MOTOR 3 PUNTOS PREMIUM",100000,145000,null,{"$f":"PRODUCTOS[[#This Row],[Cantidad]]*PRODUCTOS[[#This Row],[$ Distribuidor]]","v":0}]
["KTM","DUKE 790","SLIDER EJES X 4 CON TAPA",50000,80000,null,{"$f":"PRODUCTOS[[#This Row],[Cantidad]]*PRODUCTOS[[#This Row],[$ Distribuidor]]","v":0}]
["KTM","DUKE 790","SLIDER EJES CENTRO EN ALUMINIO PREMIUM",70000,100000,null,{"$f":"PRODUCTOS[[#This Row],[Cantidad]]*PRODUCTOS[[#This Row],[$ Distribuidor]]","v":0}]
["KTM","DUKE 790","PROTECTOR DE RADIADOR 2D",null,null,null,{"$f":"PRODUCTOS[[#This Row],[Cantidad]]*PRODUCTOS[[#This Row],[$ Distribuidor]]","v":0}]
["KTM","DUKE 790","PROTECTOR DE RADIADOR 3D",null,null,null,{"$f":"PRODUCTOS[[#This Row],[Cantidad]]*PRODUCTOS[[#This Row],[$ Distribuidor]]","v":0}]
["KTM","DUKE 790","PROTECTOR ARO GASOLINA",11000,20000,null,{"$f":"PRODUCTOS[[#This Row],[Cantidad]]*PRODUCTOS[[#This Row],[$ Distribuidor]]","v":0}]
["KTM","DUKE 790","PROTECTOR PLACA 2D",11000,20000,null,{"$f":"PRODUCTOS[[#This Row],[Cantidad]]*PRODUCTOS[[#This Row],[$ Distribuidor]]","v":0}]
["KTM","DUKE 790","PROTECTOR PLACA 3D",14000,25000,null,{"$f":"PRODUCTOS[[#This Row],[Cantidad]]*PRODUCTOS[[#This Row],[$ Distribuidor]]","v":0}]
["KTM","DUKE 790","SPOOLS PARA CABALLETE",20000,40000,null,{"$f":"PRODUCTOS[[#This Row],[Cantidad]]*PRODUCTOS[[#This Row],[$ Distribuidor]]","v":0}]
["KTM","DUKE 790","CABALLETE O GATO DE SERVICIO ",null,null,null,{"$f":"PRODUCTOS[[#This Row],[Cantidad]]*PRODUCTOS[[#This Row],[$ Distribuidor]]","v":0}]
["KTM","DUKE 890","SLIDER DE ALTO IMPACTO MOTOR 3 PUNTOS PREMIUM",100000,145000,null,{"$f":"PRODUCTOS[[#This Row],[Cantidad]]*PRODUCTOS[[#This Row],[$ Distribuidor]]","v":0}]
["KTM","DUKE 890","SLIDER EJES X 4 CON TAPA",50000,80000,null,{"$f":"PRODUCTOS[[#This Row],[Cantidad]]*PRODUCTOS[[#This Row],[$ Distribuidor]]","v":0}]
["KTM","DUKE 890","SLIDER EJES CENTRO EN ALUMINIO PREMIUM",70000,100000,null,{"$f":"PRODUCTOS[[#This Row],[Cantidad]]*PRODUCTOS[[#This Row],[$ Distribuidor]]","v":0}]
["KTM","DUKE 890","PROTECTOR DE RADIADOR 2D",null,null,null,{"$f":"PRODUCTOS[[#This Row],[Cantidad]]*PRODUCTOS[[#This Row],[$ Distribuidor]]","v":0}]
["KTM","DUKE 890","PROTECTOR DE RADIADOR 3D",null,null,null,{"$f":"PRODUCTOS[[#This Row],[Cantidad]]*PRODUCTOS[[#This Row],[$ Distribuidor]]","v":0}]
["KTM","DUKE 890","PROTECTOR CALIPER MORDAZA 2D",12000,20000,null,{"$f":"PRODUCTOS[[#This Row],[Cantidad]]*PRODUCTOS[[#This Row],[$ Distribuidor]]","v":0}]
["KTM","DUKE 890","PROTECTOR CALIPER MORDAZA 3D",15000,25000,null,{"$f":"PRODUCTOS[[#This Row],[Cantidad]]*PRODUCTOS[[#This Row],[$ Distribuidor]]","v":0}]
["KTM","DUKE 890","PROTECTOR PLACA 2D",11000,20000,null,{"$f":"PRODUCTOS[[#This Row],[Cantidad]]*PRODUCTOS[[#This Row],[$ Distribuidor]]","v":0}]
["KTM","DUKE 890","PROTECTOR PLACA 3D",14000,25000,null,{"$f":"PRODUCTOS[[#This Row],[Cantidad]]*PRODUCTOS[[#This Row],[$ Distribuidor]]","v":0}]
["KTM","DUKE 890","PROTECTOR ARO GASOLINA",11000,20000,null,{"$f":"PRODUCTOS[[#This Row],[Cantidad]]*PRODUCTOS[[#This Row],[$ Distribuidor]]","v":0}]
["KTM","DUKE 890","SPOOLS PARA CABALLETE",20000,40000,null,{"$f":"PRODUCTOS[[#This Row],[Cantidad]]*PRODUCTOS[[#This Row],[$ Distribuidor]]","v":0}]
["KTM","DUKE 890","CABALLETE O GATO DE SERVICIO ",125000,160000,null,{"$f":"PRODUCTOS[[#This Row],[Cantidad]]*PRODUCTOS[[#This Row],[$ Distribuidor]]","v":0}]
["YAMAHA","FZ 2.0","SLIDER DE ALTO IMPACTO MOTOR 3 PUNTOS PREMIUM",100000,145000,null,{"$f":"PRODUCTOS[[#This Row],[Cantidad]]*PRODUCTOS[[#This Row],[$ Distribuidor]]","v":0}]
["YAMAHA","FZ 2.0","SLIDER EJES X 4 SIN TAPA",null,null,null,{"$f":"PRODUCTOS[[#This Row],[Cantidad]]*PRODUCTOS[[#This Row],[$ Distribuidor]]","v":0}]
["YAMAHA","FZ 2.0","SLIDER EJES X 4 CON TAPA",null,null,null,{"$f":"PRODUCTOS[[#This Row],[Cantidad]]*PRODUCTOS[[#This Row],[$ Distribuidor]]","v":0}]
["YAMAHA","FZ 2.0","PROTECTOR DE RADIADOR 2D",null,null,null,{"$f":"PRODUCTOS[[#This Row],[Cantidad]]*PRODUCTOS[[#This Row],[$ Distribuidor]]","v":0}]
["YAMAHA","FZ 2.0","PROTECTOR DE RADIADOR 3D",null,null,null,{"$f":"PRODUCTOS[[#This Row],[Cantidad]]*PRODUCTOS[[#This Row],[$ Distribuidor]]","v":0}]
["YAMAHA","FZ 2.0","PROTECTOR CALIPER MORDAZA 2D",12000,20000,null,{"$f":"PRODUCTOS[[#This Row],[Cantidad]]*PRODUCTOS[[#This Row],[$ Distribuidor]]","v":0}]
["YAMAHA","FZ 2.0","PROTECTOR CALIPER MORDAZA 3D",15000,25000,null,{"$f":"PRODUCTOS[[#This Row],[Cantidad]]*PRODUCTOS[[#This Row],[$ Distribuidor]]","v":0}]
["YAMAHA","FZ 2.0","PROTECTOR DEPOSITO LIQUIDO FRENO DELANTERO 2D",8000,20000,null,{"$f":"PRODUCTOS[[#This Row],[Cantidad]]*PRODUCTOS[[#This Row],[$ Distribuidor]]","v":0}]
["YAMAHA","FZ 2.0","PROTECTOR DEPOSITO LIQUIDO FRENO DELANTERO 3D",10000,25000,null,{"$f":"PRODUCTOS[[#This Row],[Cantidad]]*PRODUCTOS[[#This Row],[$ Distribuidor]]","v":0}]
["YAMAHA","FZ 2.0","PROTECTOR DEPOSITO LIQUIDO FRENO TRASERO 2D",13000,25000,null,{"$f":"PRODUCTOS[[#This Row],[Cantidad]]*PRODUCTOS[[#This Row],[$ Distribuidor]]","v":0}]
["YAMAHA","FZ 2.0","PROTECTOR DEPOSITO LIQUIDO FRENO TRASERO 3D",15000,28000,null,{"$f":"PRODUCTOS[[#This Row],[Cantidad]]*PRODUCTOS[[#This Row],[$ Distribuidor]]","v":0}]
["YAMAHA","FZ 2.0","PROTECTOR ARO GASOLINA",11000,20000,null,{"$f":"PRODUCTOS[[#This Row],[Cantidad]]*PRODUCTOS[[#This Row],[$ Distribuidor]]","v":0}]
["YAMAHA","FZ 2.0","PROTECTOR PLACA 2D",11000,20000,null,{"$f":"PRODUCTOS[[#This Row],[Cantidad]]*PRODUCTOS[[#This Row],[$ Distribuidor]]","v":0}]
["YAMAHA","FZ 2.0","PROTECTOR PLACA 3D",14000,25000,null,{"$f":"PRODUCTOS[[#This Row],[Cantidad]]*PRODUCTOS[[#This Row],[$ Distribuidor]]","v":0}]
["YAMAHA","FZ 2.0","PROTECTOR FAROLA 3D",null,null,null,{"$f":"PRODUCTOS[[#This Row],[Cantidad]]*PRODUCTOS[[#This Row],[$ Distribuidor]]","v":0}]
["YAMAHA","FZ 2.0","CUPULA DE LUJO ACERO INOXIDABLE",null,null,null,{"$f":"PRODUCTOS[[#This Row],[Cantidad]]*PRODUCTOS[[#This Row],[$ Distribuidor]]","v":0}]
["YAMAHA","FZ 2.0","SPOOLS PARA CABALLETE",20000,40000,null,{"$f":"PRODUCTOS[[#This Row],[Cantidad]]*PRODUCTOS[[#This Row],[$ Distribuidor]]","v":0}]
["YAMAHA","FZ 2.0","CABALLETE O GATO DE SERVICIO ",125000,160000,null,{"$f":"PRODUCTOS[[#This Row],[Cantidad]]*PRODUCTOS[[#This Row],[$ Distribuidor]]","v":0}]
["YAMAHA","FZ 2.0","LUJO ACUTRAX MANUBRIO CENTRAL 2D",15000,23000,null,{"$f":"PRODUCTOS[[#This Row],[Cantidad]]*PRODUCTOS[[#This Row],[$ Distribuidor]]","v":0}]
["YAMAHA","FZ 2.0","LUJO ACUTRAX MANUBRIO CENTRAL 3D",18000,25000,null,{"$f":"PRODUCTOS[[#This Row],[Cantidad]]*PRODUCTOS[[#This Row],[$ Distribuidor]]","v":0}]
["YAMAHA","FZ 2.0","PROTECTOR TACOMETRO ACRILICO",11000,17000,null,{"$f":"PRODUCTOS[[#This Row],[Cantidad]]*PRODUCTOS[[#This Row],[$ Distribuidor]]","v":0}]
["YAMAHA","FZ 3.0","SLIDER DE ALTO IMPACTO MOTOR 3 PUNTOS PREMIUM",100000,145000,null,{"$f":"PRODUCTOS[[#This Row],[Cantidad]]*PRODUCTOS[[#This Row],[$ Distribuidor]]","v":0}]
["YAMAHA","FZ 3.0","SLIDER EJES X 4 SIN TAPA",null,null,null,{"$f":"PRODUCTOS[[#This Row],[Cantidad]]*PRODUCTOS[[#This Row],[$ Distribuidor]]","v":0}]
["YAMAHA","FZ 3.0","SLIDER EJES X 4 CON TAPA",null,null,null,{"$f":"PRODUCTOS[[#This Row],[Cantidad]]*PRODUCTOS[[#This Row],[$ Distribuidor]]","v":0}]
["YAMAHA","FZ 3.0","PROTECTOR DE RADIADOR 2D",null,null,null,{"$f":"PRODUCTOS[[#This Row],[Cantidad]]*PRODUCTOS[[#This Row],[$ Distribuidor]]","v":0}]
["YAMAHA","FZ 3.0","PROTECTOR DE RADIADOR 3D",null,null,null,{"$f":"PRODUCTOS[[#This Row],[Cantidad]]*PRODUCTOS[[#This Row],[$ Distribuidor]]","v":0}]
["YAMAHA","FZ 3.0","PROTECTOR CALIPER MORDAZA 2D",12000,20000,null,{"$f":"PRODUCTOS[[#This Row],[Cantidad]]*PRODUCTOS[[#This Row],[$ Distribuidor]]","v":0}]
["YAMAHA","FZ 3.0","PROTECTOR CALIPER MORDAZA 3D",15000,25000,null,{"$f":"PRODUCTOS[[#This Row],[Cantidad]]*PRODUCTOS[[#This Row],[$ Distribuidor]]","v":0}]
["YAMAHA","FZ 3.0","PROTECTOR DEPOSITO LIQUIDO FRENO DELANTERO 2D",8000,20000,null,{"$f":"PRODUCTOS[[#This Row],[Cantidad]]*PRODUCTOS[[#This Row],[$ Distribuidor]]","v":0}]
["YAMAHA","FZ 3.0","PROTECTOR DEPOSITO LIQUIDO FRENO DELANTERO 3D",10000,25000,null,{"$f":"PRODUCTOS[[#This Row],[Cantidad]]*PRODUCTOS[[#This Row],[$ Distribuidor]]","v":0}]
["YAMAHA","FZ 3.0","PROTECTOR DEPOSITO LIQUIDO FRENO TRASERO 2D",13000,25000,null,{"$f":"PRODUCTOS[[#This Row],[Cantidad]]*PRODUCTOS[[#This Row],[$ Distribuidor]]","v":0}]
["YAMAHA","FZ 3.0","PROTECTOR DEPOSITO LIQUIDO FRENO TRASERO 3D",15000,28000,null,{"$f":"PRODUCTOS[[#This Row],[Cantidad]]*PRODUCTOS[[#This Row],[$ Distribuidor]]","v":0}]
["YAMAHA","FZ 3.0","PROTECTOR ARO GASOLINA",11000,20000,null,{"$f":"PRODUCTOS[[#This Row],[Cantidad]]*PRODUCTOS[[#This Row],[$ Distribuidor]]","v":0}]
["YAMAHA","FZ 3.0","PROTECTOR PLACA 2D",11000,20000,null,{"$f":"PRODUCTOS[[#This Row],[Cantidad]]*PRODUCTOS[[#This Row],[$ Distribuidor]]","v":0}]
["YAMAHA","FZ 3.0","PROTECTOR PLACA 3D",14000,25000,null,{"$f":"PRODUCTOS[[#This Row],[Cantidad]]*PRODUCTOS[[#This Row],[$ Distribuidor]]","v":0}]
["YAMAHA","FZ 3.0","PROTECTOR FAROLA 3D",null,null,null,{"$f":"PRODUCTOS[[#This Row],[Cantidad]]*PRODUCTOS[[#This Row],[$ Distribuidor]]","v":0}]
["YAMAHA","FZ 3.0","CUPULA DE LUJO ACERO INOXIDABLE",null,null,null,{"$f":"PRODUCTOS[[#This Row],[Cantidad]]*PRODUCTOS[[#This Row],[$ Distribuidor]]","v":0}]
["YAMAHA","FZ 3.0","SPOOLS PARA CABALLETE",20000,40000,null,{"$f":"PRODUCTOS[[#This Row],[Cantidad]]*PRODUCTOS[[#This Row],[$ Distribuidor]]","v":0}]
["YAMAHA","FZ 3.0","CABALLETE O GATO DE SERVICIO ",125000,160000,null,{"$f":"PRODUCTOS[[#This Row],[Cantidad]]*PRODUCTOS[[#This Row],[$ Distribuidor]]","v":0}]
["YAMAHA","FZ 3.0","LUJO ACUTRAX MANUBRIO CENTRAL 2D",15000,23000,null,{"$f":"PRODUCTOS[[#This Row],[Cantidad]]*PRODUCTOS[[#This Row],[$ Distribuidor]]","v":0}]
["YAMAHA","FZ 3.0","LUJO ACUTRAX MANUBRIO CENTRAL 3D",18000,25000,null,{"$f":"PRODUCTOS[[#This Row],[Cantidad]]*PRODUCTOS[[#This Row],[$ Distribuidor]]","v":0}]
["YAMAHA","FZ 3.0","PROTECTOR TACOMETRO ACRILICO",11000,17000,null,{"$f":"PRODUCTOS[[#This Row],[Cantidad]]*PRODUCTOS[[#This Row],[$ Distribuidor]]","v":0}]
["YAMAHA","FZ 25","SLIDER DE ALTO IMPACTO MOTOR 2 PUNTOS PREMIUM",90000,115000,null,{"$f":"PRODUCTOS[[#This Row],[Cantidad]]*PRODUCTOS[[#This Row],[$ Distribuidor]]","v":0}]
["YAMAHA","FZ 25","SLIDER EJES X 4 SIN TAPA",null,null,null,{"$f":"PRODUCTOS[[#This Row],[Cantidad]]*PRODUCTOS[[#This Row],[$ Distribuidor]]","v":0}]
["YAMAHA","FZ 25","SLIDER EJES X 4 CON TAPA",null,null,null,{"$f":"PRODUCTOS[[#This Row],[Cantidad]]*PRODUCTOS[[#This Row],[$ Distribuidor]]","v":0}]
["YAMAHA","FZ 25","PROTECTOR DE RADIADOR 2D",null,null,null,{"$f":"PRODUCTOS[[#This Row],[Cantidad]]*PRODUCTOS[[#This Row],[$ Distribuidor]]","v":0}]
["YAMAHA","FZ 25","PROTECTOR DE RADIADOR 3D",null,null,null,{"$f":"PRODUCTOS[[#This Row],[Cantidad]]*PRODUCTOS[[#This Row],[$ Distribuidor]]","v":0}]
["YAMAHA","FZ 25","PROTECTOR CALIPER MORDAZA 2D",12000,20000,null,{"$f":"PRODUCTOS[[#This Row],[Cantidad]]*PRODUCTOS[[#This Row],[$ Distribuidor]]","v":0}]
["YAMAHA","FZ 25","PROTECTOR CALIPER MORDAZA 3D",15000,25000,null,{"$f":"PRODUCTOS[[#This Row],[Cantidad]]*PRODUCTOS[[#This Row],[$ Distribuidor]]","v":0}]
["YAMAHA","FZ 25","PROTECTOR DEPOSITO LIQUIDO FRENO DELANTERO 2D",8000,20000,null,{"$f":"PRODUCTOS[[#This Row],[Cantidad]]*PRODUCTOS[[#This Row],[$ Distribuidor]]","v":0}]
["YAMAHA","FZ 25","PROTECTOR DEPOSITO LIQUIDO FRENO DELANTERO 3D",10000,25000,null,{"$f":"PRODUCTOS[[#This Row],[Cantidad]]*PRODUCTOS[[#This Row],[$ Distribuidor]]","v":0}]
["YAMAHA","FZ 25","PROTECTOR DEPOSITO LIQUIDO FRENO TRASERO 2D",13000,25000,null,{"$f":"PRODUCTOS[[#This Row],[Cantidad]]*PRODUCTOS[[#This Row],[$ Distribuidor]]","v":0}]
["YAMAHA","FZ 25","PROTECTOR DEPOSITO LIQUIDO FRENO TRASERO 3D",15000,28000,null,{"$f":"PRODUCTOS[[#This Row],[Cantidad]]*PRODUCTOS[[#This Row],[$ Distribuidor]]","v":0}]
["YAMAHA","FZ 25","PROTECTOR PLACA 2D",11000,20000,null,{"$f":"PRODUCTOS[[#This Row],[Cantidad]]*PRODUCTOS[[#This Row],[$ Distribuidor]]","v":0}]
["YAMAHA","FZ 25","PROTECTOR PLACA 3D",14000,25000,null,{"$f":"PRODUCTOS[[#This Row],[Cantidad]]*PRODUCTOS[[#This Row],[$ Distribuidor]]","v":0}]
["YAMAHA","FZ 25","PROTECTOR FAROLA 3D",null,null,null,{"$f":"PRODUCTOS[[#This Row],[Cantidad]]*PRODUCTOS[[#This Row],[$ Distribuidor]]","v":0}]
["YAMAHA","FZ 25","SPOOLS PARA CABALLETE",20000,40000,null,{"$f":"PRODUCTOS[[#This Row],[Cantidad]]*PRODUCTOS[[#This Row],[$ Distribuidor]]","v":0}]
["YAMAHA","FZ 25","CABALLETE O GATO DE SERVICIO ",125000,160000,null,{"$f":"PRODUCTOS[[#This Row],[Cantidad]]*PRODUCTOS[[#This Row],[$ Distribuidor]]","v":0}]
["YAMAHA","FZ 25","LUJO ACUTRAX MANUBRIO CENTRAL 2D",15000,23000,null,{"$f":"PRODUCTOS[[#This Row],[Cantidad]]*PRODUCTOS[[#This Row],[$ Distribuidor]]","v":0}]
["YAMAHA","FZ 25","LUJO ACUTRAX MANUBRIO CENTRAL 3D",18000,25000,null,{"$f":"PRODUCTOS[[#This Row],[Cantidad]]*PRODUCTOS[[#This Row],[$ Distribuidor]]","v":0}]
["YAMAHA","FZ 25","LUJO EXOSTO",30000,50000,null,{"$f":"PRODUCTOS[[#This Row],[Cantidad]]*PRODUCTOS[[#This Row],[$ Distribuidor]]","v":0}]
["YAMAHA","FZ 25","FENDER ELIMINATOR ABATIBLE 3 MILIMETROS PARA DIRECCIONALES ORIGINALES 2D",null,null,null,{"$f":"PRODUCTOS[[#This Row],[Cantidad]]*PRODUCTOS[[#This Row],[$ Distribuidor]]","v":0}]
["YAMAHA","FZ 25","FENDER ELIMINATOR ABATIBLE 3 MILIMETROS PARA DIRECCIONALES ORIGINALES 3D",null,null,null,{"$f":"PRODUCTOS[[#This Row],[Cantidad]]*PRODUCTOS[[#This Row],[$ Distribuidor]]","v":0}]
["YAMAHA","FZ 25","PROTECTOR TACOMETRO ACRILICO",11000,17000,null,{"$f":"PRODUCTOS[[#This Row],[Cantidad]]*PRODUCTOS[[#This Row],[$ Distribuidor]]","v":0}]
["YAMAHA","FZ 6","SLIDER DE ALTO IMPACTO MOTOR 1 PUNTOS PREMIUM",null,null,null,{"$f":"PRODUCTOS[[#This Row],[Cantidad]]*PRODUCTOS[[#This Row],[$ Distribuidor]]","v":0}]
["YAMAHA","FZ 6","PROTECTOR DE RADIADOR 2D",null,null,null,{"$f":"PRODUCTOS[[#This Row],[Cantidad]]*PRODUCTOS[[#This Row],[$ Distribuidor]]","v":0}]
["YAMAHA","FZ 6","PROTECTOR DE RADIADOR 3D",null,null,null,{"$f":"PRODUCTOS[[#This Row],[Cantidad]]*PRODUCTOS[[#This Row],[$ Distribuidor]]","v":0}]
["YAMAHA","FZ 6","PROTECTOR CALIPER MORDAZA 3D",15000,25000,null,{"$f":"PRODUCTOS[[#This Row],[Cantidad]]*PRODUCTOS[[#This Row],[$ Distribuidor]]","v":0}]
["YAMAHA","FZ 6","PROTECTOR PLACA 2D",11000,20000,null,{"$f":"PRODUCTOS[[#This Row],[Cantidad]]*PRODUCTOS[[#This Row],[$ Distribuidor]]","v":0}]
["YAMAHA","FZ 6","PROTECTOR PLACA 3D",14000,25000,null,{"$f":"PRODUCTOS[[#This Row],[Cantidad]]*PRODUCTOS[[#This Row],[$ Distribuidor]]","v":0}]
["YAMAHA","FZ 6","PROTECTOR FAROLA 3D",null,null,null,{"$f":"PRODUCTOS[[#This Row],[Cantidad]]*PRODUCTOS[[#This Row],[$ Distribuidor]]","v":0}]
["YAMAHA","FZ 6","SPOOLS PARA CABALLETE",20000,40000,null,{"$f":"PRODUCTOS[[#This Row],[Cantidad]]*PRODUCTOS[[#This Row],[$ Distribuidor]]","v":0}]
["YAMAHA","FZ 6","CABALLETE O GATO DE SERVICIO ",125000,160000,null,{"$f":"PRODUCTOS[[#This Row],[Cantidad]]*PRODUCTOS[[#This Row],[$ Distribuidor]]","v":0}]
["YAMAHA","FZ 8","SLIDER DE ALTO IMPACTO MOTOR 1 PUNTOS PREMIUM",null,null,null,{"$f":"PRODUCTOS[[#This Row],[Cantidad]]*PRODUCTOS[[#This Row],[$ Distribuidor]]","v":0}]
["YAMAHA","FZ 8","PROTECTOR DE RADIADOR 2D",null,null,null,{"$f":"PRODUCTOS[[#This Row],[Cantidad]]*PRODUCTOS[[#This Row],[$ Distribuidor]]","v":0}]
["YAMAHA","FZ 8","PROTECTOR DE RADIADOR 3D",null,null,null,{"$f":"PRODUCTOS[[#This Row],[Cantidad]]*PRODUCTOS[[#This Row],[$ Distribuidor]]","v":0}]
["YAMAHA","FZ 8","PROTECTOR CALIPER MORDAZA 3D",15000,25000,null,{"$f":"PRODUCTOS[[#This Row],[Cantidad]]*PRODUCTOS[[#This Row],[$ Distribuidor]]","v":0}]
["YAMAHA","FZ 8","PROTECTOR PLACA 2D",11000,20000,null,{"$f":"PRODUCTOS[[#This Row],[Cantidad]]*PRODUCTOS[[#This Row],[$ Distribuidor]]","v":0}]
["YAMAHA","FZ 8","PROTECTOR PLACA 3D",14000,25000,null,{"$f":"PRODUCTOS[[#This Row],[Cantidad]]*PRODUCTOS[[#This Row],[$ Distribuidor]]","v":0}]
["YAMAHA","FZ 8","SPOOLS PARA CABALLETE",20000,40000,null,{"$f":"PRODUCTOS[[#This Row],[Cantidad]]*PRODUCTOS[[#This Row],[$ Distribuidor]]","v":0}]
["YAMAHA","FZ 8","CABALLETE O GATO DE SERVICIO ",125000,160000,null,{"$f":"PRODUCTOS[[#This Row],[Cantidad]]*PRODUCTOS[[#This Row],[$ Distribuidor]]","v":0}]
["YAMAHA","FZ 1","SLIDER DE ALTO IMPACTO MOTOR 1 PUNTOS PREMIUM",null,null,null,{"$f":"PRODUCTOS[[#This Row],[Cantidad]]*PRODUCTOS[[#This Row],[$ Distribuidor]]","v":0}]
["YAMAHA","FZ 1","PROTECTOR DE RADIADOR 2D",null,null,null,{"$f":"PRODUCTOS[[#This Row],[Cantidad]]*PRODUCTOS[[#This Row],[$ Distribuidor]]","v":0}]
["YAMAHA","FZ 1","PROTECTOR DE RADIADOR 3D",null,null,null,{"$f":"PRODUCTOS[[#This Row],[Cantidad]]*PRODUCTOS[[#This Row],[$ Distribuidor]]","v":0}]
["YAMAHA","FZ 1","PROTECTOR CALIPER MORDAZA 3D",15000,25000,null,{"$f":"PRODUCTOS[[#This Row],[Cantidad]]*PRODUCTOS[[#This Row],[$ Distribuidor]]","v":0}]
["YAMAHA","FZ 1","PROTECTOR PLACA 2D",11000,20000,null,{"$f":"PRODUCTOS[[#This Row],[Cantidad]]*PRODUCTOS[[#This Row],[$ Distribuidor]]","v":0}]
["YAMAHA","FZ 1","PROTECTOR PLACA 3D",14000,25000,null,{"$f":"PRODUCTOS[[#This Row],[Cantidad]]*PRODUCTOS[[#This Row],[$ Distribuidor]]","v":0}]
["YAMAHA","FZ 1","PROTECTOR FAROLA 3D",null,null,null,{"$f":"PRODUCTOS[[#This Row],[Cantidad]]*PRODUCTOS[[#This Row],[$ Distribuidor]]","v":0}]
["YAMAHA","FZ 1","SPOOLS PARA CABALLETE",20000,40000,null,{"$f":"PRODUCTOS[[#This Row],[Cantidad]]*PRODUCTOS[[#This Row],[$ Distribuidor]]","v":0}]
["YAMAHA","FZ 1","CABALLETE O GATO DE SERVICIO ",125000,160000,null,{"$f":"PRODUCTOS[[#This Row],[Cantidad]]*PRODUCTOS[[#This Row],[$ Distribuidor]]","v":0}]
["YAMAHA","MT 15","SLIDER DE ALTO IMPACTO MOTOR 2 PUNTOS PREMIUM",90000,115000,null,{"$f":"PRODUCTOS[[#This Row],[Cantidad]]*PRODUCTOS[[#This Row],[$ Distribuidor]]","v":0}]
["YAMAHA","MT 15","SLIDER EJES X 4 CON TAPA",null,null,null,{"$f":"PRODUCTOS[[#This Row],[Cantidad]]*PRODUCTOS[[#This Row],[$ Distribuidor]]","v":0}]
["YAMAHA","MT 15","PROTECTOR DE RADIADOR 2D",null,null,null,{"$f":"PRODUCTOS[[#This Row],[Cantidad]]*PRODUCTOS[[#This Row],[$ Distribuidor]]","v":0}]
["YAMAHA","MT 15","PROTECTOR DE RADIADOR 3D",null,null,null,{"$f":"PRODUCTOS[[#This Row],[Cantidad]]*PRODUCTOS[[#This Row],[$ Distribuidor]]","v":0}]
["YAMAHA","MT 15","PROTECTOR CALIPER MORDAZA 2D",12000,20000,null,{"$f":"PRODUCTOS[[#This Row],[Cantidad]]*PRODUCTOS[[#This Row],[$ Distribuidor]]","v":0}]
["YAMAHA","MT 15","PROTECTOR CALIPER MORDAZA 3D",15000,25000,null,{"$f":"PRODUCTOS[[#This Row],[Cantidad]]*PRODUCTOS[[#This Row],[$ Distribuidor]]","v":0}]
["YAMAHA","MT 15","PROTECTOR DEPOSITO LIQUIDO FRENO DELANTERO 2D",8000,20000,null,{"$f":"PRODUCTOS[[#This Row],[Cantidad]]*PRODUCTOS[[#This Row],[$ Distribuidor]]","v":0}]
["YAMAHA","MT 15","PROTECTOR DEPOSITO LIQUIDO FRENO DELANTERO 3D",10000,25000,null,{"$f":"PRODUCTOS[[#This Row],[Cantidad]]*PRODUCTOS[[#This Row],[$ Distribuidor]]","v":0}]
["YAMAHA","MT 15","PROTECTOR DEPOSITO LIQUIDO FRENO TRASERO 2D",13000,25000,null,{"$f":"PRODUCTOS[[#This Row],[Cantidad]]*PRODUCTOS[[#This Row],[$ Distribuidor]]","v":0}]
["YAMAHA","MT 15","PROTECTOR DEPOSITO LIQUIDO FRENO TRASERO 3D",15000,28000,null,{"$f":"PRODUCTOS[[#This Row],[Cantidad]]*PRODUCTOS[[#This Row],[$ Distribuidor]]","v":0}]
["YAMAHA","MT 15","PROTECTOR ARO GASOLINA",11000,20000,null,{"$f":"PRODUCTOS[[#This Row],[Cantidad]]*PRODUCTOS[[#This Row],[$ Distribuidor]]","v":0}]
["YAMAHA","MT 15","PROTECTOR PLACA 2D",11000,20000,null,{"$f":"PRODUCTOS[[#This Row],[Cantidad]]*PRODUCTOS[[#This Row],[$ Distribuidor]]","v":0}]
["YAMAHA","MT 15","PROTECTOR PLACA 3D",14000,25000,null,{"$f":"PRODUCTOS[[#This Row],[Cantidad]]*PRODUCTOS[[#This Row],[$ Distribuidor]]","v":0}]
["YAMAHA","MT 15","PROTECTOR LATERAL DE EXOSTO INOX 3D",null,null,null,{"$f":"PRODUCTOS[[#This Row],[Cantidad]]*PRODUCTOS[[#This Row],[$ Distribuidor]]","v":0}]
["YAMAHA","MT 15","CUPULA DE LUJO ACERO INOXIDABLE",null,null,null,{"$f":"PRODUCTOS[[#This Row],[Cantidad]]*PRODUCTOS[[#This Row],[$ Distribuidor]]","v":0}]
["YAMAHA","MT 15","CUBRE PIÑON SALIDA  2D",19000,25000,null,{"$f":"PRODUCTOS[[#This Row],[Cantidad]]*PRODUCTOS[[#This Row],[$ Distribuidor]]","v":0}]
["YAMAHA","MT 15","CUBRE PIÑON SALIDA  3D",22000,30000,null,{"$f":"PRODUCTOS[[#This Row],[Cantidad]]*PRODUCTOS[[#This Row],[$ Distribuidor]]","v":0}]
["YAMAHA","MT 15","SPOOLS PARA CABALLETE",20000,40000,null,{"$f":"PRODUCTOS[[#This Row],[Cantidad]]*PRODUCTOS[[#This Row],[$ Distribuidor]]","v":0}]
["YAMAHA","MT 15","CABALLETE O GATO DE SERVICIO ",125000,160000,null,{"$f":"PRODUCTOS[[#This Row],[Cantidad]]*PRODUCTOS[[#This Row],[$ Distribuidor]]","v":0}]
["YAMAHA","MT 15","LUJO ACUTRAX MANUBRIO CENTRAL 2D",15000,23000,null,{"$f":"PRODUCTOS[[#This Row],[Cantidad]]*PRODUCTOS[[#This Row],[$ Distribuidor]]","v":0}]
["YAMAHA","MT 15","LUJO ACUTRAX MANUBRIO CENTRAL 3D",18000,25000,null,{"$f":"PRODUCTOS[[#This Row],[Cantidad]]*PRODUCTOS[[#This Row],[$ Distribuidor]]","v":0}]
["YAMAHA","MT 15","LUJOS MALLAS LATERALES X 2",null,null,null,{"$f":"PRODUCTOS[[#This Row],[Cantidad]]*PRODUCTOS[[#This Row],[$ Distribuidor]]","v":0}]
["YAMAHA","MT 15","FENDER ELIMINATOR ABATIBLE 3 MILIMETROS PARA DIRECCIONALES ORIGINALES 2D",null,null,null,{"$f":"PRODUCTOS[[#This Row],[Cantidad]]*PRODUCTOS[[#This Row],[$ Distribuidor]]","v":0}]
["YAMAHA","MT 15","FENDER ELIMINATOR ABATIBLE 3 MILIMETROS PARA DIRECCIONALES ORIGINALES 3D",null,null,null,{"$f":"PRODUCTOS[[#This Row],[Cantidad]]*PRODUCTOS[[#This Row],[$ Distribuidor]]","v":0}]
["YAMAHA","MT 15","PROTECTOR TACOMETRO ACRILICO",11000,17000,null,{"$f":"PRODUCTOS[[#This Row],[Cantidad]]*PRODUCTOS[[#This Row],[$ Distribuidor]]","v":0}]
["YAMAHA","MT 03","SLIDER DE ALTO IMPACTO MOTOR 2 PUNTOS PREMIUM",90000,115000,null,{"$f":"PRODUCTOS[[#This Row],[Cantidad]]*PRODUCTOS[[#This Row],[$ Distribuidor]]","v":0}]
["YAMAHA","MT 03","SLIDER DE ALTO IMPACTO MOTOR 3 PUNTOS PREMIUM",100000,145000,null,{"$f":"PRODUCTOS[[#This Row],[Cantidad]]*PRODUCTOS[[#This Row],[$ Distribuidor]]","v":0}]
["YAMAHA","MT 03","SLIDER EJES X 4 CON TAPA",null,null,null,{"$f":"PRODUCTOS[[#This Row],[Cantidad]]*PRODUCTOS[[#This Row],[$ Distribuidor]]","v":0}]
["YAMAHA","MT 03","PROTECTOR DE RADIADOR 2D",null,null,null,{"$f":"PRODUCTOS[[#This Row],[Cantidad]]*PRODUCTOS[[#This Row],[$ Distribuidor]]","v":0}]
["YAMAHA","MT 03","PROTECTOR DE RADIADOR 3D",null,null,null,{"$f":"PRODUCTOS[[#This Row],[Cantidad]]*PRODUCTOS[[#This Row],[$ Distribuidor]]","v":0}]
["YAMAHA","MT 03","PROTECTOR CALIPER MORDAZA 2D",12000,20000,null,{"$f":"PRODUCTOS[[#This Row],[Cantidad]]*PRODUCTOS[[#This Row],[$ Distribuidor]]","v":0}]
["YAMAHA","MT 03","PROTECTOR CALIPER MORDAZA 3D",15000,25000,null,{"$f":"PRODUCTOS[[#This Row],[Cantidad]]*PRODUCTOS[[#This Row],[$ Distribuidor]]","v":0}]
["YAMAHA","MT 03","PROTECTOR DEPOSITO LIQUIDO FRENO DELANTERO 2D",8000,20000,null,{"$f":"PRODUCTOS[[#This Row],[Cantidad]]*PRODUCTOS[[#This Row],[$ Distribuidor]]","v":0}]
["YAMAHA","MT 03","PROTECTOR DEPOSITO LIQUIDO FRENO DELANTERO 3D",10000,25000,null,{"$f":"PRODUCTOS[[#This Row],[Cantidad]]*PRODUCTOS[[#This Row],[$ Distribuidor]]","v":0}]
["YAMAHA","MT 03","PROTECTOR DEPOSITO LIQUIDO FRENO TRASERO 2D",13000,25000,null,{"$f":"PRODUCTOS[[#This Row],[Cantidad]]*PRODUCTOS[[#This Row],[$ Distribuidor]]","v":0}]
["YAMAHA","MT 03","PROTECTOR DEPOSITO LIQUIDO FRENO TRASERO 3D",15000,28000,null,{"$f":"PRODUCTOS[[#This Row],[Cantidad]]*PRODUCTOS[[#This Row],[$ Distribuidor]]","v":0}]
["YAMAHA","MT 03","PROTECTOR ARO GASOLINA",11000,20000,null,{"$f":"PRODUCTOS[[#This Row],[Cantidad]]*PRODUCTOS[[#This Row],[$ Distribuidor]]","v":0}]
["YAMAHA","MT 03","PROTECTOR PLACA 2D",11000,20000,null,{"$f":"PRODUCTOS[[#This Row],[Cantidad]]*PRODUCTOS[[#This Row],[$ Distribuidor]]","v":0}]
["YAMAHA","MT 03","PROTECTOR PLACA 3D",14000,25000,null,{"$f":"PRODUCTOS[[#This Row],[Cantidad]]*PRODUCTOS[[#This Row],[$ Distribuidor]]","v":0}]
["YAMAHA","MT 03","PROTECTOR FAROLA 3D",null,null,null,{"$f":"PRODUCTOS[[#This Row],[Cantidad]]*PRODUCTOS[[#This Row],[$ Distribuidor]]","v":0}]
["YAMAHA","MT 03","SPOOLS PARA CABALLETE",20000,40000,null,{"$f":"PRODUCTOS[[#This Row],[Cantidad]]*PRODUCTOS[[#This Row],[$ Distribuidor]]","v":0}]
["YAMAHA","MT 03","CABALLETE O GATO DE SERVICIO ",125000,160000,null,{"$f":"PRODUCTOS[[#This Row],[Cantidad]]*PRODUCTOS[[#This Row],[$ Distribuidor]]","v":0}]
["YAMAHA","MT 03","LUJO ACUTRAX MANUBRIO CENTRAL 2D",15000,23000,null,{"$f":"PRODUCTOS[[#This Row],[Cantidad]]*PRODUCTOS[[#This Row],[$ Distribuidor]]","v":0}]
["YAMAHA","MT 03","LUJO ACUTRAX MANUBRIO CENTRAL 3D",18000,25000,null,{"$f":"PRODUCTOS[[#This Row],[Cantidad]]*PRODUCTOS[[#This Row],[$ Distribuidor]]","v":0}]
["YAMAHA","MT 03","LUJOS MALLAS LATERALES X 2",null,null,null,{"$f":"PRODUCTOS[[#This Row],[Cantidad]]*PRODUCTOS[[#This Row],[$ Distribuidor]]","v":0}]
["YAMAHA","MT 03","FENDER ELIMINATOR ABATIBLE 3 MILIMETROS PARA DIRECCIONALES ORIGINALES 2D",null,null,null,{"$f":"PRODUCTOS[[#This Row],[Cantidad]]*PRODUCTOS[[#This Row],[$ Distribuidor]]","v":0}]
["YAMAHA","MT 03","FENDER ELIMINATOR ABATIBLE 3 MILIMETROS PARA DIRECCIONALES ORIGINALES 3D",null,null,null,{"$f":"PRODUCTOS[[#This Row],[Cantidad]]*PRODUCTOS[[#This Row],[$ Distribuidor]]","v":0}]
["YAMAHA","MT 03","PROTECTOR TACOMETRO ACRILICO",11000,17000,null,{"$f":"PRODUCTOS[[#This Row],[Cantidad]]*PRODUCTOS[[#This Row],[$ Distribuidor]]","v":0}]
["YAMAHA","MT 07","SLIDER DE ALTO IMPACTO MOTOR 1 PUNTOS PREMIUM",null,null,null,{"$f":"PRODUCTOS[[#This Row],[Cantidad]]*PRODUCTOS[[#This Row],[$ Distribuidor]]","v":0}]
["YAMAHA","MT 07","SLIDER DE ALTO IMPACTO MOTOR 2 PUNTOS PREMIUM",90000,115000,null,{"$f":"PRODUCTOS[[#This Row],[Cantidad]]*PRODUCTOS[[#This Row],[$ Distribuidor]]","v":0}]
["YAMAHA","MT 07","SLIDER EJES X 4 CON TAPA",null,null,null,{"$f":"PRODUCTOS[[#This Row],[Cantidad]]*PRODUCTOS[[#This Row],[$ Distribuidor]]","v":0}]
["YAMAHA","MT 07","PROTECTOR DE RADIADOR 2D",null,null,null,{"$f":"PRODUCTOS[[#This Row],[Cantidad]]*PRODUCTOS[[#This Row],[$ Distribuidor]]","v":0}]
["YAMAHA","MT 07","PROTECTOR DE RADIADOR 3D",null,null,null,{"$f":"PRODUCTOS[[#This Row],[Cantidad]]*PRODUCTOS[[#This Row],[$ Distribuidor]]","v":0}]
["YAMAHA","MT 07","PROTECTOR DEPOSITO LIQUIDO FRENO DELANTERO 2D",8000,20000,null,{"$f":"PRODUCTOS[[#This Row],[Cantidad]]*PRODUCTOS[[#This Row],[$ Distribuidor]]","v":0}]
["YAMAHA","MT 07","PROTECTOR DEPOSITO LIQUIDO FRENO DELANTERO 3D",10000,25000,null,{"$f":"PRODUCTOS[[#This Row],[Cantidad]]*PRODUCTOS[[#This Row],[$ Distribuidor]]","v":0}]
["YAMAHA","MT 07","PROTECTOR DEPOSITO LIQUIDO FRENO TRASERO 2D",13000,25000,null,{"$f":"PRODUCTOS[[#This Row],[Cantidad]]*PRODUCTOS[[#This Row],[$ Distribuidor]]","v":0}]
["YAMAHA","MT 07","PROTECTOR DEPOSITO LIQUIDO FRENO TRASERO 3D",15000,28000,null,{"$f":"PRODUCTOS[[#This Row],[Cantidad]]*PRODUCTOS[[#This Row],[$ Distribuidor]]","v":0}]
["YAMAHA","MT 07","PROTECTOR ARO GASOLINA",11000,20000,null,{"$f":"PRODUCTOS[[#This Row],[Cantidad]]*PRODUCTOS[[#This Row],[$ Distribuidor]]","v":0}]
["YAMAHA","MT 07","PROTECTOR PLACA 2D",11000,20000,null,{"$f":"PRODUCTOS[[#This Row],[Cantidad]]*PRODUCTOS[[#This Row],[$ Distribuidor]]","v":0}]
["YAMAHA","MT 07","PROTECTOR PLACA 3D",14000,25000,null,{"$f":"PRODUCTOS[[#This Row],[Cantidad]]*PRODUCTOS[[#This Row],[$ Distribuidor]]","v":0}]
["YAMAHA","MT 07","SPOOLS PARA CABALLETE",20000,40000,null,{"$f":"PRODUCTOS[[#This Row],[Cantidad]]*PRODUCTOS[[#This Row],[$ Distribuidor]]","v":0}]
["YAMAHA","MT 07","CABALLETE O GATO DE SERVICIO ",125000,160000,null,{"$f":"PRODUCTOS[[#This Row],[Cantidad]]*PRODUCTOS[[#This Row],[$ Distribuidor]]","v":0}]
["YAMAHA","MT 07","FENDER ELIMINATOR ABATIBLE 3 MILIMETROS PARA DIRECCIONALES ORIGINALES 2D",null,null,null,{"$f":"PRODUCTOS[[#This Row],[Cantidad]]*PRODUCTOS[[#This Row],[$ Distribuidor]]","v":0}]
["YAMAHA","MT 07","FENDER ELIMINATOR ABATIBLE 3 MILIMETROS PARA DIRECCIONALES ORIGINALES 3D",null,null,null,{"$f":"PRODUCTOS[[#This Row],[Cantidad]]*PRODUCTOS[[#This Row],[$ Distribuidor]]","v":0}]
["YAMAHA","MT 09 V1","SLIDER DE ALTO IMPACTO MOTOR 2 PUNTOS PREMIUM",90000,115000,null,{"$f":"PRODUCTOS[[#This Row],[Cantidad]]*PRODUCTOS[[#This Row],[$ Distribuidor]]","v":0}]
["YAMAHA","MT 09 V1","SLIDER EJES X 4 CON TAPA",null,null,null,{"$f":"PRODUCTOS[[#This Row],[Cantidad]]*PRODUCTOS[[#This Row],[$ Distribuidor]]","v":0}]
["YAMAHA","MT 09 V1","PROTECTOR DE RADIADOR 2D",null,null,null,{"$f":"PRODUCTOS[[#This Row],[Cantidad]]*PRODUCTOS[[#This Row],[$ Distribuidor]]","v":0}]
["YAMAHA","MT 09 V1","PROTECTOR DE RADIADOR 3D",null,null,null,{"$f":"PRODUCTOS[[#This Row],[Cantidad]]*PRODUCTOS[[#This Row],[$ Distribuidor]]","v":0}]
["YAMAHA","MT 09 V1","PROTECTOR DEPOSITO LIQUIDO FRENO DELANTERO 2D",8000,20000,null,{"$f":"PRODUCTOS[[#This Row],[Cantidad]]*PRODUCTOS[[#This Row],[$ Distribuidor]]","v":0}]
["YAMAHA","MT 09 V1","PROTECTOR DEPOSITO LIQUIDO FRENO DELANTERO 3D",10000,25000,null,{"$f":"PRODUCTOS[[#This Row],[Cantidad]]*PRODUCTOS[[#This Row],[$ Distribuidor]]","v":0}]
["YAMAHA","MT 09 V1","PROTECTOR DEPOSITO LIQUIDO FRENO TRASERO 2D",13000,25000,null,{"$f":"PRODUCTOS[[#This Row],[Cantidad]]*PRODUCTOS[[#This Row],[$ Distribuidor]]","v":0}]
["YAMAHA","MT 09 V1","PROTECTOR DEPOSITO LIQUIDO FRENO TRASERO 3D",15000,28000,null,{"$f":"PRODUCTOS[[#This Row],[Cantidad]]*PRODUCTOS[[#This Row],[$ Distribuidor]]","v":0}]
["YAMAHA","MT 09 V1","PROTECTOR ARO GASOLINA",11000,20000,null,{"$f":"PRODUCTOS[[#This Row],[Cantidad]]*PRODUCTOS[[#This Row],[$ Distribuidor]]","v":0}]
["YAMAHA","MT 09 V1","PROTECTOR PLACA 2D",11000,20000,null,{"$f":"PRODUCTOS[[#This Row],[Cantidad]]*PRODUCTOS[[#This Row],[$ Distribuidor]]","v":0}]
["YAMAHA","MT 09 V1","PROTECTOR PLACA 3D",14000,25000,null,{"$f":"PRODUCTOS[[#This Row],[Cantidad]]*PRODUCTOS[[#This Row],[$ Distribuidor]]","v":0}]
["YAMAHA","MT 09 V1","PROTECTOR FAROLA 3D",null,null,null,{"$f":"PRODUCTOS[[#This Row],[Cantidad]]*PRODUCTOS[[#This Row],[$ Distribuidor]]","v":0}]
["YAMAHA","MT 09 V1","SPOOLS PARA CABALLETE",20000,40000,null,{"$f":"PRODUCTOS[[#This Row],[Cantidad]]*PRODUCTOS[[#This Row],[$ Distribuidor]]","v":0}]
["YAMAHA","MT 09 V1","CABALLETE O GATO DE SERVICIO ",125000,160000,null,{"$f":"PRODUCTOS[[#This Row],[Cantidad]]*PRODUCTOS[[#This Row],[$ Distribuidor]]","v":0}]
["YAMAHA","MT 09 V1","FENDER ELIMINATOR ABATIBLE 3 MILIMETROS PARA DIRECCIONALES ORIGINALES 2D",null,null,null,{"$f":"PRODUCTOS[[#This Row],[Cantidad]]*PRODUCTOS[[#This Row],[$ Distribuidor]]","v":0}]
["YAMAHA","MT 09 V1","FENDER ELIMINATOR ABATIBLE 3 MILIMETROS PARA DIRECCIONALES ORIGINALES 3D",null,null,null,{"$f":"PRODUCTOS[[#This Row],[Cantidad]]*PRODUCTOS[[#This Row],[$ Distribuidor]]","v":0}]
["YAMAHA","MT 09 V2","SLIDER DE ALTO IMPACTO MOTOR 2 PUNTOS PREMIUM",90000,115000,null,{"$f":"PRODUCTOS[[#This Row],[Cantidad]]*PRODUCTOS[[#This Row],[$ Distribuidor]]","v":0}]
["YAMAHA","MT 09 V2","SLIDER EJES X 4 CON TAPA",null,null,null,{"$f":"PRODUCTOS[[#This Row],[Cantidad]]*PRODUCTOS[[#This Row],[$ Distribuidor]]","v":0}]
["YAMAHA","MT 09 V2","PROTECTOR DE RADIADOR 2D",null,null,null,{"$f":"PRODUCTOS[[#This Row],[Cantidad]]*PRODUCTOS[[#This Row],[$ Distribuidor]]","v":0}]
["YAMAHA","MT 09 V2","PROTECTOR DE RADIADOR 3D",null,null,null,{"$f":"PRODUCTOS[[#This Row],[Cantidad]]*PRODUCTOS[[#This Row],[$ Distribuidor]]","v":0}]
["YAMAHA","MT 09 V2","PROTECTOR DEPOSITO LIQUIDO FRENO DELANTERO 2D",8000,20000,null,{"$f":"PRODUCTOS[[#This Row],[Cantidad]]*PRODUCTOS[[#This Row],[$ Distribuidor]]","v":0}]
["YAMAHA","MT 09 V2","PROTECTOR DEPOSITO LIQUIDO FRENO DELANTERO 3D",10000,25000,null,{"$f":"PRODUCTOS[[#This Row],[Cantidad]]*PRODUCTOS[[#This Row],[$ Distribuidor]]","v":0}]
["YAMAHA","MT 09 V2","PROTECTOR DEPOSITO LIQUIDO FRENO TRASERO 2D",13000,25000,null,{"$f":"PRODUCTOS[[#This Row],[Cantidad]]*PRODUCTOS[[#This Row],[$ Distribuidor]]","v":0}]
["YAMAHA","MT 09 V2","PROTECTOR DEPOSITO LIQUIDO FRENO TRASERO 3D",15000,28000,null,{"$f":"PRODUCTOS[[#This Row],[Cantidad]]*PRODUCTOS[[#This Row],[$ Distribuidor]]","v":0}]
["YAMAHA","MT 09 V2","PROTECTOR ARO GASOLINA",11000,20000,null,{"$f":"PRODUCTOS[[#This Row],[Cantidad]]*PRODUCTOS[[#This Row],[$ Distribuidor]]","v":0}]
["YAMAHA","MT 09 V2","PROTECTOR PLACA 2D",11000,20000,null,{"$f":"PRODUCTOS[[#This Row],[Cantidad]]*PRODUCTOS[[#This Row],[$ Distribuidor]]","v":0}]
["YAMAHA","MT 09 V2","PROTECTOR PLACA 3D",14000,25000,null,{"$f":"PRODUCTOS[[#This Row],[Cantidad]]*PRODUCTOS[[#This Row],[$ Distribuidor]]","v":0}]
["YAMAHA","MT 09 V2","PROTECTOR FAROLA 3D",null,null,null,{"$f":"PRODUCTOS[[#This Row],[Cantidad]]*PRODUCTOS[[#This Row],[$ Distribuidor]]","v":0}]
["YAMAHA","MT 09 V2","SPOOLS PARA CABALLETE",20000,40000,null,{"$f":"PRODUCTOS[[#This Row],[Cantidad]]*PRODUCTOS[[#This Row],[$ Distribuidor]]","v":0}]
["YAMAHA","MT 09 V2","CABALLETE O GATO DE SERVICIO ",125000,160000,null,{"$f":"PRODUCTOS[[#This Row],[Cantidad]]*PRODUCTOS[[#This Row],[$ Distribuidor]]","v":0}]
["YAMAHA","MT 09 V3","SLIDER DE ALTO IMPACTO MOTOR 2 PUNTOS PREMIUM",90000,115000,null,{"$f":"PRODUCTOS[[#This Row],[Cantidad]]*PRODUCTOS[[#This Row],[$ Distribuidor]]","v":0}]
["YAMAHA","MT 09 V3","SLIDER EJES X 4 CON TAPA",null,null,null,{"$f":"PRODUCTOS[[#This Row],[Cantidad]]*PRODUCTOS[[#This Row],[$ Distribuidor]]","v":0}]
["YAMAHA","MT 09 V3","PROTECTOR DE RADIADOR 2D",null,null,null,{"$f":"PRODUCTOS[[#This Row],[Cantidad]]*PRODUCTOS[[#This Row],[$ Distribuidor]]","v":0}]
["YAMAHA","MT 09 V3","PROTECTOR DE RADIADOR 3D",null,null,null,{"$f":"PRODUCTOS[[#This Row],[Cantidad]]*PRODUCTOS[[#This Row],[$ Distribuidor]]","v":0}]
["YAMAHA","MT 09 V3","PROTECTOR DEPOSITO LIQUIDO FRENO DELANTERO 2D",8000,20000,null,{"$f":"PRODUCTOS[[#This Row],[Cantidad]]*PRODUCTOS[[#This Row],[$ Distribuidor]]","v":0}]
["YAMAHA","MT 09 V3","PROTECTOR DEPOSITO LIQUIDO FRENO DELANTERO 3D",10000,25000,null,{"$f":"PRODUCTOS[[#This Row],[Cantidad]]*PRODUCTOS[[#This Row],[$ Distribuidor]]","v":0}]
["YAMAHA","MT 09 V3","PROTECTOR DEPOSITO LIQUIDO FRENO TRASERO 2D",13000,25000,null,{"$f":"PRODUCTOS[[#This Row],[Cantidad]]*PRODUCTOS[[#This Row],[$ Distribuidor]]","v":0}]
["YAMAHA","MT 09 V3","PROTECTOR DEPOSITO LIQUIDO FRENO TRASERO 3D",15000,28000,null,{"$f":"PRODUCTOS[[#This Row],[Cantidad]]*PRODUCTOS[[#This Row],[$ Distribuidor]]","v":0}]
["YAMAHA","MT 09 V3","PROTECTOR ARO GASOLINA",11000,20000,null,{"$f":"PRODUCTOS[[#This Row],[Cantidad]]*PRODUCTOS[[#This Row],[$ Distribuidor]]","v":0}]
["YAMAHA","MT 09 V3","PROTECTOR PLACA 2D",11000,20000,null,{"$f":"PRODUCTOS[[#This Row],[Cantidad]]*PRODUCTOS[[#This Row],[$ Distribuidor]]","v":0}]
["YAMAHA","MT 09 V3","PROTECTOR PLACA 3D",14000,25000,null,{"$f":"PRODUCTOS[[#This Row],[Cantidad]]*PRODUCTOS[[#This Row],[$ Distribuidor]]","v":0}]
["YAMAHA","MT 09 V3","PROTECTOR FAROLA 3D",null,null,null,{"$f":"PRODUCTOS[[#This Row],[Cantidad]]*PRODUCTOS[[#This Row],[$ Distribuidor]]","v":0}]
["YAMAHA","MT 09 V3","SPOOLS PARA CABALLETE",20000,40000,null,{"$f":"PRODUCTOS[[#This Row],[Cantidad]]*PRODUCTOS[[#This Row],[$ Distribuidor]]","v":0}]
["YAMAHA","MT 09 V3","CABALLETE O GATO DE SERVICIO ",125000,160000,null,{"$f":"PRODUCTOS[[#This Row],[Cantidad]]*PRODUCTOS[[#This Row],[$ Distribuidor]]","v":0}]
["YAMAHA","MT 09 V3","PROTECTOR IMU",null,null,null,{"$f":"PRODUCTOS[[#This Row],[Cantidad]]*PRODUCTOS[[#This Row],[$ Distribuidor]]","v":0}]
["YAMAHA","MT 10 ","SLIDER DE ALTO IMPACTO MOTOR 1 PUNTOS PREMIUM",null,null,null,{"$f":"PRODUCTOS[[#This Row],[Cantidad]]*PRODUCTOS[[#This Row],[$ Distribuidor]]","v":0}]
["YAMAHA","MT 10 ","SLIDER EJES X 4 CON TAPA",null,null,null,{"$f":"PRODUCTOS[[#This Row],[Cantidad]]*PRODUCTOS[[#This Row],[$ Distribuidor]]","v":0}]
["YAMAHA","MT 10","PROTECTOR DE RADIADOR 2D",null,null,null,{"$f":"PRODUCTOS[[#This Row],[Cantidad]]*PRODUCTOS[[#This Row],[$ Distribuidor]]","v":0}]
["YAMAHA","MT 10","PROTECTOR DE RADIADOR 3D",null,null,null,{"$f":"PRODUCTOS[[#This Row],[Cantidad]]*PRODUCTOS[[#This Row],[$ Distribuidor]]","v":0}]
["YAMAHA","MT 10","PROTECTOR RADIADOR DE ACEITE 2D",null,null,null,{"$f":"PRODUCTOS[[#This Row],[Cantidad]]*PRODUCTOS[[#This Row],[$ Distribuidor]]","v":0}]
["YAMAHA","MT 10","PROTECTOR RADIADOR DE ACEITE 3D",null,null,null,{"$f":"PRODUCTOS[[#This Row],[Cantidad]]*PRODUCTOS[[#This Row],[$ Distribuidor]]","v":0}]
["YAMAHA","MT 10","PROTECTOR PLACA 2D",11000,20000,null,{"$f":"PRODUCTOS[[#This Row],[Cantidad]]*PRODUCTOS[[#This Row],[$ Distribuidor]]","v":0}]
["YAMAHA","MT 10","PROTECTOR PLACA 3D",14000,25000,null,{"$f":"PRODUCTOS[[#This Row],[Cantidad]]*PRODUCTOS[[#This Row],[$ Distribuidor]]","v":0}]
["YAMAHA","MT 10","CABALLETE O GATO DE SERVICIO ",125000,160000,null,{"$f":"PRODUCTOS[[#This Row],[Cantidad]]*PRODUCTOS[[#This Row],[$ Distribuidor]]","v":0}]
["YAMAHA","MT 10","SPOOLS PARA CABALLETE",20000,40000,null,{"$f":"PRODUCTOS[[#This Row],[Cantidad]]*PRODUCTOS[[#This Row],[$ Distribuidor]]","v":0}]
["YAMAHA","MT 10","FENDER ELIMINATOR ABATIBLE 3 MILIMETROS PARA DIRECCIONALES ORIGINALES 2D",null,null,null,{"$f":"PRODUCTOS[[#This Row],[Cantidad]]*PRODUCTOS[[#This Row],[$ Distribuidor]]","v":0}]
["YAMAHA","MT 10","FENDER ELIMINATOR ABATIBLE 3 MILIMETROS PARA DIRECCIONALES ORIGINALES 3D",null,null,null,{"$f":"PRODUCTOS[[#This Row],[Cantidad]]*PRODUCTOS[[#This Row],[$ Distribuidor]]","v":0}]
["YAMAHA","R15 V2","SLIDER EJES X 4 CON TAPA",null,null,null,{"$f":"PRODUCTOS[[#This Row],[Cantidad]]*PRODUCTOS[[#This Row],[$ Distribuidor]]","v":0}]
["YAMAHA","R15 V2","PROTECTOR DE RADIADOR 2D",null,null,null,{"$f":"PRODUCTOS[[#This Row],[Cantidad]]*PRODUCTOS[[#This Row],[$ Distribuidor]]","v":0}]
["YAMAHA","R15 V2","PROTECTOR DE RADIADOR 3D",null,null,null,{"$f":"PRODUCTOS[[#This Row],[Cantidad]]*PRODUCTOS[[#This Row],[$ Distribuidor]]","v":0}]
["YAMAHA","R15 V2","PROTECTOR CALIPER MORDAZA 2D",12000,20000,null,{"$f":"PRODUCTOS[[#This Row],[Cantidad]]*PRODUCTOS[[#This Row],[$ Distribuidor]]","v":0}]
["YAMAHA","R15 V2","PROTECTOR CALIPER MORDAZA 3D",15000,25000,null,{"$f":"PRODUCTOS[[#This Row],[Cantidad]]*PRODUCTOS[[#This Row],[$ Distribuidor]]","v":0}]
["YAMAHA","R15 V2","PROTECTOR DEPOSITO LIQUIDO FRENO DELANTERO 2D",8000,20000,null,{"$f":"PRODUCTOS[[#This Row],[Cantidad]]*PRODUCTOS[[#This Row],[$ Distribuidor]]","v":0}]
["YAMAHA","R15 V2","PROTECTOR DEPOSITO LIQUIDO FRENO DELANTERO 3D",10000,25000,null,{"$f":"PRODUCTOS[[#This Row],[Cantidad]]*PRODUCTOS[[#This Row],[$ Distribuidor]]","v":0}]
["YAMAHA","R15 V2","PROTECTOR DEPOSITO LIQUIDO FRENO TRASERO 2D",13000,25000,null,{"$f":"PRODUCTOS[[#This Row],[Cantidad]]*PRODUCTOS[[#This Row],[$ Distribuidor]]","v":0}]
["YAMAHA","R15 V2","PROTECTOR DEPOSITO LIQUIDO FRENO TRASERO 3D",15000,28000,null,{"$f":"PRODUCTOS[[#This Row],[Cantidad]]*PRODUCTOS[[#This Row],[$ Distribuidor]]","v":0}]
["YAMAHA","R15 V2","PROTECTOR ARO GASOLINA",11000,20000,null,{"$f":"PRODUCTOS[[#This Row],[Cantidad]]*PRODUCTOS[[#This Row],[$ Distribuidor]]","v":0}]
["YAMAHA","R15 V2","PROTECTOR PLACA 2D",11000,20000,null,{"$f":"PRODUCTOS[[#This Row],[Cantidad]]*PRODUCTOS[[#This Row],[$ Distribuidor]]","v":0}]
["YAMAHA","R15 V2","PROTECTOR PLACA 3D",14000,25000,null,{"$f":"PRODUCTOS[[#This Row],[Cantidad]]*PRODUCTOS[[#This Row],[$ Distribuidor]]","v":0}]
["YAMAHA","R15 V2","SPOOLS PARA CABALLETE",20000,40000,null,{"$f":"PRODUCTOS[[#This Row],[Cantidad]]*PRODUCTOS[[#This Row],[$ Distribuidor]]","v":0}]
["YAMAHA","R15 V2","CABALLETE O GATO DE SERVICIO ",125000,160000,null,{"$f":"PRODUCTOS[[#This Row],[Cantidad]]*PRODUCTOS[[#This Row],[$ Distribuidor]]","v":0}]
["YAMAHA","R15 V2","FENDER ELIMINATOR ABATIBLE 3 MILIMETROS PARA DIRECCIONALES ORIGINALES 2D",null,null,null,{"$f":"PRODUCTOS[[#This Row],[Cantidad]]*PRODUCTOS[[#This Row],[$ Distribuidor]]","v":0}]
["YAMAHA","R15 V2","FENDER ELIMINATOR ABATIBLE 3 MILIMETROS PARA DIRECCIONALES ORIGINALES 3D",null,null,null,{"$f":"PRODUCTOS[[#This Row],[Cantidad]]*PRODUCTOS[[#This Row],[$ Distribuidor]]","v":0}]
["YAMAHA","R15 V3","SLIDER DE ALTO IMPACTO MOTOR 2 PUNTOS PREMIUM",90000,115000,null,{"$f":"PRODUCTOS[[#This Row],[Cantidad]]*PRODUCTOS[[#This Row],[$ Distribuidor]]","v":0}]
["YAMAHA","R15 V3","SLIDER EJES X 4 CON TAPA",null,null,null,{"$f":"PRODUCTOS[[#This Row],[Cantidad]]*PRODUCTOS[[#This Row],[$ Distribuidor]]","v":0}]
["YAMAHA","R15 V3","PROTECTOR DE RADIADOR 2D",null,null,null,{"$f":"PRODUCTOS[[#This Row],[Cantidad]]*PRODUCTOS[[#This Row],[$ Distribuidor]]","v":0}]
["YAMAHA","R15 V3","PROTECTOR DE RADIADOR 3D",null,null,null,{"$f":"PRODUCTOS[[#This Row],[Cantidad]]*PRODUCTOS[[#This Row],[$ Distribuidor]]","v":0}]
["YAMAHA","R15 V3","PROTECTOR CALIPER MORDAZA 2D",12000,20000,null,{"$f":"PRODUCTOS[[#This Row],[Cantidad]]*PRODUCTOS[[#This Row],[$ Distribuidor]]","v":0}]
["YAMAHA","R15 V3","PROTECTOR CALIPER MORDAZA 3D",15000,25000,null,{"$f":"PRODUCTOS[[#This Row],[Cantidad]]*PRODUCTOS[[#This Row],[$ Distribuidor]]","v":0}]
["YAMAHA","R15 V3","PROTECTOR DEPOSITO LIQUIDO FRENO DELANTERO 2D",8000,20000,null,{"$f":"PRODUCTOS[[#This Row],[Cantidad]]*PRODUCTOS[[#This Row],[$ Distribuidor]]","v":0}]
["YAMAHA","R15 V3","PROTECTOR DEPOSITO LIQUIDO FRENO DELANTERO 3D",10000,25000,null,{"$f":"PRODUCTOS[[#This Row],[Cantidad]]*PRODUCTOS[[#This Row],[$ Distribuidor]]","v":0}]
["YAMAHA","R15 V3","PROTECTOR DEPOSITO LIQUIDO FRENO TRASERO 2D",13000,25000,null,{"$f":"PRODUCTOS[[#This Row],[Cantidad]]*PRODUCTOS[[#This Row],[$ Distribuidor]]","v":0}]
["YAMAHA","R15 V3","PROTECTOR DEPOSITO LIQUIDO FRENO TRASERO 3D",15000,28000,null,{"$f":"PRODUCTOS[[#This Row],[Cantidad]]*PRODUCTOS[[#This Row],[$ Distribuidor]]","v":0}]
["YAMAHA","R15 V3","PROTECTOR ARO GASOLINA",11000,20000,null,{"$f":"PRODUCTOS[[#This Row],[Cantidad]]*PRODUCTOS[[#This Row],[$ Distribuidor]]","v":0}]
["YAMAHA","R15 V3","PROTECTOR PLACA 2D",11000,20000,null,{"$f":"PRODUCTOS[[#This Row],[Cantidad]]*PRODUCTOS[[#This Row],[$ Distribuidor]]","v":0}]
["YAMAHA","R15 V3","PROTECTOR PLACA 3D",14000,25000,null,{"$f":"PRODUCTOS[[#This Row],[Cantidad]]*PRODUCTOS[[#This Row],[$ Distribuidor]]","v":0}]
["YAMAHA","R15 V3","PROTECTOR LATERAL DE EXOSTO INOX 3D",null,null,null,{"$f":"PRODUCTOS[[#This Row],[Cantidad]]*PRODUCTOS[[#This Row],[$ Distribuidor]]","v":0}]
["YAMAHA","R15 V3","SPOOLS PARA CABALLETE",20000,40000,null,{"$f":"PRODUCTOS[[#This Row],[Cantidad]]*PRODUCTOS[[#This Row],[$ Distribuidor]]","v":0}]
["YAMAHA","R15 V3","CABALLETE O GATO DE SERVICIO ",125000,160000,null,{"$f":"PRODUCTOS[[#This Row],[Cantidad]]*PRODUCTOS[[#This Row],[$ Distribuidor]]","v":0}]
["YAMAHA","R15 V3","FENDER ELIMINATOR ABATIBLE 3 MILIMETROS PARA DIRECCIONALES ORIGINALES 2D",null,null,null,{"$f":"PRODUCTOS[[#This Row],[Cantidad]]*PRODUCTOS[[#This Row],[$ Distribuidor]]","v":0}]
["YAMAHA","R15 V3","FENDER ELIMINATOR ABATIBLE 3 MILIMETROS PARA DIRECCIONALES ORIGINALES 3D",null,null,null,{"$f":"PRODUCTOS[[#This Row],[Cantidad]]*PRODUCTOS[[#This Row],[$ Distribuidor]]","v":0}]
["YAMAHA","R3","SLIDER DE ALTO IMPACTO MOTOR 3 PUNTOS ECONO",95000,130000,null,{"$f":"PRODUCTOS[[#This Row],[Cantidad]]*PRODUCTOS[[#This Row],[$ Distribuidor]]","v":0}]
["YAMAHA","R3","SLIDER DE ALTO IMPACTO MOTOR 3 PUNTOS PREMIUM",100000,145000,null,{"$f":"PRODUCTOS[[#This Row],[Cantidad]]*PRODUCTOS[[#This Row],[$ Distribuidor]]","v":0}]
["YAMAHA","R3","SLIDER EJES X 4 CON TAPA",null,null,null,{"$f":"PRODUCTOS[[#This Row],[Cantidad]]*PRODUCTOS[[#This Row],[$ Distribuidor]]","v":0}]
["YAMAHA","R3","PROTECTOR DE RADIADOR 2D",null,null,null,{"$f":"PRODUCTOS[[#This Row],[Cantidad]]*PRODUCTOS[[#This Row],[$ Distribuidor]]","v":0}]
["YAMAHA","R3","PROTECTOR DE RADIADOR 3D",null,null,null,{"$f":"PRODUCTOS[[#This Row],[Cantidad]]*PRODUCTOS[[#This Row],[$ Distribuidor]]","v":0}]
["YAMAHA","R3","PROTECTOR CALIPER MORDAZA 2D",12000,20000,null,{"$f":"PRODUCTOS[[#This Row],[Cantidad]]*PRODUCTOS[[#This Row],[$ Distribuidor]]","v":0}]
["YAMAHA","R3","PROTECTOR CALIPER MORDAZA 3D",15000,25000,null,{"$f":"PRODUCTOS[[#This Row],[Cantidad]]*PRODUCTOS[[#This Row],[$ Distribuidor]]","v":0}]
["YAMAHA","R3","PROTECTOR DEPOSITO LIQUIDO FRENO DELANTERO 2D",8000,20000,null,{"$f":"PRODUCTOS[[#This Row],[Cantidad]]*PRODUCTOS[[#This Row],[$ Distribuidor]]","v":0}]
["YAMAHA","R3","PROTECTOR DEPOSITO LIQUIDO FRENO DELANTERO 3D",10000,25000,null,{"$f":"PRODUCTOS[[#This Row],[Cantidad]]*PRODUCTOS[[#This Row],[$ Distribuidor]]","v":0}]
["YAMAHA","R3","PROTECTOR DEPOSITO LIQUIDO FRENO TRASERO 2D",13000,25000,null,{"$f":"PRODUCTOS[[#This Row],[Cantidad]]*PRODUCTOS[[#This Row],[$ Distribuidor]]","v":0}]
["YAMAHA","R3","PROTECTOR DEPOSITO LIQUIDO FRENO TRASERO 3D",15000,28000,null,{"$f":"PRODUCTOS[[#This Row],[Cantidad]]*PRODUCTOS[[#This Row],[$ Distribuidor]]","v":0}]
["YAMAHA","R3","PROTECTOR ARO GASOLINA",11000,20000,null,{"$f":"PRODUCTOS[[#This Row],[Cantidad]]*PRODUCTOS[[#This Row],[$ Distribuidor]]","v":0}]
["YAMAHA","R3","PROTECTOR PLACA 2D",11000,20000,null,{"$f":"PRODUCTOS[[#This Row],[Cantidad]]*PRODUCTOS[[#This Row],[$ Distribuidor]]","v":0}]
["YAMAHA","R3","PROTECTOR PLACA 3D",14000,25000,null,{"$f":"PRODUCTOS[[#This Row],[Cantidad]]*PRODUCTOS[[#This Row],[$ Distribuidor]]","v":0}]
["YAMAHA","R3","PROTECTOR FAROLA 3D",null,null,null,{"$f":"PRODUCTOS[[#This Row],[Cantidad]]*PRODUCTOS[[#This Row],[$ Distribuidor]]","v":0}]
["YAMAHA","R3","SPOOLS PARA CABALLETE",20000,40000,null,{"$f":"PRODUCTOS[[#This Row],[Cantidad]]*PRODUCTOS[[#This Row],[$ Distribuidor]]","v":0}]
["YAMAHA","R3","CABALLETE O GATO DE SERVICIO ",125000,160000,null,{"$f":"PRODUCTOS[[#This Row],[Cantidad]]*PRODUCTOS[[#This Row],[$ Distribuidor]]","v":0}]
["YAMAHA","R3","FENDER ELIMINATOR ABATIBLE 3 MILIMETROS PARA DIRECCIONALES ORIGINALES 2D",null,null,null,{"$f":"PRODUCTOS[[#This Row],[Cantidad]]*PRODUCTOS[[#This Row],[$ Distribuidor]]","v":0}]
["YAMAHA","R3","FENDER ELIMINATOR ABATIBLE 3 MILIMETROS PARA DIRECCIONALES ORIGINALES 3D",null,null,null,{"$f":"PRODUCTOS[[#This Row],[Cantidad]]*PRODUCTOS[[#This Row],[$ Distribuidor]]","v":0}]
["YAMAHA","R3","PROTECTOR TACOMETRO ACRILICO",11000,17000,null,{"$f":"PRODUCTOS[[#This Row],[Cantidad]]*PRODUCTOS[[#This Row],[$ Distribuidor]]","v":0}]
["YAMAHA","R6S","PROTECTOR DE RADIADOR 2D",null,null,null,{"$f":"PRODUCTOS[[#This Row],[Cantidad]]*PRODUCTOS[[#This Row],[$ Distribuidor]]","v":0}]
["YAMAHA","R6S","PROTECTOR DE RADIADOR 3D",null,null,null,{"$f":"PRODUCTOS[[#This Row],[Cantidad]]*PRODUCTOS[[#This Row],[$ Distribuidor]]","v":0}]
["YAMAHA","R6S","PROTECTOR CALIPER MORDAZA 2D",12000,20000,null,{"$f":"PRODUCTOS[[#This Row],[Cantidad]]*PRODUCTOS[[#This Row],[$ Distribuidor]]","v":0}]
["YAMAHA","R6S","PROTECTOR CALIPER MORDAZA 3D",15000,25000,null,{"$f":"PRODUCTOS[[#This Row],[Cantidad]]*PRODUCTOS[[#This Row],[$ Distribuidor]]","v":0}]
["YAMAHA","R6S","PROTECTOR DEPOSITO LIQUIDO FRENO DELANTERO 2D",8000,20000,null,{"$f":"PRODUCTOS[[#This Row],[Cantidad]]*PRODUCTOS[[#This Row],[$ Distribuidor]]","v":0}]
["YAMAHA","R6S","PROTECTOR DEPOSITO LIQUIDO FRENO DELANTERO 3D",10000,25000,null,{"$f":"PRODUCTOS[[#This Row],[Cantidad]]*PRODUCTOS[[#This Row],[$ Distribuidor]]","v":0}]
["YAMAHA","R6S","PROTECTOR DEPOSITO LIQUIDO FRENO TRASERO 2D",13000,25000,null,{"$f":"PRODUCTOS[[#This Row],[Cantidad]]*PRODUCTOS[[#This Row],[$ Distribuidor]]","v":0}]
["YAMAHA","R6S","PROTECTOR DEPOSITO LIQUIDO FRENO TRASERO 3D",15000,28000,null,{"$f":"PRODUCTOS[[#This Row],[Cantidad]]*PRODUCTOS[[#This Row],[$ Distribuidor]]","v":0}]
["YAMAHA","R6S","PROTECTOR ARO GASOLINA",11000,20000,null,{"$f":"PRODUCTOS[[#This Row],[Cantidad]]*PRODUCTOS[[#This Row],[$ Distribuidor]]","v":0}]
["YAMAHA","R6S","PROTECTOR PLACA 2D",11000,20000,null,{"$f":"PRODUCTOS[[#This Row],[Cantidad]]*PRODUCTOS[[#This Row],[$ Distribuidor]]","v":0}]
["YAMAHA","R6S","PROTECTOR PLACA 3D",14000,25000,null,{"$f":"PRODUCTOS[[#This Row],[Cantidad]]*PRODUCTOS[[#This Row],[$ Distribuidor]]","v":0}]
["YAMAHA","R6S","SPOOLS PARA CABALLETE",20000,40000,null,{"$f":"PRODUCTOS[[#This Row],[Cantidad]]*PRODUCTOS[[#This Row],[$ Distribuidor]]","v":0}]
["YAMAHA","R6S","CABALLETE O GATO DE SERVICIO ",125000,160000,null,{"$f":"PRODUCTOS[[#This Row],[Cantidad]]*PRODUCTOS[[#This Row],[$ Distribuidor]]","v":0}]
["YAMAHA","R6S","FENDER ELIMINATOR ABATIBLE 3 MILIMETROS PARA DIRECCIONALES ORIGINALES 2D",null,null,null,{"$f":"PRODUCTOS[[#This Row],[Cantidad]]*PRODUCTOS[[#This Row],[$ Distribuidor]]","v":0}]
["YAMAHA","R6S","FENDER ELIMINATOR ABATIBLE 3 MILIMETROS PARA DIRECCIONALES ORIGINALES 3D",null,null,null,{"$f":"PRODUCTOS[[#This Row],[Cantidad]]*PRODUCTOS[[#This Row],[$ Distribuidor]]","v":0}]
["YAMAHA","R6R","SLIDER DE ALTO IMPACTO MOTOR 1 PUNTOS PREMIUM",null,null,null,{"$f":"PRODUCTOS[[#This Row],[Cantidad]]*PRODUCTOS[[#This Row],[$ Distribuidor]]","v":0}]
["YAMAHA","R6R","PROTECTOR DE RADIADOR 2D",null,null,null,{"$f":"PRODUCTOS[[#This Row],[Cantidad]]*PRODUCTOS[[#This Row],[$ Distribuidor]]","v":0}]
["YAMAHA","R6R","PROTECTOR DE RADIADOR 3D",null,null,null,{"$f":"PRODUCTOS[[#This Row],[Cantidad]]*PRODUCTOS[[#This Row],[$ Distribuidor]]","v":0}]
["YAMAHA","R6R","PROTECTOR CALIPER MORDAZA 2D",12000,20000,null,{"$f":"PRODUCTOS[[#This Row],[Cantidad]]*PRODUCTOS[[#This Row],[$ Distribuidor]]","v":0}]
["YAMAHA","R6R","PROTECTOR CALIPER MORDAZA 3D",15000,25000,null,{"$f":"PRODUCTOS[[#This Row],[Cantidad]]*PRODUCTOS[[#This Row],[$ Distribuidor]]","v":0}]
["YAMAHA","R6R","PROTECTOR DEPOSITO LIQUIDO FRENO DELANTERO 2D",8000,20000,null,{"$f":"PRODUCTOS[[#This Row],[Cantidad]]*PRODUCTOS[[#This Row],[$ Distribuidor]]","v":0}]
["YAMAHA","R6R","PROTECTOR DEPOSITO LIQUIDO FRENO DELANTERO 3D",10000,25000,null,{"$f":"PRODUCTOS[[#This Row],[Cantidad]]*PRODUCTOS[[#This Row],[$ Distribuidor]]","v":0}]
["YAMAHA","R6R","PROTECTOR DEPOSITO LIQUIDO FRENO TRASERO 2D",13000,25000,null,{"$f":"PRODUCTOS[[#This Row],[Cantidad]]*PRODUCTOS[[#This Row],[$ Distribuidor]]","v":0}]
["YAMAHA","R6R","PROTECTOR DEPOSITO LIQUIDO FRENO TRASERO 3D",15000,28000,null,{"$f":"PRODUCTOS[[#This Row],[Cantidad]]*PRODUCTOS[[#This Row],[$ Distribuidor]]","v":0}]
["YAMAHA","R6R","PROTECTOR ARO GASOLINA",11000,20000,null,{"$f":"PRODUCTOS[[#This Row],[Cantidad]]*PRODUCTOS[[#This Row],[$ Distribuidor]]","v":0}]
["YAMAHA","R6R","PROTECTOR PLACA 2D",11000,20000,null,{"$f":"PRODUCTOS[[#This Row],[Cantidad]]*PRODUCTOS[[#This Row],[$ Distribuidor]]","v":0}]
["YAMAHA","R6R","PROTECTOR PLACA 3D",14000,25000,null,{"$f":"PRODUCTOS[[#This Row],[Cantidad]]*PRODUCTOS[[#This Row],[$ Distribuidor]]","v":0}]
["YAMAHA","R6R","SPOOLS PARA CABALLETE",20000,40000,null,{"$f":"PRODUCTOS[[#This Row],[Cantidad]]*PRODUCTOS[[#This Row],[$ Distribuidor]]","v":0}]
["YAMAHA","R6R","CABALLETE O GATO DE SERVICIO ",125000,160000,null,{"$f":"PRODUCTOS[[#This Row],[Cantidad]]*PRODUCTOS[[#This Row],[$ Distribuidor]]","v":0}]
["YAMAHA","R6R","FENDER ELIMINATOR ABATIBLE 3 MILIMETROS PARA DIRECCIONALES ORIGINALES 2D",null,null,null,{"$f":"PRODUCTOS[[#This Row],[Cantidad]]*PRODUCTOS[[#This Row],[$ Distribuidor]]","v":0}]
["YAMAHA","R6R","FENDER ELIMINATOR ABATIBLE 3 MILIMETROS PARA DIRECCIONALES ORIGINALES 3D",null,null,null,{"$f":"PRODUCTOS[[#This Row],[Cantidad]]*PRODUCTOS[[#This Row],[$ Distribuidor]]","v":0}]
["YAMAHA","SZ-R",null,null,null,null,{"$f":"PRODUCTOS[[#This Row],[Cantidad]]*PRODUCTOS[[#This Row],[$ Distribuidor]]","v":0}]
["YAMAHA","SZ-R",null,null,null,null,{"$f":"PRODUCTOS[[#This Row],[Cantidad]]*PRODUCTOS[[#This Row],[$ Distribuidor]]","v":0}]
["YAMAHA","SZ-R",null,null,null,null,{"$f":"PRODUCTOS[[#This Row],[Cantidad]]*PRODUCTOS[[#This Row],[$ Distribuidor]]","v":0}]
["YAMAHA","SZ-R",null,null,null,null,{"$f":"PRODUCTOS[[#This Row],[Cantidad]]*PRODUCTOS[[#This Row],[$ Distribuidor]]","v":0}]
["YAMAHA","SZ-R",null,null,null,null,{"$f":"PRODUCTOS[[#This Row],[Cantidad]]*PRODUCTOS[[#This Row],[$ Distribuidor]]","v":0}]
["YAMAHA","SZ-R",null,null,null,null,{"$f":"PRODUCTOS[[#This Row],[Cantidad]]*PRODUCTOS[[#This Row],[$ Distribuidor]]","v":0}]
["YAMAHA","SZ-R",null,null,null,null,{"$f":"PRODUCTOS[[#This Row],[Cantidad]]*PRODUCTOS[[#This Row],[$ Distribuidor]]","v":0}]
["YAMAHA","SZ-R",null,null,null,null,{"$f":"PRODUCTOS[[#This Row],[Cantidad]]*PRODUCTOS[[#This Row],[$ Distribuidor]]","v":0}]
["YAMAHA","XT660","SLIDER DE ALTO IMPACTO MOTOR 2 PUNTOS PREMIUM",90000,115000,null,{"$f":"PRODUCTOS[[#This Row],[Cantidad]]*PRODUCTOS[[#This Row],[$ Distribuidor]]","v":0}]
["YAMAHA","XT660","SLIDER EJES X 4 CON TAPA",null,null,null,{"$f":"PRODUCTOS[[#This Row],[Cantidad]]*PRODUCTOS[[#This Row],[$ Distribuidor]]","v":0}]
["YAMAHA","XT660","PROTECTOR DE RADIADOR 2D",null,null,null,{"$f":"PRODUCTOS[[#This Row],[Cantidad]]*PRODUCTOS[[#This Row],[$ Distribuidor]]","v":0}]
["YAMAHA","XT660","PROTECTOR DE RADIADOR 3D",null,null,null,{"$f":"PRODUCTOS[[#This Row],[Cantidad]]*PRODUCTOS[[#This Row],[$ Distribuidor]]","v":0}]
["YAMAHA","XT660","PROTECTOR CALIPER MORDAZA 2D",12000,20000,null,{"$f":"PRODUCTOS[[#This Row],[Cantidad]]*PRODUCTOS[[#This Row],[$ Distribuidor]]","v":0}]
["YAMAHA","XT660","PROTECTOR CALIPER MORDAZA 3D",15000,25000,null,{"$f":"PRODUCTOS[[#This Row],[Cantidad]]*PRODUCTOS[[#This Row],[$ Distribuidor]]","v":0}]
["YAMAHA","XT660","PROTECTOR DEPOSITO LIQUIDO FRENO DELANTERO 2D",8000,20000,null,{"$f":"PRODUCTOS[[#This Row],[Cantidad]]*PRODUCTOS[[#This Row],[$ Distribuidor]]","v":0}]
["YAMAHA","XT660","PROTECTOR DEPOSITO LIQUIDO FRENO DELANTERO 3D",10000,25000,null,{"$f":"PRODUCTOS[[#This Row],[Cantidad]]*PRODUCTOS[[#This Row],[$ Distribuidor]]","v":0}]
["YAMAHA","XT660","PROTECTOR DEPOSITO LIQUIDO FRENO TRASERO 2D",13000,25000,null,{"$f":"PRODUCTOS[[#This Row],[Cantidad]]*PRODUCTOS[[#This Row],[$ Distribuidor]]","v":0}]
["YAMAHA","XT660","PROTECTOR DEPOSITO LIQUIDO FRENO TRASERO 3D",15000,28000,null,{"$f":"PRODUCTOS[[#This Row],[Cantidad]]*PRODUCTOS[[#This Row],[$ Distribuidor]]","v":0}]
["YAMAHA","XT660","PROTECTOR PLACA 2D",11000,20000,null,{"$f":"PRODUCTOS[[#This Row],[Cantidad]]*PRODUCTOS[[#This Row],[$ Distribuidor]]","v":0}]
["YAMAHA","XT660","PROTECTOR PLACA 3D",14000,25000,null,{"$f":"PRODUCTOS[[#This Row],[Cantidad]]*PRODUCTOS[[#This Row],[$ Distribuidor]]","v":0}]
["YAMAHA","XT660","CABALLETE O GATO DE SERVICIO ",125000,160000,null,{"$f":"PRODUCTOS[[#This Row],[Cantidad]]*PRODUCTOS[[#This Row],[$ Distribuidor]]","v":0}]
["YAMAHA","XT660","FENDER ELIMINATOR ABATIBLE 3 MILIMETROS PARA DIRECCIONALES ORIGINALES 2D",null,null,null,{"$f":"PRODUCTOS[[#This Row],[Cantidad]]*PRODUCTOS[[#This Row],[$ Distribuidor]]","v":0}]
["YAMAHA","XT660","FENDER ELIMINATOR ABATIBLE 3 MILIMETROS PARA DIRECCIONALES ORIGINALES 3D",null,null,null,{"$f":"PRODUCTOS[[#This Row],[Cantidad]]*PRODUCTOS[[#This Row],[$ Distribuidor]]","v":0}]
["YAMAHA","XTZ 125","SLIDER DE ALTO IMPACTO MOTOR 3 PUNTOS PREMIUM",100000,145000,null,{"$f":"PRODUCTOS[[#This Row],[Cantidad]]*PRODUCTOS[[#This Row],[$ Distribuidor]]","v":0}]
["YAMAHA","XTZ 125","SLIDER EJES X 4 CON TAPA",null,null,null,{"$f":"PRODUCTOS[[#This Row],[Cantidad]]*PRODUCTOS[[#This Row],[$ Distribuidor]]","v":0}]
["YAMAHA","XTZ 125","PROTECTOR DE RADIADOR 2D",null,null,null,{"$f":"PRODUCTOS[[#This Row],[Cantidad]]*PRODUCTOS[[#This Row],[$ Distribuidor]]","v":0}]
["YAMAHA","XTZ 125","PROTECTOR DE RADIADOR 3D",null,null,null,{"$f":"PRODUCTOS[[#This Row],[Cantidad]]*PRODUCTOS[[#This Row],[$ Distribuidor]]","v":0}]
["YAMAHA","XTZ 125","PROTECTOR CALIPER MORDAZA 2D",12000,20000,null,{"$f":"PRODUCTOS[[#This Row],[Cantidad]]*PRODUCTOS[[#This Row],[$ Distribuidor]]","v":0}]
["YAMAHA","XTZ 125","PROTECTOR CALIPER MORDAZA 3D",15000,25000,null,{"$f":"PRODUCTOS[[#This Row],[Cantidad]]*PRODUCTOS[[#This Row],[$ Distribuidor]]","v":0}]
["YAMAHA","XTZ 125","PROTECTOR DEPOSITO LIQUIDO FRENO DELANTERO 2D",8000,20000,null,{"$f":"PRODUCTOS[[#This Row],[Cantidad]]*PRODUCTOS[[#This Row],[$ Distribuidor]]","v":0}]
["YAMAHA","XTZ 125","PROTECTOR DEPOSITO LIQUIDO FRENO DELANTERO 3D",10000,25000,null,{"$f":"PRODUCTOS[[#This Row],[Cantidad]]*PRODUCTOS[[#This Row],[$ Distribuidor]]","v":0}]
["YAMAHA","XTZ 125","PROTECTOR DEPOSITO LIQUIDO FRENO TRASERO 2D",13000,25000,null,{"$f":"PRODUCTOS[[#This Row],[Cantidad]]*PRODUCTOS[[#This Row],[$ Distribuidor]]","v":0}]
["YAMAHA","XTZ 125","PROTECTOR DEPOSITO LIQUIDO FRENO TRASERO 3D",15000,28000,null,{"$f":"PRODUCTOS[[#This Row],[Cantidad]]*PRODUCTOS[[#This Row],[$ Distribuidor]]","v":0}]
["YAMAHA","XTZ 125","PROTECTOR PLACA 2D",11000,20000,null,{"$f":"PRODUCTOS[[#This Row],[Cantidad]]*PRODUCTOS[[#This Row],[$ Distribuidor]]","v":0}]
["YAMAHA","XTZ 125","PROTECTOR PLACA 3D",14000,25000,null,{"$f":"PRODUCTOS[[#This Row],[Cantidad]]*PRODUCTOS[[#This Row],[$ Distribuidor]]","v":0}]
["YAMAHA","XTZ 125","PROTECTOR FAROLA 3D",null,null,null,{"$f":"PRODUCTOS[[#This Row],[Cantidad]]*PRODUCTOS[[#This Row],[$ Distribuidor]]","v":0}]
["YAMAHA","XTZ 125","CABALLETE O GATO DE SERVICIO ",125000,160000,null,{"$f":"PRODUCTOS[[#This Row],[Cantidad]]*PRODUCTOS[[#This Row],[$ Distribuidor]]","v":0}]
["YAMAHA","XTZ 125","LUJO FILTRO ACEITE 2D",5000,10000,null,{"$f":"PRODUCTOS[[#This Row],[Cantidad]]*PRODUCTOS[[#This Row],[$ Distribuidor]]","v":0}]
["YAMAHA","XTZ 125","LUJO FILTRO ACEITE 3D",6000,12000,null,{"$f":"PRODUCTOS[[#This Row],[Cantidad]]*PRODUCTOS[[#This Row],[$ Distribuidor]]","v":0}]
["YAMAHA","XTZ 150","SLIDER DE ALTO IMPACTO MOTOR 3 PUNTOS PREMIUM",100000,145000,null,{"$f":"PRODUCTOS[[#This Row],[Cantidad]]*PRODUCTOS[[#This Row],[$ Distribuidor]]","v":0}]
["YAMAHA","XTZ 150","SLIDER EJES X 4 CON TAPA",null,null,null,{"$f":"PRODUCTOS[[#This Row],[Cantidad]]*PRODUCTOS[[#This Row],[$ Distribuidor]]","v":0}]
["YAMAHA","XTZ 150","PROTECTOR DE RADIADOR 2D",null,null,null,{"$f":"PRODUCTOS[[#This Row],[Cantidad]]*PRODUCTOS[[#This Row],[$ Distribuidor]]","v":0}]
["YAMAHA","XTZ 150","PROTECTOR DE RADIADOR 3D",null,null,null,{"$f":"PRODUCTOS[[#This Row],[Cantidad]]*PRODUCTOS[[#This Row],[$ Distribuidor]]","v":0}]
["YAMAHA","XTZ 150","PROTECTOR CALIPER MORDAZA 2D",12000,20000,null,{"$f":"PRODUCTOS[[#This Row],[Cantidad]]*PRODUCTOS[[#This Row],[$ Distribuidor]]","v":0}]
["YAMAHA","XTZ 150","PROTECTOR CALIPER MORDAZA 3D",15000,25000,null,{"$f":"PRODUCTOS[[#This Row],[Cantidad]]*PRODUCTOS[[#This Row],[$ Distribuidor]]","v":0}]
["YAMAHA","XTZ 150","PROTECTOR DEPOSITO LIQUIDO FRENO DELANTERO 2D",8000,20000,null,{"$f":"PRODUCTOS[[#This Row],[Cantidad]]*PRODUCTOS[[#This Row],[$ Distribuidor]]","v":0}]
["YAMAHA","XTZ 150","PROTECTOR DEPOSITO LIQUIDO FRENO DELANTERO 3D",10000,25000,null,{"$f":"PRODUCTOS[[#This Row],[Cantidad]]*PRODUCTOS[[#This Row],[$ Distribuidor]]","v":0}]
["YAMAHA","XTZ 150","PROTECTOR DEPOSITO LIQUIDO FRENO TRASERO 2D",13000,25000,null,{"$f":"PRODUCTOS[[#This Row],[Cantidad]]*PRODUCTOS[[#This Row],[$ Distribuidor]]","v":0}]
["YAMAHA","XTZ 150","PROTECTOR DEPOSITO LIQUIDO FRENO TRASERO 3D",15000,28000,null,{"$f":"PRODUCTOS[[#This Row],[Cantidad]]*PRODUCTOS[[#This Row],[$ Distribuidor]]","v":0}]
["YAMAHA","XTZ 150","PROTECTOR PLACA 2D",11000,20000,null,{"$f":"PRODUCTOS[[#This Row],[Cantidad]]*PRODUCTOS[[#This Row],[$ Distribuidor]]","v":0}]
["YAMAHA","XTZ 150","PROTECTOR PLACA 3D",14000,25000,null,{"$f":"PRODUCTOS[[#This Row],[Cantidad]]*PRODUCTOS[[#This Row],[$ Distribuidor]]","v":0}]
["YAMAHA","XTZ 150","PROTECTOR FAROLA 3D",null,null,null,{"$f":"PRODUCTOS[[#This Row],[Cantidad]]*PRODUCTOS[[#This Row],[$ Distribuidor]]","v":0}]
["YAMAHA","XTZ 150","CABALLETE O GATO DE SERVICIO ",125000,160000,null,{"$f":"PRODUCTOS[[#This Row],[Cantidad]]*PRODUCTOS[[#This Row],[$ Distribuidor]]","v":0}]
["YAMAHA","XTZ 150","LUJO FILTRO ACEITE 2D",5000,10000,null,{"$f":"PRODUCTOS[[#This Row],[Cantidad]]*PRODUCTOS[[#This Row],[$ Distribuidor]]","v":0}]
["YAMAHA","XTZ 150","LUJO FILTRO ACEITE 3D",6000,12000,null,{"$f":"PRODUCTOS[[#This Row],[Cantidad]]*PRODUCTOS[[#This Row],[$ Distribuidor]]","v":0}]
["YAMAHA","XTZ 250","SLIDER DE ALTO IMPACTO MOTOR 3 PUNTOS PREMIUM",100000,145000,null,{"$f":"PRODUCTOS[[#This Row],[Cantidad]]*PRODUCTOS[[#This Row],[$ Distribuidor]]","v":0}]
["YAMAHA","XTZ 250","SLIDER EJES X 4 CON TAPA",null,null,null,{"$f":"PRODUCTOS[[#This Row],[Cantidad]]*PRODUCTOS[[#This Row],[$ Distribuidor]]","v":0}]
["YAMAHA","XTZ 250","PROTECTOR DE RADIADOR 2D",null,null,null,{"$f":"PRODUCTOS[[#This Row],[Cantidad]]*PRODUCTOS[[#This Row],[$ Distribuidor]]","v":0}]
["YAMAHA","XTZ 250","PROTECTOR DE RADIADOR 3D",null,null,null,{"$f":"PRODUCTOS[[#This Row],[Cantidad]]*PRODUCTOS[[#This Row],[$ Distribuidor]]","v":0}]
["YAMAHA","XTZ 250","PROTECTOR CALIPER MORDAZA 2D",12000,20000,null,{"$f":"PRODUCTOS[[#This Row],[Cantidad]]*PRODUCTOS[[#This Row],[$ Distribuidor]]","v":0}]
["YAMAHA","XTZ 250","PROTECTOR CALIPER MORDAZA 3D",15000,25000,null,{"$f":"PRODUCTOS[[#This Row],[Cantidad]]*PRODUCTOS[[#This Row],[$ Distribuidor]]","v":0}]
["YAMAHA","XTZ 250","PROTECTOR DEPOSITO LIQUIDO FRENO DELANTERO 2D",8000,20000,null,{"$f":"PRODUCTOS[[#This Row],[Cantidad]]*PRODUCTOS[[#This Row],[$ Distribuidor]]","v":0}]
["YAMAHA","XTZ 250","PROTECTOR DEPOSITO LIQUIDO FRENO DELANTERO 3D",10000,25000,null,{"$f":"PRODUCTOS[[#This Row],[Cantidad]]*PRODUCTOS[[#This Row],[$ Distribuidor]]","v":0}]
["YAMAHA","XTZ 250","PROTECTOR DEPOSITO LIQUIDO FRENO TRASERO 2D",13000,25000,null,{"$f":"PRODUCTOS[[#This Row],[Cantidad]]*PRODUCTOS[[#This Row],[$ Distribuidor]]","v":0}]
["YAMAHA","XTZ 250","PROTECTOR DEPOSITO LIQUIDO FRENO TRASERO 3D",15000,28000,null,{"$f":"PRODUCTOS[[#This Row],[Cantidad]]*PRODUCTOS[[#This Row],[$ Distribuidor]]","v":0}]
["YAMAHA","XTZ 250","PROTECTOR PLACA 2D",11000,20000,null,{"$f":"PRODUCTOS[[#This Row],[Cantidad]]*PRODUCTOS[[#This Row],[$ Distribuidor]]","v":0}]
["YAMAHA","XTZ 250","PROTECTOR PLACA 3D",14000,25000,null,{"$f":"PRODUCTOS[[#This Row],[Cantidad]]*PRODUCTOS[[#This Row],[$ Distribuidor]]","v":0}]
["YAMAHA","XTZ 250","PROTECTOR FAROLA 3D",null,null,null,{"$f":"PRODUCTOS[[#This Row],[Cantidad]]*PRODUCTOS[[#This Row],[$ Distribuidor]]","v":0}]
["YAMAHA","XTZ 250","CABALLETE O GATO DE SERVICIO ",125000,160000,null,{"$f":"PRODUCTOS[[#This Row],[Cantidad]]*PRODUCTOS[[#This Row],[$ Distribuidor]]","v":0}]
["YAMAHA","XTZ 250","LUJO FILTRO ACEITE 2D",5000,10000,null,{"$f":"PRODUCTOS[[#This Row],[Cantidad]]*PRODUCTOS[[#This Row],[$ Distribuidor]]","v":0}]
["YAMAHA","XTZ 250","LUJO FILTRO ACEITE 3D",6000,12000,null,{"$f":"PRODUCTOS[[#This Row],[Cantidad]]*PRODUCTOS[[#This Row],[$ Distribuidor]]","v":0}]
["YAMAHA","XSR 900","SLIDER DE ALTO IMPACTO MOTOR 2 PUNTOS PREMIUM",90000,115000,null,{"$f":"PRODUCTOS[[#This Row],[Cantidad]]*PRODUCTOS[[#This Row],[$ Distribuidor]]","v":0}]
["YAMAHA","XSR 900","SLIDER EJES X 4 CON TAPA",null,null,null,{"$f":"PRODUCTOS[[#This Row],[Cantidad]]*PRODUCTOS[[#This Row],[$ Distribuidor]]","v":0}]
["YAMAHA","XSR 900","PROTECTOR DE RADIADOR 2D",null,null,null,{"$f":"PRODUCTOS[[#This Row],[Cantidad]]*PRODUCTOS[[#This Row],[$ Distribuidor]]","v":0}]
["YAMAHA","XSR 900","PROTECTOR DE RADIADOR 3D",null,null,null,{"$f":"PRODUCTOS[[#This Row],[Cantidad]]*PRODUCTOS[[#This Row],[$ Distribuidor]]","v":0}]
["YAMAHA","XSR 900","PROTECTOR DEPOSITO LIQUIDO FRENO DELANTERO 2D",8000,20000,null,{"$f":"PRODUCTOS[[#This Row],[Cantidad]]*PRODUCTOS[[#This Row],[$ Distribuidor]]","v":0}]
["YAMAHA","XSR 900","PROTECTOR DEPOSITO LIQUIDO FRENO DELANTERO 3D",10000,25000,null,{"$f":"PRODUCTOS[[#This Row],[Cantidad]]*PRODUCTOS[[#This Row],[$ Distribuidor]]","v":0}]
["YAMAHA","XSR 900","PROTECTOR DEPOSITO LIQUIDO FRENO TRASERO 2D",13000,25000,null,{"$f":"PRODUCTOS[[#This Row],[Cantidad]]*PRODUCTOS[[#This Row],[$ Distribuidor]]","v":0}]
["YAMAHA","XSR 900","PROTECTOR DEPOSITO LIQUIDO FRENO TRASERO 3D",15000,28000,null,{"$f":"PRODUCTOS[[#This Row],[Cantidad]]*PRODUCTOS[[#This Row],[$ Distribuidor]]","v":0}]
["YAMAHA","XSR 900","PROTECTOR ARO GASOLINA",11000,20000,null,{"$f":"PRODUCTOS[[#This Row],[Cantidad]]*PRODUCTOS[[#This Row],[$ Distribuidor]]","v":0}]
["YAMAHA","XSR 900","PROTECTOR PLACA 2D",11000,20000,null,{"$f":"PRODUCTOS[[#This Row],[Cantidad]]*PRODUCTOS[[#This Row],[$ Distribuidor]]","v":0}]
["YAMAHA","XSR 900","PROTECTOR PLACA 3D",14000,25000,null,{"$f":"PRODUCTOS[[#This Row],[Cantidad]]*PRODUCTOS[[#This Row],[$ Distribuidor]]","v":0}]
["YAMAHA","XSR 900","PROTECTOR FAROLA 3D",null,null,null,{"$f":"PRODUCTOS[[#This Row],[Cantidad]]*PRODUCTOS[[#This Row],[$ Distribuidor]]","v":0}]
["YAMAHA","XSR 900","PROTECTORES LATERALES TANQUE ",null,null,null,{"$f":"PRODUCTOS[[#This Row],[Cantidad]]*PRODUCTOS[[#This Row],[$ Distribuidor]]","v":0}]
["YAMAHA","XSR 900","SPOOLS PARA CABALLETE",20000,40000,null,{"$f":"PRODUCTOS[[#This Row],[Cantidad]]*PRODUCTOS[[#This Row],[$ Distribuidor]]","v":0}]
["YAMAHA","XSR 900","CABALLETE O GATO DE SERVICIO ",125000,160000,null,{"$f":"PRODUCTOS[[#This Row],[Cantidad]]*PRODUCTOS[[#This Row],[$ Distribuidor]]","v":0}]
["YAMAHA","XJ6 SIN LATERALES","PROTECTOR DE RADIADOR 2D",null,null,null,{"$f":"PRODUCTOS[[#This Row],[Cantidad]]*PRODUCTOS[[#This Row],[$ Distribuidor]]","v":0}]
["YAMAHA","XJ6 SIN LATERALES","PROTECTOR DE RADIADOR 3D",null,null,null,{"$f":"PRODUCTOS[[#This Row],[Cantidad]]*PRODUCTOS[[#This Row],[$ Distribuidor]]","v":0}]
["YAMAHA","XJ6 SIN LATERALES","PROTECTOR DEPOSITO LIQUIDO FRENO DELANTERO 2D",8000,20000,null,{"$f":"PRODUCTOS[[#This Row],[Cantidad]]*PRODUCTOS[[#This Row],[$ Distribuidor]]","v":0}]
["YAMAHA","XJ6 SIN LATERALES","PROTECTOR DEPOSITO LIQUIDO FRENO DELANTERO 3D",10000,25000,null,{"$f":"PRODUCTOS[[#This Row],[Cantidad]]*PRODUCTOS[[#This Row],[$ Distribuidor]]","v":0}]
["YAMAHA","XJ6 SIN LATERALES","PROTECTOR DEPOSITO LIQUIDO FRENO TRASERO 2D",13000,25000,null,{"$f":"PRODUCTOS[[#This Row],[Cantidad]]*PRODUCTOS[[#This Row],[$ Distribuidor]]","v":0}]
["YAMAHA","XJ6 SIN LATERALES","PROTECTOR DEPOSITO LIQUIDO FRENO TRASERO 3D",15000,28000,null,{"$f":"PRODUCTOS[[#This Row],[Cantidad]]*PRODUCTOS[[#This Row],[$ Distribuidor]]","v":0}]
["YAMAHA","XJ6 SIN LATERALES","PROTECTOR PLACA 2D",11000,20000,null,{"$f":"PRODUCTOS[[#This Row],[Cantidad]]*PRODUCTOS[[#This Row],[$ Distribuidor]]","v":0}]
["YAMAHA","XJ6 SIN LATERALES","PROTECTOR PLACA 3D",14000,25000,null,{"$f":"PRODUCTOS[[#This Row],[Cantidad]]*PRODUCTOS[[#This Row],[$ Distribuidor]]","v":0}]
["YAMAHA","XJ6 SIN LATERALES","SPOOLS PARA CABALLETE",20000,40000,null,{"$f":"PRODUCTOS[[#This Row],[Cantidad]]*PRODUCTOS[[#This Row],[$ Distribuidor]]","v":0}]
["YAMAHA","XJ6 SIN LATERALES","CABALLETE O GATO DE SERVICIO ",125000,160000,null,{"$f":"PRODUCTOS[[#This Row],[Cantidad]]*PRODUCTOS[[#This Row],[$ Distribuidor]]","v":0}]
["YAMAHA","XJ6 CON LATERALES","PROTECTOR DE RADIADOR 2D",null,null,null,{"$f":"PRODUCTOS[[#This Row],[Cantidad]]*PRODUCTOS[[#This Row],[$ Distribuidor]]","v":0}]
["YAMAHA","XJ6 CON LATERALES","PROTECTOR DE RADIADOR 3D",null,null,null,{"$f":"PRODUCTOS[[#This Row],[Cantidad]]*PRODUCTOS[[#This Row],[$ Distribuidor]]","v":0}]
["YAMAHA","XJ6 CON LATERALES","PROTECTOR DEPOSITO LIQUIDO FRENO DELANTERO 2D",8000,20000,null,{"$f":"PRODUCTOS[[#This Row],[Cantidad]]*PRODUCTOS[[#This Row],[$ Distribuidor]]","v":0}]
["YAMAHA","XJ6 CON LATERALES","PROTECTOR DEPOSITO LIQUIDO FRENO DELANTERO 3D",10000,25000,null,{"$f":"PRODUCTOS[[#This Row],[Cantidad]]*PRODUCTOS[[#This Row],[$ Distribuidor]]","v":0}]
["YAMAHA","XJ6 CON LATERALES","PROTECTOR DEPOSITO LIQUIDO FRENO TRASERO 2D",13000,25000,null,{"$f":"PRODUCTOS[[#This Row],[Cantidad]]*PRODUCTOS[[#This Row],[$ Distribuidor]]","v":0}]
["YAMAHA","XJ6 CON LATERALES","PROTECTOR DEPOSITO LIQUIDO FRENO TRASERO 3D",15000,28000,null,{"$f":"PRODUCTOS[[#This Row],[Cantidad]]*PRODUCTOS[[#This Row],[$ Distribuidor]]","v":0}]
["YAMAHA","XJ6 CON LATERALES","PROTECTOR PLACA 2D",11000,20000,null,{"$f":"PRODUCTOS[[#This Row],[Cantidad]]*PRODUCTOS[[#This Row],[$ Distribuidor]]","v":0}]
["YAMAHA","XJ6 CON LATERALES","PROTECTOR PLACA 3D",14000,25000,null,{"$f":"PRODUCTOS[[#This Row],[Cantidad]]*PRODUCTOS[[#This Row],[$ Distribuidor]]","v":0}]
["YAMAHA","XJ6 CON LATERALES","SPOOLS PARA CABALLETE",20000,40000,null,{"$f":"PRODUCTOS[[#This Row],[Cantidad]]*PRODUCTOS[[#This Row],[$ Distribuidor]]","v":0}]
["YAMAHA","XJ6 CON LATERALES","CABALLETE O GATO DE SERVICIO ",125000,160000,null,{"$f":"PRODUCTOS[[#This Row],[Cantidad]]*PRODUCTOS[[#This Row],[$ Distribuidor]]","v":0}]
["YAMAHA","TRACER V1 ","SLIDER DE ALTO IMPACTO MOTOR 2 PUNTOS PREMIUM",90000,115000,null,{"$f":"PRODUCTOS[[#This Row],[Cantidad]]*PRODUCTOS[[#This Row],[$ Distribuidor]]","v":0}]
["YAMAHA","TRACER V1 ","SLIDER EJES X 4 CON TAPA",null,null,null,{"$f":"PRODUCTOS[[#This Row],[Cantidad]]*PRODUCTOS[[#This Row],[$ Distribuidor]]","v":0}]
["YAMAHA","TRACER V1","PROTECTOR DE RADIADOR 2D",null,null,null,{"$f":"PRODUCTOS[[#This Row],[Cantidad]]*PRODUCTOS[[#This Row],[$ Distribuidor]]","v":0}]
["YAMAHA","TRACER V1","PROTECTOR DE RADIADOR 3D",null,null,null,{"$f":"PRODUCTOS[[#This Row],[Cantidad]]*PRODUCTOS[[#This Row],[$ Distribuidor]]","v":0}]
["YAMAHA","TRACER V1","PROTECTOR DEPOSITO LIQUIDO FRENO DELANTERO 2D",8000,20000,null,{"$f":"PRODUCTOS[[#This Row],[Cantidad]]*PRODUCTOS[[#This Row],[$ Distribuidor]]","v":0}]
["YAMAHA","TRACER V1","PROTECTOR DEPOSITO LIQUIDO FRENO DELANTERO 3D",10000,25000,null,{"$f":"PRODUCTOS[[#This Row],[Cantidad]]*PRODUCTOS[[#This Row],[$ Distribuidor]]","v":0}]
["YAMAHA","TRACER V1","PROTECTOR DEPOSITO LIQUIDO FRENO TRASERO 2D",13000,25000,null,{"$f":"PRODUCTOS[[#This Row],[Cantidad]]*PRODUCTOS[[#This Row],[$ Distribuidor]]","v":0}]
["YAMAHA","TRACER V1","PROTECTOR DEPOSITO LIQUIDO FRENO TRASERO 3D",15000,28000,null,{"$f":"PRODUCTOS[[#This Row],[Cantidad]]*PRODUCTOS[[#This Row],[$ Distribuidor]]","v":0}]
["YAMAHA","TRACER V1","PROTECTOR ARO GASOLINA",11000,20000,null,{"$f":"PRODUCTOS[[#This Row],[Cantidad]]*PRODUCTOS[[#This Row],[$ Distribuidor]]","v":0}]
["YAMAHA","TRACER V1","PROTECTOR PLACA 2D",11000,20000,null,{"$f":"PRODUCTOS[[#This Row],[Cantidad]]*PRODUCTOS[[#This Row],[$ Distribuidor]]","v":0}]
["YAMAHA","TRACER V1","PROTECTOR PLACA 3D",14000,25000,null,{"$f":"PRODUCTOS[[#This Row],[Cantidad]]*PRODUCTOS[[#This Row],[$ Distribuidor]]","v":0}]
["YAMAHA","TRACER V1","PROTECTOR FAROLA 3D",null,null,null,{"$f":"PRODUCTOS[[#This Row],[Cantidad]]*PRODUCTOS[[#This Row],[$ Distribuidor]]","v":0}]
["YAMAHA","TRACER V1","SPOOLS PARA CABALLETE",20000,40000,null,{"$f":"PRODUCTOS[[#This Row],[Cantidad]]*PRODUCTOS[[#This Row],[$ Distribuidor]]","v":0}]
["YAMAHA","TRACER V1","CABALLETE O GATO DE SERVICIO ",125000,160000,null,{"$f":"PRODUCTOS[[#This Row],[Cantidad]]*PRODUCTOS[[#This Row],[$ Distribuidor]]","v":0}]
["YAMAHA","TRACER V1","FENDER ELIMINATOR ABATIBLE 3 MILIMETROS PARA DIRECCIONALES ORIGINALES 2D",null,null,null,{"$f":"PRODUCTOS[[#This Row],[Cantidad]]*PRODUCTOS[[#This Row],[$ Distribuidor]]","v":0}]
["YAMAHA","TRACER V1","FENDER ELIMINATOR ABATIBLE 3 MILIMETROS PARA DIRECCIONALES ORIGINALES 3D",null,null,null,{"$f":"PRODUCTOS[[#This Row],[Cantidad]]*PRODUCTOS[[#This Row],[$ Distribuidor]]","v":0}]
["YAMAHA","TRACER 9","SLIDER DE ALTO IMPACTO MOTOR 2 PUNTOS PREMIUM",90000,115000,null,{"$f":"PRODUCTOS[[#This Row],[Cantidad]]*PRODUCTOS[[#This Row],[$ Distribuidor]]","v":0}]
["YAMAHA","TRACER 9","SLIDER EJES X 4 CON TAPA",null,null,null,{"$f":"PRODUCTOS[[#This Row],[Cantidad]]*PRODUCTOS[[#This Row],[$ Distribuidor]]","v":0}]
["YAMAHA","TRACER 9","PROTECTOR DE RADIADOR 2D",null,null,null,{"$f":"PRODUCTOS[[#This Row],[Cantidad]]*PRODUCTOS[[#This Row],[$ Distribuidor]]","v":0}]
["YAMAHA","TRACER 9","PROTECTOR DE RADIADOR 3D",null,null,null,{"$f":"PRODUCTOS[[#This Row],[Cantidad]]*PRODUCTOS[[#This Row],[$ Distribuidor]]","v":0}]
["YAMAHA","TRACER 9","PROTECTOR DEPOSITO LIQUIDO FRENO DELANTERO 2D",8000,20000,null,{"$f":"PRODUCTOS[[#This Row],[Cantidad]]*PRODUCTOS[[#This Row],[$ Distribuidor]]","v":0}]
["YAMAHA","TRACER 9","PROTECTOR DEPOSITO LIQUIDO FRENO DELANTERO 3D",10000,25000,null,{"$f":"PRODUCTOS[[#This Row],[Cantidad]]*PRODUCTOS[[#This Row],[$ Distribuidor]]","v":0}]
["YAMAHA","TRACER 9","PROTECTOR DEPOSITO LIQUIDO FRENO TRASERO 2D",13000,25000,null,{"$f":"PRODUCTOS[[#This Row],[Cantidad]]*PRODUCTOS[[#This Row],[$ Distribuidor]]","v":0}]
["YAMAHA","TRACER 9","PROTECTOR DEPOSITO LIQUIDO FRENO TRASERO 3D",15000,28000,null,{"$f":"PRODUCTOS[[#This Row],[Cantidad]]*PRODUCTOS[[#This Row],[$ Distribuidor]]","v":0}]
["YAMAHA","TRACER 9","PROTECTOR ARO GASOLINA",11000,20000,null,{"$f":"PRODUCTOS[[#This Row],[Cantidad]]*PRODUCTOS[[#This Row],[$ Distribuidor]]","v":0}]
["YAMAHA","TRACER 9","PROTECTOR PLACA 2D",11000,20000,null,{"$f":"PRODUCTOS[[#This Row],[Cantidad]]*PRODUCTOS[[#This Row],[$ Distribuidor]]","v":0}]
["YAMAHA","TRACER 9","PROTECTOR PLACA 3D",14000,25000,null,{"$f":"PRODUCTOS[[#This Row],[Cantidad]]*PRODUCTOS[[#This Row],[$ Distribuidor]]","v":0}]
["YAMAHA","TRACER 9","PROTECTOR FAROLA 3D",null,null,null,{"$f":"PRODUCTOS[[#This Row],[Cantidad]]*PRODUCTOS[[#This Row],[$ Distribuidor]]","v":0}]
["YAMAHA","TRACER 9","SPOOLS PARA CABALLETE",20000,40000,null,{"$f":"PRODUCTOS[[#This Row],[Cantidad]]*PRODUCTOS[[#This Row],[$ Distribuidor]]","v":0}]
["YAMAHA","TRACER 9","CABALLETE O GATO DE SERVICIO ",125000,160000,null,{"$f":"PRODUCTOS[[#This Row],[Cantidad]]*PRODUCTOS[[#This Row],[$ Distribuidor]]","v":0}]
["YAMAHA","TRACER 9","PROTECTOR IMU",null,null,null,{"$f":"PRODUCTOS[[#This Row],[Cantidad]]*PRODUCTOS[[#This Row],[$ Distribuidor]]","v":0}]
["SUZUKI","GSXS 150","SLIDER DE ALTO IMPACTO MOTOR 1 PUNTOS PREMIUM",null,null,null,{"$f":"PRODUCTOS[[#This Row],[Cantidad]]*PRODUCTOS[[#This Row],[$ Distribuidor]]","v":0}]
["SUZUKI","GSXS 150","SLIDER DE ALTO IMPACTO MOTOR 2 PUNTOS PREMIUM",90000,115000,null,{"$f":"PRODUCTOS[[#This Row],[Cantidad]]*PRODUCTOS[[#This Row],[$ Distribuidor]]","v":0}]
["SUZUKI","GSXS 150","SLIDER EXOSTO O MOFLE",30000,50000,null,{"$f":"PRODUCTOS[[#This Row],[Cantidad]]*PRODUCTOS[[#This Row],[$ Distribuidor]]","v":0}]
["SUZUKI","GSXS 150","SPOOLS PARA CABALLETE",20000,40000,null,{"$f":"PRODUCTOS[[#This Row],[Cantidad]]*PRODUCTOS[[#This Row],[$ Distribuidor]]","v":0}]
["SUZUKI","GSXS 150","SLIDER EJES X 4 CON TAPA",null,null,null,{"$f":"PRODUCTOS[[#This Row],[Cantidad]]*PRODUCTOS[[#This Row],[$ Distribuidor]]","v":0}]
["SUZUKI","GSXS 150","PROTECTOR DE RADIADOR 2D",null,null,null,{"$f":"PRODUCTOS[[#This Row],[Cantidad]]*PRODUCTOS[[#This Row],[$ Distribuidor]]","v":0}]
["SUZUKI","GSXS 150","PROTECTOR DE RADIADOR 3D",null,null,null,{"$f":"PRODUCTOS[[#This Row],[Cantidad]]*PRODUCTOS[[#This Row],[$ Distribuidor]]","v":0}]
["SUZUKI","GSXS 150","PROTECTOR CALIPER MORDAZA 2D",12000,20000,null,{"$f":"PRODUCTOS[[#This Row],[Cantidad]]*PRODUCTOS[[#This Row],[$ Distribuidor]]","v":0}]
["SUZUKI","GSXS 150","PROTECTOR CALIPER MORDAZA 3D",15000,25000,null,{"$f":"PRODUCTOS[[#This Row],[Cantidad]]*PRODUCTOS[[#This Row],[$ Distribuidor]]","v":0}]
["SUZUKI","GSXS 150","PROTECTOR DEPOSITO LIQUIDO FRENO DELANTERO 2D",8000,20000,null,{"$f":"PRODUCTOS[[#This Row],[Cantidad]]*PRODUCTOS[[#This Row],[$ Distribuidor]]","v":0}]
["SUZUKI","GSXS 150","PROTECTOR DEPOSITO LIQUIDO FRENO DELANTERO 3D",10000,25000,null,{"$f":"PRODUCTOS[[#This Row],[Cantidad]]*PRODUCTOS[[#This Row],[$ Distribuidor]]","v":0}]
["SUZUKI","GSXS 150","PROTECTOR DEPOSITO LIQUIDO FRENO TRASERO 2D",13000,25000,null,{"$f":"PRODUCTOS[[#This Row],[Cantidad]]*PRODUCTOS[[#This Row],[$ Distribuidor]]","v":0}]
["SUZUKI","GSXS 150","PROTECTOR DEPOSITO LIQUIDO FRENO TRASERO 3D",15000,28000,null,{"$f":"PRODUCTOS[[#This Row],[Cantidad]]*PRODUCTOS[[#This Row],[$ Distribuidor]]","v":0}]
["SUZUKI","GSXS 150","PROTECTOR ARO GASOLINA",11000,20000,null,{"$f":"PRODUCTOS[[#This Row],[Cantidad]]*PRODUCTOS[[#This Row],[$ Distribuidor]]","v":0}]
["SUZUKI","GSXS 150","PROTECTOR PLACA 2D",11000,20000,null,{"$f":"PRODUCTOS[[#This Row],[Cantidad]]*PRODUCTOS[[#This Row],[$ Distribuidor]]","v":0}]
["SUZUKI","GSXS 150","PROTECTOR PLACA 3D",14000,25000,null,{"$f":"PRODUCTOS[[#This Row],[Cantidad]]*PRODUCTOS[[#This Row],[$ Distribuidor]]","v":0}]
["SUZUKI","GSXS 150","PROTECTOR FAROLA 3D",null,null,null,{"$f":"PRODUCTOS[[#This Row],[Cantidad]]*PRODUCTOS[[#This Row],[$ Distribuidor]]","v":0}]
["SUZUKI","GSXS 150","SPOOLS PARA CABALLETE",20000,40000,null,{"$f":"PRODUCTOS[[#This Row],[Cantidad]]*PRODUCTOS[[#This Row],[$ Distribuidor]]","v":0}]
["SUZUKI","GSXS 150","CABALLETE O GATO DE SERVICIO ",125000,160000,null,{"$f":"PRODUCTOS[[#This Row],[Cantidad]]*PRODUCTOS[[#This Row],[$ Distribuidor]]","v":0}]
["SUZUKI","GSXS 150","LUJO ACUTRAX MANUBRIO CENTRAL 2D",15000,23000,null,{"$f":"PRODUCTOS[[#This Row],[Cantidad]]*PRODUCTOS[[#This Row],[$ Distribuidor]]","v":0}]
["SUZUKI","GSXS 150","FENDER ELIMINATOR ABATIBLE 3 MILIMETROS PARA DIRECCIONALES ORIGINALES 2D",null,null,null,{"$f":"PRODUCTOS[[#This Row],[Cantidad]]*PRODUCTOS[[#This Row],[$ Distribuidor]]","v":0}]
["SUZUKI","GSXS 150","FENDER ELIMINATOR ABATIBLE 3 MILIMETROS PARA DIRECCIONALES ORIGINALES 3D",null,null,null,{"$f":"PRODUCTOS[[#This Row],[Cantidad]]*PRODUCTOS[[#This Row],[$ Distribuidor]]","v":0}]
["SUZUKI","GSXS 150","PROTECTOR TACOMETRO ACRILICO",11000,17000,null,{"$f":"PRODUCTOS[[#This Row],[Cantidad]]*PRODUCTOS[[#This Row],[$ Distribuidor]]","v":0}]
["SUZUKI","GSXR 150","SLIDER DE ALTO IMPACTO MOTOR 1 PUNTOS PREMIUM",null,null,null,{"$f":"PRODUCTOS[[#This Row],[Cantidad]]*PRODUCTOS[[#This Row],[$ Distribuidor]]","v":0}]
["SUZUKI","GSXR 150","SLIDER DE ALTO IMPACTO MOTOR 2 PUNTOS PREMIUM",90000,115000,null,{"$f":"PRODUCTOS[[#This Row],[Cantidad]]*PRODUCTOS[[#This Row],[$ Distribuidor]]","v":0}]
["SUZUKI","GSXR 150","SLIDER EXOSTO O MOFLE",30000,50000,null,{"$f":"PRODUCTOS[[#This Row],[Cantidad]]*PRODUCTOS[[#This Row],[$ Distribuidor]]","v":0}]
["SUZUKI","GSXR 150","SPOOLS PARA CABALLETE",20000,40000,null,{"$f":"PRODUCTOS[[#This Row],[Cantidad]]*PRODUCTOS[[#This Row],[$ Distribuidor]]","v":0}]
["SUZUKI","GSXR 150","SLIDER EJES X 4 CON TAPA",null,null,null,{"$f":"PRODUCTOS[[#This Row],[Cantidad]]*PRODUCTOS[[#This Row],[$ Distribuidor]]","v":0}]
["SUZUKI","GSXR 150","PROTECTOR DE RADIADOR 2D",null,null,null,{"$f":"PRODUCTOS[[#This Row],[Cantidad]]*PRODUCTOS[[#This Row],[$ Distribuidor]]","v":0}]
["SUZUKI","GSXR 150","PROTECTOR DE RADIADOR 3D",null,null,null,{"$f":"PRODUCTOS[[#This Row],[Cantidad]]*PRODUCTOS[[#This Row],[$ Distribuidor]]","v":0}]
["SUZUKI","GSXR 150","PROTECTOR CALIPER MORDAZA 2D",12000,20000,null,{"$f":"PRODUCTOS[[#This Row],[Cantidad]]*PRODUCTOS[[#This Row],[$ Distribuidor]]","v":0}]
["SUZUKI","GSXR 150","PROTECTOR CALIPER MORDAZA 3D",15000,25000,null,{"$f":"PRODUCTOS[[#This Row],[Cantidad]]*PRODUCTOS[[#This Row],[$ Distribuidor]]","v":0}]
["SUZUKI","GSXR 150","PROTECTOR DEPOSITO LIQUIDO FRENO DELANTERO 2D",8000,20000,null,{"$f":"PRODUCTOS[[#This Row],[Cantidad]]*PRODUCTOS[[#This Row],[$ Distribuidor]]","v":0}]
["SUZUKI","GSXR 150","PROTECTOR DEPOSITO LIQUIDO FRENO DELANTERO 3D",10000,25000,null,{"$f":"PRODUCTOS[[#This Row],[Cantidad]]*PRODUCTOS[[#This Row],[$ Distribuidor]]","v":0}]
["SUZUKI","GSXR 150","PROTECTOR DEPOSITO LIQUIDO FRENO TRASERO 2D",13000,25000,null,{"$f":"PRODUCTOS[[#This Row],[Cantidad]]*PRODUCTOS[[#This Row],[$ Distribuidor]]","v":0}]
["SUZUKI","GSXR 150","PROTECTOR DEPOSITO LIQUIDO FRENO TRASERO 3D",15000,28000,null,{"$f":"PRODUCTOS[[#This Row],[Cantidad]]*PRODUCTOS[[#This Row],[$ Distribuidor]]","v":0}]
["SUZUKI","GSXR 150","PROTECTOR ARO GASOLINA",11000,20000,null,{"$f":"PRODUCTOS[[#This Row],[Cantidad]]*PRODUCTOS[[#This Row],[$ Distribuidor]]","v":0}]
["SUZUKI","GSXR 150","PROTECTOR PLACA 2D",11000,20000,null,{"$f":"PRODUCTOS[[#This Row],[Cantidad]]*PRODUCTOS[[#This Row],[$ Distribuidor]]","v":0}]
["SUZUKI","GSXR 150","PROTECTOR PLACA 3D",14000,25000,null,{"$f":"PRODUCTOS[[#This Row],[Cantidad]]*PRODUCTOS[[#This Row],[$ Distribuidor]]","v":0}]
["SUZUKI","GSXR 150","PROTECTOR FAROLA 3D",null,null,null,{"$f":"PRODUCTOS[[#This Row],[Cantidad]]*PRODUCTOS[[#This Row],[$ Distribuidor]]","v":0}]
["SUZUKI","GSXR 150","SPOOLS PARA CABALLETE",20000,40000,null,{"$f":"PRODUCTOS[[#This Row],[Cantidad]]*PRODUCTOS[[#This Row],[$ Distribuidor]]","v":0}]
["SUZUKI","GSXR 150","CABALLETE O GATO DE SERVICIO ",125000,160000,null,{"$f":"PRODUCTOS[[#This Row],[Cantidad]]*PRODUCTOS[[#This Row],[$ Distribuidor]]","v":0}]
["SUZUKI","GSXR 150","LUJO ACUTRAX MANUBRIO CENTRAL 2D",15000,23000,null,{"$f":"PRODUCTOS[[#This Row],[Cantidad]]*PRODUCTOS[[#This Row],[$ Distribuidor]]","v":0}]
["SUZUKI","GSXR 150","LUJO ACUTRAX MANUBRIO CENTRAL 3D",18000,25000,null,{"$f":"PRODUCTOS[[#This Row],[Cantidad]]*PRODUCTOS[[#This Row],[$ Distribuidor]]","v":0}]
["SUZUKI","GSXR 150","LUJO GUARDABARRO TRASERO LATERAL 2D ",null,null,null,{"$f":"PRODUCTOS[[#This Row],[Cantidad]]*PRODUCTOS[[#This Row],[$ Distribuidor]]","v":0}]
["SUZUKI","GSXR 150","BASE PORTA CELULAR GPS",null,null,null,{"$f":"PRODUCTOS[[#This Row],[Cantidad]]*PRODUCTOS[[#This Row],[$ Distribuidor]]","v":0}]
["SUZUKI","GSXR 150","FENDER ELIMINATOR ABATIBLE 3 MILIMETROS PARA DIRECCIONALES ORIGINALES 2D",null,null,null,{"$f":"PRODUCTOS[[#This Row],[Cantidad]]*PRODUCTOS[[#This Row],[$ Distribuidor]]","v":0}]
["SUZUKI","GSXR 150","FENDER ELIMINATOR ABATIBLE 3 MILIMETROS PARA DIRECCIONALES ORIGINALES 3D",null,null,null,{"$f":"PRODUCTOS[[#This Row],[Cantidad]]*PRODUCTOS[[#This Row],[$ Distribuidor]]","v":0}]
["SUZUKI","GSXR 150","PROTECTOR TACOMETRO ACRILICO",11000,17000,null,{"$f":"PRODUCTOS[[#This Row],[Cantidad]]*PRODUCTOS[[#This Row],[$ Distribuidor]]","v":0}]
["SUZUKI","GIXXER 150 NAKED","SLIDER DE ALTO IMPACTO MOTOR 3 PUNTOS PREMIUM",100000,145000,null,{"$f":"PRODUCTOS[[#This Row],[Cantidad]]*PRODUCTOS[[#This Row],[$ Distribuidor]]","v":0}]
["SUZUKI","GIXXER 150 NAKED","SLIDER EXOSTO O MOFLE",30000,50000,null,{"$f":"PRODUCTOS[[#This Row],[Cantidad]]*PRODUCTOS[[#This Row],[$ Distribuidor]]","v":0}]
["SUZUKI","GIXXER 150 NAKED","SPOOLS PARA CABALLETE",20000,40000,null,{"$f":"PRODUCTOS[[#This Row],[Cantidad]]*PRODUCTOS[[#This Row],[$ Distribuidor]]","v":0}]
["SUZUKI","GIXXER 150 NAKED","SLIDER EJES X 4 CON TAPA",null,null,null,{"$f":"PRODUCTOS[[#This Row],[Cantidad]]*PRODUCTOS[[#This Row],[$ Distribuidor]]","v":0}]
["SUZUKI","GIXXER 150 NAKED","PROTECTOR DE RADIADOR 2D",null,null,null,{"$f":"PRODUCTOS[[#This Row],[Cantidad]]*PRODUCTOS[[#This Row],[$ Distribuidor]]","v":0}]
["SUZUKI","GIXXER 150 NAKED","PROTECTOR DE RADIADOR 3D",null,null,null,{"$f":"PRODUCTOS[[#This Row],[Cantidad]]*PRODUCTOS[[#This Row],[$ Distribuidor]]","v":0}]
["SUZUKI","GIXXER 150 NAKED","PROTECTOR CALIPER MORDAZA 2D",12000,20000,null,{"$f":"PRODUCTOS[[#This Row],[Cantidad]]*PRODUCTOS[[#This Row],[$ Distribuidor]]","v":0}]
["SUZUKI","GIXXER 150 NAKED","PROTECTOR CALIPER MORDAZA 3D",15000,25000,null,{"$f":"PRODUCTOS[[#This Row],[Cantidad]]*PRODUCTOS[[#This Row],[$ Distribuidor]]","v":0}]
["SUZUKI","GIXXER 150 NAKED","PROTECTOR DEPOSITO LIQUIDO FRENO DELANTERO 2D",8000,20000,null,{"$f":"PRODUCTOS[[#This Row],[Cantidad]]*PRODUCTOS[[#This Row],[$ Distribuidor]]","v":0}]
["SUZUKI","GIXXER 150 NAKED","PROTECTOR DEPOSITO LIQUIDO FRENO DELANTERO 3D",10000,25000,null,{"$f":"PRODUCTOS[[#This Row],[Cantidad]]*PRODUCTOS[[#This Row],[$ Distribuidor]]","v":0}]
["SUZUKI","GIXXER 150 NAKED","PROTECTOR DEPOSITO LIQUIDO FRENO TRASERO 2D",13000,25000,null,{"$f":"PRODUCTOS[[#This Row],[Cantidad]]*PRODUCTOS[[#This Row],[$ Distribuidor]]","v":0}]
["SUZUKI","GIXXER 150 NAKED","PROTECTOR DEPOSITO LIQUIDO FRENO TRASERO 3D",15000,28000,null,{"$f":"PRODUCTOS[[#This Row],[Cantidad]]*PRODUCTOS[[#This Row],[$ Distribuidor]]","v":0}]
["SUZUKI","GIXXER 150 NAKED","PROTECTOR ARO GASOLINA",11000,20000,null,{"$f":"PRODUCTOS[[#This Row],[Cantidad]]*PRODUCTOS[[#This Row],[$ Distribuidor]]","v":0}]
["SUZUKI","GIXXER 150 NAKED","PROTECTOR PLACA 2D",11000,20000,null,{"$f":"PRODUCTOS[[#This Row],[Cantidad]]*PRODUCTOS[[#This Row],[$ Distribuidor]]","v":0}]
["SUZUKI","GIXXER 150 NAKED","PROTECTOR PLACA 3D",14000,25000,null,{"$f":"PRODUCTOS[[#This Row],[Cantidad]]*PRODUCTOS[[#This Row],[$ Distribuidor]]","v":0}]
["SUZUKI","GIXXER 150 NAKED","PROTECTOR MODULO ABS",null,null,null,{"$f":"PRODUCTOS[[#This Row],[Cantidad]]*PRODUCTOS[[#This Row],[$ Distribuidor]]","v":0}]
["SUZUKI","GIXXER 150 NAKED","CUPULA DE LUJO ACERO INOXIDABLE",null,null,null,{"$f":"PRODUCTOS[[#This Row],[Cantidad]]*PRODUCTOS[[#This Row],[$ Distribuidor]]","v":0}]
["SUZUKI","GIXXER 150 NAKED","CUBRE PIÑON SALIDA  2D",19000,25000,null,{"$f":"PRODUCTOS[[#This Row],[Cantidad]]*PRODUCTOS[[#This Row],[$ Distribuidor]]","v":0}]
["SUZUKI","GIXXER 150 NAKED","CUBRE PIÑON SALIDA  3D",22000,30000,null,{"$f":"PRODUCTOS[[#This Row],[Cantidad]]*PRODUCTOS[[#This Row],[$ Distribuidor]]","v":0}]
["SUZUKI","GIXXER 150 NAKED","CUBRE CADENA 2D",null,null,null,{"$f":"PRODUCTOS[[#This Row],[Cantidad]]*PRODUCTOS[[#This Row],[$ Distribuidor]]","v":0}]
["SUZUKI","GIXXER 150 NAKED","CUBRE CADENA 3D",null,null,null,{"$f":"PRODUCTOS[[#This Row],[Cantidad]]*PRODUCTOS[[#This Row],[$ Distribuidor]]","v":0}]
["SUZUKI","GIXXER 150 NAKED","LUJO LATERAL TIJERA ",null,null,null,{"$f":"PRODUCTOS[[#This Row],[Cantidad]]*PRODUCTOS[[#This Row],[$ Distribuidor]]","v":0}]
["SUZUKI","GIXXER 150 NAKED","PROTECTORES LATERALES DE RADIADOR X2  2D",null,null,null,{"$f":"PRODUCTOS[[#This Row],[Cantidad]]*PRODUCTOS[[#This Row],[$ Distribuidor]]","v":0}]
["SUZUKI","GIXXER 150 NAKED","PROTECTORES LATERALES DE RADIADOR X2  3D",null,null,null,{"$f":"PRODUCTOS[[#This Row],[Cantidad]]*PRODUCTOS[[#This Row],[$ Distribuidor]]","v":0}]
["SUZUKI","GIXXER 150 NAKED","SPOOLS PARA CABALLETE",20000,40000,null,{"$f":"PRODUCTOS[[#This Row],[Cantidad]]*PRODUCTOS[[#This Row],[$ Distribuidor]]","v":0}]
["SUZUKI","GIXXER 150 NAKED","CABALLETE O GATO DE SERVICIO ",125000,160000,null,{"$f":"PRODUCTOS[[#This Row],[Cantidad]]*PRODUCTOS[[#This Row],[$ Distribuidor]]","v":0}]
["SUZUKI","GIXXER 150 NAKED","LUJO ACUTRAX MANUBRIO CENTRAL 2D",15000,23000,null,{"$f":"PRODUCTOS[[#This Row],[Cantidad]]*PRODUCTOS[[#This Row],[$ Distribuidor]]","v":0}]
["SUZUKI","GIXXER 150 NAKED","LUJO ACUTRAX MANUBRIO CENTRAL 3D",18000,25000,null,{"$f":"PRODUCTOS[[#This Row],[Cantidad]]*PRODUCTOS[[#This Row],[$ Distribuidor]]","v":0}]
["SUZUKI","GIXXER 150 NAKED","LUJO MOTOR DE ARRANQUE",null,null,null,{"$f":"PRODUCTOS[[#This Row],[Cantidad]]*PRODUCTOS[[#This Row],[$ Distribuidor]]","v":0}]
["SUZUKI","GIXXER 150 NAKED","LUJO FILTRO ACEITE 2D",5000,10000,null,{"$f":"PRODUCTOS[[#This Row],[Cantidad]]*PRODUCTOS[[#This Row],[$ Distribuidor]]","v":0}]
["SUZUKI","GIXXER 150 NAKED","LUJO FILTRO ACEITE 3D",6000,12000,null,{"$f":"PRODUCTOS[[#This Row],[Cantidad]]*PRODUCTOS[[#This Row],[$ Distribuidor]]","v":0}]
["SUZUKI","GIXXER 150 NAKED","FENDER ELIMINATOR ABATIBLE 3 MILIMETROS PARA DIRECCIONALES ORIGINALES 2D",null,null,null,{"$f":"PRODUCTOS[[#This Row],[Cantidad]]*PRODUCTOS[[#This Row],[$ Distribuidor]]","v":0}]
["SUZUKI","GIXXER 150 NAKED","FENDER ELIMINATOR ABATIBLE 3 MILIMETROS PARA DIRECCIONALES ORIGINALES 3D",null,null,null,{"$f":"PRODUCTOS[[#This Row],[Cantidad]]*PRODUCTOS[[#This Row],[$ Distribuidor]]","v":0}]
["SUZUKI","GIXXER 150 NAKED","PROTECTOR TACOMETRO ACRILICO",11000,17000,null,{"$f":"PRODUCTOS[[#This Row],[Cantidad]]*PRODUCTOS[[#This Row],[$ Distribuidor]]","v":0}]
["SUZUKI","GIXXER 150 NAKED","ESTABILIZADOR DE BARRAS O DIRECCIONES ",null,null,null,{"$f":"PRODUCTOS[[#This Row],[Cantidad]]*PRODUCTOS[[#This Row],[$ Distribuidor]]","v":0}]
["SUZUKI","GIXXER 250 NAKED","SLIDER DE ALTO IMPACTO MOTOR 3 PUNTOS PREMIUM",100000,145000,null,{"$f":"PRODUCTOS[[#This Row],[Cantidad]]*PRODUCTOS[[#This Row],[$ Distribuidor]]","v":0}]
["SUZUKI","GIXXER 250 NAKED","SLIDER EXOSTO O MOFLE",30000,50000,null,{"$f":"PRODUCTOS[[#This Row],[Cantidad]]*PRODUCTOS[[#This Row],[$ Distribuidor]]","v":0}]
["SUZUKI","GIXXER 250 NAKED","SPOOLS PARA CABALLETE",20000,40000,null,{"$f":"PRODUCTOS[[#This Row],[Cantidad]]*PRODUCTOS[[#This Row],[$ Distribuidor]]","v":0}]
["SUZUKI","GIXXER 250 NAKED","SLIDER EJES X 4 CON TAPA",null,null,null,{"$f":"PRODUCTOS[[#This Row],[Cantidad]]*PRODUCTOS[[#This Row],[$ Distribuidor]]","v":0}]
["SUZUKI","GIXXER 250 NAKED","PROTECTOR DE RADIADOR 2D",null,null,null,{"$f":"PRODUCTOS[[#This Row],[Cantidad]]*PRODUCTOS[[#This Row],[$ Distribuidor]]","v":0}]
["SUZUKI","GIXXER 250 NAKED","PROTECTOR DE RADIADOR 3D",null,null,null,{"$f":"PRODUCTOS[[#This Row],[Cantidad]]*PRODUCTOS[[#This Row],[$ Distribuidor]]","v":0}]
["SUZUKI","GIXXER 250 NAKED","PROTECTOR CALIPER MORDAZA 2D",12000,20000,null,{"$f":"PRODUCTOS[[#This Row],[Cantidad]]*PRODUCTOS[[#This Row],[$ Distribuidor]]","v":0}]
["SUZUKI","GIXXER 250 NAKED","PROTECTOR CALIPER MORDAZA 3D",15000,25000,null,{"$f":"PRODUCTOS[[#This Row],[Cantidad]]*PRODUCTOS[[#This Row],[$ Distribuidor]]","v":0}]
["SUZUKI","GIXXER 250 NAKED","PROTECTOR DEPOSITO LIQUIDO FRENO DELANTERO 2D",8000,20000,null,{"$f":"PRODUCTOS[[#This Row],[Cantidad]]*PRODUCTOS[[#This Row],[$ Distribuidor]]","v":0}]
["SUZUKI","GIXXER 250 NAKED","PROTECTOR DEPOSITO LIQUIDO FRENO DELANTERO 3D",10000,25000,null,{"$f":"PRODUCTOS[[#This Row],[Cantidad]]*PRODUCTOS[[#This Row],[$ Distribuidor]]","v":0}]
["SUZUKI","GIXXER 250 NAKED","PROTECTOR DEPOSITO LIQUIDO FRENO TRASERO 2D",13000,25000,null,{"$f":"PRODUCTOS[[#This Row],[Cantidad]]*PRODUCTOS[[#This Row],[$ Distribuidor]]","v":0}]
["SUZUKI","GIXXER 250 NAKED","PROTECTOR DEPOSITO LIQUIDO FRENO TRASERO 3D",15000,28000,null,{"$f":"PRODUCTOS[[#This Row],[Cantidad]]*PRODUCTOS[[#This Row],[$ Distribuidor]]","v":0}]
["SUZUKI","GIXXER 250 NAKED","PROTECTOR ARO GASOLINA",11000,20000,null,{"$f":"PRODUCTOS[[#This Row],[Cantidad]]*PRODUCTOS[[#This Row],[$ Distribuidor]]","v":0}]
["SUZUKI","GIXXER 250 NAKED","PROTECTOR PLACA 2D",11000,20000,null,{"$f":"PRODUCTOS[[#This Row],[Cantidad]]*PRODUCTOS[[#This Row],[$ Distribuidor]]","v":0}]
["SUZUKI","GIXXER 250 NAKED","PROTECTOR PLACA 3D",14000,25000,null,{"$f":"PRODUCTOS[[#This Row],[Cantidad]]*PRODUCTOS[[#This Row],[$ Distribuidor]]","v":0}]
["SUZUKI","GIXXER 250 NAKED","PROTECTOR MODULO ABS",null,null,null,{"$f":"PRODUCTOS[[#This Row],[Cantidad]]*PRODUCTOS[[#This Row],[$ Distribuidor]]","v":0}]
["SUZUKI","GIXXER 250 NAKED","CUPULA DE LUJO ACERO INOXIDABLE",null,null,null,{"$f":"PRODUCTOS[[#This Row],[Cantidad]]*PRODUCTOS[[#This Row],[$ Distribuidor]]","v":0}]
["SUZUKI","GIXXER 250 NAKED","CUBRE PIÑON SALIDA  2D",19000,25000,null,{"$f":"PRODUCTOS[[#This Row],[Cantidad]]*PRODUCTOS[[#This Row],[$ Distribuidor]]","v":0}]
["SUZUKI","GIXXER 250 NAKED","CUBRE PIÑON SALIDA  3D",22000,30000,null,{"$f":"PRODUCTOS[[#This Row],[Cantidad]]*PRODUCTOS[[#This Row],[$ Distribuidor]]","v":0}]
["SUZUKI","GIXXER 250 NAKED","CUBRE CADENA 2D",null,null,null,{"$f":"PRODUCTOS[[#This Row],[Cantidad]]*PRODUCTOS[[#This Row],[$ Distribuidor]]","v":0}]
["SUZUKI","GIXXER 250 NAKED","CUBRE CADENA 3D",null,null,null,{"$f":"PRODUCTOS[[#This Row],[Cantidad]]*PRODUCTOS[[#This Row],[$ Distribuidor]]","v":0}]
["SUZUKI","GIXXER 250 NAKED","LUJO LATERAL TIJERA ",null,null,null,{"$f":"PRODUCTOS[[#This Row],[Cantidad]]*PRODUCTOS[[#This Row],[$ Distribuidor]]","v":0}]
["SUZUKI","GIXXER 250 NAKED","PROTECTORES LATERALES DE RADIADOR X2  2D",null,null,null,{"$f":"PRODUCTOS[[#This Row],[Cantidad]]*PRODUCTOS[[#This Row],[$ Distribuidor]]","v":0}]
["SUZUKI","GIXXER 250 NAKED","PROTECTORES LATERALES DE RADIADOR X2  3D",null,null,null,{"$f":"PRODUCTOS[[#This Row],[Cantidad]]*PRODUCTOS[[#This Row],[$ Distribuidor]]","v":0}]
["SUZUKI","GIXXER 250 NAKED","SPOOLS PARA CABALLETE",20000,40000,null,{"$f":"PRODUCTOS[[#This Row],[Cantidad]]*PRODUCTOS[[#This Row],[$ Distribuidor]]","v":0}]
["SUZUKI","GIXXER 250 NAKED","CABALLETE O GATO DE SERVICIO ",125000,160000,null,{"$f":"PRODUCTOS[[#This Row],[Cantidad]]*PRODUCTOS[[#This Row],[$ Distribuidor]]","v":0}]
["SUZUKI","GIXXER 250 NAKED","LUJO ACUTRAX MANUBRIO CENTRAL 2D",15000,23000,null,{"$f":"PRODUCTOS[[#This Row],[Cantidad]]*PRODUCTOS[[#This Row],[$ Distribuidor]]","v":0}]
["SUZUKI","GIXXER 250 NAKED","LUJO ACUTRAX MANUBRIO CENTRAL 3D",18000,25000,null,{"$f":"PRODUCTOS[[#This Row],[Cantidad]]*PRODUCTOS[[#This Row],[$ Distribuidor]]","v":0}]
["SUZUKI","GIXXER 250 NAKED","LUJO MOTOR DE ARRANQUE",null,null,null,{"$f":"PRODUCTOS[[#This Row],[Cantidad]]*PRODUCTOS[[#This Row],[$ Distribuidor]]","v":0}]
["SUZUKI","GIXXER 250 NAKED","LUJO FILTRO ACEITE 2D",5000,10000,null,{"$f":"PRODUCTOS[[#This Row],[Cantidad]]*PRODUCTOS[[#This Row],[$ Distribuidor]]","v":0}]
["SUZUKI","GIXXER 250 NAKED","LUJO FILTRO ACEITE 3D",6000,12000,null,{"$f":"PRODUCTOS[[#This Row],[Cantidad]]*PRODUCTOS[[#This Row],[$ Distribuidor]]","v":0}]
["SUZUKI","GIXXER 250 NAKED","FENDER ELIMINATOR ABATIBLE 3 MILIMETROS PARA DIRECCIONALES ORIGINALES 2D",null,null,null,{"$f":"PRODUCTOS[[#This Row],[Cantidad]]*PRODUCTOS[[#This Row],[$ Distribuidor]]","v":0}]
["SUZUKI","GIXXER 250 NAKED","FENDER ELIMINATOR ABATIBLE 3 MILIMETROS PARA DIRECCIONALES ORIGINALES 3D",null,null,null,{"$f":"PRODUCTOS[[#This Row],[Cantidad]]*PRODUCTOS[[#This Row],[$ Distribuidor]]","v":0}]
["SUZUKI","GIXXER 250 NAKED","PROTECTOR TACOMETRO ACRILICO",11000,17000,null,{"$f":"PRODUCTOS[[#This Row],[Cantidad]]*PRODUCTOS[[#This Row],[$ Distribuidor]]","v":0}]
["SUZUKI","GIXXER 250 NAKED","ESTABILIZADOR DE BARRAS O DIRECCIONES ",null,null,null,{"$f":"PRODUCTOS[[#This Row],[Cantidad]]*PRODUCTOS[[#This Row],[$ Distribuidor]]","v":0}]
["SUZUKI","GIXXER 150 SF","SLIDER DE ALTO IMPACTO MOTOR 2 PUNTOS PREMIUM",90000,115000,null,{"$f":"PRODUCTOS[[#This Row],[Cantidad]]*PRODUCTOS[[#This Row],[$ Distribuidor]]","v":0}]
["SUZUKI","GIXXER 150 SF","SLIDER EXOSTO O MOFLE",30000,50000,null,{"$f":"PRODUCTOS[[#This Row],[Cantidad]]*PRODUCTOS[[#This Row],[$ Distribuidor]]","v":0}]
["SUZUKI","GIXXER 150 SF","SLIDER EJES X 4 CON TAPA",null,null,null,{"$f":"PRODUCTOS[[#This Row],[Cantidad]]*PRODUCTOS[[#This Row],[$ Distribuidor]]","v":0}]
["SUZUKI","GIXXER 150 SF","PROTECTOR DE RADIADOR 2D",null,null,null,{"$f":"PRODUCTOS[[#This Row],[Cantidad]]*PRODUCTOS[[#This Row],[$ Distribuidor]]","v":0}]
["SUZUKI","GIXXER 150 SF","PROTECTOR DE RADIADOR 3D",null,null,null,{"$f":"PRODUCTOS[[#This Row],[Cantidad]]*PRODUCTOS[[#This Row],[$ Distribuidor]]","v":0}]
["SUZUKI","GIXXER 150 SF","PROTECTOR CALIPER MORDAZA 2D",12000,20000,null,{"$f":"PRODUCTOS[[#This Row],[Cantidad]]*PRODUCTOS[[#This Row],[$ Distribuidor]]","v":0}]
["SUZUKI","GIXXER 150 SF","PROTECTOR CALIPER MORDAZA 3D",15000,25000,null,{"$f":"PRODUCTOS[[#This Row],[Cantidad]]*PRODUCTOS[[#This Row],[$ Distribuidor]]","v":0}]
["SUZUKI","GIXXER 150 SF","PROTECTOR DEPOSITO LIQUIDO FRENO DELANTERO 2D",8000,20000,null,{"$f":"PRODUCTOS[[#This Row],[Cantidad]]*PRODUCTOS[[#This Row],[$ Distribuidor]]","v":0}]
["SUZUKI","GIXXER 150 SF","PROTECTOR DEPOSITO LIQUIDO FRENO DELANTERO 3D",10000,25000,null,{"$f":"PRODUCTOS[[#This Row],[Cantidad]]*PRODUCTOS[[#This Row],[$ Distribuidor]]","v":0}]
["SUZUKI","GIXXER 150 SF","PROTECTOR DEPOSITO LIQUIDO FRENO TRASERO 2D",13000,25000,null,{"$f":"PRODUCTOS[[#This Row],[Cantidad]]*PRODUCTOS[[#This Row],[$ Distribuidor]]","v":0}]
["SUZUKI","GIXXER 150 SF","PROTECTOR DEPOSITO LIQUIDO FRENO TRASERO 3D",15000,28000,null,{"$f":"PRODUCTOS[[#This Row],[Cantidad]]*PRODUCTOS[[#This Row],[$ Distribuidor]]","v":0}]
["SUZUKI","GIXXER 150 SF","PROTECTOR ARO GASOLINA",11000,20000,null,{"$f":"PRODUCTOS[[#This Row],[Cantidad]]*PRODUCTOS[[#This Row],[$ Distribuidor]]","v":0}]
["SUZUKI","GIXXER 150 SF","PROTECTOR PLACA 2D",11000,20000,null,{"$f":"PRODUCTOS[[#This Row],[Cantidad]]*PRODUCTOS[[#This Row],[$ Distribuidor]]","v":0}]
["SUZUKI","GIXXER 150 SF","PROTECTOR PLACA 3D",14000,25000,null,{"$f":"PRODUCTOS[[#This Row],[Cantidad]]*PRODUCTOS[[#This Row],[$ Distribuidor]]","v":0}]
["SUZUKI","GIXXER 150 SF"," SPOOLS PARA CABALLETE",20000,40000,null,{"$f":"PRODUCTOS[[#This Row],[Cantidad]]*PRODUCTOS[[#This Row],[$ Distribuidor]]","v":0}]
["SUZUKI","GIXXER 150 SF","LUJO LATERAL TIJERA ",null,null,null,{"$f":"PRODUCTOS[[#This Row],[Cantidad]]*PRODUCTOS[[#This Row],[$ Distribuidor]]","v":0}]
["SUZUKI","GIXXER 150 SF","CABALLETE O GATO DE SERVICIO ",125000,160000,null,{"$f":"PRODUCTOS[[#This Row],[Cantidad]]*PRODUCTOS[[#This Row],[$ Distribuidor]]","v":0}]
["SUZUKI","GIXXER 150 SF","LUJO ACUTRAX MANUBRIO CENTRAL 2D",15000,23000,null,{"$f":"PRODUCTOS[[#This Row],[Cantidad]]*PRODUCTOS[[#This Row],[$ Distribuidor]]","v":0}]
["SUZUKI","GIXXER 150 SF","LUJO ACUTRAX MANUBRIO CENTRAL 3D",18000,25000,null,{"$f":"PRODUCTOS[[#This Row],[Cantidad]]*PRODUCTOS[[#This Row],[$ Distribuidor]]","v":0}]
["SUZUKI","GIXXER 150 SF","LUJO FILTRO ACEITE 2D",5000,10000,null,{"$f":"PRODUCTOS[[#This Row],[Cantidad]]*PRODUCTOS[[#This Row],[$ Distribuidor]]","v":0}]
["SUZUKI","GIXXER 150 SF","LUJO FILTRO ACEITE 3D",6000,12000,null,{"$f":"PRODUCTOS[[#This Row],[Cantidad]]*PRODUCTOS[[#This Row],[$ Distribuidor]]","v":0}]
["SUZUKI","GIXXER 150 SF","LUJO MOTOR DE ARRANQUE",null,null,null,{"$f":"PRODUCTOS[[#This Row],[Cantidad]]*PRODUCTOS[[#This Row],[$ Distribuidor]]","v":0}]
["SUZUKI","GIXXER 150 SF","PROTECTOR MODULO ABS",null,null,null,{"$f":"PRODUCTOS[[#This Row],[Cantidad]]*PRODUCTOS[[#This Row],[$ Distribuidor]]","v":0}]
["SUZUKI","GIXXER 150 SF","FENDER ELIMINATOR ABATIBLE 3 MILIMETROS PARA DIRECCIONALES ORIGINALES 2D",null,null,null,{"$f":"PRODUCTOS[[#This Row],[Cantidad]]*PRODUCTOS[[#This Row],[$ Distribuidor]]","v":0}]
["SUZUKI","GIXXER 150 SF","FENDER ELIMINATOR ABATIBLE 3 MILIMETROS PARA DIRECCIONALES ORIGINALES 3D",null,null,null,{"$f":"PRODUCTOS[[#This Row],[Cantidad]]*PRODUCTOS[[#This Row],[$ Distribuidor]]","v":0}]
["SUZUKI","GIXXER 150 SF","PROTECTOR TACOMETRO ACRILICO",11000,17000,null,{"$f":"PRODUCTOS[[#This Row],[Cantidad]]*PRODUCTOS[[#This Row],[$ Distribuidor]]","v":0}]
["SUZUKI","GIXXER 250 SF","SLIDER DE ALTO IMPACTO MOTOR 2 PUNTOS PREMIUM",90000,115000,null,{"$f":"PRODUCTOS[[#This Row],[Cantidad]]*PRODUCTOS[[#This Row],[$ Distribuidor]]","v":0}]
["SUZUKI","GIXXER 250 SF","SLIDER EXOSTO O MOFLE",30000,50000,null,{"$f":"PRODUCTOS[[#This Row],[Cantidad]]*PRODUCTOS[[#This Row],[$ Distribuidor]]","v":0}]
["SUZUKI","GIXXER 250 SF","SLIDER EJES X 4 CON TAPA",null,null,null,{"$f":"PRODUCTOS[[#This Row],[Cantidad]]*PRODUCTOS[[#This Row],[$ Distribuidor]]","v":0}]
["SUZUKI","GIXXER 250 SF","PROTECTOR DE RADIADOR 2D",null,null,null,{"$f":"PRODUCTOS[[#This Row],[Cantidad]]*PRODUCTOS[[#This Row],[$ Distribuidor]]","v":0}]
["SUZUKI","GIXXER 250 SF","PROTECTOR DE RADIADOR 3D",null,null,null,{"$f":"PRODUCTOS[[#This Row],[Cantidad]]*PRODUCTOS[[#This Row],[$ Distribuidor]]","v":0}]
["SUZUKI","GIXXER 250 SF","PROTECTOR CALIPER MORDAZA 2D",12000,20000,null,{"$f":"PRODUCTOS[[#This Row],[Cantidad]]*PRODUCTOS[[#This Row],[$ Distribuidor]]","v":0}]
["SUZUKI","GIXXER 250 SF","PROTECTOR CALIPER MORDAZA 3D",15000,25000,null,{"$f":"PRODUCTOS[[#This Row],[Cantidad]]*PRODUCTOS[[#This Row],[$ Distribuidor]]","v":0}]
["SUZUKI","GIXXER 250 SF","PROTECTOR DEPOSITO LIQUIDO FRENO DELANTERO 2D",8000,20000,null,{"$f":"PRODUCTOS[[#This Row],[Cantidad]]*PRODUCTOS[[#This Row],[$ Distribuidor]]","v":0}]
["SUZUKI","GIXXER 250 SF","PROTECTOR DEPOSITO LIQUIDO FRENO DELANTERO 3D",10000,25000,null,{"$f":"PRODUCTOS[[#This Row],[Cantidad]]*PRODUCTOS[[#This Row],[$ Distribuidor]]","v":0}]
["SUZUKI","GIXXER 250 SF","PROTECTOR DEPOSITO LIQUIDO FRENO TRASERO 2D",13000,25000,null,{"$f":"PRODUCTOS[[#This Row],[Cantidad]]*PRODUCTOS[[#This Row],[$ Distribuidor]]","v":0}]
["SUZUKI","GIXXER 250 SF","PROTECTOR DEPOSITO LIQUIDO FRENO TRASERO 3D",15000,28000,null,{"$f":"PRODUCTOS[[#This Row],[Cantidad]]*PRODUCTOS[[#This Row],[$ Distribuidor]]","v":0}]
["SUZUKI","GIXXER 250 SF","PROTECTOR ARO GASOLINA",11000,20000,null,{"$f":"PRODUCTOS[[#This Row],[Cantidad]]*PRODUCTOS[[#This Row],[$ Distribuidor]]","v":0}]
["SUZUKI","GIXXER 250 SF","PROTECTOR PLACA 2D",11000,20000,null,{"$f":"PRODUCTOS[[#This Row],[Cantidad]]*PRODUCTOS[[#This Row],[$ Distribuidor]]","v":0}]
["SUZUKI","GIXXER 250 SF","PROTECTOR PLACA 3D",14000,25000,null,{"$f":"PRODUCTOS[[#This Row],[Cantidad]]*PRODUCTOS[[#This Row],[$ Distribuidor]]","v":0}]
["SUZUKI","GIXXER 250 SF"," SPOOLS PARA CABALLETE",20000,40000,null,{"$f":"PRODUCTOS[[#This Row],[Cantidad]]*PRODUCTOS[[#This Row],[$ Distribuidor]]","v":0}]
["SUZUKI","GIXXER 250 SF","LUJO LATERAL TIJERA ",null,null,null,{"$f":"PRODUCTOS[[#This Row],[Cantidad]]*PRODUCTOS[[#This Row],[$ Distribuidor]]","v":0}]
["SUZUKI","GIXXER 250 SF","CABALLETE O GATO DE SERVICIO ",125000,160000,null,{"$f":"PRODUCTOS[[#This Row],[Cantidad]]*PRODUCTOS[[#This Row],[$ Distribuidor]]","v":0}]
["SUZUKI","GIXXER 250 SF","LUJO ACUTRAX MANUBRIO CENTRAL 2D",15000,23000,null,{"$f":"PRODUCTOS[[#This Row],[Cantidad]]*PRODUCTOS[[#This Row],[$ Distribuidor]]","v":0}]
["SUZUKI","GIXXER 250 SF","LUJO ACUTRAX MANUBRIO CENTRAL 3D",18000,25000,null,{"$f":"PRODUCTOS[[#This Row],[Cantidad]]*PRODUCTOS[[#This Row],[$ Distribuidor]]","v":0}]
["SUZUKI","GIXXER 250 SF","LUJO FILTRO ACEITE 2D",5000,10000,null,{"$f":"PRODUCTOS[[#This Row],[Cantidad]]*PRODUCTOS[[#This Row],[$ Distribuidor]]","v":0}]
["SUZUKI","GIXXER 250 SF","LUJO FILTRO ACEITE 3D",6000,12000,null,{"$f":"PRODUCTOS[[#This Row],[Cantidad]]*PRODUCTOS[[#This Row],[$ Distribuidor]]","v":0}]
["SUZUKI","GIXXER 250 SF","LUJO MOTOR DE ARRANQUE",null,null,null,{"$f":"PRODUCTOS[[#This Row],[Cantidad]]*PRODUCTOS[[#This Row],[$ Distribuidor]]","v":0}]
["SUZUKI","GIXXER 250 SF","PROTECTOR MODULO ABS",null,null,null,{"$f":"PRODUCTOS[[#This Row],[Cantidad]]*PRODUCTOS[[#This Row],[$ Distribuidor]]","v":0}]
["SUZUKI","GIXXER 250 SF","FENDER ELIMINATOR ABATIBLE 3 MILIMETROS PARA DIRECCIONALES ORIGINALES 2D",null,null,null,{"$f":"PRODUCTOS[[#This Row],[Cantidad]]*PRODUCTOS[[#This Row],[$ Distribuidor]]","v":0}]
["SUZUKI","GIXXER 250 SF","FENDER ELIMINATOR ABATIBLE 3 MILIMETROS PARA DIRECCIONALES ORIGINALES 3D",null,null,null,{"$f":"PRODUCTOS[[#This Row],[Cantidad]]*PRODUCTOS[[#This Row],[$ Distribuidor]]","v":0}]
["SUZUKI","GIXXER 250 SF","PROTECTOR TACOMETRO ACRILICO",11000,17000,null,{"$f":"PRODUCTOS[[#This Row],[Cantidad]]*PRODUCTOS[[#This Row],[$ Distribuidor]]","v":0}]
["SUZUKI","GN 125",null,null,null,null,{"$f":"PRODUCTOS[[#This Row],[Cantidad]]*PRODUCTOS[[#This Row],[$ Distribuidor]]","v":0}]
["SUZUKI","GN 125",null,null,null,null,{"$f":"PRODUCTOS[[#This Row],[Cantidad]]*PRODUCTOS[[#This Row],[$ Distribuidor]]","v":0}]
["SUZUKI","GN 125",null,null,null,null,{"$f":"PRODUCTOS[[#This Row],[Cantidad]]*PRODUCTOS[[#This Row],[$ Distribuidor]]","v":0}]
["SUZUKI","GN 125",null,null,null,null,{"$f":"PRODUCTOS[[#This Row],[Cantidad]]*PRODUCTOS[[#This Row],[$ Distribuidor]]","v":0}]
["SUZUKI","GN 125",null,null,null,null,{"$f":"PRODUCTOS[[#This Row],[Cantidad]]*PRODUCTOS[[#This Row],[$ Distribuidor]]","v":0}]
["SUZUKI","GSR 750","SLIDER DE ALTO IMPACTO MOTOR 1 PUNTOS PREMIUM",null,null,null,{"$f":"PRODUCTOS[[#This Row],[Cantidad]]*PRODUCTOS[[#This Row],[$ Distribuidor]]","v":0}]
["SUZUKI","GSR 750","SPOOLS PARA CABALLETE",20000,40000,null,{"$f":"PRODUCTOS[[#This Row],[Cantidad]]*PRODUCTOS[[#This Row],[$ Distribuidor]]","v":0}]
["SUZUKI","GSR 750","SLIDER EJES X 4 CON TAPA",null,null,null,{"$f":"PRODUCTOS[[#This Row],[Cantidad]]*PRODUCTOS[[#This Row],[$ Distribuidor]]","v":0}]
["SUZUKI","GSR 750","PROTECTOR DE RADIADOR 2D",null,null,null,{"$f":"PRODUCTOS[[#This Row],[Cantidad]]*PRODUCTOS[[#This Row],[$ Distribuidor]]","v":0}]
["SUZUKI","GSR 750","PROTECTOR DE RADIADOR 3D",null,null,null,{"$f":"PRODUCTOS[[#This Row],[Cantidad]]*PRODUCTOS[[#This Row],[$ Distribuidor]]","v":0}]
["SUZUKI","GSR 750","PROTECTOR DEPOSITO LIQUIDO FRENO DELANTERO 2D",8000,20000,null,{"$f":"PRODUCTOS[[#This Row],[Cantidad]]*PRODUCTOS[[#This Row],[$ Distribuidor]]","v":0}]
["SUZUKI","GSR 750","PROTECTOR DEPOSITO LIQUIDO FRENO DELANTERO 3D",10000,25000,null,{"$f":"PRODUCTOS[[#This Row],[Cantidad]]*PRODUCTOS[[#This Row],[$ Distribuidor]]","v":0}]
["SUZUKI","GSR 750","PROTECTOR DEPOSITO LIQUIDO FRENO TRASERO 2D",13000,25000,null,{"$f":"PRODUCTOS[[#This Row],[Cantidad]]*PRODUCTOS[[#This Row],[$ Distribuidor]]","v":0}]
["SUZUKI","GSR 750","PROTECTOR DEPOSITO LIQUIDO FRENO TRASERO 3D",15000,28000,null,{"$f":"PRODUCTOS[[#This Row],[Cantidad]]*PRODUCTOS[[#This Row],[$ Distribuidor]]","v":0}]
["SUZUKI","GSR 750","PROTECTOR ARO GASOLINA",11000,20000,null,{"$f":"PRODUCTOS[[#This Row],[Cantidad]]*PRODUCTOS[[#This Row],[$ Distribuidor]]","v":0}]
["SUZUKI","GSR 750","PROTECTOR PLACA 2D",11000,20000,null,{"$f":"PRODUCTOS[[#This Row],[Cantidad]]*PRODUCTOS[[#This Row],[$ Distribuidor]]","v":0}]
["SUZUKI","GSR 750","PROTECTOR PLACA 3D",14000,25000,null,{"$f":"PRODUCTOS[[#This Row],[Cantidad]]*PRODUCTOS[[#This Row],[$ Distribuidor]]","v":0}]
["SUZUKI","GSR 750","CABALLETE O GATO DE SERVICIO ",125000,160000,null,{"$f":"PRODUCTOS[[#This Row],[Cantidad]]*PRODUCTOS[[#This Row],[$ Distribuidor]]","v":0}]
["SUZUKI","GSR 750","FENDER ELIMINATOR ABATIBLE 3 MILIMETROS PARA DIRECCIONALES ORIGINALES 2D",null,null,null,{"$f":"PRODUCTOS[[#This Row],[Cantidad]]*PRODUCTOS[[#This Row],[$ Distribuidor]]","v":0}]
["SUZUKI","GSR 750","FENDER ELIMINATOR ABATIBLE 3 MILIMETROS PARA DIRECCIONALES ORIGINALES 3D",null,null,null,{"$f":"PRODUCTOS[[#This Row],[Cantidad]]*PRODUCTOS[[#This Row],[$ Distribuidor]]","v":0}]
["SUZUKI","GSR 600","SLIDER DE ALTO IMPACTO MOTOR 1 PUNTOS PREMIUM",null,null,null,{"$f":"PRODUCTOS[[#This Row],[Cantidad]]*PRODUCTOS[[#This Row],[$ Distribuidor]]","v":0}]
["SUZUKI","GSR 600","SPOOLS PARA CABALLETE",20000,40000,null,{"$f":"PRODUCTOS[[#This Row],[Cantidad]]*PRODUCTOS[[#This Row],[$ Distribuidor]]","v":0}]
["SUZUKI","GSR 600","SLIDER EJES X 4 CON TAPA",null,null,null,{"$f":"PRODUCTOS[[#This Row],[Cantidad]]*PRODUCTOS[[#This Row],[$ Distribuidor]]","v":0}]
["SUZUKI","GSR 600","PROTECTOR DE RADIADOR 2D",null,null,null,{"$f":"PRODUCTOS[[#This Row],[Cantidad]]*PRODUCTOS[[#This Row],[$ Distribuidor]]","v":0}]
["SUZUKI","GSR 600","PROTECTOR DE RADIADOR 3D",null,null,null,{"$f":"PRODUCTOS[[#This Row],[Cantidad]]*PRODUCTOS[[#This Row],[$ Distribuidor]]","v":0}]
["SUZUKI","GSR 600","PROTECTOR DEPOSITO LIQUIDO FRENO DELANTERO 2D",8000,20000,null,{"$f":"PRODUCTOS[[#This Row],[Cantidad]]*PRODUCTOS[[#This Row],[$ Distribuidor]]","v":0}]
["SUZUKI","GSR 600","PROTECTOR DEPOSITO LIQUIDO FRENO DELANTERO 3D",10000,25000,null,{"$f":"PRODUCTOS[[#This Row],[Cantidad]]*PRODUCTOS[[#This Row],[$ Distribuidor]]","v":0}]
["SUZUKI","GSR 600","PROTECTOR DEPOSITO LIQUIDO FRENO TRASERO 2D",13000,25000,null,{"$f":"PRODUCTOS[[#This Row],[Cantidad]]*PRODUCTOS[[#This Row],[$ Distribuidor]]","v":0}]
["SUZUKI","GSR 600","PROTECTOR DEPOSITO LIQUIDO FRENO TRASERO 3D",15000,28000,null,{"$f":"PRODUCTOS[[#This Row],[Cantidad]]*PRODUCTOS[[#This Row],[$ Distribuidor]]","v":0}]
["SUZUKI","GSR 600","PROTECTOR ARO GASOLINA",11000,20000,null,{"$f":"PRODUCTOS[[#This Row],[Cantidad]]*PRODUCTOS[[#This Row],[$ Distribuidor]]","v":0}]
["SUZUKI","GSR 600","PROTECTOR PLACA 2D",11000,20000,null,{"$f":"PRODUCTOS[[#This Row],[Cantidad]]*PRODUCTOS[[#This Row],[$ Distribuidor]]","v":0}]
["SUZUKI","GSR 600","PROTECTOR PLACA 3D",14000,25000,null,{"$f":"PRODUCTOS[[#This Row],[Cantidad]]*PRODUCTOS[[#This Row],[$ Distribuidor]]","v":0}]
["SUZUKI","GSR 600","CABALLETE O GATO DE SERVICIO ",125000,160000,null,{"$f":"PRODUCTOS[[#This Row],[Cantidad]]*PRODUCTOS[[#This Row],[$ Distribuidor]]","v":0}]
["SUZUKI","GSR 600","FENDER ELIMINATOR ABATIBLE 3 MILIMETROS PARA DIRECCIONALES ORIGINALES 2D",null,null,null,{"$f":"PRODUCTOS[[#This Row],[Cantidad]]*PRODUCTOS[[#This Row],[$ Distribuidor]]","v":0}]
["SUZUKI","GSR 600","FENDER ELIMINATOR ABATIBLE 3 MILIMETROS PARA DIRECCIONALES ORIGINALES 3D",null,null,null,{"$f":"PRODUCTOS[[#This Row],[Cantidad]]*PRODUCTOS[[#This Row],[$ Distribuidor]]","v":0}]
["SUZUKI","GSXS 750","SLIDER DE ALTO IMPACTO MOTOR 1 PUNTOS PREMIUM",null,null,null,{"$f":"PRODUCTOS[[#This Row],[Cantidad]]*PRODUCTOS[[#This Row],[$ Distribuidor]]","v":0}]
["SUZUKI","GSXS 750","SLIDER EXOSTO O MOFLE",30000,50000,null,{"$f":"PRODUCTOS[[#This Row],[Cantidad]]*PRODUCTOS[[#This Row],[$ Distribuidor]]","v":0}]
["SUZUKI","GSXS 750","SLIDER EJES X 4 CON TAPA",null,null,null,{"$f":"PRODUCTOS[[#This Row],[Cantidad]]*PRODUCTOS[[#This Row],[$ Distribuidor]]","v":0}]
["SUZUKI","GSXS 750","PROTECTOR DE RADIADOR 2D",null,null,null,{"$f":"PRODUCTOS[[#This Row],[Cantidad]]*PRODUCTOS[[#This Row],[$ Distribuidor]]","v":0}]
["SUZUKI","GSXS 750","PROTECTOR DE RADIADOR 3D",null,null,null,{"$f":"PRODUCTOS[[#This Row],[Cantidad]]*PRODUCTOS[[#This Row],[$ Distribuidor]]","v":0}]
["SUZUKI","GSXS 750","SPOOLS PARA CABALLETE",20000,40000,null,{"$f":"PRODUCTOS[[#This Row],[Cantidad]]*PRODUCTOS[[#This Row],[$ Distribuidor]]","v":0}]
["SUZUKI","GSXS 750","PROTECTOR DEPOSITO LIQUIDO FRENO DELANTERO 2D",8000,20000,null,{"$f":"PRODUCTOS[[#This Row],[Cantidad]]*PRODUCTOS[[#This Row],[$ Distribuidor]]","v":0}]
["SUZUKI","GSXS 750","PROTECTOR DEPOSITO LIQUIDO FRENO DELANTERO 3D",10000,25000,null,{"$f":"PRODUCTOS[[#This Row],[Cantidad]]*PRODUCTOS[[#This Row],[$ Distribuidor]]","v":0}]
["SUZUKI","GSXS 750","PROTECTOR DEPOSITO LIQUIDO FRENO TRASERO 2D",13000,25000,null,{"$f":"PRODUCTOS[[#This Row],[Cantidad]]*PRODUCTOS[[#This Row],[$ Distribuidor]]","v":0}]
["SUZUKI","GSXS 750","PROTECTOR DEPOSITO LIQUIDO FRENO TRASERO 3D",15000,28000,null,{"$f":"PRODUCTOS[[#This Row],[Cantidad]]*PRODUCTOS[[#This Row],[$ Distribuidor]]","v":0}]
["SUZUKI","GSXS 750","PROTECTOR ARO GASOLINA",11000,20000,null,{"$f":"PRODUCTOS[[#This Row],[Cantidad]]*PRODUCTOS[[#This Row],[$ Distribuidor]]","v":0}]
["SUZUKI","GSXS 750","PROTECTOR PLACA 2D",11000,20000,null,{"$f":"PRODUCTOS[[#This Row],[Cantidad]]*PRODUCTOS[[#This Row],[$ Distribuidor]]","v":0}]
["SUZUKI","GSXS 750","PROTECTOR PLACA 3D",14000,25000,null,{"$f":"PRODUCTOS[[#This Row],[Cantidad]]*PRODUCTOS[[#This Row],[$ Distribuidor]]","v":0}]
["SUZUKI","GSXS 750","CABALLETE O GATO DE SERVICIO ",125000,160000,null,{"$f":"PRODUCTOS[[#This Row],[Cantidad]]*PRODUCTOS[[#This Row],[$ Distribuidor]]","v":0}]
["SUZUKI","GSXS 750","FENDER ELIMINATOR ABATIBLE 3 MILIMETROS PARA DIRECCIONALES ORIGINALES 2D",null,null,null,{"$f":"PRODUCTOS[[#This Row],[Cantidad]]*PRODUCTOS[[#This Row],[$ Distribuidor]]","v":0}]
["SUZUKI","GSXS 750","FENDER ELIMINATOR ABATIBLE 3 MILIMETROS PARA DIRECCIONALES ORIGINALES 3D",null,null,null,{"$f":"PRODUCTOS[[#This Row],[Cantidad]]*PRODUCTOS[[#This Row],[$ Distribuidor]]","v":0}]
["SUZUKI","GSXS 750","PROTECTOR TACOMETRO ACRILICO",11000,17000,null,{"$f":"PRODUCTOS[[#This Row],[Cantidad]]*PRODUCTOS[[#This Row],[$ Distribuidor]]","v":0}]
["SUZUKI","GSXR 600","SLIDER DE ALTO IMPACTO MOTOR 1 PUNTOS PREMIUM",null,null,null,{"$f":"PRODUCTOS[[#This Row],[Cantidad]]*PRODUCTOS[[#This Row],[$ Distribuidor]]","v":0}]
["SUZUKI","GSXR 600","SLIDER EJES X 4 CON TAPA",null,null,null,{"$f":"PRODUCTOS[[#This Row],[Cantidad]]*PRODUCTOS[[#This Row],[$ Distribuidor]]","v":0}]
["SUZUKI","GSXR 600","PROTECTOR DE RADIADOR 2D",null,null,null,{"$f":"PRODUCTOS[[#This Row],[Cantidad]]*PRODUCTOS[[#This Row],[$ Distribuidor]]","v":0}]
["SUZUKI","GSXR 600","PROTECTOR DE RADIADOR 3D",null,null,null,{"$f":"PRODUCTOS[[#This Row],[Cantidad]]*PRODUCTOS[[#This Row],[$ Distribuidor]]","v":0}]
["SUZUKI","GSXR 600","PROTECTOR PLACA 2D",11000,20000,null,{"$f":"PRODUCTOS[[#This Row],[Cantidad]]*PRODUCTOS[[#This Row],[$ Distribuidor]]","v":0}]
["SUZUKI","GSXR 600","PROTECTOR PLACA 3D",14000,25000,null,{"$f":"PRODUCTOS[[#This Row],[Cantidad]]*PRODUCTOS[[#This Row],[$ Distribuidor]]","v":0}]
["SUZUKI","GSXR 600","PROTECTOR FAROLA 3D",null,null,null,{"$f":"PRODUCTOS[[#This Row],[Cantidad]]*PRODUCTOS[[#This Row],[$ Distribuidor]]","v":0}]
["SUZUKI","GSXR 600","SPOOLS PARA CABALLETE",20000,40000,null,{"$f":"PRODUCTOS[[#This Row],[Cantidad]]*PRODUCTOS[[#This Row],[$ Distribuidor]]","v":0}]
["SUZUKI","GSXR 600","CABALLETE O GATO DE SERVICIO ",125000,160000,null,{"$f":"PRODUCTOS[[#This Row],[Cantidad]]*PRODUCTOS[[#This Row],[$ Distribuidor]]","v":0}]
["SUZUKI","GSXR 600","FENDER ELIMINATOR ABATIBLE 3 MILIMETROS PARA DIRECCIONALES ORIGINALES 2D",null,null,null,{"$f":"PRODUCTOS[[#This Row],[Cantidad]]*PRODUCTOS[[#This Row],[$ Distribuidor]]","v":0}]
["SUZUKI","GSXR 600","FENDER ELIMINATOR ABATIBLE 3 MILIMETROS PARA DIRECCIONALES ORIGINALES 3D",null,null,null,{"$f":"PRODUCTOS[[#This Row],[Cantidad]]*PRODUCTOS[[#This Row],[$ Distribuidor]]","v":0}]
["SUZUKI","VSTROM 250","SLIDER DE ALTO IMPACTO MOTOR 3 PUNTOS PREMIUM",100000,145000,null,{"$f":"PRODUCTOS[[#This Row],[Cantidad]]*PRODUCTOS[[#This Row],[$ Distribuidor]]","v":0}]
["SUZUKI","VSTROM 250","SLIDER EXOSTO O MOFLE",30000,50000,null,{"$f":"PRODUCTOS[[#This Row],[Cantidad]]*PRODUCTOS[[#This Row],[$ Distribuidor]]","v":0}]
["SUZUKI","VSTROM 250","SPOOLS PARA CABALLETE",20000,40000,null,{"$f":"PRODUCTOS[[#This Row],[Cantidad]]*PRODUCTOS[[#This Row],[$ Distribuidor]]","v":0}]
["SUZUKI","VSTROM 250","SLIDER EJES X 4 CON TAPA",null,null,null,{"$f":"PRODUCTOS[[#This Row],[Cantidad]]*PRODUCTOS[[#This Row],[$ Distribuidor]]","v":0}]
["SUZUKI","VSTROM 250","PROTECTOR DE RADIADOR 2D",null,null,null,{"$f":"PRODUCTOS[[#This Row],[Cantidad]]*PRODUCTOS[[#This Row],[$ Distribuidor]]","v":0}]
["SUZUKI","VSTROM 250","PROTECTOR DE RADIADOR 3D",null,null,null,{"$f":"PRODUCTOS[[#This Row],[Cantidad]]*PRODUCTOS[[#This Row],[$ Distribuidor]]","v":0}]
["SUZUKI","VSTROM 250","PROTECTOR CALIPER MORDAZA 2D",12000,20000,null,{"$f":"PRODUCTOS[[#This Row],[Cantidad]]*PRODUCTOS[[#This Row],[$ Distribuidor]]","v":0}]
["SUZUKI","VSTROM 250","PROTECTOR CALIPER MORDAZA 3D",15000,25000,null,{"$f":"PRODUCTOS[[#This Row],[Cantidad]]*PRODUCTOS[[#This Row],[$ Distribuidor]]","v":0}]
["SUZUKI","VSTROM 250","PROTECTOR DEPOSITO LIQUIDO FRENO DELANTERO 2D",8000,20000,null,{"$f":"PRODUCTOS[[#This Row],[Cantidad]]*PRODUCTOS[[#This Row],[$ Distribuidor]]","v":0}]
["SUZUKI","VSTROM 250","PROTECTOR DEPOSITO LIQUIDO FRENO DELANTERO 3D",10000,25000,null,{"$f":"PRODUCTOS[[#This Row],[Cantidad]]*PRODUCTOS[[#This Row],[$ Distribuidor]]","v":0}]
["SUZUKI","VSTROM 250","PROTECTOR DEPOSITO LIQUIDO FRENO TRASERO 2D",13000,25000,null,{"$f":"PRODUCTOS[[#This Row],[Cantidad]]*PRODUCTOS[[#This Row],[$ Distribuidor]]","v":0}]
["SUZUKI","VSTROM 250","PROTECTOR DEPOSITO LIQUIDO FRENO TRASERO 3D",15000,28000,null,{"$f":"PRODUCTOS[[#This Row],[Cantidad]]*PRODUCTOS[[#This Row],[$ Distribuidor]]","v":0}]
["SUZUKI","VSTROM 250","PROTECTOR ARO GASOLINA",11000,20000,null,{"$f":"PRODUCTOS[[#This Row],[Cantidad]]*PRODUCTOS[[#This Row],[$ Distribuidor]]","v":0}]
["SUZUKI","VSTROM 250","PROTECTOR PLACA 2D",11000,20000,null,{"$f":"PRODUCTOS[[#This Row],[Cantidad]]*PRODUCTOS[[#This Row],[$ Distribuidor]]","v":0}]
["SUZUKI","VSTROM 250","PROTECTOR PLACA 3D",14000,25000,null,{"$f":"PRODUCTOS[[#This Row],[Cantidad]]*PRODUCTOS[[#This Row],[$ Distribuidor]]","v":0}]
["SUZUKI","VSTROM 250","PROTECTOR MODULO ABS",null,null,null,{"$f":"PRODUCTOS[[#This Row],[Cantidad]]*PRODUCTOS[[#This Row],[$ Distribuidor]]","v":0}]
["SUZUKI","VSTROM 250","LUJO LATERAL TIJERA ",null,null,null,{"$f":"PRODUCTOS[[#This Row],[Cantidad]]*PRODUCTOS[[#This Row],[$ Distribuidor]]","v":0}]
["SUZUKI","VSTROM 250","SPOOLS PARA CABALLETE",20000,40000,null,{"$f":"PRODUCTOS[[#This Row],[Cantidad]]*PRODUCTOS[[#This Row],[$ Distribuidor]]","v":0}]
["SUZUKI","VSTROM 250","CABALLETE O GATO DE SERVICIO ",125000,160000,null,{"$f":"PRODUCTOS[[#This Row],[Cantidad]]*PRODUCTOS[[#This Row],[$ Distribuidor]]","v":0}]
["SUZUKI","VSTROM 250","LUJO ACUTRAX MANUBRIO CENTRAL 2D",15000,23000,null,{"$f":"PRODUCTOS[[#This Row],[Cantidad]]*PRODUCTOS[[#This Row],[$ Distribuidor]]","v":0}]
["SUZUKI","VSTROM 250","LUJO ACUTRAX MANUBRIO CENTRAL 3D",18000,25000,null,{"$f":"PRODUCTOS[[#This Row],[Cantidad]]*PRODUCTOS[[#This Row],[$ Distribuidor]]","v":0}]
["SUZUKI","VSTROM 250","LUJO MOTOR DE ARRANQUE",null,null,null,{"$f":"PRODUCTOS[[#This Row],[Cantidad]]*PRODUCTOS[[#This Row],[$ Distribuidor]]","v":0}]
["SUZUKI","VSTROM 250","LUJO FILTRO ACEITE 2D",5000,10000,null,{"$f":"PRODUCTOS[[#This Row],[Cantidad]]*PRODUCTOS[[#This Row],[$ Distribuidor]]","v":0}]
["SUZUKI","VSTROM 250","LUJO FILTRO ACEITE 3D",6000,12000,null,{"$f":"PRODUCTOS[[#This Row],[Cantidad]]*PRODUCTOS[[#This Row],[$ Distribuidor]]","v":0}]
["SUZUKI","VSTROM 250","PROTECTOR TACOMETRO ACRILICO",11000,17000,null,{"$f":"PRODUCTOS[[#This Row],[Cantidad]]*PRODUCTOS[[#This Row],[$ Distribuidor]]","v":0}]
["SUZUKI","VSTROM 250 SX ","SLIDER DE ALTO IMPACTO MOTOR 3 PUNTOS PREMIUM",100000,145000,null,{"$f":"PRODUCTOS[[#This Row],[Cantidad]]*PRODUCTOS[[#This Row],[$ Distribuidor]]","v":0}]
["SUZUKI","VSTROM 250 SX ","SLIDER EXOSTO O MOFLE",30000,50000,null,{"$f":"PRODUCTOS[[#This Row],[Cantidad]]*PRODUCTOS[[#This Row],[$ Distribuidor]]","v":0}]
["SUZUKI","VSTROM 250 SX ","SPOOLS PARA CABALLETE",20000,40000,null,{"$f":"PRODUCTOS[[#This Row],[Cantidad]]*PRODUCTOS[[#This Row],[$ Distribuidor]]","v":0}]
["SUZUKI","VSTROM 250 SX ","SLIDER EJES X 4 CON TAPA",null,null,null,{"$f":"PRODUCTOS[[#This Row],[Cantidad]]*PRODUCTOS[[#This Row],[$ Distribuidor]]","v":0}]
["SUZUKI","VSTROM 250 SX ","PROTECTOR DE RADIADOR 2D",null,null,null,{"$f":"PRODUCTOS[[#This Row],[Cantidad]]*PRODUCTOS[[#This Row],[$ Distribuidor]]","v":0}]
["SUZUKI","VSTROM 250 SX ","PROTECTOR DE RADIADOR 3D",null,null,null,{"$f":"PRODUCTOS[[#This Row],[Cantidad]]*PRODUCTOS[[#This Row],[$ Distribuidor]]","v":0}]
["SUZUKI","VSTROM 250 SX ","PROTECTOR CALIPER MORDAZA 2D",12000,20000,null,{"$f":"PRODUCTOS[[#This Row],[Cantidad]]*PRODUCTOS[[#This Row],[$ Distribuidor]]","v":0}]
["SUZUKI","VSTROM 250 SX ","PROTECTOR CALIPER MORDAZA 3D",15000,25000,null,{"$f":"PRODUCTOS[[#This Row],[Cantidad]]*PRODUCTOS[[#This Row],[$ Distribuidor]]","v":0}]
["SUZUKI","VSTROM 250 SX ","PROTECTOR DEPOSITO LIQUIDO FRENO DELANTERO 2D",8000,20000,null,{"$f":"PRODUCTOS[[#This Row],[Cantidad]]*PRODUCTOS[[#This Row],[$ Distribuidor]]","v":0}]
["SUZUKI","VSTROM 250 SX ","PROTECTOR DEPOSITO LIQUIDO FRENO DELANTERO 3D",10000,25000,null,{"$f":"PRODUCTOS[[#This Row],[Cantidad]]*PRODUCTOS[[#This Row],[$ Distribuidor]]","v":0}]
["SUZUKI","VSTROM 250 SX ","PROTECTOR DEPOSITO LIQUIDO FRENO TRASERO 2D",13000,25000,null,{"$f":"PRODUCTOS[[#This Row],[Cantidad]]*PRODUCTOS[[#This Row],[$ Distribuidor]]","v":0}]
["SUZUKI","VSTROM 250 SX ","PROTECTOR DEPOSITO LIQUIDO FRENO TRASERO 3D",15000,28000,null,{"$f":"PRODUCTOS[[#This Row],[Cantidad]]*PRODUCTOS[[#This Row],[$ Distribuidor]]","v":0}]
["SUZUKI","VSTROM 250 SX ","PROTECTOR ARO GASOLINA",11000,20000,null,{"$f":"PRODUCTOS[[#This Row],[Cantidad]]*PRODUCTOS[[#This Row],[$ Distribuidor]]","v":0}]
["SUZUKI","VSTROM 250 SX ","PROTECTOR PLACA 2D",11000,20000,null,{"$f":"PRODUCTOS[[#This Row],[Cantidad]]*PRODUCTOS[[#This Row],[$ Distribuidor]]","v":0}]
["SUZUKI","VSTROM 250 SX ","PROTECTOR PLACA 3D",14000,25000,null,{"$f":"PRODUCTOS[[#This Row],[Cantidad]]*PRODUCTOS[[#This Row],[$ Distribuidor]]","v":0}]
["SUZUKI","VSTROM 250 SX ","PROTECTOR MODULO ABS",null,null,null,{"$f":"PRODUCTOS[[#This Row],[Cantidad]]*PRODUCTOS[[#This Row],[$ Distribuidor]]","v":0}]
["SUZUKI","VSTROM 250 SX ","LUJO LATERAL TIJERA ",null,null,null,{"$f":"PRODUCTOS[[#This Row],[Cantidad]]*PRODUCTOS[[#This Row],[$ Distribuidor]]","v":0}]
["SUZUKI","VSTROM 250 SX ","CABALLETE O GATO DE SERVICIO ",125000,160000,null,{"$f":"PRODUCTOS[[#This Row],[Cantidad]]*PRODUCTOS[[#This Row],[$ Distribuidor]]","v":0}]
["SUZUKI","VSTROM 250 SX ","LUJO ACUTRAX MANUBRIO CENTRAL 2D",15000,23000,null,{"$f":"PRODUCTOS[[#This Row],[Cantidad]]*PRODUCTOS[[#This Row],[$ Distribuidor]]","v":0}]
["SUZUKI","VSTROM 250 SX ","LUJO ACUTRAX MANUBRIO CENTRAL 3D",18000,25000,null,{"$f":"PRODUCTOS[[#This Row],[Cantidad]]*PRODUCTOS[[#This Row],[$ Distribuidor]]","v":0}]
["SUZUKI","VSTROM 250 SX ","LUJO MOTOR DE ARRANQUE",null,null,null,{"$f":"PRODUCTOS[[#This Row],[Cantidad]]*PRODUCTOS[[#This Row],[$ Distribuidor]]","v":0}]
["SUZUKI","VSTROM 250 SX ","LUJO FILTRO ACEITE 2D",5000,10000,null,{"$f":"PRODUCTOS[[#This Row],[Cantidad]]*PRODUCTOS[[#This Row],[$ Distribuidor]]","v":0}]
["SUZUKI","VSTROM 250 SX ","LUJO FILTRO ACEITE 3D",6000,12000,null,{"$f":"PRODUCTOS[[#This Row],[Cantidad]]*PRODUCTOS[[#This Row],[$ Distribuidor]]","v":0}]
["SUZUKI","VSTROM 250 SX ","PROTECTOR TACOMETRO ACRILICO",11000,17000,null,{"$f":"PRODUCTOS[[#This Row],[Cantidad]]*PRODUCTOS[[#This Row],[$ Distribuidor]]","v":0}]
["SUZUKI","VSTROM 650 CLASICA DL AGUA","PROTECTOR DE RADIADOR 2D",null,null,null,{"$f":"PRODUCTOS[[#This Row],[Cantidad]]*PRODUCTOS[[#This Row],[$ Distribuidor]]","v":0}]
["SUZUKI","VSTROM 650 CLASICA DL AGUA","SPOOLS PARA CABALLETE",20000,40000,null,{"$f":"PRODUCTOS[[#This Row],[Cantidad]]*PRODUCTOS[[#This Row],[$ Distribuidor]]","v":0}]
["SUZUKI","VSTROM 650 CLASICA DL AGUA","CABALLETE O GATO DE SERVICIO ",125000,160000,null,{"$f":"PRODUCTOS[[#This Row],[Cantidad]]*PRODUCTOS[[#This Row],[$ Distribuidor]]","v":0}]
["SUZUKI","VSTROM 650 CLASICA DL AGUA","PROTECTOR DE RADIADOR 3D",null,null,null,{"$f":"PRODUCTOS[[#This Row],[Cantidad]]*PRODUCTOS[[#This Row],[$ Distribuidor]]","v":0}]
["SUZUKI","VSTROM 650 CLASICA DL AGUA","PROTECTOR DEPOSITO LIQUIDO FRENO DELANTERO 2D",8000,20000,null,{"$f":"PRODUCTOS[[#This Row],[Cantidad]]*PRODUCTOS[[#This Row],[$ Distribuidor]]","v":0}]
["SUZUKI","VSTROM 650 CLASICA DL AGUA","PROTECTOR DEPOSITO LIQUIDO FRENO DELANTERO 3D",10000,25000,null,{"$f":"PRODUCTOS[[#This Row],[Cantidad]]*PRODUCTOS[[#This Row],[$ Distribuidor]]","v":0}]
["SUZUKI","VSTROM 650 CLASICA DL AGUA","PROTECTOR PLACA 2D",11000,20000,null,{"$f":"PRODUCTOS[[#This Row],[Cantidad]]*PRODUCTOS[[#This Row],[$ Distribuidor]]","v":0}]
["SUZUKI","VSTROM 650 CLASICA DL AGUA","PROTECTOR PLACA 3D",14000,25000,null,{"$f":"PRODUCTOS[[#This Row],[Cantidad]]*PRODUCTOS[[#This Row],[$ Distribuidor]]","v":0}]
["SUZUKI","VSTROM 650 CLASICA DL ACEITE","PROTECTOR DE RADIADOR 2D",null,null,null,{"$f":"PRODUCTOS[[#This Row],[Cantidad]]*PRODUCTOS[[#This Row],[$ Distribuidor]]","v":0}]
["SUZUKI","VSTROM 650 CLASICA DL ACEITE","SPOOLS PARA CABALLETE",20000,40000,null,{"$f":"PRODUCTOS[[#This Row],[Cantidad]]*PRODUCTOS[[#This Row],[$ Distribuidor]]","v":0}]
["SUZUKI","VSTROM 650 CLASICA DL ACEITE","CABALLETE O GATO DE SERVICIO ",125000,160000,null,{"$f":"PRODUCTOS[[#This Row],[Cantidad]]*PRODUCTOS[[#This Row],[$ Distribuidor]]","v":0}]
["SUZUKI","VSTROM 650 CLASICA DL ACEITE","PROTECTOR DE RADIADOR 3D",null,null,null,{"$f":"PRODUCTOS[[#This Row],[Cantidad]]*PRODUCTOS[[#This Row],[$ Distribuidor]]","v":0}]
["SUZUKI","VSTROM 650 CLASICA DL ACEITE","PROTECTOR DEPOSITO LIQUIDO FRENO DELANTERO 2D",8000,20000,null,{"$f":"PRODUCTOS[[#This Row],[Cantidad]]*PRODUCTOS[[#This Row],[$ Distribuidor]]","v":0}]
["SUZUKI","VSTROM 650 CLASICA DL ACEITE","PROTECTOR DEPOSITO LIQUIDO FRENO DELANTERO 3D",10000,25000,null,{"$f":"PRODUCTOS[[#This Row],[Cantidad]]*PRODUCTOS[[#This Row],[$ Distribuidor]]","v":0}]
["SUZUKI","VSTROM 650 CLASICA DL ACEITE","PROTECTOR PLACA 2D",11000,20000,null,{"$f":"PRODUCTOS[[#This Row],[Cantidad]]*PRODUCTOS[[#This Row],[$ Distribuidor]]","v":0}]
["SUZUKI","VSTROM 650 CLASICA DL ACEITE","PROTECTOR PLACA 3D",14000,25000,null,{"$f":"PRODUCTOS[[#This Row],[Cantidad]]*PRODUCTOS[[#This Row],[$ Distribuidor]]","v":0}]
["SUZUKI","VSTROM 650 AT XT ABS","PROTECTOR DE RADIADOR 2D",null,null,null,{"$f":"PRODUCTOS[[#This Row],[Cantidad]]*PRODUCTOS[[#This Row],[$ Distribuidor]]","v":0}]
["SUZUKI","VSTROM 650 AT XT ABS","PROTECTOR DE RADIADOR 3D",null,null,null,{"$f":"PRODUCTOS[[#This Row],[Cantidad]]*PRODUCTOS[[#This Row],[$ Distribuidor]]","v":0}]
["SUZUKI","VSTROM 650 AT XT ABS","SPOOLS PARA CABALLETE",20000,40000,null,{"$f":"PRODUCTOS[[#This Row],[Cantidad]]*PRODUCTOS[[#This Row],[$ Distribuidor]]","v":0}]
["SUZUKI","VSTROM 650 AT XT ABS","CABALLETE O GATO DE SERVICIO ",125000,160000,null,{"$f":"PRODUCTOS[[#This Row],[Cantidad]]*PRODUCTOS[[#This Row],[$ Distribuidor]]","v":0}]
["SUZUKI","VSTROM 650 AT XT ABS","PROTECTOR PLACA 2D",11000,20000,null,{"$f":"PRODUCTOS[[#This Row],[Cantidad]]*PRODUCTOS[[#This Row],[$ Distribuidor]]","v":0}]
["SUZUKI","VSTROM 650 AT XT ABS","PROTECTOR PLACA 3D",14000,25000,null,{"$f":"PRODUCTOS[[#This Row],[Cantidad]]*PRODUCTOS[[#This Row],[$ Distribuidor]]","v":0}]
["SUZUKI","VSTROM 1000 NUEVA",null,null,null,null,{"$f":"PRODUCTOS[[#This Row],[Cantidad]]*PRODUCTOS[[#This Row],[$ Distribuidor]]","v":0}]
["SUZUKI","VSTROM 1000 NUEVA",null,null,null,null,{"$f":"PRODUCTOS[[#This Row],[Cantidad]]*PRODUCTOS[[#This Row],[$ Distribuidor]]","v":0}]
["SUZUKI","VSTROM 1000 NUEVA",null,null,null,null,{"$f":"PRODUCTOS[[#This Row],[Cantidad]]*PRODUCTOS[[#This Row],[$ Distribuidor]]","v":0}]
["SUZUKI","VSTROM 1000 NUEVA",null,null,null,null,{"$f":"PRODUCTOS[[#This Row],[Cantidad]]*PRODUCTOS[[#This Row],[$ Distribuidor]]","v":0}]
["SUZUKI","BANDIT","PROTECTOR DE RADIADOR 2D",null,null,null,{"$f":"PRODUCTOS[[#This Row],[Cantidad]]*PRODUCTOS[[#This Row],[$ Distribuidor]]","v":0}]
["SUZUKI","BANDIT","CABALLETE O GATO DE SERVICIO ",125000,160000,null,{"$f":"PRODUCTOS[[#This Row],[Cantidad]]*PRODUCTOS[[#This Row],[$ Distribuidor]]","v":0}]
["SUZUKI","BANDIT","SPOOLS PARA CABALLETE",20000,40000,null,{"$f":"PRODUCTOS[[#This Row],[Cantidad]]*PRODUCTOS[[#This Row],[$ Distribuidor]]","v":0}]
["SUZUKI","BANDIT","PROTECTOR DE RADIADOR 3D",null,null,null,{"$f":"PRODUCTOS[[#This Row],[Cantidad]]*PRODUCTOS[[#This Row],[$ Distribuidor]]","v":0}]
["SUZUKI","BANDIT","PROTECTOR DEPOSITO LIQUIDO FRENO DELANTERO 2D",8000,20000,null,{"$f":"PRODUCTOS[[#This Row],[Cantidad]]*PRODUCTOS[[#This Row],[$ Distribuidor]]","v":0}]
["SUZUKI","BANDIT","PROTECTOR DEPOSITO LIQUIDO FRENO DELANTERO 3D",10000,25000,null,{"$f":"PRODUCTOS[[#This Row],[Cantidad]]*PRODUCTOS[[#This Row],[$ Distribuidor]]","v":0}]
["SUZUKI","BANDIT","PROTECTOR PLACA 2D",11000,20000,null,{"$f":"PRODUCTOS[[#This Row],[Cantidad]]*PRODUCTOS[[#This Row],[$ Distribuidor]]","v":0}]
["SUZUKI","BANDIT","PROTECTOR PLACA 3D",14000,25000,null,{"$f":"PRODUCTOS[[#This Row],[Cantidad]]*PRODUCTOS[[#This Row],[$ Distribuidor]]","v":0}]
["SUZUKI","INAZUMA 250","PROTECTOR DE RADIADOR 2D",null,null,null,{"$f":"PRODUCTOS[[#This Row],[Cantidad]]*PRODUCTOS[[#This Row],[$ Distribuidor]]","v":0}]
["SUZUKI","INAZUMA 250","PROTECTOR PLACA 3D ",11000,20000,null,{"$f":"PRODUCTOS[[#This Row],[Cantidad]]*PRODUCTOS[[#This Row],[$ Distribuidor]]","v":0}]
["SUZUKI","INAZUMA 250","PROTECTOR PLACA 2D ",14000,25000,null,{"$f":"PRODUCTOS[[#This Row],[Cantidad]]*PRODUCTOS[[#This Row],[$ Distribuidor]]","v":0}]
["SUZUKI","INAZUMA 250","PROTECTOR DE RADIADOR 3D",null,null,null,{"$f":"PRODUCTOS[[#This Row],[Cantidad]]*PRODUCTOS[[#This Row],[$ Distribuidor]]","v":0}]
["SUZUKI","INAZUMA 250","CABALLETE O GATO DE SERVICIO ",125000,160000,null,{"$f":"PRODUCTOS[[#This Row],[Cantidad]]*PRODUCTOS[[#This Row],[$ Distribuidor]]","v":0}]
["SUZUKI","GLADIUS","PROTECTOR DE RADIADOR 2D",null,null,null,{"$f":"PRODUCTOS[[#This Row],[Cantidad]]*PRODUCTOS[[#This Row],[$ Distribuidor]]","v":0}]
["SUZUKI","GLADIUS","PROTECTOR DE RADIADOR 3D",null,null,null,{"$f":"PRODUCTOS[[#This Row],[Cantidad]]*PRODUCTOS[[#This Row],[$ Distribuidor]]","v":0}]
["SUZUKI","GLADIUS","PROTECTOR PLACA 2D ",11000,20000,null,{"$f":"PRODUCTOS[[#This Row],[Cantidad]]*PRODUCTOS[[#This Row],[$ Distribuidor]]","v":0}]
["SUZUKI","GLADIUS","PROTECTOR PLACA 3D",14000,25000,null,{"$f":"PRODUCTOS[[#This Row],[Cantidad]]*PRODUCTOS[[#This Row],[$ Distribuidor]]","v":0}]
["SUZUKI","GLADIUS","CABALLETE O GATO DE SERVICIO ",125000,160000,null,{"$f":"PRODUCTOS[[#This Row],[Cantidad]]*PRODUCTOS[[#This Row],[$ Distribuidor]]","v":0}]
["SUZUKI","DR 150",null,null,null,null,{"$f":"PRODUCTOS[[#This Row],[Cantidad]]*PRODUCTOS[[#This Row],[$ Distribuidor]]","v":0}]
["SUZUKI","DR 150",null,null,null,null,{"$f":"PRODUCTOS[[#This Row],[Cantidad]]*PRODUCTOS[[#This Row],[$ Distribuidor]]","v":0}]
["SUZUKI","DR 150",null,null,null,null,{"$f":"PRODUCTOS[[#This Row],[Cantidad]]*PRODUCTOS[[#This Row],[$ Distribuidor]]","v":0}]
["SUZUKI","DR 150",null,null,null,null,{"$f":"PRODUCTOS[[#This Row],[Cantidad]]*PRODUCTOS[[#This Row],[$ Distribuidor]]","v":0}]
["SUZUKI","DR 150",null,null,null,null,{"$f":"PRODUCTOS[[#This Row],[Cantidad]]*PRODUCTOS[[#This Row],[$ Distribuidor]]","v":0}]
["SUZUKI","DR 650","PROTECTOR DE RADIADOR 2D",null,null,null,{"$f":"PRODUCTOS[[#This Row],[Cantidad]]*PRODUCTOS[[#This Row],[$ Distribuidor]]","v":0}]
["SUZUKI","DR 650","PROTECTOR DE RADIADOR 3D",null,null,null,{"$f":"PRODUCTOS[[#This Row],[Cantidad]]*PRODUCTOS[[#This Row],[$ Distribuidor]]","v":0}]
["SUZUKI","DR 650","PROTECTOR PLACA 2D ",11000,20000,null,{"$f":"PRODUCTOS[[#This Row],[Cantidad]]*PRODUCTOS[[#This Row],[$ Distribuidor]]","v":0}]
["SUZUKI","DR 650","PROTECTOR PLACA 3D",14000,25000,null,{"$f":"PRODUCTOS[[#This Row],[Cantidad]]*PRODUCTOS[[#This Row],[$ Distribuidor]]","v":0}]
["SUZUKI","DR 650","CABALLETE O GATO DE SERVICIO ",125000,160000,null,{"$f":"PRODUCTOS[[#This Row],[Cantidad]]*PRODUCTOS[[#This Row],[$ Distribuidor]]","v":0}]
["SUZUKI","SV 650 ANTIGUA","SLIDER DE ALTO IMPACTO MOTOR 1 PUNTOS PREMIUM",null,null,null,{"$f":"PRODUCTOS[[#This Row],[Cantidad]]*PRODUCTOS[[#This Row],[$ Distribuidor]]","v":0}]
["SUZUKI","SV 650 ANTIGUA","PROTECTOR DE RADIADOR 2D",null,null,null,{"$f":"PRODUCTOS[[#This Row],[Cantidad]]*PRODUCTOS[[#This Row],[$ Distribuidor]]","v":0}]
["SUZUKI","SV 650 ANTIGUA","PROTECTOR DE RADIADOR 3D",null,null,null,{"$f":"PRODUCTOS[[#This Row],[Cantidad]]*PRODUCTOS[[#This Row],[$ Distribuidor]]","v":0}]
["SUZUKI","SV 650 ANTIGUA","PROTECTOR PLACA 2D ",11000,20000,null,{"$f":"PRODUCTOS[[#This Row],[Cantidad]]*PRODUCTOS[[#This Row],[$ Distribuidor]]","v":0}]
["SUZUKI","SV 650 ANTIGUA","PROTECTOR PLACA 3D",14000,25000,null,{"$f":"PRODUCTOS[[#This Row],[Cantidad]]*PRODUCTOS[[#This Row],[$ Distribuidor]]","v":0}]
["SUZUKI","SV 650 ANTIGUA","CABALLETE O GATO DE SERVICIO ",125000,160000,null,{"$f":"PRODUCTOS[[#This Row],[Cantidad]]*PRODUCTOS[[#This Row],[$ Distribuidor]]","v":0}]
["SUZUKI","SV 650 ANTIGUA","SPOOLS PARA CABALLETE",20000,40000,null,{"$f":"PRODUCTOS[[#This Row],[Cantidad]]*PRODUCTOS[[#This Row],[$ Distribuidor]]","v":0}]
["SUZUKI","SV 650 NUEVA ","SLIDER DE ALTO IMPACTO MOTOR 1 PUNTOS PREMIUM",null,null,null,{"$f":"PRODUCTOS[[#This Row],[Cantidad]]*PRODUCTOS[[#This Row],[$ Distribuidor]]","v":0}]
["SUZUKI","SV 650 NUEVA ","PROTECTOR DE RADIADOR 2D",null,null,null,{"$f":"PRODUCTOS[[#This Row],[Cantidad]]*PRODUCTOS[[#This Row],[$ Distribuidor]]","v":0}]
["SUZUKI","SV 650 NUEVA ","PROTECTOR DE RADIADOR 3D",null,null,null,{"$f":"PRODUCTOS[[#This Row],[Cantidad]]*PRODUCTOS[[#This Row],[$ Distribuidor]]","v":0}]
["SUZUKI","SV 650 NUEVA ","PROTECTOR PLACA 2D ",11000,20000,null,{"$f":"PRODUCTOS[[#This Row],[Cantidad]]*PRODUCTOS[[#This Row],[$ Distribuidor]]","v":0}]
["SUZUKI","SV 650 NUEVA ","PROTECTOR PLACA 3D",14000,25000,null,{"$f":"PRODUCTOS[[#This Row],[Cantidad]]*PRODUCTOS[[#This Row],[$ Distribuidor]]","v":0}]
["SUZUKI","SV 650 NUEVA ","CABALLETE O GATO DE SERVICIO ",125000,160000,null,{"$f":"PRODUCTOS[[#This Row],[Cantidad]]*PRODUCTOS[[#This Row],[$ Distribuidor]]","v":0}]
["SUZUKI","SV 650 NUEVA ","SPOOLS PARA CABALLETE",20000,40000,null,{"$f":"PRODUCTOS[[#This Row],[Cantidad]]*PRODUCTOS[[#This Row],[$ Distribuidor]]","v":0}]
["KAWASAKI","NINJA 250 NUEVA ","SLIDER DE ALTO IMPACTO MOTOR 2 PUNTOS ECONO",85000,100000,null,{"$f":"PRODUCTOS[[#This Row],[Cantidad]]*PRODUCTOS[[#This Row],[$ Distribuidor]]","v":0}]
["KAWASAKI","NINJA 250 NUEVA ","SLIDER DE ALTO IMPACTO MOTOR 2 PUNTOS PREMIUM",90000,115000,null,{"$f":"PRODUCTOS[[#This Row],[Cantidad]]*PRODUCTOS[[#This Row],[$ Distribuidor]]","v":0}]
["KAWASAKI","NINJA 250 NUEVA ","SLIDER DE ALTO IMPACTO MOTOR 3 PUNTOS ECONO",95000,130000,null,{"$f":"PRODUCTOS[[#This Row],[Cantidad]]*PRODUCTOS[[#This Row],[$ Distribuidor]]","v":0}]
["KAWASAKI","NINJA 250 NUEVA ","SLIDER DE ALTO IMPACTO MOTOR 3 PUNTOS PREMIUM",100000,145000,null,{"$f":"PRODUCTOS[[#This Row],[Cantidad]]*PRODUCTOS[[#This Row],[$ Distribuidor]]","v":0}]
["KAWASAKI","NINJA 250 NUEVA ","SLIDER EJES X 4 SIN TAPA",null,null,null,{"$f":"PRODUCTOS[[#This Row],[Cantidad]]*PRODUCTOS[[#This Row],[$ Distribuidor]]","v":0}]
["KAWASAKI","NINJA 250 NUEVA ","SLIDER EJES X 4 CON TAPA",null,null,null,{"$f":"PRODUCTOS[[#This Row],[Cantidad]]*PRODUCTOS[[#This Row],[$ Distribuidor]]","v":0}]
["KAWASAKI","NINJA 250 NUEVA ","PROTECTOR DE RADIADOR 2D",null,null,null,{"$f":"PRODUCTOS[[#This Row],[Cantidad]]*PRODUCTOS[[#This Row],[$ Distribuidor]]","v":0}]
["KAWASAKI","NINJA 250 NUEVA ","PROTECTOR DE RADIADOR 3D",null,null,null,{"$f":"PRODUCTOS[[#This Row],[Cantidad]]*PRODUCTOS[[#This Row],[$ Distribuidor]]","v":0}]
["KAWASAKI","NINJA 250 NUEVA ","PROTECTOR CALIPER MORDAZA 2D",12000,20000,null,{"$f":"PRODUCTOS[[#This Row],[Cantidad]]*PRODUCTOS[[#This Row],[$ Distribuidor]]","v":0}]
["KAWASAKI","NINJA 250 NUEVA ","PROTECTOR CALIPER MORDAZA 3D",15000,25000,null,{"$f":"PRODUCTOS[[#This Row],[Cantidad]]*PRODUCTOS[[#This Row],[$ Distribuidor]]","v":0}]
["KAWASAKI","NINJA 250 NUEVA ","PROTECTOR DEPOSITO LIQUIDO FRENO DELANTERO 2D",8000,20000,null,{"$f":"PRODUCTOS[[#This Row],[Cantidad]]*PRODUCTOS[[#This Row],[$ Distribuidor]]","v":0}]
["KAWASAKI","NINJA 250 NUEVA ","PROTECTOR DEPOSITO LIQUIDO FRENO DELANTERO 3D",10000,25000,null,{"$f":"PRODUCTOS[[#This Row],[Cantidad]]*PRODUCTOS[[#This Row],[$ Distribuidor]]","v":0}]
["KAWASAKI","NINJA 250 NUEVA ","PROTECTOR DEPOSITO LIQUIDO FRENO TRASERO 2D",13000,25000,null,{"$f":"PRODUCTOS[[#This Row],[Cantidad]]*PRODUCTOS[[#This Row],[$ Distribuidor]]","v":0}]
["KAWASAKI","NINJA 250 NUEVA ","PROTECTOR DEPOSITO LIQUIDO FRENO TRASERO 3D",15000,28000,null,{"$f":"PRODUCTOS[[#This Row],[Cantidad]]*PRODUCTOS[[#This Row],[$ Distribuidor]]","v":0}]
["KAWASAKI","NINJA 250 NUEVA ","PROTECTOR ARO GASOLINA",11000,20000,null,{"$f":"PRODUCTOS[[#This Row],[Cantidad]]*PRODUCTOS[[#This Row],[$ Distribuidor]]","v":0}]
["KAWASAKI","NINJA 250 NUEVA ","PROTECTOR PLACA 2D",11000,20000,null,{"$f":"PRODUCTOS[[#This Row],[Cantidad]]*PRODUCTOS[[#This Row],[$ Distribuidor]]","v":0}]
["KAWASAKI","NINJA 250 NUEVA ","PROTECTOR PLACA 3D",14000,25000,null,{"$f":"PRODUCTOS[[#This Row],[Cantidad]]*PRODUCTOS[[#This Row],[$ Distribuidor]]","v":0}]
["KAWASAKI","NINJA 250 NUEVA ","PROTECTOR FAROLA 3D",null,null,null,{"$f":"PRODUCTOS[[#This Row],[Cantidad]]*PRODUCTOS[[#This Row],[$ Distribuidor]]","v":0}]
["KAWASAKI","NINJA 250 NUEVA ","CUPULA DE LUJO ACERO INOXIDABLE",null,null,null,{"$f":"PRODUCTOS[[#This Row],[Cantidad]]*PRODUCTOS[[#This Row],[$ Distribuidor]]","v":0}]
["KAWASAKI","NINJA 250 NUEVA ","CUBRE PIÑON SALIDA  2D",19000,25000,null,{"$f":"PRODUCTOS[[#This Row],[Cantidad]]*PRODUCTOS[[#This Row],[$ Distribuidor]]","v":0}]
["KAWASAKI","NINJA 250 NUEVA ","CUBRE PIÑON SALIDA  3D",22000,30000,null,{"$f":"PRODUCTOS[[#This Row],[Cantidad]]*PRODUCTOS[[#This Row],[$ Distribuidor]]","v":0}]
["KAWASAKI","NINJA 250 NUEVA ","CUBRE CADENA 2D",null,null,null,{"$f":"PRODUCTOS[[#This Row],[Cantidad]]*PRODUCTOS[[#This Row],[$ Distribuidor]]","v":0}]
["KAWASAKI","NINJA 250 NUEVA ","CUBRE CADENA 3D",null,null,null,{"$f":"PRODUCTOS[[#This Row],[Cantidad]]*PRODUCTOS[[#This Row],[$ Distribuidor]]","v":0}]
["KAWASAKI","NINJA 250 NUEVA ","LOGO NS LATERAL TIJERA ",null,null,null,{"$f":"PRODUCTOS[[#This Row],[Cantidad]]*PRODUCTOS[[#This Row],[$ Distribuidor]]","v":0}]
["KAWASAKI","NINJA 250 NUEVA ","PROTECTORES LATERALES DE RADIADOR X2  2D",null,null,null,{"$f":"PRODUCTOS[[#This Row],[Cantidad]]*PRODUCTOS[[#This Row],[$ Distribuidor]]","v":0}]
["KAWASAKI","NINJA 250 NUEVA ","PROTECTORES LATERALES DE RADIADOR X2  3D",null,null,null,{"$f":"PRODUCTOS[[#This Row],[Cantidad]]*PRODUCTOS[[#This Row],[$ Distribuidor]]","v":0}]
["KAWASAKI","NINJA 250 NUEVA ","CABALLETE O GATO DE SERVICIO ",125000,160000,null,{"$f":"PRODUCTOS[[#This Row],[Cantidad]]*PRODUCTOS[[#This Row],[$ Distribuidor]]","v":0}]
["KAWASAKI","NINJA 250 NUEVA ","LUJO ACUTRAX MANUBRIO CENTRAL 2D",15000,23000,null,{"$f":"PRODUCTOS[[#This Row],[Cantidad]]*PRODUCTOS[[#This Row],[$ Distribuidor]]","v":0}]
["KAWASAKI","NINJA 250 NUEVA ","LUJO ACUTRAX MANUBRIO CENTRAL 3D",18000,25000,null,{"$f":"PRODUCTOS[[#This Row],[Cantidad]]*PRODUCTOS[[#This Row],[$ Distribuidor]]","v":0}]
["KAWASAKI","NINJA 250 NUEVA ","LUJO TANQUE FRONTAL",null,null,null,{"$f":"PRODUCTOS[[#This Row],[Cantidad]]*PRODUCTOS[[#This Row],[$ Distribuidor]]","v":0}]
["KAWASAKI","NINJA 250 NUEVA ","LUJO GUARDABARRO TRASERO LATERAL 2D ",null,null,null,{"$f":"PRODUCTOS[[#This Row],[Cantidad]]*PRODUCTOS[[#This Row],[$ Distribuidor]]","v":0}]
["KAWASAKI","NINJA 250 NUEVA ","LUJO GUARDABARRO TRASERO LATERAL 3D",null,null,null,{"$f":"PRODUCTOS[[#This Row],[Cantidad]]*PRODUCTOS[[#This Row],[$ Distribuidor]]","v":0}]
["KAWASAKI","NINJA 250 NUEVA ","LUJO GUARDABARRO TRASERO CENTRAL 2D",null,null,null,{"$f":"PRODUCTOS[[#This Row],[Cantidad]]*PRODUCTOS[[#This Row],[$ Distribuidor]]","v":0}]
["KAWASAKI","NINJA 250 NUEVA ","LUJO GUARDABARRO TRASERO CENTRAL 3D",null,null,null,{"$f":"PRODUCTOS[[#This Row],[Cantidad]]*PRODUCTOS[[#This Row],[$ Distribuidor]]","v":0}]
["KAWASAKI","NINJA 250 NUEVA ","LUJOS MALLAS LATERALES X 2",null,null,null,{"$f":"PRODUCTOS[[#This Row],[Cantidad]]*PRODUCTOS[[#This Row],[$ Distribuidor]]","v":0}]
["KAWASAKI","NINJA 250 NUEVA ","BASE PORTA CELULAR GPS",null,null,null,{"$f":"PRODUCTOS[[#This Row],[Cantidad]]*PRODUCTOS[[#This Row],[$ Distribuidor]]","v":0}]
["KAWASAKI","NINJA 250 NUEVA ","LUJO FILTRO ACEITE 2D",5000,10000,null,{"$f":"PRODUCTOS[[#This Row],[Cantidad]]*PRODUCTOS[[#This Row],[$ Distribuidor]]","v":0}]
["KAWASAKI","NINJA 250 NUEVA ","LUJO FILTRO ACEITE 3D",6000,12000,null,{"$f":"PRODUCTOS[[#This Row],[Cantidad]]*PRODUCTOS[[#This Row],[$ Distribuidor]]","v":0}]
["KAWASAKI","NINJA 250 NUEVA ","ESTABILIZADOR DE BARRAS 2D",null,null,null,{"$f":"PRODUCTOS[[#This Row],[Cantidad]]*PRODUCTOS[[#This Row],[$ Distribuidor]]","v":0}]
["KAWASAKI","NINJA 250 NUEVA ","ESTABILIZADOR DE BARRAS 3D",null,null,null,{"$f":"PRODUCTOS[[#This Row],[Cantidad]]*PRODUCTOS[[#This Row],[$ Distribuidor]]","v":0}]
["KAWASAKI","NINJA 250 NUEVA ","FENDER ELIMINATOR ABATIBLE 3 MILIMETROS PARA DIRECCIONALES ORIGINALES 2D",null,null,null,{"$f":"PRODUCTOS[[#This Row],[Cantidad]]*PRODUCTOS[[#This Row],[$ Distribuidor]]","v":0}]
["KAWASAKI","NINJA 250 NUEVA ","FENDER ELIMINATOR ABATIBLE 3 MILIMETROS PARA DIRECCIONALES ORIGINALES 3D",null,null,null,{"$f":"PRODUCTOS[[#This Row],[Cantidad]]*PRODUCTOS[[#This Row],[$ Distribuidor]]","v":0}]
["KAWASAKI","NINJA 250 NUEVA ","PROTECTOR TACOMETRO ACRILICO",11000,17000,null,{"$f":"PRODUCTOS[[#This Row],[Cantidad]]*PRODUCTOS[[#This Row],[$ Distribuidor]]","v":0}]
["KAWASAKI","NINJA 300","PROTECTOR DE RADIADOR 2D",null,null,null,{"$f":"PRODUCTOS[[#This Row],[Cantidad]]*PRODUCTOS[[#This Row],[$ Distribuidor]]","v":0}]
["KAWASAKI","NINJA 300","PROTECTOR DE RADIADOR 3D",null,null,null,{"$f":"PRODUCTOS[[#This Row],[Cantidad]]*PRODUCTOS[[#This Row],[$ Distribuidor]]","v":0}]
["KAWASAKI","NINJA 300","PROTECTOR CALIPER MORDAZA 2D",12000,20000,null,{"$f":"PRODUCTOS[[#This Row],[Cantidad]]*PRODUCTOS[[#This Row],[$ Distribuidor]]","v":0}]
["KAWASAKI","NINJA 300","PROTECTOR CALIPER MORDAZA 3D",15000,25000,null,{"$f":"PRODUCTOS[[#This Row],[Cantidad]]*PRODUCTOS[[#This Row],[$ Distribuidor]]","v":0}]
["KAWASAKI","NINJA 300","PROTECTOR DEPOSITO LIQUIDO FRENO DELANTERO 2D",8000,20000,null,{"$f":"PRODUCTOS[[#This Row],[Cantidad]]*PRODUCTOS[[#This Row],[$ Distribuidor]]","v":0}]
["KAWASAKI","NINJA 300","PROTECTOR DEPOSITO LIQUIDO FRENO DELANTERO 3D",10000,25000,null,{"$f":"PRODUCTOS[[#This Row],[Cantidad]]*PRODUCTOS[[#This Row],[$ Distribuidor]]","v":0}]
["KAWASAKI","NINJA 300","PROTECTOR DEPOSITO LIQUIDO FRENO TRASERO 2D",13000,25000,null,{"$f":"PRODUCTOS[[#This Row],[Cantidad]]*PRODUCTOS[[#This Row],[$ Distribuidor]]","v":0}]
["KAWASAKI","NINJA 300","PROTECTOR DEPOSITO LIQUIDO FRENO TRASERO 3D",15000,28000,null,{"$f":"PRODUCTOS[[#This Row],[Cantidad]]*PRODUCTOS[[#This Row],[$ Distribuidor]]","v":0}]
["KAWASAKI","NINJA 300","PROTECTOR ARO GASOLINA",11000,20000,null,{"$f":"PRODUCTOS[[#This Row],[Cantidad]]*PRODUCTOS[[#This Row],[$ Distribuidor]]","v":0}]
["KAWASAKI","NINJA 300","PROTECTOR PLACA 2D",11000,20000,null,{"$f":"PRODUCTOS[[#This Row],[Cantidad]]*PRODUCTOS[[#This Row],[$ Distribuidor]]","v":0}]
["KAWASAKI","NINJA 300","PROTECTOR PLACA 3D",14000,25000,null,{"$f":"PRODUCTOS[[#This Row],[Cantidad]]*PRODUCTOS[[#This Row],[$ Distribuidor]]","v":0}]
["KAWASAKI","NINJA 300","CABALLETE O GATO DE SERVICIO ",125000,160000,null,{"$f":"PRODUCTOS[[#This Row],[Cantidad]]*PRODUCTOS[[#This Row],[$ Distribuidor]]","v":0}]
["KAWASAKI","NINJA 300","SPOOLS PARA CABALLETE",20000,40000,null,{"$f":"PRODUCTOS[[#This Row],[Cantidad]]*PRODUCTOS[[#This Row],[$ Distribuidor]]","v":0}]
["KAWASAKI","NINJA 300","SLIDER EXOSTO O MOFLE",30000,50000,null,{"$f":"PRODUCTOS[[#This Row],[Cantidad]]*PRODUCTOS[[#This Row],[$ Distribuidor]]","v":0}]
["KAWASAKI","NINJA 300","FENDER ELIMINATOR ABATIBLE 3 MILIMETROS PARA DIRECCIONALES ORIGINALES 2D",null,null,null,{"$f":"PRODUCTOS[[#This Row],[Cantidad]]*PRODUCTOS[[#This Row],[$ Distribuidor]]","v":0}]
["KAWASAKI","NINJA 300","FENDER ELIMINATOR ABATIBLE 3 MILIMETROS PARA DIRECCIONALES ORIGINALES 3D",null,null,null,{"$f":"PRODUCTOS[[#This Row],[Cantidad]]*PRODUCTOS[[#This Row],[$ Distribuidor]]","v":0}]
["KAWASAKI","NINJA 400","SLIDER DE ALTO IMPACTO MOTOR 2 PUNTOS PREMIUM",90000,115000,null,{"$f":"PRODUCTOS[[#This Row],[Cantidad]]*PRODUCTOS[[#This Row],[$ Distribuidor]]","v":0}]
["KAWASAKI","NINJA 400","PROTECTOR DE RADIADOR 2D",null,null,null,{"$f":"PRODUCTOS[[#This Row],[Cantidad]]*PRODUCTOS[[#This Row],[$ Distribuidor]]","v":0}]
["KAWASAKI","NINJA 400","PROTECTOR DE RADIADOR 3D",null,null,null,{"$f":"PRODUCTOS[[#This Row],[Cantidad]]*PRODUCTOS[[#This Row],[$ Distribuidor]]","v":0}]
["KAWASAKI","NINJA 400","PROTECTOR DEPOSITO LIQUIDO FRENO DELANTERO 2D",8000,20000,null,{"$f":"PRODUCTOS[[#This Row],[Cantidad]]*PRODUCTOS[[#This Row],[$ Distribuidor]]","v":0}]
["KAWASAKI","NINJA 400","PROTECTOR DEPOSITO LIQUIDO FRENO DELANTERO 3D",10000,25000,null,{"$f":"PRODUCTOS[[#This Row],[Cantidad]]*PRODUCTOS[[#This Row],[$ Distribuidor]]","v":0}]
["KAWASAKI","NINJA 400","PROTECTOR DEPOSITO LIQUIDO FRENO TRASERO 2D",13000,25000,null,{"$f":"PRODUCTOS[[#This Row],[Cantidad]]*PRODUCTOS[[#This Row],[$ Distribuidor]]","v":0}]
["KAWASAKI","NINJA 400","PROTECTOR DEPOSITO LIQUIDO FRENO TRASERO 3D",15000,28000,null,{"$f":"PRODUCTOS[[#This Row],[Cantidad]]*PRODUCTOS[[#This Row],[$ Distribuidor]]","v":0}]
["KAWASAKI","NINJA 400","PROTECTOR PLACA 2D",11000,20000,null,{"$f":"PRODUCTOS[[#This Row],[Cantidad]]*PRODUCTOS[[#This Row],[$ Distribuidor]]","v":0}]
["KAWASAKI","NINJA 400","PROTECTOR PLACA 3D",14000,25000,null,{"$f":"PRODUCTOS[[#This Row],[Cantidad]]*PRODUCTOS[[#This Row],[$ Distribuidor]]","v":0}]
["KAWASAKI","NINJA 400","SPOOLS PARA CABALLETE",20000,40000,null,{"$f":"PRODUCTOS[[#This Row],[Cantidad]]*PRODUCTOS[[#This Row],[$ Distribuidor]]","v":0}]
["KAWASAKI","NINJA 400","CABALLETE O GATO DE SERVICIO ",125000,160000,null,{"$f":"PRODUCTOS[[#This Row],[Cantidad]]*PRODUCTOS[[#This Row],[$ Distribuidor]]","v":0}]
["KAWASAKI","NINJA 400","PROPTECTOR CALIPER MORDAZA DELANTERA",null,null,null,{"$f":"PRODUCTOS[[#This Row],[Cantidad]]*PRODUCTOS[[#This Row],[$ Distribuidor]]","v":0}]
["KAWASAKI","NINJA 400","FENDER ELIMINATOR ABATIBLE 3 MILIMETROS PARA DIRECCIONALES ORIGINALES 2D",null,null,null,{"$f":"PRODUCTOS[[#This Row],[Cantidad]]*PRODUCTOS[[#This Row],[$ Distribuidor]]","v":0}]
["KAWASAKI","NINJA 400","FENDER ELIMINATOR ABATIBLE 3 MILIMETROS PARA DIRECCIONALES ORIGINALES 3D",null,null,null,{"$f":"PRODUCTOS[[#This Row],[Cantidad]]*PRODUCTOS[[#This Row],[$ Distribuidor]]","v":0}]
["KAWASAKI","NINJA H2","PROTECTOR DE RADIADOR 2D",null,null,null,{"$f":"PRODUCTOS[[#This Row],[Cantidad]]*PRODUCTOS[[#This Row],[$ Distribuidor]]","v":0}]
["KAWASAKI","NINJA H2","PROTECTOR DE RADIADOR 3D",null,null,null,{"$f":"PRODUCTOS[[#This Row],[Cantidad]]*PRODUCTOS[[#This Row],[$ Distribuidor]]","v":0}]
["KAWASAKI","NINJA H2","PROTECTOR CALIPER MORDAZA 2D",12000,20000,null,{"$f":"PRODUCTOS[[#This Row],[Cantidad]]*PRODUCTOS[[#This Row],[$ Distribuidor]]","v":0}]
["KAWASAKI","NINJA H2","PROTECTOR PLACA 2D",11000,20000,null,{"$f":"PRODUCTOS[[#This Row],[Cantidad]]*PRODUCTOS[[#This Row],[$ Distribuidor]]","v":0}]
["KAWASAKI","NINJA H2","PROTECTOR PLACA 3D",14000,25000,null,{"$f":"PRODUCTOS[[#This Row],[Cantidad]]*PRODUCTOS[[#This Row],[$ Distribuidor]]","v":0}]
["KAWASAKI","NINJA H2","SPOOLS PARA CABALLETE",20000,40000,null,{"$f":"PRODUCTOS[[#This Row],[Cantidad]]*PRODUCTOS[[#This Row],[$ Distribuidor]]","v":0}]
["KAWASAKI","NINJA H2","CABALLETE O GATO DE SERVICIO ",125000,160000,null,{"$f":"PRODUCTOS[[#This Row],[Cantidad]]*PRODUCTOS[[#This Row],[$ Distribuidor]]","v":0}]
["KAWASAKI","ER6N","SLIDER DE ALTO IMPACTO MOTOR 1 PUNTOS PREMIUM",null,null,null,{"$f":"PRODUCTOS[[#This Row],[Cantidad]]*PRODUCTOS[[#This Row],[$ Distribuidor]]","v":0}]
["KAWASAKI","ER6N","PROTECTOR DE RADIADOR 2D",null,null,null,{"$f":"PRODUCTOS[[#This Row],[Cantidad]]*PRODUCTOS[[#This Row],[$ Distribuidor]]","v":0}]
["KAWASAKI","ER6N","PROTECTOR DE RADIADOR 3D",null,null,null,{"$f":"PRODUCTOS[[#This Row],[Cantidad]]*PRODUCTOS[[#This Row],[$ Distribuidor]]","v":0}]
["KAWASAKI","ER6N","PROTECTOR PLACA 2D",11000,20000,null,{"$f":"PRODUCTOS[[#This Row],[Cantidad]]*PRODUCTOS[[#This Row],[$ Distribuidor]]","v":0}]
["KAWASAKI","ER6N","PROTECTOR PLACA 3D",14000,25000,null,{"$f":"PRODUCTOS[[#This Row],[Cantidad]]*PRODUCTOS[[#This Row],[$ Distribuidor]]","v":0}]
["KAWASAKI","ER6N","PROTECTOR FAROLA 3D",null,null,null,{"$f":"PRODUCTOS[[#This Row],[Cantidad]]*PRODUCTOS[[#This Row],[$ Distribuidor]]","v":0}]
["KAWASAKI","ER6N","SPOOLS PARA CABALLETE",20000,40000,null,{"$f":"PRODUCTOS[[#This Row],[Cantidad]]*PRODUCTOS[[#This Row],[$ Distribuidor]]","v":0}]
["KAWASAKI","ER6N","CABALLETE O GATO DE SERVICIO ",125000,160000,null,{"$f":"PRODUCTOS[[#This Row],[Cantidad]]*PRODUCTOS[[#This Row],[$ Distribuidor]]","v":0}]
["KAWASAKI","ER6N","FENDER ELIMINATOR ABATIBLE 3 MILIMETROS PARA DIRECCIONALES ORIGINALES 2D",null,null,null,{"$f":"PRODUCTOS[[#This Row],[Cantidad]]*PRODUCTOS[[#This Row],[$ Distribuidor]]","v":0}]
["KAWASAKI","ER6N","FENDER ELIMINATOR ABATIBLE 3 MILIMETROS PARA DIRECCIONALES ORIGINALES 3D",null,null,null,{"$f":"PRODUCTOS[[#This Row],[Cantidad]]*PRODUCTOS[[#This Row],[$ Distribuidor]]","v":0}]
["KAWASAKI","ER6F","PROTECTOR DE RADIADOR 2D",null,null,null,{"$f":"PRODUCTOS[[#This Row],[Cantidad]]*PRODUCTOS[[#This Row],[$ Distribuidor]]","v":0}]
["KAWASAKI","ER6F","PROTECTOR DE RADIADOR 3D",null,null,null,{"$f":"PRODUCTOS[[#This Row],[Cantidad]]*PRODUCTOS[[#This Row],[$ Distribuidor]]","v":0}]
["KAWASAKI","ER6F","PROTECTOR PLACA 2D",11000,20000,null,{"$f":"PRODUCTOS[[#This Row],[Cantidad]]*PRODUCTOS[[#This Row],[$ Distribuidor]]","v":0}]
["KAWASAKI","ER6F","PROTECTOR PLACA 3D",14000,25000,null,{"$f":"PRODUCTOS[[#This Row],[Cantidad]]*PRODUCTOS[[#This Row],[$ Distribuidor]]","v":0}]
["KAWASAKI","ER6F","PROTECTOR FAROLA 3D",null,null,null,{"$f":"PRODUCTOS[[#This Row],[Cantidad]]*PRODUCTOS[[#This Row],[$ Distribuidor]]","v":0}]
["KAWASAKI","ER6F","SPOOLS PARA CABALLETE",20000,40000,null,{"$f":"PRODUCTOS[[#This Row],[Cantidad]]*PRODUCTOS[[#This Row],[$ Distribuidor]]","v":0}]
["KAWASAKI","ER6F","CABALLETE O GATO DE SERVICIO ",125000,160000,null,{"$f":"PRODUCTOS[[#This Row],[Cantidad]]*PRODUCTOS[[#This Row],[$ Distribuidor]]","v":0}]
["KAWASAKI","ER6F","FENDER ELIMINATOR ABATIBLE 3 MILIMETROS PARA DIRECCIONALES ORIGINALES 2D",null,null,null,{"$f":"PRODUCTOS[[#This Row],[Cantidad]]*PRODUCTOS[[#This Row],[$ Distribuidor]]","v":0}]
["KAWASAKI","ER6F","FENDER ELIMINATOR ABATIBLE 3 MILIMETROS PARA DIRECCIONALES ORIGINALES 3D",null,null,null,{"$f":"PRODUCTOS[[#This Row],[Cantidad]]*PRODUCTOS[[#This Row],[$ Distribuidor]]","v":0}]
["KAWASAKI","Z250 SL","PROTECTOR DE RADIADOR 2D",null,null,null,{"$f":"PRODUCTOS[[#This Row],[Cantidad]]*PRODUCTOS[[#This Row],[$ Distribuidor]]","v":0}]
["KAWASAKI","Z250 SL","PROTECTOR DE RADIADOR 3D",null,null,null,{"$f":"PRODUCTOS[[#This Row],[Cantidad]]*PRODUCTOS[[#This Row],[$ Distribuidor]]","v":0}]
["KAWASAKI","Z250 SL","PROTECTOR DEPOSITO LIQUIDO FRENO DELANTERO 2D",8000,20000,null,{"$f":"PRODUCTOS[[#This Row],[Cantidad]]*PRODUCTOS[[#This Row],[$ Distribuidor]]","v":0}]
["KAWASAKI","Z250 SL","PROTECTOR DEPOSITO LIQUIDO FRENO DELANTERO 3D",10000,25000,null,{"$f":"PRODUCTOS[[#This Row],[Cantidad]]*PRODUCTOS[[#This Row],[$ Distribuidor]]","v":0}]
["KAWASAKI","Z250 SL","PROTECTOR DEPOSITO LIQUIDO FRENO TRASERO 2D",13000,25000,null,{"$f":"PRODUCTOS[[#This Row],[Cantidad]]*PRODUCTOS[[#This Row],[$ Distribuidor]]","v":0}]
["KAWASAKI","Z250 SL","PROTECTOR DEPOSITO LIQUIDO FRENO TRASERO 3D",15000,28000,null,{"$f":"PRODUCTOS[[#This Row],[Cantidad]]*PRODUCTOS[[#This Row],[$ Distribuidor]]","v":0}]
["KAWASAKI","Z250 SL","PROTECTOR PLACA 2D",11000,20000,null,{"$f":"PRODUCTOS[[#This Row],[Cantidad]]*PRODUCTOS[[#This Row],[$ Distribuidor]]","v":0}]
["KAWASAKI","Z250 SL","PROTECTOR PLACA 3D",14000,25000,null,{"$f":"PRODUCTOS[[#This Row],[Cantidad]]*PRODUCTOS[[#This Row],[$ Distribuidor]]","v":0}]
["KAWASAKI","Z250 SL","SPOOLS PARA CABALLETE",20000,40000,null,{"$f":"PRODUCTOS[[#This Row],[Cantidad]]*PRODUCTOS[[#This Row],[$ Distribuidor]]","v":0}]
["KAWASAKI","Z250 SL","CABALLETE O GATO DE SERVICIO ",125000,160000,null,{"$f":"PRODUCTOS[[#This Row],[Cantidad]]*PRODUCTOS[[#This Row],[$ Distribuidor]]","v":0}]
["KAWASAKI","Z250  ","SLIDER DE ALTO IMPACTO MOTOR 2 PUNTOS PREMIUM",90000,115000,null,{"$f":"PRODUCTOS[[#This Row],[Cantidad]]*PRODUCTOS[[#This Row],[$ Distribuidor]]","v":0}]
["KAWASAKI","Z250  ","PROTECTOR DE RADIADOR 2D",null,null,null,{"$f":"PRODUCTOS[[#This Row],[Cantidad]]*PRODUCTOS[[#This Row],[$ Distribuidor]]","v":0}]
["KAWASAKI","Z250","PROTECTOR DE RADIADOR 3D",null,null,null,{"$f":"PRODUCTOS[[#This Row],[Cantidad]]*PRODUCTOS[[#This Row],[$ Distribuidor]]","v":0}]
["KAWASAKI","Z250","PROTECTOR CALIPER MORDAZA 2D",12000,20000,null,{"$f":"PRODUCTOS[[#This Row],[Cantidad]]*PRODUCTOS[[#This Row],[$ Distribuidor]]","v":0}]
["KAWASAKI","Z250","PROTECTOR CALIPER MORDAZA 3D",15000,25000,null,{"$f":"PRODUCTOS[[#This Row],[Cantidad]]*PRODUCTOS[[#This Row],[$ Distribuidor]]","v":0}]
["KAWASAKI","Z250","PROTECTOR DEPOSITO LIQUIDO FRENO DELANTERO 2D",8000,20000,null,{"$f":"PRODUCTOS[[#This Row],[Cantidad]]*PRODUCTOS[[#This Row],[$ Distribuidor]]","v":0}]
["KAWASAKI","Z250","PROTECTOR DEPOSITO LIQUIDO FRENO DELANTERO 3D",10000,25000,null,{"$f":"PRODUCTOS[[#This Row],[Cantidad]]*PRODUCTOS[[#This Row],[$ Distribuidor]]","v":0}]
["KAWASAKI","Z250","PROTECTOR DEPOSITO LIQUIDO FRENO TRASERO 2D",13000,25000,null,{"$f":"PRODUCTOS[[#This Row],[Cantidad]]*PRODUCTOS[[#This Row],[$ Distribuidor]]","v":0}]
["KAWASAKI","Z250","PROTECTOR DEPOSITO LIQUIDO FRENO TRASERO 3D",15000,28000,null,{"$f":"PRODUCTOS[[#This Row],[Cantidad]]*PRODUCTOS[[#This Row],[$ Distribuidor]]","v":0}]
["KAWASAKI","Z250","PROTECTOR ARO GASOLINA",11000,20000,null,{"$f":"PRODUCTOS[[#This Row],[Cantidad]]*PRODUCTOS[[#This Row],[$ Distribuidor]]","v":0}]
["KAWASAKI","Z250","PROTECTOR PLACA 2D",11000,20000,null,{"$f":"PRODUCTOS[[#This Row],[Cantidad]]*PRODUCTOS[[#This Row],[$ Distribuidor]]","v":0}]
["KAWASAKI","Z250","PROTECTOR PLACA 3D",14000,25000,null,{"$f":"PRODUCTOS[[#This Row],[Cantidad]]*PRODUCTOS[[#This Row],[$ Distribuidor]]","v":0}]
["KAWASAKI","Z250","CABALLETE O GATO DE SERVICIO ",125000,160000,null,{"$f":"PRODUCTOS[[#This Row],[Cantidad]]*PRODUCTOS[[#This Row],[$ Distribuidor]]","v":0}]
["KAWASAKI","Z250","SPOOLS PARA CABALLETE",20000,40000,null,{"$f":"PRODUCTOS[[#This Row],[Cantidad]]*PRODUCTOS[[#This Row],[$ Distribuidor]]","v":0}]
["KAWASAKI","Z250","FENDER ELIMINATOR ABATIBLE 3 MILIMETROS PARA DIRECCIONALES ORIGINALES 2D",null,null,null,{"$f":"PRODUCTOS[[#This Row],[Cantidad]]*PRODUCTOS[[#This Row],[$ Distribuidor]]","v":0}]
["KAWASAKI","Z250","FENDER ELIMINATOR ABATIBLE 3 MILIMETROS PARA DIRECCIONALES ORIGINALES 3D",null,null,null,{"$f":"PRODUCTOS[[#This Row],[Cantidad]]*PRODUCTOS[[#This Row],[$ Distribuidor]]","v":0}]
["KAWASAKI","Z300","SLIDER DE ALTO IMPACTO MOTOR 2 PUNTOS PREMIUM",90000,115000,null,{"$f":"PRODUCTOS[[#This Row],[Cantidad]]*PRODUCTOS[[#This Row],[$ Distribuidor]]","v":0}]
["KAWASAKI","Z300","PROTECTOR DE RADIADOR 2D",null,null,null,{"$f":"PRODUCTOS[[#This Row],[Cantidad]]*PRODUCTOS[[#This Row],[$ Distribuidor]]","v":0}]
["KAWASAKI","Z300","PROTECTOR DE RADIADOR 3D",null,null,null,{"$f":"PRODUCTOS[[#This Row],[Cantidad]]*PRODUCTOS[[#This Row],[$ Distribuidor]]","v":0}]
["KAWASAKI","Z300","PROTECTOR CALIPER MORDAZA 2D",12000,20000,null,{"$f":"PRODUCTOS[[#This Row],[Cantidad]]*PRODUCTOS[[#This Row],[$ Distribuidor]]","v":0}]
["KAWASAKI","Z300","PROTECTOR CALIPER MORDAZA 3D",15000,25000,null,{"$f":"PRODUCTOS[[#This Row],[Cantidad]]*PRODUCTOS[[#This Row],[$ Distribuidor]]","v":0}]
["KAWASAKI","Z300","PROTECTOR DEPOSITO LIQUIDO FRENO DELANTERO 2D",8000,20000,null,{"$f":"PRODUCTOS[[#This Row],[Cantidad]]*PRODUCTOS[[#This Row],[$ Distribuidor]]","v":0}]
["KAWASAKI","Z300","PROTECTOR DEPOSITO LIQUIDO FRENO DELANTERO 3D",10000,25000,null,{"$f":"PRODUCTOS[[#This Row],[Cantidad]]*PRODUCTOS[[#This Row],[$ Distribuidor]]","v":0}]
["KAWASAKI","Z300","PROTECTOR DEPOSITO LIQUIDO FRENO TRASERO 2D",13000,25000,null,{"$f":"PRODUCTOS[[#This Row],[Cantidad]]*PRODUCTOS[[#This Row],[$ Distribuidor]]","v":0}]
["KAWASAKI","Z300","PROTECTOR DEPOSITO LIQUIDO FRENO TRASERO 3D",15000,28000,null,{"$f":"PRODUCTOS[[#This Row],[Cantidad]]*PRODUCTOS[[#This Row],[$ Distribuidor]]","v":0}]
["KAWASAKI","Z300","PROTECTOR ARO GASOLINA",11000,20000,null,{"$f":"PRODUCTOS[[#This Row],[Cantidad]]*PRODUCTOS[[#This Row],[$ Distribuidor]]","v":0}]
["KAWASAKI","Z300","PROTECTOR PLACA 2D",11000,20000,null,{"$f":"PRODUCTOS[[#This Row],[Cantidad]]*PRODUCTOS[[#This Row],[$ Distribuidor]]","v":0}]
["KAWASAKI","Z300","PROTECTOR PLACA 3D",14000,25000,null,{"$f":"PRODUCTOS[[#This Row],[Cantidad]]*PRODUCTOS[[#This Row],[$ Distribuidor]]","v":0}]
["KAWASAKI","Z300","CABALLETE O GATO DE SERVICIO ",125000,160000,null,{"$f":"PRODUCTOS[[#This Row],[Cantidad]]*PRODUCTOS[[#This Row],[$ Distribuidor]]","v":0}]
["KAWASAKI","Z300","SPOOLS PARA CABALLETE",20000,40000,null,{"$f":"PRODUCTOS[[#This Row],[Cantidad]]*PRODUCTOS[[#This Row],[$ Distribuidor]]","v":0}]
["KAWASAKI","Z300","FENDER ELIMINATOR ABATIBLE 3 MILIMETROS PARA DIRECCIONALES ORIGINALES 2D",null,null,null,{"$f":"PRODUCTOS[[#This Row],[Cantidad]]*PRODUCTOS[[#This Row],[$ Distribuidor]]","v":0}]
["KAWASAKI","Z300","FENDER ELIMINATOR ABATIBLE 3 MILIMETROS PARA DIRECCIONALES ORIGINALES 3D",null,null,null,{"$f":"PRODUCTOS[[#This Row],[Cantidad]]*PRODUCTOS[[#This Row],[$ Distribuidor]]","v":0}]
["KAWASAKI","Z400","SLIDER DE ALTO IMPACTO MOTOR 1 PUNTOS PREMIUM",null,null,null,{"$f":"PRODUCTOS[[#This Row],[Cantidad]]*PRODUCTOS[[#This Row],[$ Distribuidor]]","v":0}]
["KAWASAKI","Z400","PROTECTOR DE RADIADOR 3D",null,null,null,{"$f":"PRODUCTOS[[#This Row],[Cantidad]]*PRODUCTOS[[#This Row],[$ Distribuidor]]","v":0}]
["KAWASAKI","Z400","PROTECTOR CALIPER MORDAZA 2D",12000,20000,null,{"$f":"PRODUCTOS[[#This Row],[Cantidad]]*PRODUCTOS[[#This Row],[$ Distribuidor]]","v":0}]
["KAWASAKI","Z400","PROTECTOR CALIPER MORDAZA 3D",15000,25000,null,{"$f":"PRODUCTOS[[#This Row],[Cantidad]]*PRODUCTOS[[#This Row],[$ Distribuidor]]","v":0}]
["KAWASAKI","Z400","PROTECTOR DEPOSITO LIQUIDO FRENO DELANTERO 2D",8000,20000,null,{"$f":"PRODUCTOS[[#This Row],[Cantidad]]*PRODUCTOS[[#This Row],[$ Distribuidor]]","v":0}]
["KAWASAKI","Z400","PROTECTOR DEPOSITO LIQUIDO FRENO DELANTERO 3D",10000,25000,null,{"$f":"PRODUCTOS[[#This Row],[Cantidad]]*PRODUCTOS[[#This Row],[$ Distribuidor]]","v":0}]
["KAWASAKI","Z400","PROTECTOR DEPOSITO LIQUIDO FRENO TRASERO 2D",13000,25000,null,{"$f":"PRODUCTOS[[#This Row],[Cantidad]]*PRODUCTOS[[#This Row],[$ Distribuidor]]","v":0}]
["KAWASAKI","Z400","PROTECTOR DEPOSITO LIQUIDO FRENO TRASERO 3D",15000,28000,null,{"$f":"PRODUCTOS[[#This Row],[Cantidad]]*PRODUCTOS[[#This Row],[$ Distribuidor]]","v":0}]
["KAWASAKI","Z400","PROTECTOR PLACA 2D",11000,20000,null,{"$f":"PRODUCTOS[[#This Row],[Cantidad]]*PRODUCTOS[[#This Row],[$ Distribuidor]]","v":0}]
["KAWASAKI","Z400","PROTECTOR PLACA 3D",14000,25000,null,{"$f":"PRODUCTOS[[#This Row],[Cantidad]]*PRODUCTOS[[#This Row],[$ Distribuidor]]","v":0}]
["KAWASAKI","Z400","CABALLETE O GATO DE SERVICIO ",125000,160000,null,{"$f":"PRODUCTOS[[#This Row],[Cantidad]]*PRODUCTOS[[#This Row],[$ Distribuidor]]","v":0}]
["KAWASAKI","Z400","SPOOLS PARA CABALLETE",20000,40000,null,{"$f":"PRODUCTOS[[#This Row],[Cantidad]]*PRODUCTOS[[#This Row],[$ Distribuidor]]","v":0}]
["KAWASAKI","Z400","SLIDER EXOSTO O MOFLE",30000,50000,null,{"$f":"PRODUCTOS[[#This Row],[Cantidad]]*PRODUCTOS[[#This Row],[$ Distribuidor]]","v":0}]
["KAWASAKI","Z400","FENDER ELIMINATOR ABATIBLE 3 MILIMETROS PARA DIRECCIONALES ORIGINALES 2D",null,null,null,{"$f":"PRODUCTOS[[#This Row],[Cantidad]]*PRODUCTOS[[#This Row],[$ Distribuidor]]","v":0}]
["KAWASAKI","Z400","FENDER ELIMINATOR ABATIBLE 3 MILIMETROS PARA DIRECCIONALES ORIGINALES 3D",null,null,null,{"$f":"PRODUCTOS[[#This Row],[Cantidad]]*PRODUCTOS[[#This Row],[$ Distribuidor]]","v":0}]
["KAWASAKI","Z650","PROTECTOR DE RADIADOR 2D",null,null,null,{"$f":"PRODUCTOS[[#This Row],[Cantidad]]*PRODUCTOS[[#This Row],[$ Distribuidor]]","v":0}]
["KAWASAKI","Z650","PROTECTOR DE RADIADOR 3D",null,null,null,{"$f":"PRODUCTOS[[#This Row],[Cantidad]]*PRODUCTOS[[#This Row],[$ Distribuidor]]","v":0}]
["KAWASAKI","Z650","PROTECTOR PLACA 2D",11000,20000,null,{"$f":"PRODUCTOS[[#This Row],[Cantidad]]*PRODUCTOS[[#This Row],[$ Distribuidor]]","v":0}]
["KAWASAKI","Z650","PROTECTOR PLACA 3D",14000,25000,null,{"$f":"PRODUCTOS[[#This Row],[Cantidad]]*PRODUCTOS[[#This Row],[$ Distribuidor]]","v":0}]
["KAWASAKI","Z650","SPOOLS PARA CABALLETE",20000,40000,null,{"$f":"PRODUCTOS[[#This Row],[Cantidad]]*PRODUCTOS[[#This Row],[$ Distribuidor]]","v":0}]
["KAWASAKI","Z650","CABALLETE O GATO DE SERVICIO ",125000,160000,null,{"$f":"PRODUCTOS[[#This Row],[Cantidad]]*PRODUCTOS[[#This Row],[$ Distribuidor]]","v":0}]
["KAWASAKI","Z800","SLIDER DE ALTO IMPACTO MOTOR 2 PUNTOS PREMIUM",90000,115000,null,{"$f":"PRODUCTOS[[#This Row],[Cantidad]]*PRODUCTOS[[#This Row],[$ Distribuidor]]","v":0}]
["KAWASAKI","Z800","SLIDER EJES X 4 SIN TAPA",null,null,null,{"$f":"PRODUCTOS[[#This Row],[Cantidad]]*PRODUCTOS[[#This Row],[$ Distribuidor]]","v":0}]
["KAWASAKI","Z800","SLIDER EJES X 4 CON TAPA",null,null,null,{"$f":"PRODUCTOS[[#This Row],[Cantidad]]*PRODUCTOS[[#This Row],[$ Distribuidor]]","v":0}]
["KAWASAKI","Z800","PROTECTOR DE RADIADOR 2D",null,null,null,{"$f":"PRODUCTOS[[#This Row],[Cantidad]]*PRODUCTOS[[#This Row],[$ Distribuidor]]","v":0}]
["KAWASAKI","Z800","PROTECTOR DE RADIADOR 3D",null,null,null,{"$f":"PRODUCTOS[[#This Row],[Cantidad]]*PRODUCTOS[[#This Row],[$ Distribuidor]]","v":0}]
["KAWASAKI","Z800","PROTECTOR PLACA 2D",11000,20000,null,{"$f":"PRODUCTOS[[#This Row],[Cantidad]]*PRODUCTOS[[#This Row],[$ Distribuidor]]","v":0}]
["KAWASAKI","Z800","PROTECTOR PLACA 3D",14000,25000,null,{"$f":"PRODUCTOS[[#This Row],[Cantidad]]*PRODUCTOS[[#This Row],[$ Distribuidor]]","v":0}]
["KAWASAKI","Z800","PROTECTOR FAROLA 3D",null,null,null,{"$f":"PRODUCTOS[[#This Row],[Cantidad]]*PRODUCTOS[[#This Row],[$ Distribuidor]]","v":0}]
["KAWASAKI","Z800","SPOOLS PARA CABALLETE",20000,40000,null,{"$f":"PRODUCTOS[[#This Row],[Cantidad]]*PRODUCTOS[[#This Row],[$ Distribuidor]]","v":0}]
["KAWASAKI","Z800","SLIDER EXOSTO O MOFLE",30000,50000,null,{"$f":"PRODUCTOS[[#This Row],[Cantidad]]*PRODUCTOS[[#This Row],[$ Distribuidor]]","v":0}]
["KAWASAKI","Z800","FENDER ELIMINATOR ABATIBLE 3 MILIMETROS PARA DIRECCIONALES ORIGINALES 2D",null,null,null,{"$f":"PRODUCTOS[[#This Row],[Cantidad]]*PRODUCTOS[[#This Row],[$ Distribuidor]]","v":0}]
["KAWASAKI","Z800","FENDER ELIMINATOR ABATIBLE 3 MILIMETROS PARA DIRECCIONALES ORIGINALES 3D",null,null,null,{"$f":"PRODUCTOS[[#This Row],[Cantidad]]*PRODUCTOS[[#This Row],[$ Distribuidor]]","v":0}]
["KAWASAKI","Z900","SLIDER DE ALTO IMPACTO MOTOR 1 PUNTOS PREMIUM",null,null,null,{"$f":"PRODUCTOS[[#This Row],[Cantidad]]*PRODUCTOS[[#This Row],[$ Distribuidor]]","v":0}]
["KAWASAKI","Z900","SLIDER DE ALTO IMPACTO MOTOR 2 PUNTOS PREMIUM",90000,115000,null,{"$f":"PRODUCTOS[[#This Row],[Cantidad]]*PRODUCTOS[[#This Row],[$ Distribuidor]]","v":0}]
["KAWASAKI","Z900","SLIDER EJES DELANTEROS X 2 CON TAPA",null,null,null,{"$f":"PRODUCTOS[[#This Row],[Cantidad]]*PRODUCTOS[[#This Row],[$ Distribuidor]]","v":0}]
["KAWASAKI","Z900","PROTECTOR DE RADIADOR 2D",null,null,null,{"$f":"PRODUCTOS[[#This Row],[Cantidad]]*PRODUCTOS[[#This Row],[$ Distribuidor]]","v":0}]
["KAWASAKI","Z900","PROTECTOR DE RADIADOR 3D",null,null,null,{"$f":"PRODUCTOS[[#This Row],[Cantidad]]*PRODUCTOS[[#This Row],[$ Distribuidor]]","v":0}]
["KAWASAKI","Z900","PROTECTOR DEPOSITO LIQUIDO FRENO TRASERO 2D",13000,25000,null,{"$f":"PRODUCTOS[[#This Row],[Cantidad]]*PRODUCTOS[[#This Row],[$ Distribuidor]]","v":0}]
["KAWASAKI","Z900","PROTECTOR DEPOSITO LIQUIDO FRENO TRASERO 3D",15000,28000,null,{"$f":"PRODUCTOS[[#This Row],[Cantidad]]*PRODUCTOS[[#This Row],[$ Distribuidor]]","v":0}]
["KAWASAKI","Z900","PROTECTOR PLACA 2D",11000,20000,null,{"$f":"PRODUCTOS[[#This Row],[Cantidad]]*PRODUCTOS[[#This Row],[$ Distribuidor]]","v":0}]
["KAWASAKI","Z900","PROTECTOR PLACA 3D",14000,25000,null,{"$f":"PRODUCTOS[[#This Row],[Cantidad]]*PRODUCTOS[[#This Row],[$ Distribuidor]]","v":0}]
["KAWASAKI","Z900","SPOOLS PARA CABALLETE",20000,40000,null,{"$f":"PRODUCTOS[[#This Row],[Cantidad]]*PRODUCTOS[[#This Row],[$ Distribuidor]]","v":0}]
["KAWASAKI","Z900","SLIDER EXOSTO O MOFLE",30000,50000,null,{"$f":"PRODUCTOS[[#This Row],[Cantidad]]*PRODUCTOS[[#This Row],[$ Distribuidor]]","v":0}]
["KAWASAKI","Z900","CABALLETE O GATO DE SERVICIO ",125000,160000,null,{"$f":"PRODUCTOS[[#This Row],[Cantidad]]*PRODUCTOS[[#This Row],[$ Distribuidor]]","v":0}]
["KAWASAKI","Z1000","SLIDER DE ALTO IMPACTO MOTOR 1 PUNTOS PREMIUM",null,null,null,{"$f":"PRODUCTOS[[#This Row],[Cantidad]]*PRODUCTOS[[#This Row],[$ Distribuidor]]","v":0}]
["KAWASAKI","Z1000","SLIDER EJES DELANTEROS X 2 CON TAPA",null,null,null,{"$f":"PRODUCTOS[[#This Row],[Cantidad]]*PRODUCTOS[[#This Row],[$ Distribuidor]]","v":0}]
["KAWASAKI","Z1000","PROTECTOR DE RADIADOR 2D",null,null,null,{"$f":"PRODUCTOS[[#This Row],[Cantidad]]*PRODUCTOS[[#This Row],[$ Distribuidor]]","v":0}]
["KAWASAKI","Z1000","PROTECTOR DE RADIADOR 3D",null,null,null,{"$f":"PRODUCTOS[[#This Row],[Cantidad]]*PRODUCTOS[[#This Row],[$ Distribuidor]]","v":0}]
["KAWASAKI","Z1000","PROTECTOR PLACA 2D",11000,20000,null,{"$f":"PRODUCTOS[[#This Row],[Cantidad]]*PRODUCTOS[[#This Row],[$ Distribuidor]]","v":0}]
["KAWASAKI","Z1000","PROTECTOR PLACA 3D",14000,25000,null,{"$f":"PRODUCTOS[[#This Row],[Cantidad]]*PRODUCTOS[[#This Row],[$ Distribuidor]]","v":0}]
["KAWASAKI","Z1000","SPOOLS PARA CABALLETE",20000,40000,null,{"$f":"PRODUCTOS[[#This Row],[Cantidad]]*PRODUCTOS[[#This Row],[$ Distribuidor]]","v":0}]
["KAWASAKI","Z1000","SLIDER EXOSTO O MOFLE",30000,50000,null,{"$f":"PRODUCTOS[[#This Row],[Cantidad]]*PRODUCTOS[[#This Row],[$ Distribuidor]]","v":0}]
["KAWASAKI","Z1000","FENDER ELIMINATOR ABATIBLE 3 MILIMETROS PARA DIRECCIONALES ORIGINALES 2D",null,null,null,{"$f":"PRODUCTOS[[#This Row],[Cantidad]]*PRODUCTOS[[#This Row],[$ Distribuidor]]","v":0}]
["KAWASAKI","Z1000","FENDER ELIMINATOR ABATIBLE 3 MILIMETROS PARA DIRECCIONALES ORIGINALES 3D",null,null,null,{"$f":"PRODUCTOS[[#This Row],[Cantidad]]*PRODUCTOS[[#This Row],[$ Distribuidor]]","v":0}]
["KAWASAKI","VERSYS 300","PROTECTOR DE RADIADOR 2D",null,null,null,{"$f":"PRODUCTOS[[#This Row],[Cantidad]]*PRODUCTOS[[#This Row],[$ Distribuidor]]","v":0}]
["KAWASAKI","VERSYS 300","PROTECTOR DE RADIADOR 3D",null,null,null,{"$f":"PRODUCTOS[[#This Row],[Cantidad]]*PRODUCTOS[[#This Row],[$ Distribuidor]]","v":0}]
["KAWASAKI","VERSYS 300","PROTECTOR PLACA 2D",11000,20000,null,{"$f":"PRODUCTOS[[#This Row],[Cantidad]]*PRODUCTOS[[#This Row],[$ Distribuidor]]","v":0}]
["KAWASAKI","VERSYS 300","PROTECTOR PLACA 3D",14000,25000,null,{"$f":"PRODUCTOS[[#This Row],[Cantidad]]*PRODUCTOS[[#This Row],[$ Distribuidor]]","v":0}]
["KAWASAKI","VERSYS 300","PROTECTOR FAROLA 3D",null,null,null,{"$f":"PRODUCTOS[[#This Row],[Cantidad]]*PRODUCTOS[[#This Row],[$ Distribuidor]]","v":0}]
["KAWASAKI","VERSYS 300","SPOOLS PARA CABALLETE",20000,40000,null,{"$f":"PRODUCTOS[[#This Row],[Cantidad]]*PRODUCTOS[[#This Row],[$ Distribuidor]]","v":0}]
["KAWASAKI","VERSYS 300","CABALLETE O GATO DE SERVICIO ",125000,160000,null,{"$f":"PRODUCTOS[[#This Row],[Cantidad]]*PRODUCTOS[[#This Row],[$ Distribuidor]]","v":0}]
["KAWASAKI","VERSYS 300","FENDER ELIMINATOR ABATIBLE 3 MILIMETROS PARA DIRECCIONALES ORIGINALES 2D",null,null,null,{"$f":"PRODUCTOS[[#This Row],[Cantidad]]*PRODUCTOS[[#This Row],[$ Distribuidor]]","v":0}]
["KAWASAKI","VERSYS 300","FENDER ELIMINATOR ABATIBLE 3 MILIMETROS PARA DIRECCIONALES ORIGINALES 3D",null,null,null,{"$f":"PRODUCTOS[[#This Row],[Cantidad]]*PRODUCTOS[[#This Row],[$ Distribuidor]]","v":0}]
["KAWASAKI","VERSYSY 650 ANTIGUA","PROTECTOR DE RADIADOR 2D",null,null,null,{"$f":"PRODUCTOS[[#This Row],[Cantidad]]*PRODUCTOS[[#This Row],[$ Distribuidor]]","v":0}]
["KAWASAKI","VERSYSY 650 ANTIGUA","PROTECTOR DE RADIADOR 3D",null,null,null,{"$f":"PRODUCTOS[[#This Row],[Cantidad]]*PRODUCTOS[[#This Row],[$ Distribuidor]]","v":0}]
["KAWASAKI","VERSYSY 650 ANTIGUA","SLIDER EJES DELANTEROS X 2 CON TAPA",null,null,null,{"$f":"PRODUCTOS[[#This Row],[Cantidad]]*PRODUCTOS[[#This Row],[$ Distribuidor]]","v":0}]
["KAWASAKI","VERSYSY 650 ANTIGUA","PROTECTOR DEPOSITO LIQUIDO FRENO TRASERO 2D",13000,25000,null,{"$f":"PRODUCTOS[[#This Row],[Cantidad]]*PRODUCTOS[[#This Row],[$ Distribuidor]]","v":0}]
["KAWASAKI","VERSYSY 650 ANTIGUA","PROTECTOR DEPOSITO LIQUIDO FRENO TRASERO 3D",15000,28000,null,{"$f":"PRODUCTOS[[#This Row],[Cantidad]]*PRODUCTOS[[#This Row],[$ Distribuidor]]","v":0}]
["KAWASAKI","VERSYSY 650 ANTIGUA","PROTECTOR PLACA 2D",11000,20000,null,{"$f":"PRODUCTOS[[#This Row],[Cantidad]]*PRODUCTOS[[#This Row],[$ Distribuidor]]","v":0}]
["KAWASAKI","VERSYSY 650 ANTIGUA","PROTECTOR PLACA 3D",14000,25000,null,{"$f":"PRODUCTOS[[#This Row],[Cantidad]]*PRODUCTOS[[#This Row],[$ Distribuidor]]","v":0}]
["KAWASAKI","VERSYSY 650 ANTIGUA","CABALLETE O GATO DE SERVICIO ",125000,160000,null,{"$f":"PRODUCTOS[[#This Row],[Cantidad]]*PRODUCTOS[[#This Row],[$ Distribuidor]]","v":0}]
["KAWASAKI","VERSYSY 650 ANTIGUA","SPOOLS PARA CABALLETE",20000,40000,null,{"$f":"PRODUCTOS[[#This Row],[Cantidad]]*PRODUCTOS[[#This Row],[$ Distribuidor]]","v":0}]
["KAWASAKI","VERSYSY 650 NUEVA 2014 UP","PROTECTOR DE RADIADOR 2D",null,null,null,{"$f":"PRODUCTOS[[#This Row],[Cantidad]]*PRODUCTOS[[#This Row],[$ Distribuidor]]","v":0}]
["KAWASAKI","VERSYSY 650 NUEVA 2014 UP","PROTECTOR DE RADIADOR 3D",null,null,null,{"$f":"PRODUCTOS[[#This Row],[Cantidad]]*PRODUCTOS[[#This Row],[$ Distribuidor]]","v":0}]
["KAWASAKI","VERSYSY 650 NUEVA 2014 UP","SLIDER EJES DELANTEROS X 2 CON TAPA",null,null,null,{"$f":"PRODUCTOS[[#This Row],[Cantidad]]*PRODUCTOS[[#This Row],[$ Distribuidor]]","v":0}]
["KAWASAKI","VERSYSY 650 NUEVA 2014 UP","PROTECTOR DEPOSITO LIQUIDO FRENO TRASERO 2D",13000,25000,null,{"$f":"PRODUCTOS[[#This Row],[Cantidad]]*PRODUCTOS[[#This Row],[$ Distribuidor]]","v":0}]
["KAWASAKI","VERSYSY 650 NUEVA 2014 UP","PROTECTOR DEPOSITO LIQUIDO FRENO TRASERO 3D",15000,28000,null,{"$f":"PRODUCTOS[[#This Row],[Cantidad]]*PRODUCTOS[[#This Row],[$ Distribuidor]]","v":0}]
["KAWASAKI","VERSYSY 650 NUEVA 2014 UP","PROTECTOR PLACA 2D",11000,20000,null,{"$f":"PRODUCTOS[[#This Row],[Cantidad]]*PRODUCTOS[[#This Row],[$ Distribuidor]]","v":0}]
["KAWASAKI","VERSYSY 650 NUEVA 2014 UP","PROTECTOR PLACA 3D",14000,25000,null,{"$f":"PRODUCTOS[[#This Row],[Cantidad]]*PRODUCTOS[[#This Row],[$ Distribuidor]]","v":0}]
["KAWASAKI","VERSYSY 650 NUEVA 2014 UP","CABALLETE O GATO DE SERVICIO ",125000,160000,null,{"$f":"PRODUCTOS[[#This Row],[Cantidad]]*PRODUCTOS[[#This Row],[$ Distribuidor]]","v":0}]
["KAWASAKI","VERSYSY 650 NUEVA 2014 UP","SPOOLS PARA CABALLETE",20000,40000,null,{"$f":"PRODUCTOS[[#This Row],[Cantidad]]*PRODUCTOS[[#This Row],[$ Distribuidor]]","v":0}]
["KAWASAKI","VERSYS 1000","PROTECTOR DE RADIADOR 2D",null,null,null,{"$f":"PRODUCTOS[[#This Row],[Cantidad]]*PRODUCTOS[[#This Row],[$ Distribuidor]]","v":0}]
["KAWASAKI","VERSYS 1000","PROTECTOR DE RADIADOR 3D",null,null,null,{"$f":"PRODUCTOS[[#This Row],[Cantidad]]*PRODUCTOS[[#This Row],[$ Distribuidor]]","v":0}]
["KAWASAKI","VERSYS 1000","SLIDER EJES DELANTEROS X 2 CON TAPA",null,null,null,{"$f":"PRODUCTOS[[#This Row],[Cantidad]]*PRODUCTOS[[#This Row],[$ Distribuidor]]","v":0}]
["KAWASAKI","VERSYS 1000","PROTECTOR DEPOSITO LIQUIDO FRENO TRASERO 2D",13000,25000,null,{"$f":"PRODUCTOS[[#This Row],[Cantidad]]*PRODUCTOS[[#This Row],[$ Distribuidor]]","v":0}]
["KAWASAKI","VERSYS 1000","PROTECTOR DEPOSITO LIQUIDO FRENO TRASERO 3D",15000,28000,null,{"$f":"PRODUCTOS[[#This Row],[Cantidad]]*PRODUCTOS[[#This Row],[$ Distribuidor]]","v":0}]
["KAWASAKI","VERSYS 1000","PROTECTOR PLACA 2D",11000,20000,null,{"$f":"PRODUCTOS[[#This Row],[Cantidad]]*PRODUCTOS[[#This Row],[$ Distribuidor]]","v":0}]
["KAWASAKI","VERSYS 1000","PROTECTOR PLACA 3D",14000,25000,null,{"$f":"PRODUCTOS[[#This Row],[Cantidad]]*PRODUCTOS[[#This Row],[$ Distribuidor]]","v":0}]
["KAWASAKI","VERSYS 1000","CABALLETE O GATO DE SERVICIO ",125000,160000,null,{"$f":"PRODUCTOS[[#This Row],[Cantidad]]*PRODUCTOS[[#This Row],[$ Distribuidor]]","v":0}]
["KAWASAKI","VERSYS 1000","SPOOLS PARA CABALLETE",20000,40000,null,{"$f":"PRODUCTOS[[#This Row],[Cantidad]]*PRODUCTOS[[#This Row],[$ Distribuidor]]","v":0}]
["KAWASAKI","VERSYS 1000","FENDER ELIMINATOR ABATIBLE 3 MILIMETROS PARA DIRECCIONALES ORIGINALES 2D",null,null,null,{"$f":"PRODUCTOS[[#This Row],[Cantidad]]*PRODUCTOS[[#This Row],[$ Distribuidor]]","v":0}]
["KAWASAKI","VERSYS 1000","FENDER ELIMINATOR ABATIBLE 3 MILIMETROS PARA DIRECCIONALES ORIGINALES 3D",null,null,null,{"$f":"PRODUCTOS[[#This Row],[Cantidad]]*PRODUCTOS[[#This Row],[$ Distribuidor]]","v":0}]
["HONDA","CBR 250","PROTECTOR DE RADIADOR 2D",null,null,null,{"$f":"PRODUCTOS[[#This Row],[Cantidad]]*PRODUCTOS[[#This Row],[$ Distribuidor]]","v":0}]
["HONDA","CBR 250","PROTECTOR DE RADIADOR 3D",null,null,null,{"$f":"PRODUCTOS[[#This Row],[Cantidad]]*PRODUCTOS[[#This Row],[$ Distribuidor]]","v":0}]
["HONDA","CBR 250","PROTECTOR DEPOSITO LIQUIDO FRENO DELANTERO 2D",8000,20000,null,{"$f":"PRODUCTOS[[#This Row],[Cantidad]]*PRODUCTOS[[#This Row],[$ Distribuidor]]","v":0}]
["HONDA","CBR 250","PROTECTOR DEPOSITO LIQUIDO FRENO DELANTERO 3D",10000,25000,null,{"$f":"PRODUCTOS[[#This Row],[Cantidad]]*PRODUCTOS[[#This Row],[$ Distribuidor]]","v":0}]
["HONDA","CBR 250","PROTECTOR DEPOSITO LIQUIDO FRENO TRASERO 2D",13000,25000,null,{"$f":"PRODUCTOS[[#This Row],[Cantidad]]*PRODUCTOS[[#This Row],[$ Distribuidor]]","v":0}]
["HONDA","CBR 250","PROTECTOR DEPOSITO LIQUIDO FRENO TRASERO 3D",15000,28000,null,{"$f":"PRODUCTOS[[#This Row],[Cantidad]]*PRODUCTOS[[#This Row],[$ Distribuidor]]","v":0}]
["HONDA","CBR 250","PROTECTOR PLACA 2D",11000,20000,null,{"$f":"PRODUCTOS[[#This Row],[Cantidad]]*PRODUCTOS[[#This Row],[$ Distribuidor]]","v":0}]
["HONDA","CBR 250","PROTECTOR PLACA 3D",14000,25000,null,{"$f":"PRODUCTOS[[#This Row],[Cantidad]]*PRODUCTOS[[#This Row],[$ Distribuidor]]","v":0}]
["HONDA","CBR 250","CABALLETE O GATO DE SERVICIO ",125000,160000,null,{"$f":"PRODUCTOS[[#This Row],[Cantidad]]*PRODUCTOS[[#This Row],[$ Distribuidor]]","v":0}]
["HONDA","CB TWISTER 250","SLIDER DE ALTO IMPACTO MOTOR 1 PUNTOS PREMIUM",null,null,null,{"$f":"PRODUCTOS[[#This Row],[Cantidad]]*PRODUCTOS[[#This Row],[$ Distribuidor]]","v":0}]
["HONDA","CB TWISTER 250","PROTECTOR DE RADIADOR 2D",null,null,null,{"$f":"PRODUCTOS[[#This Row],[Cantidad]]*PRODUCTOS[[#This Row],[$ Distribuidor]]","v":0}]
["HONDA","CB TWISTER 250","PROTECTOR DE RADIADOR 3D",null,null,null,{"$f":"PRODUCTOS[[#This Row],[Cantidad]]*PRODUCTOS[[#This Row],[$ Distribuidor]]","v":0}]
["HONDA","CB TWISTER 250","PROTECTOR DEPOSITO LIQUIDO FRENO DELANTERO 2D",8000,20000,null,{"$f":"PRODUCTOS[[#This Row],[Cantidad]]*PRODUCTOS[[#This Row],[$ Distribuidor]]","v":0}]
["HONDA","CB TWISTER 250","PROTECTOR DEPOSITO LIQUIDO FRENO DELANTERO 3D",10000,25000,null,{"$f":"PRODUCTOS[[#This Row],[Cantidad]]*PRODUCTOS[[#This Row],[$ Distribuidor]]","v":0}]
["HONDA","CB TWISTER 250","PROTECTOR DEPOSITO LIQUIDO FRENO TRASERO 2D",13000,25000,null,{"$f":"PRODUCTOS[[#This Row],[Cantidad]]*PRODUCTOS[[#This Row],[$ Distribuidor]]","v":0}]
["HONDA","CB TWISTER 250","PROTECTOR DEPOSITO LIQUIDO FRENO TRASERO 3D",15000,28000,null,{"$f":"PRODUCTOS[[#This Row],[Cantidad]]*PRODUCTOS[[#This Row],[$ Distribuidor]]","v":0}]
["HONDA","CB TWISTER 250","PROTECTOR PLACA 2D",11000,20000,null,{"$f":"PRODUCTOS[[#This Row],[Cantidad]]*PRODUCTOS[[#This Row],[$ Distribuidor]]","v":0}]
["HONDA","CB TWISTER 250","PROTECTOR PLACA 3D",14000,25000,null,{"$f":"PRODUCTOS[[#This Row],[Cantidad]]*PRODUCTOS[[#This Row],[$ Distribuidor]]","v":0}]
["HONDA","CB TWISTER 250","SPOOLS PARA CABALLETE",20000,40000,null,{"$f":"PRODUCTOS[[#This Row],[Cantidad]]*PRODUCTOS[[#This Row],[$ Distribuidor]]","v":0}]
["HONDA","CB TWISTER 250","CABALLETE O GATO DE SERVICIO ",125000,160000,null,{"$f":"PRODUCTOS[[#This Row],[Cantidad]]*PRODUCTOS[[#This Row],[$ Distribuidor]]","v":0}]
["HONDA","CB 300 ","SLIDER DE ALTO IMPACTO MOTOR 1 PUNTOS PREMIUM",null,null,null,{"$f":"PRODUCTOS[[#This Row],[Cantidad]]*PRODUCTOS[[#This Row],[$ Distribuidor]]","v":0}]
["HONDA","CB 300 ","PROTECTOR DE RADIADOR 2D",null,null,null,{"$f":"PRODUCTOS[[#This Row],[Cantidad]]*PRODUCTOS[[#This Row],[$ Distribuidor]]","v":0}]
["HONDA","CB 300","PROTECTOR DE RADIADOR 3D",null,null,null,{"$f":"PRODUCTOS[[#This Row],[Cantidad]]*PRODUCTOS[[#This Row],[$ Distribuidor]]","v":0}]
["HONDA","CB 300","PROTECTOR DEPOSITO LIQUIDO FRENO DELANTERO 2D",8000,20000,null,{"$f":"PRODUCTOS[[#This Row],[Cantidad]]*PRODUCTOS[[#This Row],[$ Distribuidor]]","v":0}]
["HONDA","CB 300","PROTECTOR DEPOSITO LIQUIDO FRENO DELANTERO 3D",10000,25000,null,{"$f":"PRODUCTOS[[#This Row],[Cantidad]]*PRODUCTOS[[#This Row],[$ Distribuidor]]","v":0}]
["HONDA","CB 300","PROTECTOR DEPOSITO LIQUIDO FRENO TRASERO 2D",13000,25000,null,{"$f":"PRODUCTOS[[#This Row],[Cantidad]]*PRODUCTOS[[#This Row],[$ Distribuidor]]","v":0}]
["HONDA","CB 300","PROTECTOR DEPOSITO LIQUIDO FRENO TRASERO 3D",15000,28000,null,{"$f":"PRODUCTOS[[#This Row],[Cantidad]]*PRODUCTOS[[#This Row],[$ Distribuidor]]","v":0}]
["HONDA","CB 300","PROTECTOR PLACA 2D",11000,20000,null,{"$f":"PRODUCTOS[[#This Row],[Cantidad]]*PRODUCTOS[[#This Row],[$ Distribuidor]]","v":0}]
["HONDA","CB 300","PROTECTOR PLACA 3D",14000,25000,null,{"$f":"PRODUCTOS[[#This Row],[Cantidad]]*PRODUCTOS[[#This Row],[$ Distribuidor]]","v":0}]
["HONDA","CB 300","CABALLETE O GATO DE SERVICIO ",125000,160000,null,{"$f":"PRODUCTOS[[#This Row],[Cantidad]]*PRODUCTOS[[#This Row],[$ Distribuidor]]","v":0}]
["HONDA","CB 300","SPOOLS PARA CABALLETE",20000,40000,null,{"$f":"PRODUCTOS[[#This Row],[Cantidad]]*PRODUCTOS[[#This Row],[$ Distribuidor]]","v":0}]
["HONDA","CB 500","PROTECTOR DE RADIADOR 2D",null,null,null,{"$f":"PRODUCTOS[[#This Row],[Cantidad]]*PRODUCTOS[[#This Row],[$ Distribuidor]]","v":0}]
["HONDA","CB 500","PROTECTOR DE RADIADOR 3D",null,null,null,{"$f":"PRODUCTOS[[#This Row],[Cantidad]]*PRODUCTOS[[#This Row],[$ Distribuidor]]","v":0}]
["HONDA","CB 500","PROTECTOR PLACA 2D",11000,20000,null,{"$f":"PRODUCTOS[[#This Row],[Cantidad]]*PRODUCTOS[[#This Row],[$ Distribuidor]]","v":0}]
["HONDA","CB 500","PROTECTOR PLACA 3D",14000,25000,null,{"$f":"PRODUCTOS[[#This Row],[Cantidad]]*PRODUCTOS[[#This Row],[$ Distribuidor]]","v":0}]
["HONDA","CB 500","SPOOLS PARA CABALLETE",20000,40000,null,{"$f":"PRODUCTOS[[#This Row],[Cantidad]]*PRODUCTOS[[#This Row],[$ Distribuidor]]","v":0}]
["HONDA","CB 500","CABALLETE O GATO DE SERVICIO ",125000,160000,null,{"$f":"PRODUCTOS[[#This Row],[Cantidad]]*PRODUCTOS[[#This Row],[$ Distribuidor]]","v":0}]
["HONDA","CB 650R","SLIDER DE ALTO IMPACTO MOTOR 1 PUNTOS PREMIUM",null,null,null,{"$f":"PRODUCTOS[[#This Row],[Cantidad]]*PRODUCTOS[[#This Row],[$ Distribuidor]]","v":0}]
["HONDA","CB 650R","PROTECTOR DE RADIADOR 2D",null,null,null,{"$f":"PRODUCTOS[[#This Row],[Cantidad]]*PRODUCTOS[[#This Row],[$ Distribuidor]]","v":0}]
["HONDA","CB 650R","PROTECTOR PLACA 2D",11000,20000,null,{"$f":"PRODUCTOS[[#This Row],[Cantidad]]*PRODUCTOS[[#This Row],[$ Distribuidor]]","v":0}]
["HONDA","CB 650R","PROTECTOR PLACA 3D",14000,25000,null,{"$f":"PRODUCTOS[[#This Row],[Cantidad]]*PRODUCTOS[[#This Row],[$ Distribuidor]]","v":0}]
["HONDA","CB 650R","PROTECTOR DE RADIADOR 3D",null,null,null,{"$f":"PRODUCTOS[[#This Row],[Cantidad]]*PRODUCTOS[[#This Row],[$ Distribuidor]]","v":0}]
["HONDA","CB 650R","CABALLETE O GATO DE SERVICIO ",125000,160000,null,{"$f":"PRODUCTOS[[#This Row],[Cantidad]]*PRODUCTOS[[#This Row],[$ Distribuidor]]","v":0}]
["HONDA","CB 1000R","SLIDER DE ALTO IMPACTO MOTOR 1 PUNTOS PREMIUM",null,null,null,{"$f":"PRODUCTOS[[#This Row],[Cantidad]]*PRODUCTOS[[#This Row],[$ Distribuidor]]","v":0}]
["HONDA","CB 1000R","PROTECTOR DE RADIADOR 2D",null,null,null,{"$f":"PRODUCTOS[[#This Row],[Cantidad]]*PRODUCTOS[[#This Row],[$ Distribuidor]]","v":0}]
["HONDA","CB 1000R","PROTECTOR PLACA 2D",11000,20000,null,{"$f":"PRODUCTOS[[#This Row],[Cantidad]]*PRODUCTOS[[#This Row],[$ Distribuidor]]","v":0}]
["HONDA","CB 1000R","PROTECTOR PLACA 3D",14000,25000,null,{"$f":"PRODUCTOS[[#This Row],[Cantidad]]*PRODUCTOS[[#This Row],[$ Distribuidor]]","v":0}]
["HONDA","CB 1000R","PROTECTOR DE RADIADOR 3D",null,null,null,{"$f":"PRODUCTOS[[#This Row],[Cantidad]]*PRODUCTOS[[#This Row],[$ Distribuidor]]","v":0}]
["HONDA","CB 1000R","CABALLETE O GATO DE SERVICIO ",125000,160000,null,{"$f":"PRODUCTOS[[#This Row],[Cantidad]]*PRODUCTOS[[#This Row],[$ Distribuidor]]","v":0}]
["HONDA","CB 500X","SLIDER DE ALTO IMPACTO MOTOR 2 PUNTOS ECONO",85000,100000,null,{"$f":"PRODUCTOS[[#This Row],[Cantidad]]*PRODUCTOS[[#This Row],[$ Distribuidor]]","v":0}]
["HONDA","CB 500X","SLIDER DE ALTO IMPACTO MOTOR 2 PUNTOS PREMIUM",90000,115000,null,{"$f":"PRODUCTOS[[#This Row],[Cantidad]]*PRODUCTOS[[#This Row],[$ Distribuidor]]","v":0}]
["HONDA","CB 500X","SLIDER DE ALTO IMPACTO MOTOR 3 PUNTOS ECONO",95000,130000,null,{"$f":"PRODUCTOS[[#This Row],[Cantidad]]*PRODUCTOS[[#This Row],[$ Distribuidor]]","v":0}]
["HONDA","CB 500X","SLIDER DE ALTO IMPACTO MOTOR 3 PUNTOS PREMIUM",100000,145000,null,{"$f":"PRODUCTOS[[#This Row],[Cantidad]]*PRODUCTOS[[#This Row],[$ Distribuidor]]","v":0}]
["HONDA","CB 500X","SLIDER EJES X 4 SIN TAPA",null,null,null,{"$f":"PRODUCTOS[[#This Row],[Cantidad]]*PRODUCTOS[[#This Row],[$ Distribuidor]]","v":0}]
["HONDA","CB 500X","SLIDER EJES X 4 CON TAPA",null,null,null,{"$f":"PRODUCTOS[[#This Row],[Cantidad]]*PRODUCTOS[[#This Row],[$ Distribuidor]]","v":0}]
["HONDA","CB 500X","PROTECTOR DE RADIADOR 2D",null,null,null,{"$f":"PRODUCTOS[[#This Row],[Cantidad]]*PRODUCTOS[[#This Row],[$ Distribuidor]]","v":0}]
["HONDA","CB 500X","PROTECTOR DE RADIADOR 3D",null,null,null,{"$f":"PRODUCTOS[[#This Row],[Cantidad]]*PRODUCTOS[[#This Row],[$ Distribuidor]]","v":0}]
["HONDA","CB 500X","PROTECTOR CALIPER MORDAZA 2D",12000,20000,null,{"$f":"PRODUCTOS[[#This Row],[Cantidad]]*PRODUCTOS[[#This Row],[$ Distribuidor]]","v":0}]
["HONDA","CB 500X","PROTECTOR CALIPER MORDAZA 3D",15000,25000,null,{"$f":"PRODUCTOS[[#This Row],[Cantidad]]*PRODUCTOS[[#This Row],[$ Distribuidor]]","v":0}]
["HONDA","CB 500X","PROTECTOR DEPOSITO LIQUIDO FRENO DELANTERO 2D",8000,20000,null,{"$f":"PRODUCTOS[[#This Row],[Cantidad]]*PRODUCTOS[[#This Row],[$ Distribuidor]]","v":0}]
["HONDA","CB 500X","PROTECTOR DEPOSITO LIQUIDO FRENO DELANTERO 3D",10000,25000,null,{"$f":"PRODUCTOS[[#This Row],[Cantidad]]*PRODUCTOS[[#This Row],[$ Distribuidor]]","v":0}]
["HONDA","CB 500X","PROTECTOR DEPOSITO LIQUIDO FRENO TRASERO 2D",13000,25000,null,{"$f":"PRODUCTOS[[#This Row],[Cantidad]]*PRODUCTOS[[#This Row],[$ Distribuidor]]","v":0}]
["HONDA","CB 500X","PROTECTOR DEPOSITO LIQUIDO FRENO TRASERO 3D",15000,28000,null,{"$f":"PRODUCTOS[[#This Row],[Cantidad]]*PRODUCTOS[[#This Row],[$ Distribuidor]]","v":0}]
["HONDA","CB 500X","PROTECTOR ARO GASOLINA",11000,20000,null,{"$f":"PRODUCTOS[[#This Row],[Cantidad]]*PRODUCTOS[[#This Row],[$ Distribuidor]]","v":0}]
["HONDA","CB 500X","PROTECTOR PLACA 2D",11000,20000,null,{"$f":"PRODUCTOS[[#This Row],[Cantidad]]*PRODUCTOS[[#This Row],[$ Distribuidor]]","v":0}]
["HONDA","CB 500X","PROTECTOR PLACA 3D",14000,25000,null,{"$f":"PRODUCTOS[[#This Row],[Cantidad]]*PRODUCTOS[[#This Row],[$ Distribuidor]]","v":0}]
["HONDA","CB 500X","PROTECTOR FAROLA 3D",null,null,null,{"$f":"PRODUCTOS[[#This Row],[Cantidad]]*PRODUCTOS[[#This Row],[$ Distribuidor]]","v":0}]
["HONDA","CB 500X","CUPULA DE LUJO ACERO INOXIDABLE",null,null,null,{"$f":"PRODUCTOS[[#This Row],[Cantidad]]*PRODUCTOS[[#This Row],[$ Distribuidor]]","v":0}]
["HONDA","CB 500X","CUBRE PIÑON SALIDA  2D",19000,25000,null,{"$f":"PRODUCTOS[[#This Row],[Cantidad]]*PRODUCTOS[[#This Row],[$ Distribuidor]]","v":0}]
["HONDA","CB 500X","CUBRE PIÑON SALIDA  3D",22000,30000,null,{"$f":"PRODUCTOS[[#This Row],[Cantidad]]*PRODUCTOS[[#This Row],[$ Distribuidor]]","v":0}]
["HONDA","CB 500X","CUBRE CADENA 2D",null,null,null,{"$f":"PRODUCTOS[[#This Row],[Cantidad]]*PRODUCTOS[[#This Row],[$ Distribuidor]]","v":0}]
["HONDA","CB 500X","CUBRE CADENA 3D",null,null,null,{"$f":"PRODUCTOS[[#This Row],[Cantidad]]*PRODUCTOS[[#This Row],[$ Distribuidor]]","v":0}]
["HONDA","CB 500X","LOGO NS LATERAL TIJERA ",null,null,null,{"$f":"PRODUCTOS[[#This Row],[Cantidad]]*PRODUCTOS[[#This Row],[$ Distribuidor]]","v":0}]
["HONDA","CB 500X","PROTECTORES LATERALES DE RADIADOR X2  2D",null,null,null,{"$f":"PRODUCTOS[[#This Row],[Cantidad]]*PRODUCTOS[[#This Row],[$ Distribuidor]]","v":0}]
["HONDA","CB 500X","PROTECTORES LATERALES DE RADIADOR X2  3D",null,null,null,{"$f":"PRODUCTOS[[#This Row],[Cantidad]]*PRODUCTOS[[#This Row],[$ Distribuidor]]","v":0}]
["HONDA","CB 500X","CABALLETE O GATO DE SERVICIO ",125000,160000,null,{"$f":"PRODUCTOS[[#This Row],[Cantidad]]*PRODUCTOS[[#This Row],[$ Distribuidor]]","v":0}]
["HONDA","CB 500X","LUJO ACUTRAX MANUBRIO CENTRAL 2D",15000,23000,null,{"$f":"PRODUCTOS[[#This Row],[Cantidad]]*PRODUCTOS[[#This Row],[$ Distribuidor]]","v":0}]
["HONDA","CB 500X","LUJO ACUTRAX MANUBRIO CENTRAL 3D",18000,25000,null,{"$f":"PRODUCTOS[[#This Row],[Cantidad]]*PRODUCTOS[[#This Row],[$ Distribuidor]]","v":0}]
["HONDA","CB 500X","LUJO TANQUE FRONTAL",null,null,null,{"$f":"PRODUCTOS[[#This Row],[Cantidad]]*PRODUCTOS[[#This Row],[$ Distribuidor]]","v":0}]
["HONDA","CB 500X","LUJO GUARDABARRO TRASERO LATERAL 2D ",null,null,null,{"$f":"PRODUCTOS[[#This Row],[Cantidad]]*PRODUCTOS[[#This Row],[$ Distribuidor]]","v":0}]
["HONDA","CB 500X","LUJO GUARDABARRO TRASERO LATERAL 3D",null,null,null,{"$f":"PRODUCTOS[[#This Row],[Cantidad]]*PRODUCTOS[[#This Row],[$ Distribuidor]]","v":0}]
["HONDA","CB 500X","LUJO GUARDABARRO TRASERO CENTRAL 2D",null,null,null,{"$f":"PRODUCTOS[[#This Row],[Cantidad]]*PRODUCTOS[[#This Row],[$ Distribuidor]]","v":0}]
["HONDA","CB 500X","LUJO GUARDABARRO TRASERO CENTRAL 3D",null,null,null,{"$f":"PRODUCTOS[[#This Row],[Cantidad]]*PRODUCTOS[[#This Row],[$ Distribuidor]]","v":0}]
["HONDA","CB 500X","LUJOS MALLAS LATERALES X 2",null,null,null,{"$f":"PRODUCTOS[[#This Row],[Cantidad]]*PRODUCTOS[[#This Row],[$ Distribuidor]]","v":0}]
["HONDA","CB 500X","BASE PORTA CELULAR GPS",null,null,null,{"$f":"PRODUCTOS[[#This Row],[Cantidad]]*PRODUCTOS[[#This Row],[$ Distribuidor]]","v":0}]
["HONDA","CB 500X","LUJO FILTRO ACEITE 2D",5000,10000,null,{"$f":"PRODUCTOS[[#This Row],[Cantidad]]*PRODUCTOS[[#This Row],[$ Distribuidor]]","v":0}]
["HONDA","CB 500X","LUJO FILTRO ACEITE 3D",6000,12000,null,{"$f":"PRODUCTOS[[#This Row],[Cantidad]]*PRODUCTOS[[#This Row],[$ Distribuidor]]","v":0}]
["HONDA","CB 500X","ESTABILIZADOR DE BARRAS 2D",null,null,null,{"$f":"PRODUCTOS[[#This Row],[Cantidad]]*PRODUCTOS[[#This Row],[$ Distribuidor]]","v":0}]
["HONDA","CB 500X","ESTABILIZADOR DE BARRAS 3D",null,null,null,{"$f":"PRODUCTOS[[#This Row],[Cantidad]]*PRODUCTOS[[#This Row],[$ Distribuidor]]","v":0}]
["HONDA","CB 500X","FENDER ELIMINATOR ABATIBLE 3 MILIMETROS PARA DIRECCIONALES ORIGINALES 2D",null,null,null,{"$f":"PRODUCTOS[[#This Row],[Cantidad]]*PRODUCTOS[[#This Row],[$ Distribuidor]]","v":0}]
["HONDA","CB 500X","FENDER ELIMINATOR ABATIBLE 3 MILIMETROS PARA DIRECCIONALES ORIGINALES 3D",null,null,null,{"$f":"PRODUCTOS[[#This Row],[Cantidad]]*PRODUCTOS[[#This Row],[$ Distribuidor]]","v":0}]
["HONDA","CB 500X","PROTECTOR TACOMETRO ACRILICO",11000,17000,null,{"$f":"PRODUCTOS[[#This Row],[Cantidad]]*PRODUCTOS[[#This Row],[$ Distribuidor]]","v":0}]
["HONDA","XBLADE 160",null,null,null,null,{"$f":"PRODUCTOS[[#This Row],[Cantidad]]*PRODUCTOS[[#This Row],[$ Distribuidor]]","v":0}]
["HONDA","XBLADE 160",null,null,null,null,{"$f":"PRODUCTOS[[#This Row],[Cantidad]]*PRODUCTOS[[#This Row],[$ Distribuidor]]","v":0}]
["HONDA","XBLADE 160",null,null,null,null,{"$f":"PRODUCTOS[[#This Row],[Cantidad]]*PRODUCTOS[[#This Row],[$ Distribuidor]]","v":0}]
["HONDA","XBLADE 160",null,null,null,null,{"$f":"PRODUCTOS[[#This Row],[Cantidad]]*PRODUCTOS[[#This Row],[$ Distribuidor]]","v":0}]
["HONDA","XRE 300","SLIDER EJES X 4 CON TAPA",null,null,null,{"$f":"PRODUCTOS[[#This Row],[Cantidad]]*PRODUCTOS[[#This Row],[$ Distribuidor]]","v":0}]
["HONDA","XRE 300","PROTECTOR PLACA 2D",11000,20000,null,{"$f":"PRODUCTOS[[#This Row],[Cantidad]]*PRODUCTOS[[#This Row],[$ Distribuidor]]","v":0}]
["HONDA","XRE 300","PROTECTOR DEPOSITO LIQUIDO FRENO DELANTERO 2D",8000,20000,null,{"$f":"PRODUCTOS[[#This Row],[Cantidad]]*PRODUCTOS[[#This Row],[$ Distribuidor]]","v":0}]
["HONDA","XRE 300","PROTECTOR DEPOSITO LIQUIDO FRENO DELANTERO 3D",10000,25000,null,{"$f":"PRODUCTOS[[#This Row],[Cantidad]]*PRODUCTOS[[#This Row],[$ Distribuidor]]","v":0}]
["HONDA","XRE 300","PROTECTOR DEPOSITO LIQUIDO FRENO TRASERO 2D",13000,25000,null,{"$f":"PRODUCTOS[[#This Row],[Cantidad]]*PRODUCTOS[[#This Row],[$ Distribuidor]]","v":0}]
["HONDA","XRE 300","PROTECTOR DEPOSITO LIQUIDO FRENO TRASERO 3D",15000,28000,null,{"$f":"PRODUCTOS[[#This Row],[Cantidad]]*PRODUCTOS[[#This Row],[$ Distribuidor]]","v":0}]
["HONDA","XRE 300","LUJO ACUTRAX MANUBRIO CENTRAL 2D",15000,23000,null,{"$f":"PRODUCTOS[[#This Row],[Cantidad]]*PRODUCTOS[[#This Row],[$ Distribuidor]]","v":0}]
["HONDA","XRE 300","PROTECTOR PLACA 3D",14000,20000,null,{"$f":"PRODUCTOS[[#This Row],[Cantidad]]*PRODUCTOS[[#This Row],[$ Distribuidor]]","v":0}]
["HONDA","XRE 300","CABALLETE O GATO DE SERVICIO ",125000,160000,null,{"$f":"PRODUCTOS[[#This Row],[Cantidad]]*PRODUCTOS[[#This Row],[$ Distribuidor]]","v":0}]
["HONDA","XADV","PROTECTOR DE RADIADOR 2D",null,null,null,{"$f":"PRODUCTOS[[#This Row],[Cantidad]]*PRODUCTOS[[#This Row],[$ Distribuidor]]","v":0}]
["HONDA","XADV","PROTECTOR DE RADIADOR 3D",null,null,null,{"$f":"PRODUCTOS[[#This Row],[Cantidad]]*PRODUCTOS[[#This Row],[$ Distribuidor]]","v":0}]
["HONDA","XADV","CABALLETE O GATO DE SERVICIO ",125000,160000,null,{"$f":"PRODUCTOS[[#This Row],[Cantidad]]*PRODUCTOS[[#This Row],[$ Distribuidor]]","v":0}]
["HONDA","XADV","PROTECTOR PLACA 2D",11000,20000,null,{"$f":"PRODUCTOS[[#This Row],[Cantidad]]*PRODUCTOS[[#This Row],[$ Distribuidor]]","v":0}]
["HONDA","XADV","PROTECTOR PLACA 3D",14000,25000,null,{"$f":"PRODUCTOS[[#This Row],[Cantidad]]*PRODUCTOS[[#This Row],[$ Distribuidor]]","v":0}]
["HONDA","NC 750","PROTECTOR DE RADIADOR 2D",null,null,null,{"$f":"PRODUCTOS[[#This Row],[Cantidad]]*PRODUCTOS[[#This Row],[$ Distribuidor]]","v":0}]
["HONDA","NC 750","PROTECTOR DE RADIADOR 3D",null,null,null,{"$f":"PRODUCTOS[[#This Row],[Cantidad]]*PRODUCTOS[[#This Row],[$ Distribuidor]]","v":0}]
["HONDA","NC 750","PROTECTOR PLACA 2D",11000,20000,null,{"$f":"PRODUCTOS[[#This Row],[Cantidad]]*PRODUCTOS[[#This Row],[$ Distribuidor]]","v":0}]
["HONDA","NC 750","PROTECTOR PLACA 3D",14000,25000,null,{"$f":"PRODUCTOS[[#This Row],[Cantidad]]*PRODUCTOS[[#This Row],[$ Distribuidor]]","v":0}]
["HONDA","NC 750","PROTECTOR FAROLA 3D",null,null,null,{"$f":"PRODUCTOS[[#This Row],[Cantidad]]*PRODUCTOS[[#This Row],[$ Distribuidor]]","v":0}]
["HONDA","NC 750","CABALLETE O GATO DE SERVICIO ",125000,160000,null,{"$f":"PRODUCTOS[[#This Row],[Cantidad]]*PRODUCTOS[[#This Row],[$ Distribuidor]]","v":0}]
["HERO","HUNK 160",null,null,null,null,{"$f":"PRODUCTOS[[#This Row],[Cantidad]]*PRODUCTOS[[#This Row],[$ Distribuidor]]","v":0}]
["HERO","HUNK 161",null,null,null,null,{"$f":"PRODUCTOS[[#This Row],[Cantidad]]*PRODUCTOS[[#This Row],[$ Distribuidor]]","v":0}]
["HERO","HUNK 162",null,null,null,null,{"$f":"PRODUCTOS[[#This Row],[Cantidad]]*PRODUCTOS[[#This Row],[$ Distribuidor]]","v":0}]
["BENELLI",135,null,null,null,null,{"$f":"PRODUCTOS[[#This Row],[Cantidad]]*PRODUCTOS[[#This Row],[$ Distribuidor]]","v":0}]
["BENELLI",135,null,null,null,null,{"$f":"PRODUCTOS[[#This Row],[Cantidad]]*PRODUCTOS[[#This Row],[$ Distribuidor]]","v":0}]
["BENELLI",135,null,null,null,null,{"$f":"PRODUCTOS[[#This Row],[Cantidad]]*PRODUCTOS[[#This Row],[$ Distribuidor]]","v":0}]
["BENELLI","TNT 150",null,null,null,null,{"$f":"PRODUCTOS[[#This Row],[Cantidad]]*PRODUCTOS[[#This Row],[$ Distribuidor]]","v":0}]
["BENELLI","TNT 150",null,null,null,null,{"$f":"PRODUCTOS[[#This Row],[Cantidad]]*PRODUCTOS[[#This Row],[$ Distribuidor]]","v":0}]
["BENELLI","TNT 150",null,null,null,null,{"$f":"PRODUCTOS[[#This Row],[Cantidad]]*PRODUCTOS[[#This Row],[$ Distribuidor]]","v":0}]
["BENELLI",180,null,null,null,null,{"$f":"PRODUCTOS[[#This Row],[Cantidad]]*PRODUCTOS[[#This Row],[$ Distribuidor]]","v":0}]
["BENELLI",180,null,null,null,null,{"$f":"PRODUCTOS[[#This Row],[Cantidad]]*PRODUCTOS[[#This Row],[$ Distribuidor]]","v":0}]
["BENELLI",180,null,null,null,null,{"$f":"PRODUCTOS[[#This Row],[Cantidad]]*PRODUCTOS[[#This Row],[$ Distribuidor]]","v":0}]
["BENELLI",180,null,null,null,null,{"$f":"PRODUCTOS[[#This Row],[Cantidad]]*PRODUCTOS[[#This Row],[$ Distribuidor]]","v":0}]
["BENELLI",180,null,null,null,null,{"$f":"PRODUCTOS[[#This Row],[Cantidad]]*PRODUCTOS[[#This Row],[$ Distribuidor]]","v":0}]
["BENELLI",180,null,null,null,null,{"$f":"PRODUCTOS[[#This Row],[Cantidad]]*PRODUCTOS[[#This Row],[$ Distribuidor]]","v":0}]
["BENELLI","TNT 25","SLIDER DE ALTO IMPACTO MOTOR 1 PUNTOS PREMIUM",null,null,null,{"$f":"PRODUCTOS[[#This Row],[Cantidad]]*PRODUCTOS[[#This Row],[$ Distribuidor]]","v":0}]
["BENELLI","TNT 25","SLIDER EXOSTO O MOFLE",30000,50000,null,{"$f":"PRODUCTOS[[#This Row],[Cantidad]]*PRODUCTOS[[#This Row],[$ Distribuidor]]","v":0}]
["BENELLI","TNT 25","PROTECTOR DE RADIADOR 2D",null,null,null,{"$f":"PRODUCTOS[[#This Row],[Cantidad]]*PRODUCTOS[[#This Row],[$ Distribuidor]]","v":0}]
["BENELLI","TNT 25","PROTECTOR DE RADIADOR 3D",null,null,null,{"$f":"PRODUCTOS[[#This Row],[Cantidad]]*PRODUCTOS[[#This Row],[$ Distribuidor]]","v":0}]
["BENELLI","TNT 25","PROTECTOR DEPOSITO LIQUIDO FRENO DELANTERO 2D",8000,20000,null,{"$f":"PRODUCTOS[[#This Row],[Cantidad]]*PRODUCTOS[[#This Row],[$ Distribuidor]]","v":0}]
["BENELLI","TNT 25","PROTECTOR DEPOSITO LIQUIDO FRENO DELANTERO 3D",10000,25000,null,{"$f":"PRODUCTOS[[#This Row],[Cantidad]]*PRODUCTOS[[#This Row],[$ Distribuidor]]","v":0}]
["BENELLI","TNT 25","PROTECTOR PLACA 2D",11000,20000,null,{"$f":"PRODUCTOS[[#This Row],[Cantidad]]*PRODUCTOS[[#This Row],[$ Distribuidor]]","v":0}]
["BENELLI","TNT 25","PROTECTOR PLACA 3D",14000,25000,null,{"$f":"PRODUCTOS[[#This Row],[Cantidad]]*PRODUCTOS[[#This Row],[$ Distribuidor]]","v":0}]
["BENELLI","TNT 25","SPOOLS PARA CABALLETE",20000,40000,null,{"$f":"PRODUCTOS[[#This Row],[Cantidad]]*PRODUCTOS[[#This Row],[$ Distribuidor]]","v":0}]
["BENELLI","TNT 25","CABALLETE O GATO DE SERVICIO ",125000,160000,null,{"$f":"PRODUCTOS[[#This Row],[Cantidad]]*PRODUCTOS[[#This Row],[$ Distribuidor]]","v":0}]
["BENELLI","TRK 251",null,null,null,null,{"$f":"PRODUCTOS[[#This Row],[Cantidad]]*PRODUCTOS[[#This Row],[$ Distribuidor]]","v":0}]
["BENELLI","TRK 251",null,null,null,null,{"$f":"PRODUCTOS[[#This Row],[Cantidad]]*PRODUCTOS[[#This Row],[$ Distribuidor]]","v":0}]
["BENELLI","TRK 251",null,null,null,null,{"$f":"PRODUCTOS[[#This Row],[Cantidad]]*PRODUCTOS[[#This Row],[$ Distribuidor]]","v":0}]
["BENELLI","302S","SLIDER DE ALTO IMPACTO MOTOR 1 PUNTOS PREMIUM",null,null,null,{"$f":"PRODUCTOS[[#This Row],[Cantidad]]*PRODUCTOS[[#This Row],[$ Distribuidor]]","v":0}]
["BENELLI","302S","PROTECTOR DE RADIADOR 2D",null,null,null,{"$f":"PRODUCTOS[[#This Row],[Cantidad]]*PRODUCTOS[[#This Row],[$ Distribuidor]]","v":0}]
["BENELLI","302S","PROTECTOR DE RADIADOR 3D",null,null,null,{"$f":"PRODUCTOS[[#This Row],[Cantidad]]*PRODUCTOS[[#This Row],[$ Distribuidor]]","v":0}]
["BENELLI","302S","PROTECTOR PLACA 2D",11000,20000,null,{"$f":"PRODUCTOS[[#This Row],[Cantidad]]*PRODUCTOS[[#This Row],[$ Distribuidor]]","v":0}]
["BENELLI","302S","PROTECTOR PLACA 3D",14000,25000,null,{"$f":"PRODUCTOS[[#This Row],[Cantidad]]*PRODUCTOS[[#This Row],[$ Distribuidor]]","v":0}]
["BENELLI","302S","SPOOLS PARA CABALLETE",20000,40000,null,{"$f":"PRODUCTOS[[#This Row],[Cantidad]]*PRODUCTOS[[#This Row],[$ Distribuidor]]","v":0}]
["BENELLI","302S","CABALLETE O GATO DE SERVICIO ",125000,160000,null,{"$f":"PRODUCTOS[[#This Row],[Cantidad]]*PRODUCTOS[[#This Row],[$ Distribuidor]]","v":0}]
["BENELLI",600,"SLIDER DE ALTO IMPACTO MOTOR 2 PUNTOS PREMIUM",90000,115000,null,{"$f":"PRODUCTOS[[#This Row],[Cantidad]]*PRODUCTOS[[#This Row],[$ Distribuidor]]","v":0}]
["BENELLI",600,"PROTECTOR PLACA 2D",11000,20000,null,{"$f":"PRODUCTOS[[#This Row],[Cantidad]]*PRODUCTOS[[#This Row],[$ Distribuidor]]","v":0}]
["BENELLI",600,"PROTECTOR PLACA 3D",14000,25000,null,{"$f":"PRODUCTOS[[#This Row],[Cantidad]]*PRODUCTOS[[#This Row],[$ Distribuidor]]","v":0}]
["BENELLI",600,"SPOOLS PARA CABALLETE",20000,40000,null,{"$f":"PRODUCTOS[[#This Row],[Cantidad]]*PRODUCTOS[[#This Row],[$ Distribuidor]]","v":0}]
["BENELLI",600,"CABALLETE O GATO DE SERVICIO ",125000,160000,null,{"$f":"PRODUCTOS[[#This Row],[Cantidad]]*PRODUCTOS[[#This Row],[$ Distribuidor]]","v":0}]
["TVS","APACHE 160 - 180 2 VALVULAS","SLIDER DE ALTO IMPACTO MOTOR 2 PUNTOS PREMIUM",90000,115000,null,{"$f":"PRODUCTOS[[#This Row],[Cantidad]]*PRODUCTOS[[#This Row],[$ Distribuidor]]","v":0}]
["TVS","APACHE 160 - 180 2 VALVULAS","SLIDER EJES X 4 CON TAPA",null,null,null,{"$f":"PRODUCTOS[[#This Row],[Cantidad]]*PRODUCTOS[[#This Row],[$ Distribuidor]]","v":0}]
["TVS","APACHE 160 - 180 2 VALVULAS","PROTECTOR DE RADIADOR 2D",null,null,null,{"$f":"PRODUCTOS[[#This Row],[Cantidad]]*PRODUCTOS[[#This Row],[$ Distribuidor]]","v":0}]
["TVS","APACHE 160 - 180 2 VALVULAS","PROTECTOR DE RADIADOR 3D",null,null,null,{"$f":"PRODUCTOS[[#This Row],[Cantidad]]*PRODUCTOS[[#This Row],[$ Distribuidor]]","v":0}]
["TVS","APACHE 160 - 180 2 VALVULAS","PROTECTOR CALIPER MORDAZA 2D",12000,20000,null,{"$f":"PRODUCTOS[[#This Row],[Cantidad]]*PRODUCTOS[[#This Row],[$ Distribuidor]]","v":0}]
["TVS","APACHE 160 - 180 2 VALVULAS","PROTECTOR CALIPER MORDAZA 3D",15000,25000,null,{"$f":"PRODUCTOS[[#This Row],[Cantidad]]*PRODUCTOS[[#This Row],[$ Distribuidor]]","v":0}]
["TVS","APACHE 160 - 180 2 VALVULAS","PROTECTOR DEPOSITO LIQUIDO FRENO DELANTERO 2D",8000,20000,null,{"$f":"PRODUCTOS[[#This Row],[Cantidad]]*PRODUCTOS[[#This Row],[$ Distribuidor]]","v":0}]
["TVS","APACHE 160 - 180 2 VALVULAS","PROTECTOR DEPOSITO LIQUIDO FRENO DELANTERO 3D",10000,25000,null,{"$f":"PRODUCTOS[[#This Row],[Cantidad]]*PRODUCTOS[[#This Row],[$ Distribuidor]]","v":0}]
["TVS","APACHE 160 - 180 2 VALVULAS","PROTECTOR DEPOSITO LIQUIDO FRENO TRASERO 2D",13000,25000,null,{"$f":"PRODUCTOS[[#This Row],[Cantidad]]*PRODUCTOS[[#This Row],[$ Distribuidor]]","v":0}]
["TVS","APACHE 160 - 180 2 VALVULAS","PROTECTOR DEPOSITO LIQUIDO FRENO TRASERO 3D",15000,28000,null,{"$f":"PRODUCTOS[[#This Row],[Cantidad]]*PRODUCTOS[[#This Row],[$ Distribuidor]]","v":0}]
["TVS","APACHE 160 - 180 2 VALVULAS","PROTECTOR ARO GASOLINA",11000,20000,null,{"$f":"PRODUCTOS[[#This Row],[Cantidad]]*PRODUCTOS[[#This Row],[$ Distribuidor]]","v":0}]
["TVS","APACHE 160 - 180 2 VALVULAS","PROTECTOR PLACA 2D",11000,20000,null,{"$f":"PRODUCTOS[[#This Row],[Cantidad]]*PRODUCTOS[[#This Row],[$ Distribuidor]]","v":0}]
["TVS","APACHE 160 - 180 2 VALVULAS","PROTECTOR PLACA 3D",14000,25000,null,{"$f":"PRODUCTOS[[#This Row],[Cantidad]]*PRODUCTOS[[#This Row],[$ Distribuidor]]","v":0}]
["TVS","APACHE 160 - 180 2 VALVULAS","CUPULA DE LUJO ACERO INOXIDABLE",null,null,null,{"$f":"PRODUCTOS[[#This Row],[Cantidad]]*PRODUCTOS[[#This Row],[$ Distribuidor]]","v":0}]
["TVS","APACHE 160 - 180 2 VALVULAS","SPOOLS PARA CABALLETE",20000,40000,null,{"$f":"PRODUCTOS[[#This Row],[Cantidad]]*PRODUCTOS[[#This Row],[$ Distribuidor]]","v":0}]
["TVS","APACHE 160 - 180 2 VALVULAS","CABALLETE O GATO DE SERVICIO ",125000,160000,null,{"$f":"PRODUCTOS[[#This Row],[Cantidad]]*PRODUCTOS[[#This Row],[$ Distribuidor]]","v":0}]
["TVS","APACHE 160 - 180 2 VALVULAS","LUJO ACUTRAX MANUBRIO CENTRAL 2D",15000,23000,null,{"$f":"PRODUCTOS[[#This Row],[Cantidad]]*PRODUCTOS[[#This Row],[$ Distribuidor]]","v":0}]
["TVS","APACHE 160 - 180 2 VALVULAS","LUJO ACUTRAX MANUBRIO CENTRAL 3D",18000,25000,null,{"$f":"PRODUCTOS[[#This Row],[Cantidad]]*PRODUCTOS[[#This Row],[$ Distribuidor]]","v":0}]
["TVS","APACHE 160 - 180 2 VALVULAS","BASE PORTA CELULAR GPS",null,null,null,{"$f":"PRODUCTOS[[#This Row],[Cantidad]]*PRODUCTOS[[#This Row],[$ Distribuidor]]","v":0}]
["TVS","APACHE 160 - 180 2 VALVULAS","ESTABILIZADOR DE BARRAS 2D",null,null,null,{"$f":"PRODUCTOS[[#This Row],[Cantidad]]*PRODUCTOS[[#This Row],[$ Distribuidor]]","v":0}]
["TVS","APACHE 160 - 180 2 VALVULAS","ESTABILIZADOR DE BARRAS 3D",null,null,null,{"$f":"PRODUCTOS[[#This Row],[Cantidad]]*PRODUCTOS[[#This Row],[$ Distribuidor]]","v":0}]
["TVS","APACHE 160 - 180 2 VALVULAS","PROTECTOR TACOMETRO ACRILICO",11000,17000,null,{"$f":"PRODUCTOS[[#This Row],[Cantidad]]*PRODUCTOS[[#This Row],[$ Distribuidor]]","v":0}]
["TVS","APACHE 160 - 200 4 VALVULAS","SLIDER DE ALTO IMPACTO MOTOR 2 PUNTOS PREMIUM",90000,115000,null,{"$f":"PRODUCTOS[[#This Row],[Cantidad]]*PRODUCTOS[[#This Row],[$ Distribuidor]]","v":0}]
["TVS","APACHE 160 - 200 4 VALVULAS","SLIDER EJES X 4 SIN TAPA",null,null,null,{"$f":"PRODUCTOS[[#This Row],[Cantidad]]*PRODUCTOS[[#This Row],[$ Distribuidor]]","v":0}]
["TVS","APACHE 160 - 200 4 VALVULAS","SLIDER EXOSTO O MOFLE",30000,50000,null,{"$f":"PRODUCTOS[[#This Row],[Cantidad]]*PRODUCTOS[[#This Row],[$ Distribuidor]]","v":0}]
["TVS","APACHE 160 - 200 4 VALVULAS","SLIDER EJES X 4 CON TAPA",null,null,null,{"$f":"PRODUCTOS[[#This Row],[Cantidad]]*PRODUCTOS[[#This Row],[$ Distribuidor]]","v":0}]
["TVS","APACHE 160 - 200 4 VALVULAS","PROTECTOR DE RADIADOR 2D",null,null,null,{"$f":"PRODUCTOS[[#This Row],[Cantidad]]*PRODUCTOS[[#This Row],[$ Distribuidor]]","v":0}]
["TVS","APACHE 160 - 200 4 VALVULAS","PROTECTOR DE RADIADOR 3D",null,null,null,{"$f":"PRODUCTOS[[#This Row],[Cantidad]]*PRODUCTOS[[#This Row],[$ Distribuidor]]","v":0}]
["TVS","APACHE 160 - 200 4 VALVULAS","PROTECTOR CALIPER MORDAZA 2D",12000,20000,null,{"$f":"PRODUCTOS[[#This Row],[Cantidad]]*PRODUCTOS[[#This Row],[$ Distribuidor]]","v":0}]
["TVS","APACHE 160 - 200 4 VALVULAS","PROTECTOR CALIPER MORDAZA 3D",15000,25000,null,{"$f":"PRODUCTOS[[#This Row],[Cantidad]]*PRODUCTOS[[#This Row],[$ Distribuidor]]","v":0}]
["TVS","APACHE 160 - 200 4 VALVULAS","PROTECTOR DEPOSITO LIQUIDO FRENO DELANTERO 2D",8000,20000,null,{"$f":"PRODUCTOS[[#This Row],[Cantidad]]*PRODUCTOS[[#This Row],[$ Distribuidor]]","v":0}]
["TVS","APACHE 160 - 200 4 VALVULAS","PROTECTOR DEPOSITO LIQUIDO FRENO DELANTERO 3D",10000,25000,null,{"$f":"PRODUCTOS[[#This Row],[Cantidad]]*PRODUCTOS[[#This Row],[$ Distribuidor]]","v":0}]
["TVS","APACHE 160 - 200 4 VALVULAS","PROTECTOR DEPOSITO LIQUIDO FRENO TRASERO 2D",13000,25000,null,{"$f":"PRODUCTOS[[#This Row],[Cantidad]]*PRODUCTOS[[#This Row],[$ Distribuidor]]","v":0}]
["TVS","APACHE 160 - 200 4 VALVULAS","PROTECTOR DEPOSITO LIQUIDO FRENO TRASERO 3D",15000,28000,null,{"$f":"PRODUCTOS[[#This Row],[Cantidad]]*PRODUCTOS[[#This Row],[$ Distribuidor]]","v":0}]
["TVS","APACHE 160 - 200 4 VALVULAS","PROTECTOR ARO GASOLINA",11000,20000,null,{"$f":"PRODUCTOS[[#This Row],[Cantidad]]*PRODUCTOS[[#This Row],[$ Distribuidor]]","v":0}]
["TVS","APACHE 160 - 200 4 VALVULAS","PROTECTOR PLACA 2D",11000,20000,null,{"$f":"PRODUCTOS[[#This Row],[Cantidad]]*PRODUCTOS[[#This Row],[$ Distribuidor]]","v":0}]
["TVS","APACHE 160 - 200 4 VALVULAS","PROTECTOR PLACA 3D",14000,25000,null,{"$f":"PRODUCTOS[[#This Row],[Cantidad]]*PRODUCTOS[[#This Row],[$ Distribuidor]]","v":0}]
["TVS","APACHE 160 - 200 4 VALVULAS","CUPULA DE LUJO ACERO INOXIDABLE",null,null,null,{"$f":"PRODUCTOS[[#This Row],[Cantidad]]*PRODUCTOS[[#This Row],[$ Distribuidor]]","v":0}]
["TVS","APACHE 160 - 200 4 VALVULAS","SPOOLS PARA CABALLETE",20000,40000,null,{"$f":"PRODUCTOS[[#This Row],[Cantidad]]*PRODUCTOS[[#This Row],[$ Distribuidor]]","v":0}]
["TVS","APACHE 160 - 200 4 VALVULAS","CABALLETE O GATO DE SERVICIO ",125000,160000,null,{"$f":"PRODUCTOS[[#This Row],[Cantidad]]*PRODUCTOS[[#This Row],[$ Distribuidor]]","v":0}]
["TVS","APACHE 160 - 200 4 VALVULAS","BASE PORTA CELULAR GPS",null,null,null,{"$f":"PRODUCTOS[[#This Row],[Cantidad]]*PRODUCTOS[[#This Row],[$ Distribuidor]]","v":0}]
["TVS","APACHE 160 - 200 4 VALVULAS","PROTECTOR TACOMETRO ACRILICO",11000,17000,null,{"$f":"PRODUCTOS[[#This Row],[Cantidad]]*PRODUCTOS[[#This Row],[$ Distribuidor]]","v":0}]
["TVS","RIDER",null,null,null,null,{"$f":"PRODUCTOS[[#This Row],[Cantidad]]*PRODUCTOS[[#This Row],[$ Distribuidor]]","v":0}]
["TVS","RIDER",null,null,null,null,{"$f":"PRODUCTOS[[#This Row],[Cantidad]]*PRODUCTOS[[#This Row],[$ Distribuidor]]","v":0}]
["TVS","RIDER",null,null,null,null,{"$f":"PRODUCTOS[[#This Row],[Cantidad]]*PRODUCTOS[[#This Row],[$ Distribuidor]]","v":0}]
["TVS","RIDER",null,null,null,null,{"$f":"PRODUCTOS[[#This Row],[Cantidad]]*PRODUCTOS[[#This Row],[$ Distribuidor]]","v":0}]
["TVS","RIDER",null,null,null,null,{"$f":"PRODUCTOS[[#This Row],[Cantidad]]*PRODUCTOS[[#This Row],[$ Distribuidor]]","v":0}]
["TVS","RIDER",null,null,null,null,{"$f":"PRODUCTOS[[#This Row],[Cantidad]]*PRODUCTOS[[#This Row],[$ Distribuidor]]","v":0}]
["TVS","APACHE 310","PROTECTOR DE RADIADOR 2D",null,null,null,{"$f":"PRODUCTOS[[#This Row],[Cantidad]]*PRODUCTOS[[#This Row],[$ Distribuidor]]","v":0}]
["TVS","APACHE 310","PROTECTOR DE RADIADOR 3D",null,null,null,{"$f":"PRODUCTOS[[#This Row],[Cantidad]]*PRODUCTOS[[#This Row],[$ Distribuidor]]","v":0}]
["TVS","APACHE 310","PROTECTOR PLACA 2D",11000,20000,null,{"$f":"PRODUCTOS[[#This Row],[Cantidad]]*PRODUCTOS[[#This Row],[$ Distribuidor]]","v":0}]
["TVS","APACHE 310","PROTECTOR PLACA 3D",14000,25000,null,{"$f":"PRODUCTOS[[#This Row],[Cantidad]]*PRODUCTOS[[#This Row],[$ Distribuidor]]","v":0}]
["TVS","APACHE 310","CABALLETE O GATO DE SERVICIO ",125000,160000,null,{"$f":"PRODUCTOS[[#This Row],[Cantidad]]*PRODUCTOS[[#This Row],[$ Distribuidor]]","v":0}]
["BMW","G 310","SLIDER DE ALTO IMPACTO MOTOR 1 PUNTOS PREMIUM",null,null,null,{"$f":"PRODUCTOS[[#This Row],[Cantidad]]*PRODUCTOS[[#This Row],[$ Distribuidor]]","v":0}]
["BMW","G 310","PROTECTOR DE RADIADOR 3D",null,null,null,{"$f":"PRODUCTOS[[#This Row],[Cantidad]]*PRODUCTOS[[#This Row],[$ Distribuidor]]","v":0}]
["BMW","G 310","PROTECTOR DE RADIADOR 2D",null,null,null,{"$f":"PRODUCTOS[[#This Row],[Cantidad]]*PRODUCTOS[[#This Row],[$ Distribuidor]]","v":0}]
["BMW","G 310","SLIDER EXOSTO O MOFLE",30000,50000,null,{"$f":"PRODUCTOS[[#This Row],[Cantidad]]*PRODUCTOS[[#This Row],[$ Distribuidor]]","v":0}]
["BMW","G 310","PROTECTOR DEPOSITO LIQUIDO FRENO DELANTERO 2D",8000,20000,null,{"$f":"PRODUCTOS[[#This Row],[Cantidad]]*PRODUCTOS[[#This Row],[$ Distribuidor]]","v":0}]
["BMW","G 310","PROTECTOR DEPOSITO LIQUIDO FRENO DELANTERO 3D",10000,25000,null,{"$f":"PRODUCTOS[[#This Row],[Cantidad]]*PRODUCTOS[[#This Row],[$ Distribuidor]]","v":0}]
["BMW","G 310","PROTECTOR DEPOSITO LIQUIDO FRENO TRASERO 2D",13000,25000,null,{"$f":"PRODUCTOS[[#This Row],[Cantidad]]*PRODUCTOS[[#This Row],[$ Distribuidor]]","v":0}]
["BMW","G 310","PROTECTOR DEPOSITO LIQUIDO FRENO TRASERO 3D",15000,28000,null,{"$f":"PRODUCTOS[[#This Row],[Cantidad]]*PRODUCTOS[[#This Row],[$ Distribuidor]]","v":0}]
["BMW","G 310","PROTECTOR PLACA 2D",11000,20000,null,{"$f":"PRODUCTOS[[#This Row],[Cantidad]]*PRODUCTOS[[#This Row],[$ Distribuidor]]","v":0}]
["BMW","G 310","PROTECTOR PLACA 3D",14000,25000,null,{"$f":"PRODUCTOS[[#This Row],[Cantidad]]*PRODUCTOS[[#This Row],[$ Distribuidor]]","v":0}]
["BMW","G 310","SPOOLS PARA CABALLETE",20000,40000,null,{"$f":"PRODUCTOS[[#This Row],[Cantidad]]*PRODUCTOS[[#This Row],[$ Distribuidor]]","v":0}]
["BMW","G 310","CABALLETE O GATO DE SERVICIO ",125000,160000,null,{"$f":"PRODUCTOS[[#This Row],[Cantidad]]*PRODUCTOS[[#This Row],[$ Distribuidor]]","v":0}]
["BMW","F800R","SLIDER DE ALTO IMPACTO MOTOR 2 PUNTOS PREMIUM",90000,115000,null,{"$f":"PRODUCTOS[[#This Row],[Cantidad]]*PRODUCTOS[[#This Row],[$ Distribuidor]]","v":0}]
["BMW","F800R","SLIDER EJES X 4 CON TAPA",null,null,null,{"$f":"PRODUCTOS[[#This Row],[Cantidad]]*PRODUCTOS[[#This Row],[$ Distribuidor]]","v":0}]
["BMW","F800R","PROTECTOR DE RADIADOR 2D",null,null,null,{"$f":"PRODUCTOS[[#This Row],[Cantidad]]*PRODUCTOS[[#This Row],[$ Distribuidor]]","v":0}]
["BMW","F800R","PROTECTOR DE RADIADOR 3D",null,null,null,{"$f":"PRODUCTOS[[#This Row],[Cantidad]]*PRODUCTOS[[#This Row],[$ Distribuidor]]","v":0}]
["BMW","F800R","PROTECTOR CALIPER MORDAZA 2D",12000,20000,null,{"$f":"PRODUCTOS[[#This Row],[Cantidad]]*PRODUCTOS[[#This Row],[$ Distribuidor]]","v":0}]
["BMW","F800R","PROTECTOR PLACA 2D",11000,20000,null,{"$f":"PRODUCTOS[[#This Row],[Cantidad]]*PRODUCTOS[[#This Row],[$ Distribuidor]]","v":0}]
["BMW","F800R","SPOOLS PARA CABALLETE",20000,40000,null,{"$f":"PRODUCTOS[[#This Row],[Cantidad]]*PRODUCTOS[[#This Row],[$ Distribuidor]]","v":0}]
["BMW","F800R","PROTECTOR PLACA 3D",14000,20000,null,{"$f":"PRODUCTOS[[#This Row],[Cantidad]]*PRODUCTOS[[#This Row],[$ Distribuidor]]","v":0}]
["BMW","F800R","CABALLETE O GATO DE SERVICIO ",125000,160000,null,{"$f":"PRODUCTOS[[#This Row],[Cantidad]]*PRODUCTOS[[#This Row],[$ Distribuidor]]","v":0}]
["BMW","F900R","SLIDER DE ALTO IMPACTO MOTOR 2 PUNTOS PREMIUM",90000,115000,null,{"$f":"PRODUCTOS[[#This Row],[Cantidad]]*PRODUCTOS[[#This Row],[$ Distribuidor]]","v":0}]
["BMW","F900R","SLIDER EJES X 4 CON TAPA",null,null,null,{"$f":"PRODUCTOS[[#This Row],[Cantidad]]*PRODUCTOS[[#This Row],[$ Distribuidor]]","v":0}]
["BMW","F900R","PROTECTOR DE RADIADOR 2D",null,null,null,{"$f":"PRODUCTOS[[#This Row],[Cantidad]]*PRODUCTOS[[#This Row],[$ Distribuidor]]","v":0}]
["BMW","F900R","PROTECTOR DE RADIADOR 3D",null,null,null,{"$f":"PRODUCTOS[[#This Row],[Cantidad]]*PRODUCTOS[[#This Row],[$ Distribuidor]]","v":0}]
["BMW","F900R","PROTECTOR CALIPER MORDAZA 2D",12000,20000,null,{"$f":"PRODUCTOS[[#This Row],[Cantidad]]*PRODUCTOS[[#This Row],[$ Distribuidor]]","v":0}]
["BMW","F900R","PROTECTOR PLACA 2D",11000,20000,null,{"$f":"PRODUCTOS[[#This Row],[Cantidad]]*PRODUCTOS[[#This Row],[$ Distribuidor]]","v":0}]
["BMW","F900R","PROTECTOR PLACA 3D",14000,25000,null,{"$f":"PRODUCTOS[[#This Row],[Cantidad]]*PRODUCTOS[[#This Row],[$ Distribuidor]]","v":0}]
["BMW","F900R","SPOOLS PARA CABALLETE",20000,40000,null,{"$f":"PRODUCTOS[[#This Row],[Cantidad]]*PRODUCTOS[[#This Row],[$ Distribuidor]]","v":0}]
["BMW","F900R","CABALLETE O GATO DE SERVICIO ",125000,160000,null,{"$f":"PRODUCTOS[[#This Row],[Cantidad]]*PRODUCTOS[[#This Row],[$ Distribuidor]]","v":0}]
["BMW","S1000RR 2 RADIADORES","SLIDER DE ALTO IMPACTO MOTOR 2 PUNTOS PREMIUM",90000,115000,null,{"$f":"PRODUCTOS[[#This Row],[Cantidad]]*PRODUCTOS[[#This Row],[$ Distribuidor]]","v":0}]
["BMW","S1000RR 2 RADIADORES","SLIDER EJES X 4 CON TAPA",null,null,null,{"$f":"PRODUCTOS[[#This Row],[Cantidad]]*PRODUCTOS[[#This Row],[$ Distribuidor]]","v":0}]
["BMW","S1000RR 2 RADIADORES","PROTECTOR DE RADIADOR ACEITE Y AGUA 2D",null,null,null,{"$f":"PRODUCTOS[[#This Row],[Cantidad]]*PRODUCTOS[[#This Row],[$ Distribuidor]]","v":0}]
["BMW","S1000RR 2 RADIADORES","PROTECTOR DE RADIADOR ACEITE Y AGUA 3D",null,null,null,{"$f":"PRODUCTOS[[#This Row],[Cantidad]]*PRODUCTOS[[#This Row],[$ Distribuidor]]","v":0}]
["BMW","S1000RR 2 RADIADORES","PROTECTOR PLACA 2D",11000,20000,null,{"$f":"PRODUCTOS[[#This Row],[Cantidad]]*PRODUCTOS[[#This Row],[$ Distribuidor]]","v":0}]
["BMW","S1000RR 2 RADIADORES","PROTECTOR PLACA 3D",14000,25000,null,{"$f":"PRODUCTOS[[#This Row],[Cantidad]]*PRODUCTOS[[#This Row],[$ Distribuidor]]","v":0}]
["BMW","S1000RR 2 RADIADORES","PROTECTOR FAROLA 3D",null,null,null,{"$f":"PRODUCTOS[[#This Row],[Cantidad]]*PRODUCTOS[[#This Row],[$ Distribuidor]]","v":0}]
["BMW","S1000RR 2 RADIADORES","CABALLETE O GATO DE SERVICIO ",125000,160000,null,{"$f":"PRODUCTOS[[#This Row],[Cantidad]]*PRODUCTOS[[#This Row],[$ Distribuidor]]","v":0}]
["BMW","S1000RR 2 RADIADORES","SPOOLS PARA CABALLETE",20000,40000,null,{"$f":"PRODUCTOS[[#This Row],[Cantidad]]*PRODUCTOS[[#This Row],[$ Distribuidor]]","v":0}]
["BMW","S1000RR 2 RADIADORES","FENDER ELIMINATOR ABATIBLE 3 MILIMETROS PARA DIRECCIONALES ORIGINALES 2D",null,null,null,{"$f":"PRODUCTOS[[#This Row],[Cantidad]]*PRODUCTOS[[#This Row],[$ Distribuidor]]","v":0}]
["BMW","S1000RR 2 RADIADORES","FENDER ELIMINATOR ABATIBLE 3 MILIMETROS PARA DIRECCIONALES ORIGINALES 3D",null,null,null,{"$f":"PRODUCTOS[[#This Row],[Cantidad]]*PRODUCTOS[[#This Row],[$ Distribuidor]]","v":0}]
["BMW","NINET","PROTECTOR DE RADIADOR 3D",null,null,null,{"$f":"PRODUCTOS[[#This Row],[Cantidad]]*PRODUCTOS[[#This Row],[$ Distribuidor]]","v":0}]
["BMW","NINET","PROTECTOR CALIPER MORDAZA 2D",12000,20000,null,{"$f":"PRODUCTOS[[#This Row],[Cantidad]]*PRODUCTOS[[#This Row],[$ Distribuidor]]","v":0}]
["BMW","NINET","PROTECTOR CALIPER MORDAZA 3D",15000,25000,null,{"$f":"PRODUCTOS[[#This Row],[Cantidad]]*PRODUCTOS[[#This Row],[$ Distribuidor]]","v":0}]
["BMW","NINET","PROTECTOR PLACA 2D",11000,20000,null,{"$f":"PRODUCTOS[[#This Row],[Cantidad]]*PRODUCTOS[[#This Row],[$ Distribuidor]]","v":0}]
["BMW","NINET","PROTECTOR PLACA 3D",14000,25000,null,{"$f":"PRODUCTOS[[#This Row],[Cantidad]]*PRODUCTOS[[#This Row],[$ Distribuidor]]","v":0}]
["BMW","NINET","PROTECTOR FAROLA 3D",null,null,null,{"$f":"PRODUCTOS[[#This Row],[Cantidad]]*PRODUCTOS[[#This Row],[$ Distribuidor]]","v":0}]
["BMW","NINET","CABALLETE O GATO DE SERVICIO ",125000,160000,null,{"$f":"PRODUCTOS[[#This Row],[Cantidad]]*PRODUCTOS[[#This Row],[$ Distribuidor]]","v":0}]
["BMW","S1000XR 2 RADIADORES","SLIDER DE ALTO IMPACTO MOTOR 2 PUNTOS ECONO",85000,100000,null,{"$f":"PRODUCTOS[[#This Row],[Cantidad]]*PRODUCTOS[[#This Row],[$ Distribuidor]]","v":0}]
["BMW","S1000XR 2 RADIADORES","SLIDER DE ALTO IMPACTO MOTOR 2 PUNTOS PREMIUM",90000,115000,null,{"$f":"PRODUCTOS[[#This Row],[Cantidad]]*PRODUCTOS[[#This Row],[$ Distribuidor]]","v":0}]
["BMW","S1000XR 2 RADIADORES","SLIDER DE ALTO IMPACTO MOTOR 3 PUNTOS ECONO",95000,130000,null,{"$f":"PRODUCTOS[[#This Row],[Cantidad]]*PRODUCTOS[[#This Row],[$ Distribuidor]]","v":0}]
["BMW","S1000XR 2 RADIADORES","SLIDER DE ALTO IMPACTO MOTOR 3 PUNTOS PREMIUM",100000,145000,null,{"$f":"PRODUCTOS[[#This Row],[Cantidad]]*PRODUCTOS[[#This Row],[$ Distribuidor]]","v":0}]
["BMW","S1000XR 2 RADIADORES","SLIDER EJES X 4 SIN TAPA",null,null,null,{"$f":"PRODUCTOS[[#This Row],[Cantidad]]*PRODUCTOS[[#This Row],[$ Distribuidor]]","v":0}]
["BMW","S1000XR 2 RADIADORES","SLIDER EJES X 4 CON TAPA",null,null,null,{"$f":"PRODUCTOS[[#This Row],[Cantidad]]*PRODUCTOS[[#This Row],[$ Distribuidor]]","v":0}]
["BMW","S1000XR 2 RADIADORES","PROTECTOR DE RADIADOR 2D",null,null,null,{"$f":"PRODUCTOS[[#This Row],[Cantidad]]*PRODUCTOS[[#This Row],[$ Distribuidor]]","v":0}]
["BMW","S1000XR 2 RADIADORES","PROTECTOR DE RADIADOR 3D",null,null,null,{"$f":"PRODUCTOS[[#This Row],[Cantidad]]*PRODUCTOS[[#This Row],[$ Distribuidor]]","v":0}]
["BMW","S1000XR 2 RADIADORES","PROTECTOR CALIPER MORDAZA 2D",12000,20000,null,{"$f":"PRODUCTOS[[#This Row],[Cantidad]]*PRODUCTOS[[#This Row],[$ Distribuidor]]","v":0}]
["BMW","S1000XR 2 RADIADORES","PROTECTOR CALIPER MORDAZA 3D",15000,25000,null,{"$f":"PRODUCTOS[[#This Row],[Cantidad]]*PRODUCTOS[[#This Row],[$ Distribuidor]]","v":0}]
["BMW","S1000XR 2 RADIADORES","PROTECTOR DEPOSITO LIQUIDO FRENO DELANTERO 2D",8000,20000,null,{"$f":"PRODUCTOS[[#This Row],[Cantidad]]*PRODUCTOS[[#This Row],[$ Distribuidor]]","v":0}]
["BMW","S1000XR 2 RADIADORES","PROTECTOR DEPOSITO LIQUIDO FRENO DELANTERO 3D",10000,25000,null,{"$f":"PRODUCTOS[[#This Row],[Cantidad]]*PRODUCTOS[[#This Row],[$ Distribuidor]]","v":0}]
["BMW","S1000XR 2 RADIADORES","PROTECTOR DEPOSITO LIQUIDO FRENO TRASERO 2D",13000,25000,null,{"$f":"PRODUCTOS[[#This Row],[Cantidad]]*PRODUCTOS[[#This Row],[$ Distribuidor]]","v":0}]
["BMW","S1000XR 2 RADIADORES","PROTECTOR DEPOSITO LIQUIDO FRENO TRASERO 3D",15000,28000,null,{"$f":"PRODUCTOS[[#This Row],[Cantidad]]*PRODUCTOS[[#This Row],[$ Distribuidor]]","v":0}]
["BMW","S1000XR 2 RADIADORES","PROTECTOR ARO GASOLINA",11000,20000,null,{"$f":"PRODUCTOS[[#This Row],[Cantidad]]*PRODUCTOS[[#This Row],[$ Distribuidor]]","v":0}]
["BMW","S1000XR 2 RADIADORES","PROTECTOR PLACA 2D",11000,20000,null,{"$f":"PRODUCTOS[[#This Row],[Cantidad]]*PRODUCTOS[[#This Row],[$ Distribuidor]]","v":0}]
["BMW","S1000XR 2 RADIADORES","PROTECTOR PLACA 3D",14000,25000,null,{"$f":"PRODUCTOS[[#This Row],[Cantidad]]*PRODUCTOS[[#This Row],[$ Distribuidor]]","v":0}]
["BMW","S1000XR 2 RADIADORES","PROTECTOR FAROLA 3D",null,null,null,{"$f":"PRODUCTOS[[#This Row],[Cantidad]]*PRODUCTOS[[#This Row],[$ Distribuidor]]","v":0}]
["BMW","S1000XR 2 RADIADORES","CUPULA DE LUJO ACERO INOXIDABLE",null,null,null,{"$f":"PRODUCTOS[[#This Row],[Cantidad]]*PRODUCTOS[[#This Row],[$ Distribuidor]]","v":0}]
["BMW","S1000XR 2 RADIADORES","CUBRE PIÑON SALIDA  2D",19000,25000,null,{"$f":"PRODUCTOS[[#This Row],[Cantidad]]*PRODUCTOS[[#This Row],[$ Distribuidor]]","v":0}]
["BMW","S1000XR 2 RADIADORES","CUBRE PIÑON SALIDA  3D",22000,30000,null,{"$f":"PRODUCTOS[[#This Row],[Cantidad]]*PRODUCTOS[[#This Row],[$ Distribuidor]]","v":0}]
["BMW","S1000XR 2 RADIADORES","CUBRE CADENA 2D",null,null,null,{"$f":"PRODUCTOS[[#This Row],[Cantidad]]*PRODUCTOS[[#This Row],[$ Distribuidor]]","v":0}]
["BMW","S1000XR 2 RADIADORES","CUBRE CADENA 3D",null,null,null,{"$f":"PRODUCTOS[[#This Row],[Cantidad]]*PRODUCTOS[[#This Row],[$ Distribuidor]]","v":0}]
["BMW","S1000XR 2 RADIADORES","LOGO NS LATERAL TIJERA ",null,null,null,{"$f":"PRODUCTOS[[#This Row],[Cantidad]]*PRODUCTOS[[#This Row],[$ Distribuidor]]","v":0}]
["BMW","S1000XR 2 RADIADORES","PROTECTORES LATERALES DE RADIADOR X2  2D",null,null,null,{"$f":"PRODUCTOS[[#This Row],[Cantidad]]*PRODUCTOS[[#This Row],[$ Distribuidor]]","v":0}]
["BMW","S1000XR 2 RADIADORES","PROTECTORES LATERALES DE RADIADOR X2  3D",null,null,null,{"$f":"PRODUCTOS[[#This Row],[Cantidad]]*PRODUCTOS[[#This Row],[$ Distribuidor]]","v":0}]
["BMW","S1000XR 2 RADIADORES","CABALLETE O GATO DE SERVICIO ",125000,160000,null,{"$f":"PRODUCTOS[[#This Row],[Cantidad]]*PRODUCTOS[[#This Row],[$ Distribuidor]]","v":0}]
["BMW","S1000XR 2 RADIADORES","LUJO ACUTRAX MANUBRIO CENTRAL 2D",15000,23000,null,{"$f":"PRODUCTOS[[#This Row],[Cantidad]]*PRODUCTOS[[#This Row],[$ Distribuidor]]","v":0}]
["BMW","S1000XR 2 RADIADORES","LUJO ACUTRAX MANUBRIO CENTRAL 3D",18000,25000,null,{"$f":"PRODUCTOS[[#This Row],[Cantidad]]*PRODUCTOS[[#This Row],[$ Distribuidor]]","v":0}]
["BMW","S1000XR 2 RADIADORES","LUJO TANQUE FRONTAL",null,null,null,{"$f":"PRODUCTOS[[#This Row],[Cantidad]]*PRODUCTOS[[#This Row],[$ Distribuidor]]","v":0}]
["BMW","S1000XR 2 RADIADORES","LUJO GUARDABARRO TRASERO LATERAL 2D ",null,null,null,{"$f":"PRODUCTOS[[#This Row],[Cantidad]]*PRODUCTOS[[#This Row],[$ Distribuidor]]","v":0}]
["BMW","S1000XR 2 RADIADORES","LUJO GUARDABARRO TRASERO LATERAL 3D",null,null,null,{"$f":"PRODUCTOS[[#This Row],[Cantidad]]*PRODUCTOS[[#This Row],[$ Distribuidor]]","v":0}]
["BMW","S1000XR 2 RADIADORES","LUJO GUARDABARRO TRASERO CENTRAL 2D",null,null,null,{"$f":"PRODUCTOS[[#This Row],[Cantidad]]*PRODUCTOS[[#This Row],[$ Distribuidor]]","v":0}]
["BMW","S1000XR 2 RADIADORES","LUJO GUARDABARRO TRASERO CENTRAL 3D",null,null,null,{"$f":"PRODUCTOS[[#This Row],[Cantidad]]*PRODUCTOS[[#This Row],[$ Distribuidor]]","v":0}]
["BMW","S1000XR 2 RADIADORES","LUJOS MALLAS LATERALES X 2",null,null,null,{"$f":"PRODUCTOS[[#This Row],[Cantidad]]*PRODUCTOS[[#This Row],[$ Distribuidor]]","v":0}]
["BMW","S1000XR 2 RADIADORES","BASE PORTA CELULAR GPS",null,null,null,{"$f":"PRODUCTOS[[#This Row],[Cantidad]]*PRODUCTOS[[#This Row],[$ Distribuidor]]","v":0}]
["BMW","S1000XR 2 RADIADORES","LUJO FILTRO ACEITE 2D",5000,10000,null,{"$f":"PRODUCTOS[[#This Row],[Cantidad]]*PRODUCTOS[[#This Row],[$ Distribuidor]]","v":0}]
["BMW","S1000XR 2 RADIADORES","LUJO FILTRO ACEITE 3D",6000,12000,null,{"$f":"PRODUCTOS[[#This Row],[Cantidad]]*PRODUCTOS[[#This Row],[$ Distribuidor]]","v":0}]
["BMW","S1000XR 2 RADIADORES","ESTABILIZADOR DE BARRAS 2D",null,null,null,{"$f":"PRODUCTOS[[#This Row],[Cantidad]]*PRODUCTOS[[#This Row],[$ Distribuidor]]","v":0}]
["BMW","S1000XR 2 RADIADORES","ESTABILIZADOR DE BARRAS 3D",null,null,null,{"$f":"PRODUCTOS[[#This Row],[Cantidad]]*PRODUCTOS[[#This Row],[$ Distribuidor]]","v":0}]
["BMW","S1000XR 2 RADIADORES","FENDER ELIMINATOR ABATIBLE 3 MILIMETROS PARA DIRECCIONALES ORIGINALES 2D",null,null,null,{"$f":"PRODUCTOS[[#This Row],[Cantidad]]*PRODUCTOS[[#This Row],[$ Distribuidor]]","v":0}]
["BMW","S1000XR 2 RADIADORES","FENDER ELIMINATOR ABATIBLE 3 MILIMETROS PARA DIRECCIONALES ORIGINALES 3D",null,null,null,{"$f":"PRODUCTOS[[#This Row],[Cantidad]]*PRODUCTOS[[#This Row],[$ Distribuidor]]","v":0}]
["BMW","S1000XR 2 RADIADORES","PROTECTOR TACOMETRO ACRILICO",11000,17000,null,{"$f":"PRODUCTOS[[#This Row],[Cantidad]]*PRODUCTOS[[#This Row],[$ Distribuidor]]","v":0}]
["VICTORY","SWITCH 150",null,null,null,null,{"$f":"PRODUCTOS[[#This Row],[Cantidad]]*PRODUCTOS[[#This Row],[$ Distribuidor]]","v":0}]
["VICTORY","SWITCH 150",null,null,null,null,{"$f":"PRODUCTOS[[#This Row],[Cantidad]]*PRODUCTOS[[#This Row],[$ Distribuidor]]","v":0}]
["VICTORY","SWITCH 150",null,null,null,null,{"$f":"PRODUCTOS[[#This Row],[Cantidad]]*PRODUCTOS[[#This Row],[$ Distribuidor]]","v":0}]
["VICTORY","VENOM 18",null,null,null,null,{"$f":"PRODUCTOS[[#This Row],[Cantidad]]*PRODUCTOS[[#This Row],[$ Distribuidor]]","v":0}]
["VICTORY","VENOM 18",null,null,null,null,{"$f":"PRODUCTOS[[#This Row],[Cantidad]]*PRODUCTOS[[#This Row],[$ Distribuidor]]","v":0}]
["VICTORY","VENOM 18",null,null,null,null,{"$f":"PRODUCTOS[[#This Row],[Cantidad]]*PRODUCTOS[[#This Row],[$ Distribuidor]]","v":0}]
["VICTORY","VENOM 18",null,null,null,null,{"$f":"PRODUCTOS[[#This Row],[Cantidad]]*PRODUCTOS[[#This Row],[$ Distribuidor]]","v":0}]
["VICTORY","VENOM 18",null,null,null,null,{"$f":"PRODUCTOS[[#This Row],[Cantidad]]*PRODUCTOS[[#This Row],[$ Distribuidor]]","v":0}]
["VICTORY","VENOM 250",null,null,null,null,{"$f":"PRODUCTOS[[#This Row],[Cantidad]]*PRODUCTOS[[#This Row],[$ Distribuidor]]","v":0}]
["VICTORY","VENOM 250",null,null,null,null,{"$f":"PRODUCTOS[[#This Row],[Cantidad]]*PRODUCTOS[[#This Row],[$ Distribuidor]]","v":0}]
["VICTORY","VENOM 250",null,null,null,null,{"$f":"PRODUCTOS[[#This Row],[Cantidad]]*PRODUCTOS[[#This Row],[$ Distribuidor]]","v":0}]
["VICTORY","VENOM 250",null,null,null,null,{"$f":"PRODUCTOS[[#This Row],[Cantidad]]*PRODUCTOS[[#This Row],[$ Distribuidor]]","v":0}]
["VICTORY","VENOM 250",null,null,null,null,{"$f":"PRODUCTOS[[#This Row],[Cantidad]]*PRODUCTOS[[#This Row],[$ Distribuidor]]","v":0}]
["VICTORY","VENOM 400","SLIDER DE ALTO IMPACTO MOTOR 2 PUNTOS ECONO",85000,100000,null,{"$f":"PRODUCTOS[[#This Row],[Cantidad]]*PRODUCTOS[[#This Row],[$ Distribuidor]]","v":0}]
["VICTORY","VENOM 400","PROTECTOR DE RADIADOR 2D",null,null,null,{"$f":"PRODUCTOS[[#This Row],[Cantidad]]*PRODUCTOS[[#This Row],[$ Distribuidor]]","v":0}]
["VICTORY","VENOM 400","PROTECTOR DE RADIADOR 3D",null,null,null,{"$f":"PRODUCTOS[[#This Row],[Cantidad]]*PRODUCTOS[[#This Row],[$ Distribuidor]]","v":0}]
["VICTORY","VENOM 400","PROTECTOR CALIPER MORDAZA 2D",12000,20000,null,{"$f":"PRODUCTOS[[#This Row],[Cantidad]]*PRODUCTOS[[#This Row],[$ Distribuidor]]","v":0}]
["VICTORY","VENOM 400","PROTECTOR CALIPER MORDAZA 3D",15000,25000,null,{"$f":"PRODUCTOS[[#This Row],[Cantidad]]*PRODUCTOS[[#This Row],[$ Distribuidor]]","v":0}]
["VICTORY","VENOM 400","PROTECTOR PLACA 2D",11000,20000,null,{"$f":"PRODUCTOS[[#This Row],[Cantidad]]*PRODUCTOS[[#This Row],[$ Distribuidor]]","v":0}]
["VICTORY","VENOM 400","PROTECTOR PLACA 3D",14000,25000,null,{"$f":"PRODUCTOS[[#This Row],[Cantidad]]*PRODUCTOS[[#This Row],[$ Distribuidor]]","v":0}]
["VICTORY","VENOM 400","CABALLETE O GATO DE SERVICIO ",125000,160000,null,{"$f":"PRODUCTOS[[#This Row],[Cantidad]]*PRODUCTOS[[#This Row],[$ Distribuidor]]","v":0}]
["CF MOTO","250 SR","SLIDER DE ALTO IMPACTO MOTOR 2 PUNTOS PREMIUM",90000,115000,null,{"$f":"PRODUCTOS[[#This Row],[Cantidad]]*PRODUCTOS[[#This Row],[$ Distribuidor]]","v":0}]
["CF MOTO","250 SR","PROTECTOR DE RADIADOR 2D",null,null,null,{"$f":"PRODUCTOS[[#This Row],[Cantidad]]*PRODUCTOS[[#This Row],[$ Distribuidor]]","v":0}]
["CF MOTO","250 SR","PROTECTOR DE RADIADOR 3D",null,null,null,{"$f":"PRODUCTOS[[#This Row],[Cantidad]]*PRODUCTOS[[#This Row],[$ Distribuidor]]","v":0}]
["CF MOTO","250 SR","PROTECTOR PLACA 2D",11000,20000,null,{"$f":"PRODUCTOS[[#This Row],[Cantidad]]*PRODUCTOS[[#This Row],[$ Distribuidor]]","v":0}]
["CF MOTO","250 SR","PROTECTOR PLACA 3D",14000,25000,null,{"$f":"PRODUCTOS[[#This Row],[Cantidad]]*PRODUCTOS[[#This Row],[$ Distribuidor]]","v":0}]
["CF MOTO","250 SR","PROTECTOR FAROLA 3D",null,null,null,{"$f":"PRODUCTOS[[#This Row],[Cantidad]]*PRODUCTOS[[#This Row],[$ Distribuidor]]","v":0}]
["CF MOTO","250 SR","PROTECTORES LATERALES DE RADIADOR X2  2D",null,null,null,{"$f":"PRODUCTOS[[#This Row],[Cantidad]]*PRODUCTOS[[#This Row],[$ Distribuidor]]","v":0}]
["CF MOTO","250 SR","PROTECTORES LATERALES DE RADIADOR X2  3D",null,null,null,{"$f":"PRODUCTOS[[#This Row],[Cantidad]]*PRODUCTOS[[#This Row],[$ Distribuidor]]","v":0}]
["CF MOTO","250 SR","SPOOLS PARA CABALLETE",20000,40000,null,{"$f":"PRODUCTOS[[#This Row],[Cantidad]]*PRODUCTOS[[#This Row],[$ Distribuidor]]","v":0}]
["CF MOTO","250 SR","CABALLETE O GATO DE SERVICIO ",125000,160000,null,{"$f":"PRODUCTOS[[#This Row],[Cantidad]]*PRODUCTOS[[#This Row],[$ Distribuidor]]","v":0}]
["CF MOTO","300 SR","SLIDER DE ALTO IMPACTO MOTOR 2 PUNTOS PREMIUM",90000,115000,null,{"$f":"PRODUCTOS[[#This Row],[Cantidad]]*PRODUCTOS[[#This Row],[$ Distribuidor]]","v":0}]
["CF MOTO","300 SR","PROTECTOR DE RADIADOR 2D",null,null,null,{"$f":"PRODUCTOS[[#This Row],[Cantidad]]*PRODUCTOS[[#This Row],[$ Distribuidor]]","v":0}]
["CF MOTO","300 SR","PROTECTOR DE RADIADOR 3D",null,null,null,{"$f":"PRODUCTOS[[#This Row],[Cantidad]]*PRODUCTOS[[#This Row],[$ Distribuidor]]","v":0}]
["CF MOTO","300 SR","PROTECTOR PLACA 2D",11000,20000,null,{"$f":"PRODUCTOS[[#This Row],[Cantidad]]*PRODUCTOS[[#This Row],[$ Distribuidor]]","v":0}]
["CF MOTO","300 SR","PROTECTOR PLACA 3D",14000,25000,null,{"$f":"PRODUCTOS[[#This Row],[Cantidad]]*PRODUCTOS[[#This Row],[$ Distribuidor]]","v":0}]
["CF MOTO","300 SR","PROTECTOR FAROLA 3D",null,null,null,{"$f":"PRODUCTOS[[#This Row],[Cantidad]]*PRODUCTOS[[#This Row],[$ Distribuidor]]","v":0}]
["CF MOTO","300 SR","PROTECTORES LATERALES DE RADIADOR X2  2D",null,null,null,{"$f":"PRODUCTOS[[#This Row],[Cantidad]]*PRODUCTOS[[#This Row],[$ Distribuidor]]","v":0}]
["CF MOTO","300 SR","PROTECTORES LATERALES DE RADIADOR X2  3D",null,null,null,{"$f":"PRODUCTOS[[#This Row],[Cantidad]]*PRODUCTOS[[#This Row],[$ Distribuidor]]","v":0}]
["CF MOTO","300 SR","SPOOLS PARA CABALLETE",20000,40000,null,{"$f":"PRODUCTOS[[#This Row],[Cantidad]]*PRODUCTOS[[#This Row],[$ Distribuidor]]","v":0}]
["CF MOTO","300 SR","CABALLETE O GATO DE SERVICIO ",125000,160000,null,{"$f":"PRODUCTOS[[#This Row],[Cantidad]]*PRODUCTOS[[#This Row],[$ Distribuidor]]","v":0}]
["CF MOTO","NK 150","SLIDER DE ALTO IMPACTO MOTOR 2 PUNTOS ECONO",85000,100000,null,{"$f":"PRODUCTOS[[#This Row],[Cantidad]]*PRODUCTOS[[#This Row],[$ Distribuidor]]","v":0}]
["CF MOTO","NK 150","SLIDER DE ALTO IMPACTO MOTOR 2 PUNTOS PREMIUM",90000,115000,null,{"$f":"PRODUCTOS[[#This Row],[Cantidad]]*PRODUCTOS[[#This Row],[$ Distribuidor]]","v":0}]
["CF MOTO","NK 150","SLIDER DE ALTO IMPACTO MOTOR 3 PUNTOS ECONO",95000,130000,null,{"$f":"PRODUCTOS[[#This Row],[Cantidad]]*PRODUCTOS[[#This Row],[$ Distribuidor]]","v":0}]
["CF MOTO","NK 150","SLIDER DE ALTO IMPACTO MOTOR 3 PUNTOS PREMIUM",100000,145000,null,{"$f":"PRODUCTOS[[#This Row],[Cantidad]]*PRODUCTOS[[#This Row],[$ Distribuidor]]","v":0}]
["CF MOTO","NK 150","SLIDER EJES X 4 SIN TAPA",null,null,null,{"$f":"PRODUCTOS[[#This Row],[Cantidad]]*PRODUCTOS[[#This Row],[$ Distribuidor]]","v":0}]
["CF MOTO","NK 150","SLIDER EJES X 4 CON TAPA",null,null,null,{"$f":"PRODUCTOS[[#This Row],[Cantidad]]*PRODUCTOS[[#This Row],[$ Distribuidor]]","v":0}]
["CF MOTO","NK 150","PROTECTOR DE RADIADOR 2D",null,null,null,{"$f":"PRODUCTOS[[#This Row],[Cantidad]]*PRODUCTOS[[#This Row],[$ Distribuidor]]","v":0}]
["CF MOTO","NK 150","PROTECTOR DE RADIADOR 3D",null,null,null,{"$f":"PRODUCTOS[[#This Row],[Cantidad]]*PRODUCTOS[[#This Row],[$ Distribuidor]]","v":0}]
["CF MOTO","NK 150","PROTECTOR CALIPER MORDAZA 2D",12000,20000,null,{"$f":"PRODUCTOS[[#This Row],[Cantidad]]*PRODUCTOS[[#This Row],[$ Distribuidor]]","v":0}]
["CF MOTO","NK 150","PROTECTOR CALIPER MORDAZA 3D",15000,25000,null,{"$f":"PRODUCTOS[[#This Row],[Cantidad]]*PRODUCTOS[[#This Row],[$ Distribuidor]]","v":0}]
["CF MOTO","NK 150","PROTECTOR DEPOSITO LIQUIDO FRENO DELANTERO 2D",8000,20000,null,{"$f":"PRODUCTOS[[#This Row],[Cantidad]]*PRODUCTOS[[#This Row],[$ Distribuidor]]","v":0}]
["CF MOTO","NK 150","PROTECTOR DEPOSITO LIQUIDO FRENO DELANTERO 3D",10000,25000,null,{"$f":"PRODUCTOS[[#This Row],[Cantidad]]*PRODUCTOS[[#This Row],[$ Distribuidor]]","v":0}]
["CF MOTO","NK 150","PROTECTOR DEPOSITO LIQUIDO FRENO TRASERO 2D",13000,25000,null,{"$f":"PRODUCTOS[[#This Row],[Cantidad]]*PRODUCTOS[[#This Row],[$ Distribuidor]]","v":0}]
["CF MOTO","NK 150","PROTECTOR DEPOSITO LIQUIDO FRENO TRASERO 3D",15000,28000,null,{"$f":"PRODUCTOS[[#This Row],[Cantidad]]*PRODUCTOS[[#This Row],[$ Distribuidor]]","v":0}]
["CF MOTO","NK 150","PROTECTOR ARO GASOLINA",11000,20000,null,{"$f":"PRODUCTOS[[#This Row],[Cantidad]]*PRODUCTOS[[#This Row],[$ Distribuidor]]","v":0}]
["CF MOTO","NK 150","PROTECTOR PLACA 2D",11000,20000,null,{"$f":"PRODUCTOS[[#This Row],[Cantidad]]*PRODUCTOS[[#This Row],[$ Distribuidor]]","v":0}]
["CF MOTO","NK 150","PROTECTOR PLACA 3D",14000,25000,null,{"$f":"PRODUCTOS[[#This Row],[Cantidad]]*PRODUCTOS[[#This Row],[$ Distribuidor]]","v":0}]
["CF MOTO","NK 150","PROTECTOR FAROLA 3D",null,null,null,{"$f":"PRODUCTOS[[#This Row],[Cantidad]]*PRODUCTOS[[#This Row],[$ Distribuidor]]","v":0}]
["CF MOTO","NK 150","CUPULA DE LUJO ACERO INOXIDABLE",null,null,null,{"$f":"PRODUCTOS[[#This Row],[Cantidad]]*PRODUCTOS[[#This Row],[$ Distribuidor]]","v":0}]
["CF MOTO","NK 150","CUBRE PIÑON SALIDA  2D",19000,25000,null,{"$f":"PRODUCTOS[[#This Row],[Cantidad]]*PRODUCTOS[[#This Row],[$ Distribuidor]]","v":0}]
["CF MOTO","NK 150","CUBRE PIÑON SALIDA  3D",22000,30000,null,{"$f":"PRODUCTOS[[#This Row],[Cantidad]]*PRODUCTOS[[#This Row],[$ Distribuidor]]","v":0}]
["CF MOTO","NK 150","CUBRE CADENA 2D",null,null,null,{"$f":"PRODUCTOS[[#This Row],[Cantidad]]*PRODUCTOS[[#This Row],[$ Distribuidor]]","v":0}]
["CF MOTO","NK 150","CUBRE CADENA 3D",null,null,null,{"$f":"PRODUCTOS[[#This Row],[Cantidad]]*PRODUCTOS[[#This Row],[$ Distribuidor]]","v":0}]
["CF MOTO","NK 150","LOGO NS LATERAL TIJERA ",null,null,null,{"$f":"PRODUCTOS[[#This Row],[Cantidad]]*PRODUCTOS[[#This Row],[$ Distribuidor]]","v":0}]
["CF MOTO","NK 150","PROTECTORES LATERALES DE RADIADOR X2  2D",null,null,null,{"$f":"PRODUCTOS[[#This Row],[Cantidad]]*PRODUCTOS[[#This Row],[$ Distribuidor]]","v":0}]
["CF MOTO","NK 150","PROTECTORES LATERALES DE RADIADOR X2  3D",null,null,null,{"$f":"PRODUCTOS[[#This Row],[Cantidad]]*PRODUCTOS[[#This Row],[$ Distribuidor]]","v":0}]
["CF MOTO","NK 150","CABALLETE O GATO DE SERVICIO ",125000,160000,null,{"$f":"PRODUCTOS[[#This Row],[Cantidad]]*PRODUCTOS[[#This Row],[$ Distribuidor]]","v":0}]
["CF MOTO","NK 150","LUJO ACUTRAX MANUBRIO CENTRAL 2D",15000,23000,null,{"$f":"PRODUCTOS[[#This Row],[Cantidad]]*PRODUCTOS[[#This Row],[$ Distribuidor]]","v":0}]
["CF MOTO","NK 150","LUJO ACUTRAX MANUBRIO CENTRAL 3D",18000,25000,null,{"$f":"PRODUCTOS[[#This Row],[Cantidad]]*PRODUCTOS[[#This Row],[$ Distribuidor]]","v":0}]
["CF MOTO","NK 150","LUJO TANQUE FRONTAL",null,null,null,{"$f":"PRODUCTOS[[#This Row],[Cantidad]]*PRODUCTOS[[#This Row],[$ Distribuidor]]","v":0}]
["CF MOTO","NK 150","LUJO GUARDABARRO TRASERO LATERAL 2D ",null,null,null,{"$f":"PRODUCTOS[[#This Row],[Cantidad]]*PRODUCTOS[[#This Row],[$ Distribuidor]]","v":0}]
["CF MOTO","NK 150","LUJO GUARDABARRO TRASERO LATERAL 3D",null,null,null,{"$f":"PRODUCTOS[[#This Row],[Cantidad]]*PRODUCTOS[[#This Row],[$ Distribuidor]]","v":0}]
["CF MOTO","NK 150","LUJO GUARDABARRO TRASERO CENTRAL 2D",null,null,null,{"$f":"PRODUCTOS[[#This Row],[Cantidad]]*PRODUCTOS[[#This Row],[$ Distribuidor]]","v":0}]
["CF MOTO","NK 150","LUJO GUARDABARRO TRASERO CENTRAL 3D",null,null,null,{"$f":"PRODUCTOS[[#This Row],[Cantidad]]*PRODUCTOS[[#This Row],[$ Distribuidor]]","v":0}]
["CF MOTO","NK 150","LUJOS MALLAS LATERALES X 2",null,null,null,{"$f":"PRODUCTOS[[#This Row],[Cantidad]]*PRODUCTOS[[#This Row],[$ Distribuidor]]","v":0}]
["CF MOTO","NK 150","BASE PORTA CELULAR GPS",null,null,null,{"$f":"PRODUCTOS[[#This Row],[Cantidad]]*PRODUCTOS[[#This Row],[$ Distribuidor]]","v":0}]
["CF MOTO","NK 150","LUJO FILTRO ACEITE 2D",5000,10000,null,{"$f":"PRODUCTOS[[#This Row],[Cantidad]]*PRODUCTOS[[#This Row],[$ Distribuidor]]","v":0}]
["CF MOTO","NK 150","LUJO FILTRO ACEITE 3D",6000,12000,null,{"$f":"PRODUCTOS[[#This Row],[Cantidad]]*PRODUCTOS[[#This Row],[$ Distribuidor]]","v":0}]
["CF MOTO","NK 150","ESTABILIZADOR DE BARRAS 2D",null,null,null,{"$f":"PRODUCTOS[[#This Row],[Cantidad]]*PRODUCTOS[[#This Row],[$ Distribuidor]]","v":0}]
["CF MOTO","NK 150","ESTABILIZADOR DE BARRAS 3D",null,null,null,{"$f":"PRODUCTOS[[#This Row],[Cantidad]]*PRODUCTOS[[#This Row],[$ Distribuidor]]","v":0}]
["CF MOTO","NK 150","FENDER ELIMINATOR ABATIBLE 3 MILIMETROS PARA DIRECCIONALES ORIGINALES 2D",null,null,null,{"$f":"PRODUCTOS[[#This Row],[Cantidad]]*PRODUCTOS[[#This Row],[$ Distribuidor]]","v":0}]
["CF MOTO","NK 150","FENDER ELIMINATOR ABATIBLE 3 MILIMETROS PARA DIRECCIONALES ORIGINALES 3D",null,null,null,{"$f":"PRODUCTOS[[#This Row],[Cantidad]]*PRODUCTOS[[#This Row],[$ Distribuidor]]","v":0}]
["CF MOTO","NK 150","PROTECTOR TACOMETRO ACRILICO",11000,17000,null,{"$f":"PRODUCTOS[[#This Row],[Cantidad]]*PRODUCTOS[[#This Row],[$ Distribuidor]]","v":0}]
["CF MOTO","NK 250","SLIDER DE ALTO IMPACTO MOTOR 2 PUNTOS PREMIUM",90000,115000,null,{"$f":"PRODUCTOS[[#This Row],[Cantidad]]*PRODUCTOS[[#This Row],[$ Distribuidor]]","v":0}]
["CF MOTO","NK 250","PROTECTOR DE RADIADOR 2D",null,null,null,{"$f":"PRODUCTOS[[#This Row],[Cantidad]]*PRODUCTOS[[#This Row],[$ Distribuidor]]","v":0}]
["CF MOTO","NK 250","PROTECTOR DE RADIADOR 3D",null,null,null,{"$f":"PRODUCTOS[[#This Row],[Cantidad]]*PRODUCTOS[[#This Row],[$ Distribuidor]]","v":0}]
["CF MOTO","NK 250","PROTECTOR PLACA 2D",11000,20000,null,{"$f":"PRODUCTOS[[#This Row],[Cantidad]]*PRODUCTOS[[#This Row],[$ Distribuidor]]","v":0}]
["CF MOTO","NK 250","PROTECTOR PLACA 3D",14000,25000,null,{"$f":"PRODUCTOS[[#This Row],[Cantidad]]*PRODUCTOS[[#This Row],[$ Distribuidor]]","v":0}]
["CF MOTO","NK 250","SPOOLS PARA CABALLETE",20000,40000,null,{"$f":"PRODUCTOS[[#This Row],[Cantidad]]*PRODUCTOS[[#This Row],[$ Distribuidor]]","v":0}]
["CF MOTO","NK 250","PROTECTOR FAROLA 3D",null,null,null,{"$f":"PRODUCTOS[[#This Row],[Cantidad]]*PRODUCTOS[[#This Row],[$ Distribuidor]]","v":0}]
["CF MOTO","NK 250","CABALLETE O GATO DE SERVICIO ",125000,160000,null,{"$f":"PRODUCTOS[[#This Row],[Cantidad]]*PRODUCTOS[[#This Row],[$ Distribuidor]]","v":0}]
["HUSQVARNA","SVARTPILEN 200 ","SLIDER DE ALTO IMPACTO MOTOR 2 PUNTOS ECONO",85000,100000,null,{"$f":"PRODUCTOS[[#This Row],[Cantidad]]*PRODUCTOS[[#This Row],[$ Distribuidor]]","v":0}]
["HUSQVARNA","SVARTPILEN 200 ","SLIDER DE ALTO IMPACTO MOTOR 2 PUNTOS PREMIUM",90000,115000,null,{"$f":"PRODUCTOS[[#This Row],[Cantidad]]*PRODUCTOS[[#This Row],[$ Distribuidor]]","v":0}]
["HUSQVARNA","SVARTPILEN 200","SLIDER EJES X 4 CON TAPA",null,null,null,{"$f":"PRODUCTOS[[#This Row],[Cantidad]]*PRODUCTOS[[#This Row],[$ Distribuidor]]","v":0}]
["HUSQVARNA","SVARTPILEN 200","PROTECTOR DE RADIADOR 2D",null,null,null,{"$f":"PRODUCTOS[[#This Row],[Cantidad]]*PRODUCTOS[[#This Row],[$ Distribuidor]]","v":0}]
["HUSQVARNA","SVARTPILEN 200","PROTECTOR DE RADIADOR 3D",null,null,null,{"$f":"PRODUCTOS[[#This Row],[Cantidad]]*PRODUCTOS[[#This Row],[$ Distribuidor]]","v":0}]
["HUSQVARNA","SVARTPILEN 200","PROTECTOR ARO GASOLINA",11000,20000,null,{"$f":"PRODUCTOS[[#This Row],[Cantidad]]*PRODUCTOS[[#This Row],[$ Distribuidor]]","v":0}]
["HUSQVARNA","SVARTPILEN 200","PROTECTOR PLACA 2D",11000,20000,null,{"$f":"PRODUCTOS[[#This Row],[Cantidad]]*PRODUCTOS[[#This Row],[$ Distribuidor]]","v":0}]
["HUSQVARNA","SVARTPILEN 200","PROTECTOR PLACA 3D",14000,25000,null,{"$f":"PRODUCTOS[[#This Row],[Cantidad]]*PRODUCTOS[[#This Row],[$ Distribuidor]]","v":0}]
["HUSQVARNA","SVARTPILEN 200","PROTECTOR FAROLA 3D",null,null,null,{"$f":"PRODUCTOS[[#This Row],[Cantidad]]*PRODUCTOS[[#This Row],[$ Distribuidor]]","v":0}]
["HUSQVARNA","SVARTPILEN 200","SPOOLS PARA CABALLETE",20000,40000,null,{"$f":"PRODUCTOS[[#This Row],[Cantidad]]*PRODUCTOS[[#This Row],[$ Distribuidor]]","v":0}]
["HUSQVARNA","SVARTPILEN 200","CABALLETE O GATO DE SERVICIO ",125000,160000,null,{"$f":"PRODUCTOS[[#This Row],[Cantidad]]*PRODUCTOS[[#This Row],[$ Distribuidor]]","v":0}]
["HUSQVARNA","SVARTPILEN 250","SLIDER DE ALTO IMPACTO MOTOR 2 PUNTOS ECONO",85000,100000,null,{"$f":"PRODUCTOS[[#This Row],[Cantidad]]*PRODUCTOS[[#This Row],[$ Distribuidor]]","v":0}]
["HUSQVARNA","SVARTPILEN 250","SLIDER DE ALTO IMPACTO MOTOR 2 PUNTOS PREMIUM",90000,115000,null,{"$f":"PRODUCTOS[[#This Row],[Cantidad]]*PRODUCTOS[[#This Row],[$ Distribuidor]]","v":0}]
["HUSQVARNA","SVARTPILEN 250","SLIDER EJES X 4 CON TAPA",null,null,null,{"$f":"PRODUCTOS[[#This Row],[Cantidad]]*PRODUCTOS[[#This Row],[$ Distribuidor]]","v":0}]
["HUSQVARNA","SVARTPILEN 250","PROTECTOR DE RADIADOR 2D",null,null,null,{"$f":"PRODUCTOS[[#This Row],[Cantidad]]*PRODUCTOS[[#This Row],[$ Distribuidor]]","v":0}]
["HUSQVARNA","SVARTPILEN 250","PROTECTOR DE RADIADOR 3D",null,null,null,{"$f":"PRODUCTOS[[#This Row],[Cantidad]]*PRODUCTOS[[#This Row],[$ Distribuidor]]","v":0}]
["HUSQVARNA","SVARTPILEN 250","PROTECTOR ARO GASOLINA",11000,20000,null,{"$f":"PRODUCTOS[[#This Row],[Cantidad]]*PRODUCTOS[[#This Row],[$ Distribuidor]]","v":0}]
["HUSQVARNA","SVARTPILEN 250","PROTECTOR PLACA 2D",11000,20000,null,{"$f":"PRODUCTOS[[#This Row],[Cantidad]]*PRODUCTOS[[#This Row],[$ Distribuidor]]","v":0}]
["HUSQVARNA","SVARTPILEN 250","PROTECTOR PLACA 3D",14000,25000,null,{"$f":"PRODUCTOS[[#This Row],[Cantidad]]*PRODUCTOS[[#This Row],[$ Distribuidor]]","v":0}]
["HUSQVARNA","SVARTPILEN 250","PROTECTOR FAROLA 3D",null,null,null,{"$f":"PRODUCTOS[[#This Row],[Cantidad]]*PRODUCTOS[[#This Row],[$ Distribuidor]]","v":0}]
["HUSQVARNA","SVARTPILEN 250","SPOOLS PARA CABALLETE",20000,40000,null,{"$f":"PRODUCTOS[[#This Row],[Cantidad]]*PRODUCTOS[[#This Row],[$ Distribuidor]]","v":0}]
["HUSQVARNA","SVARTPILEN 250","CABALLETE O GATO DE SERVICIO ",125000,160000,null,{"$f":"PRODUCTOS[[#This Row],[Cantidad]]*PRODUCTOS[[#This Row],[$ Distribuidor]]","v":0}]
["HUSQVARNA","SVARTPILEN 401","SLIDER DE ALTO IMPACTO MOTOR 2 PUNTOS ECONO",85000,100000,null,{"$f":"PRODUCTOS[[#This Row],[Cantidad]]*PRODUCTOS[[#This Row],[$ Distribuidor]]","v":0}]
["HUSQVARNA","SVARTPILEN 401","SLIDER DE ALTO IMPACTO MOTOR 2 PUNTOS PREMIUM",90000,115000,null,{"$f":"PRODUCTOS[[#This Row],[Cantidad]]*PRODUCTOS[[#This Row],[$ Distribuidor]]","v":0}]
["HUSQVARNA","SVARTPILEN 401","SLIDER EJES X 4 CON TAPA",null,null,null,{"$f":"PRODUCTOS[[#This Row],[Cantidad]]*PRODUCTOS[[#This Row],[$ Distribuidor]]","v":0}]
["HUSQVARNA","SVARTPILEN 401","PROTECTOR DE RADIADOR 2D",null,null,null,{"$f":"PRODUCTOS[[#This Row],[Cantidad]]*PRODUCTOS[[#This Row],[$ Distribuidor]]","v":0}]
["HUSQVARNA","SVARTPILEN 401","PROTECTOR DE RADIADOR 3D",null,null,null,{"$f":"PRODUCTOS[[#This Row],[Cantidad]]*PRODUCTOS[[#This Row],[$ Distribuidor]]","v":0}]
["HUSQVARNA","SVARTPILEN 401","PROTECTOR ARO GASOLINA",11000,20000,null,{"$f":"PRODUCTOS[[#This Row],[Cantidad]]*PRODUCTOS[[#This Row],[$ Distribuidor]]","v":0}]
["HUSQVARNA","SVARTPILEN 401","PROTECTOR PLACA 2D",11000,20000,null,{"$f":"PRODUCTOS[[#This Row],[Cantidad]]*PRODUCTOS[[#This Row],[$ Distribuidor]]","v":0}]
["HUSQVARNA","SVARTPILEN 401","PROTECTOR PLACA 3D",14000,25000,null,{"$f":"PRODUCTOS[[#This Row],[Cantidad]]*PRODUCTOS[[#This Row],[$ Distribuidor]]","v":0}]
["HUSQVARNA","SVARTPILEN 401","PROTECTOR FAROLA 3D",null,null,null,{"$f":"PRODUCTOS[[#This Row],[Cantidad]]*PRODUCTOS[[#This Row],[$ Distribuidor]]","v":0}]
["HUSQVARNA","SVARTPILEN 401","SPOOLS PARA CABALLETE",20000,40000,null,{"$f":"PRODUCTOS[[#This Row],[Cantidad]]*PRODUCTOS[[#This Row],[$ Distribuidor]]","v":0}]
["HUSQVARNA","SVARTPILEN 401","CABALLETE O GATO DE SERVICIO ",125000,160000,null,{"$f":"PRODUCTOS[[#This Row],[Cantidad]]*PRODUCTOS[[#This Row],[$ Distribuidor]]","v":0}]
["DUCATI","MONSTER 937","SLIDER DE ALTO IMPACTO MOTOR 2 PUNTOS PREMIUM",90000,115000,null,{"$f":"PRODUCTOS[[#This Row],[Cantidad]]*PRODUCTOS[[#This Row],[$ Distribuidor]]","v":0}]
["DUCATI","MONSTER 937","SLIDER EJES X 4 CON TAPA",null,null,null,{"$f":"PRODUCTOS[[#This Row],[Cantidad]]*PRODUCTOS[[#This Row],[$ Distribuidor]]","v":0}]
["DUCATI","MONSTER 937","PROTECTOR DE RADIADOR 2D",null,null,null,{"$f":"PRODUCTOS[[#This Row],[Cantidad]]*PRODUCTOS[[#This Row],[$ Distribuidor]]","v":0}]
["DUCATI","MONSTER 937","PROTECTOR DE RADIADOR 3D",null,null,null,{"$f":"PRODUCTOS[[#This Row],[Cantidad]]*PRODUCTOS[[#This Row],[$ Distribuidor]]","v":0}]
["DUCATI","MONSTER 937","PROTECTOR PLACA 2D",11000,20000,null,{"$f":"PRODUCTOS[[#This Row],[Cantidad]]*PRODUCTOS[[#This Row],[$ Distribuidor]]","v":0}]
["DUCATI","MONSTER 937","PROTECTOR PLACA 3D",14000,25000,null,{"$f":"PRODUCTOS[[#This Row],[Cantidad]]*PRODUCTOS[[#This Row],[$ Distribuidor]]","v":0}]
["DUCATI","MONSTER 937","CABALLETE O GATO DE SERVICIO ",125000,160000,null,{"$f":"PRODUCTOS[[#This Row],[Cantidad]]*PRODUCTOS[[#This Row],[$ Distribuidor]]","v":0}]
["DUCATI","HYPERMOTARD 821","PROTECTOR DE RADIADOR 2D",null,null,null,{"$f":"PRODUCTOS[[#This Row],[Cantidad]]*PRODUCTOS[[#This Row],[$ Distribuidor]]","v":0}]
["DUCATI","HYPERMOTARD 821","PROTECTOR DE RADIADOR 3D",null,null,null,{"$f":"PRODUCTOS[[#This Row],[Cantidad]]*PRODUCTOS[[#This Row],[$ Distribuidor]]","v":0}]
["DUCATI","HYPERMOTARD 821","PROTECTOR PLACA 2D",11000,20000,null,{"$f":"PRODUCTOS[[#This Row],[Cantidad]]*PRODUCTOS[[#This Row],[$ Distribuidor]]","v":0}]
["DUCATI","HYPERMOTARD 821","PROTECTOR PLACA 3D",14000,25000,null,{"$f":"PRODUCTOS[[#This Row],[Cantidad]]*PRODUCTOS[[#This Row],[$ Distribuidor]]","v":0}]
["DUCATI","HYPERMOTARD 821","CABALLETE O GATO DE SERVICIO ",125000,160000,null,{"$f":"PRODUCTOS[[#This Row],[Cantidad]]*PRODUCTOS[[#This Row],[$ Distribuidor]]","v":0}]
["DUCATI","HYPERMOTARD 821","PROTECTOR DE RADIADOR 2D",null,null,null,{"$f":"PRODUCTOS[[#This Row],[Cantidad]]*PRODUCTOS[[#This Row],[$ Distribuidor]]","v":0}]
["DUCATI","HYPERMOTARD 821","PROTECTOR DE RADIADOR 3D",null,null,null,{"$f":"PRODUCTOS[[#This Row],[Cantidad]]*PRODUCTOS[[#This Row],[$ Distribuidor]]","v":0}]
["DUCATI","HYPERMOTARD 821","PROTECTOR PLACA 2D",11000,20000,null,{"$f":"PRODUCTOS[[#This Row],[Cantidad]]*PRODUCTOS[[#This Row],[$ Distribuidor]]","v":0}]
["DUCATI","HYPERMOTARD 821","PROTECTOR PLACA 3D",14000,25000,null,{"$f":"PRODUCTOS[[#This Row],[Cantidad]]*PRODUCTOS[[#This Row],[$ Distribuidor]]","v":0}]
["DUCATI","HYPERMOTARD 821","PROTECTOR FAROLA 3D",null,null,null,{"$f":"PRODUCTOS[[#This Row],[Cantidad]]*PRODUCTOS[[#This Row],[$ Distribuidor]]","v":0}]
["DUCATI","HYPERMOTARD 821","CABALLETE O GATO DE SERVICIO ",125000,160000,null,{"$f":"PRODUCTOS[[#This Row],[Cantidad]]*PRODUCTOS[[#This Row],[$ Distribuidor]]","v":0}]
["DUCATI","HYPERMOTARD 950 2 RADIADORES","PROTECTOR DE RADIADOR ACEITE Y AGUA 2D",null,null,null,{"$f":"PRODUCTOS[[#This Row],[Cantidad]]*PRODUCTOS[[#This Row],[$ Distribuidor]]","v":0}]
["DUCATI","HYPERMOTARD 950 2 RADIADORES","PROTECTOR DE RADIADOR ACEITE Y AGUA 3D",null,null,null,{"$f":"PRODUCTOS[[#This Row],[Cantidad]]*PRODUCTOS[[#This Row],[$ Distribuidor]]","v":0}]
["DUCATI","HYPERMOTARD 950 2 RADIADORES","PROTECTOR PLACA 2D",11000,20000,null,{"$f":"PRODUCTOS[[#This Row],[Cantidad]]*PRODUCTOS[[#This Row],[$ Distribuidor]]","v":0}]
["DUCATI","HYPERMOTARD 950 2 RADIADORES","PROTECTOR PLACA 3D",14000,25000,null,{"$f":"PRODUCTOS[[#This Row],[Cantidad]]*PRODUCTOS[[#This Row],[$ Distribuidor]]","v":0}]
["DUCATI","HYPERMOTARD 950 2 RADIADORES","CABALLETE O GATO DE SERVICIO ",125000,160000,null,{"$f":"PRODUCTOS[[#This Row],[Cantidad]]*PRODUCTOS[[#This Row],[$ Distribuidor]]","v":0}]
["TRIUMP","TIGGER 1200","SLIDER DE ALTO IMPACTO MOTOR 2 PUNTOS ECONO",85000,100000,null,{"$f":"PRODUCTOS[[#This Row],[Cantidad]]*PRODUCTOS[[#This Row],[$ Distribuidor]]","v":0}]
["TRIUMP","TIGGER 1200","SLIDER DE ALTO IMPACTO MOTOR 2 PUNTOS PREMIUM",90000,115000,null,{"$f":"PRODUCTOS[[#This Row],[Cantidad]]*PRODUCTOS[[#This Row],[$ Distribuidor]]","v":0}]
["TRIUMP","TIGGER 1200","SLIDER DE ALTO IMPACTO MOTOR 3 PUNTOS ECONO",95000,130000,null,{"$f":"PRODUCTOS[[#This Row],[Cantidad]]*PRODUCTOS[[#This Row],[$ Distribuidor]]","v":0}]
["TRIUMP","TIGGER 1200","SLIDER DE ALTO IMPACTO MOTOR 3 PUNTOS PREMIUM",100000,145000,null,{"$f":"PRODUCTOS[[#This Row],[Cantidad]]*PRODUCTOS[[#This Row],[$ Distribuidor]]","v":0}]
["TRIUMP","TIGGER 1200","SLIDER EJES X 4 SIN TAPA",null,null,null,{"$f":"PRODUCTOS[[#This Row],[Cantidad]]*PRODUCTOS[[#This Row],[$ Distribuidor]]","v":0}]
["TRIUMP","TIGGER 1200","SLIDER EJES X 4 CON TAPA",null,null,null,{"$f":"PRODUCTOS[[#This Row],[Cantidad]]*PRODUCTOS[[#This Row],[$ Distribuidor]]","v":0}]
["TRIUMP","TIGGER 1200","PROTECTOR DE RADIADOR 2D",null,null,null,{"$f":"PRODUCTOS[[#This Row],[Cantidad]]*PRODUCTOS[[#This Row],[$ Distribuidor]]","v":0}]
["TRIUMP","TIGGER 1200","PROTECTOR DE RADIADOR 3D",null,null,null,{"$f":"PRODUCTOS[[#This Row],[Cantidad]]*PRODUCTOS[[#This Row],[$ Distribuidor]]","v":0}]
["TRIUMP","TIGGER 1200","PROTECTOR CALIPER MORDAZA 2D",12000,20000,null,{"$f":"PRODUCTOS[[#This Row],[Cantidad]]*PRODUCTOS[[#This Row],[$ Distribuidor]]","v":0}]
["TRIUMP","TIGGER 1200","PROTECTOR CALIPER MORDAZA 3D",15000,25000,null,{"$f":"PRODUCTOS[[#This Row],[Cantidad]]*PRODUCTOS[[#This Row],[$ Distribuidor]]","v":0}]
["TRIUMP","TIGGER 1200","PROTECTOR DEPOSITO LIQUIDO FRENO DELANTERO 2D",8000,20000,null,{"$f":"PRODUCTOS[[#This Row],[Cantidad]]*PRODUCTOS[[#This Row],[$ Distribuidor]]","v":0}]
["TRIUMP","TIGGER 1200","PROTECTOR DEPOSITO LIQUIDO FRENO DELANTERO 3D",10000,25000,null,{"$f":"PRODUCTOS[[#This Row],[Cantidad]]*PRODUCTOS[[#This Row],[$ Distribuidor]]","v":0}]
["TRIUMP","TIGGER 1200","PROTECTOR DEPOSITO LIQUIDO FRENO TRASERO 2D",13000,25000,null,{"$f":"PRODUCTOS[[#This Row],[Cantidad]]*PRODUCTOS[[#This Row],[$ Distribuidor]]","v":0}]
["TRIUMP","TIGGER 1200","PROTECTOR DEPOSITO LIQUIDO FRENO TRASERO 3D",15000,28000,null,{"$f":"PRODUCTOS[[#This Row],[Cantidad]]*PRODUCTOS[[#This Row],[$ Distribuidor]]","v":0}]
["TRIUMP","TIGGER 1200","PROTECTOR ARO GASOLINA",11000,20000,null,{"$f":"PRODUCTOS[[#This Row],[Cantidad]]*PRODUCTOS[[#This Row],[$ Distribuidor]]","v":0}]
["TRIUMP","TIGGER 1200","PROTECTOR PLACA 2D",11000,20000,null,{"$f":"PRODUCTOS[[#This Row],[Cantidad]]*PRODUCTOS[[#This Row],[$ Distribuidor]]","v":0}]
["TRIUMP","TIGGER 1200","PROTECTOR PLACA 3D",14000,25000,null,{"$f":"PRODUCTOS[[#This Row],[Cantidad]]*PRODUCTOS[[#This Row],[$ Distribuidor]]","v":0}]
["TRIUMP","TIGGER 1200","PROTECTOR FAROLA 3D",null,null,null,{"$f":"PRODUCTOS[[#This Row],[Cantidad]]*PRODUCTOS[[#This Row],[$ Distribuidor]]","v":0}]
["TRIUMP","TIGGER 1200","CUPULA DE LUJO ACERO INOXIDABLE",null,null,null,{"$f":"PRODUCTOS[[#This Row],[Cantidad]]*PRODUCTOS[[#This Row],[$ Distribuidor]]","v":0}]
["TRIUMP","TIGGER 1200","CUBRE PIÑON SALIDA  2D",19000,25000,null,{"$f":"PRODUCTOS[[#This Row],[Cantidad]]*PRODUCTOS[[#This Row],[$ Distribuidor]]","v":0}]
["TRIUMP","TIGGER 1200","CUBRE PIÑON SALIDA  3D",22000,30000,null,{"$f":"PRODUCTOS[[#This Row],[Cantidad]]*PRODUCTOS[[#This Row],[$ Distribuidor]]","v":0}]
["TRIUMP","TIGGER 1200","CUBRE CADENA 2D",null,null,null,{"$f":"PRODUCTOS[[#This Row],[Cantidad]]*PRODUCTOS[[#This Row],[$ Distribuidor]]","v":0}]
["TRIUMP","TIGGER 1200","CUBRE CADENA 3D",null,null,null,{"$f":"PRODUCTOS[[#This Row],[Cantidad]]*PRODUCTOS[[#This Row],[$ Distribuidor]]","v":0}]
["TRIUMP","TIGGER 1200","LOGO NS LATERAL TIJERA ",null,null,null,{"$f":"PRODUCTOS[[#This Row],[Cantidad]]*PRODUCTOS[[#This Row],[$ Distribuidor]]","v":0}]
["TRIUMP","TIGGER 1200","PROTECTORES LATERALES DE RADIADOR X2  2D",null,null,null,{"$f":"PRODUCTOS[[#This Row],[Cantidad]]*PRODUCTOS[[#This Row],[$ Distribuidor]]","v":0}]
["TRIUMP","TIGGER 1200","PROTECTORES LATERALES DE RADIADOR X2  3D",null,null,null,{"$f":"PRODUCTOS[[#This Row],[Cantidad]]*PRODUCTOS[[#This Row],[$ Distribuidor]]","v":0}]
["TRIUMP","TIGGER 1200","CABALLETE O GATO DE SERVICIO ",125000,160000,null,{"$f":"PRODUCTOS[[#This Row],[Cantidad]]*PRODUCTOS[[#This Row],[$ Distribuidor]]","v":0}]
["TRIUMP","TIGGER 1200","LUJO ACUTRAX MANUBRIO CENTRAL 2D",15000,23000,null,{"$f":"PRODUCTOS[[#This Row],[Cantidad]]*PRODUCTOS[[#This Row],[$ Distribuidor]]","v":0}]
["TRIUMP","TIGGER 1200","LUJO ACUTRAX MANUBRIO CENTRAL 3D",18000,25000,null,{"$f":"PRODUCTOS[[#This Row],[Cantidad]]*PRODUCTOS[[#This Row],[$ Distribuidor]]","v":0}]
["TRIUMP","TIGGER 1200","LUJO TANQUE FRONTAL",null,null,null,{"$f":"PRODUCTOS[[#This Row],[Cantidad]]*PRODUCTOS[[#This Row],[$ Distribuidor]]","v":0}]
["TRIUMP","TIGGER 1200","LUJO GUARDABARRO TRASERO LATERAL 2D ",null,null,null,{"$f":"PRODUCTOS[[#This Row],[Cantidad]]*PRODUCTOS[[#This Row],[$ Distribuidor]]","v":0}]
["TRIUMP","TIGGER 1200","LUJO GUARDABARRO TRASERO LATERAL 3D",null,null,null,{"$f":"PRODUCTOS[[#This Row],[Cantidad]]*PRODUCTOS[[#This Row],[$ Distribuidor]]","v":0}]
["TRIUMP","TIGGER 1200","LUJO GUARDABARRO TRASERO CENTRAL 2D",null,null,null,{"$f":"PRODUCTOS[[#This Row],[Cantidad]]*PRODUCTOS[[#This Row],[$ Distribuidor]]","v":0}]
["TRIUMP","TIGGER 1200","LUJO GUARDABARRO TRASERO CENTRAL 3D",null,null,null,{"$f":"PRODUCTOS[[#This Row],[Cantidad]]*PRODUCTOS[[#This Row],[$ Distribuidor]]","v":0}]
["TRIUMP","TIGGER 1200","LUJOS MALLAS LATERALES X 2",null,null,null,{"$f":"PRODUCTOS[[#This Row],[Cantidad]]*PRODUCTOS[[#This Row],[$ Distribuidor]]","v":0}]
["TRIUMP","TIGGER 1200","BASE PORTA CELULAR GPS",null,null,null,{"$f":"PRODUCTOS[[#This Row],[Cantidad]]*PRODUCTOS[[#This Row],[$ Distribuidor]]","v":0}]
["TRIUMP","TIGGER 1200","LUJO FILTRO ACEITE 2D",5000,10000,null,{"$f":"PRODUCTOS[[#This Row],[Cantidad]]*PRODUCTOS[[#This Row],[$ Distribuidor]]","v":0}]
["TRIUMP","TIGGER 1200","LUJO FILTRO ACEITE 3D",6000,12000,null,{"$f":"PRODUCTOS[[#This Row],[Cantidad]]*PRODUCTOS[[#This Row],[$ Distribuidor]]","v":0}]
["TRIUMP","TIGGER 1200","ESTABILIZADOR DE BARRAS 2D",null,null,null,{"$f":"PRODUCTOS[[#This Row],[Cantidad]]*PRODUCTOS[[#This Row],[$ Distribuidor]]","v":0}]
["TRIUMP","TIGGER 1200","ESTABILIZADOR DE BARRAS 3D",null,null,null,{"$f":"PRODUCTOS[[#This Row],[Cantidad]]*PRODUCTOS[[#This Row],[$ Distribuidor]]","v":0}]
["TRIUMP","TIGGER 1200","FENDER ELIMINATOR ABATIBLE 3 MILIMETROS PARA DIRECCIONALES ORIGINALES 2D",null,null,null,{"$f":"PRODUCTOS[[#This Row],[Cantidad]]*PRODUCTOS[[#This Row],[$ Distribuidor]]","v":0}]
["TRIUMP","TIGGER 1200","FENDER ELIMINATOR ABATIBLE 3 MILIMETROS PARA DIRECCIONALES ORIGINALES 3D",null,null,null,{"$f":"PRODUCTOS[[#This Row],[Cantidad]]*PRODUCTOS[[#This Row],[$ Distribuidor]]","v":0}]
["TRIUMP","TIGGER 1200","PROTECTOR TACOMETRO ACRILICO",11000,17000,null,{"$f":"PRODUCTOS[[#This Row],[Cantidad]]*PRODUCTOS[[#This Row],[$ Distribuidor]]","v":0}]

{"sheet":"FACTURA","index":1,"n_rows":6,"n_cols":6,"rows_kept":6,"cut":false,"hidden":false,"merged":[[1,0,1,5]]}
[]
["RADIATOR GUARD"]
[null,"FACTURA DE VENTA"]
[null,1]
[]
["Marca ","Referencia","Accesorio","Cantidad","Valor Distribuidor","Valor Total"]